Workbook

Sheet COVER PAGE
B2: REGION | D2: =VLOOKUP($A$3,Lookup!$A:$D,4,FALSE) -> NORTH | I2: DELIVERY DASHBOARD
A3: 1 | B3: CCG:
A4: =VLOOKUP($A$3,Lookup!$A:$D,3,FALSE) -> 03L | B4: AREA TEAM | D4: =VLOOKUP($A$3,Lookup!$A:$G,6,FALSE) -> S Yorkshire & Bassetlaw
K5: LAST REFRESH DATE | M5: 2014-08-31T19:36:44 | Q5: =IF(D2="LONDON","Picture 33",IF(D2="ENGLAND","Picture 28",IF(D2="NORTH","Picture 29",IF(D2="MIDLANDS & EAST","Picture 30",IF(D2="SOUTH","Picture 31"))))) -> Picture 29 | T5: 3
Q6: Picture 33 | T6: =IF(Q6=Q5,"3",IF(Q6<>Q5,"1")) -> 1
Q7: Picture 28 | T7: =IF(Q7=Q5,"3",IF(Q7<>Q5,"1")) -> 1
Q8: Picture 29 | T8: =IF(Q8=Q5,"3",IF(Q8<>Q5,"1")) -> 3
Q9: Picture 30 | T9: =IF(Q9=Q5,"3",IF(Q9<>Q5,"1")) -> 1
Q10: Picture 31 | T10: =IF(Q10=Q5,"3",IF(Q10<>Q5,"1")) -> 1
Q12: =IF(D2="LONDON","D21",IF(D2="NORTH","I21",IF(D2="MIDLANDS & EAST","J21",IF(D2="SOUTH","M21")))) -> I21
Q13: D21 | T13: =IF(AND(Q13=Q12),"3","1") -> 1
Q14: I21 | T14: =IF(AND(Q14=Q12),"3","1") -> 3
Q15: J21 | T15: =IF(AND(Q15=Q12),"3","1") -> 1
Q16: M21 | T16: =IF(AND(Q16=Q12),"3","1") -> 1
D21: LONDON REGION | I21: NORTH REGION | J21: MIDLANDS REGION | M21: SOUTH REGION
A31: Please select CCG patch
A32: NCEL
A33: NWL
A34: SL

Sheet QUALITY SECTION (hidden)
E5: =VLOOKUP('COVER PAGE'!$A$3,Lookup!$A:$C,2,FALSE) -> NHS Rotherham CCG
B8: Please note that this Section will be pre-populated through the self-certification carried out by the CCG | G8: 2013-14 | H8: December
C9: PROV1 | D9: PROV2 | E9: PROV3 | F9: PROV4 | G9: PROV5 | H9: PROV6 | I9: PROV7 | J9: PROV8 | K9: PROV9 | L9: PROV10
B10: INDICATOR | C10: =IFERROR(VLOOKUP($G$8&"_"&$H$8&"_"&'COVER PAGE'!$A$4&"_"&C9,CCG_PROV_SELFCERT!$A:$Q,4,FALSE),"No Provider") -> THE ROTHERHAM NHS FOUNDATION TRUST | D10: =IFERROR(VLOOKUP($G$8&"_"&$H$8&"_"&'COVER PAGE'!$A$4&"_"&D9,CCG_PROV_SELFCERT!$A:$Q,4,FALSE),"No Provider") -> ROTHERHAM DONCASTER AND SOUTH HUMBER NHS FOUNDATION TRUST | E10: =IFERROR(VLOOKUP($G$8&"_"&$H$8&"_"&'COVER PAGE'!$A$4&"_"&E9,CCG_PROV_SELFCERT!$A:$Q,4,FALSE),"No Provider") -> No Provider | F10: =IFERROR(VLOOKUP($G$8&"_"&$H$8&"_"&'COVER PAGE'!$A$4&"_"&F9,CCG_PROV_SELFCERT!$A:$Q,4,FALSE),"No Provider") -> No Provider | G10: =IFERROR(VLOOKUP($G$8&"_"&$H$8&"_"&'COVER PAGE'!$A$4&"_"&G9,CCG_PROV_SELFCERT!$A:$Q,4,FALSE),"No Provider") -> No Provider | H10: =IFERROR(VLOOKUP($G$8&"_"&$H$8&"_"&'COVER PAGE'!$A$4&"_"&H9,CCG_PROV_SELFCERT!$A:$Q,4,FALSE),"No Provider") -> No Provider | I10: =IFERROR(VLOOKUP($G$8&"_"&$H$8&"_"&'COVER PAGE'!$A$4&"_"&I9,CCG_PROV_SELFCERT!$A:$Q,4,FALSE),"No Provider") -> No Provider | J10: =IFERROR(VLOOKUP($G$8&"_"&$H$8&"_"&'COVER PAGE'!$A$4&"_"&J9,CCG_PROV_SELFCERT!$A:$Q,4,FALSE),"No Provider") -> No Provider | K10: =IFERROR(VLOOKUP($G$8&"_"&$H$8&"_"&'COVER PAGE'!$A$4&"_"&K9,CCG_PROV_SELFCERT!$A:$Q,4,FALSE),"No Provider") -> No Provider | L10: =IFERROR(VLOOKUP($G$8&"_"&$H$8&"_"&'COVER PAGE'!$A$4&"_"&L9,CCG_PROV_SELFCERT!$A:$Q,4,FALSE),"No Provider") -> No Provider
B11: PROVIDER CODE | C11: =IFERROR(VLOOKUP($G$8&"_"&$H$8&"_"&'COVER PAGE'!$A$4&"_"&C9,CCG_PROV_SELFCERT!$A:$Q,3,FALSE),"No Provider") -> RFR | D11: =IFERROR(VLOOKUP($G$8&"_"&$H$8&"_"&'COVER PAGE'!$A$4&"_"&D9,CCG_PROV_SELFCERT!$A:$Q,3,FALSE),"No Provider") -> RXE | E11: =IFERROR(VLOOKUP($G$8&"_"&$H$8&"_"&'COVER PAGE'!$A$4&"_"&E9,CCG_PROV_SELFCERT!$A:$Q,3,FALSE),"No Provider") -> No Provider | F11: =IFERROR(VLOOKUP($G$8&"_"&$H$8&"_"&'COVER PAGE'!$A$4&"_"&F9,CCG_PROV_SELFCERT!$A:$Q,3,FALSE),"No Provider") -> No Provider | G11: =IFERROR(VLOOKUP($G$8&"_"&$H$8&"_"&'COVER PAGE'!$A$4&"_"&G9,CCG_PROV_SELFCERT!$A:$Q,3,FALSE),"No Provider") -> No Provider | H11: =IFERROR(VLOOKUP($G$8&"_"&$H$8&"_"&'COVER PAGE'!$A$4&"_"&H9,CCG_PROV_SELFCERT!$A:$Q,3,FALSE),"No Provider") -> No Provider | I11: =IFERROR(VLOOKUP($G$8&"_"&$H$8&"_"&'COVER PAGE'!$A$4&"_"&I9,CCG_PROV_SELFCERT!$A:$Q,3,FALSE),"No Provider") -> No Provider | J11: =IFERROR(VLOOKUP($G$8&"_"&$H$8&"_"&'COVER PAGE'!$A$4&"_"&J9,CCG_PROV_SELFCERT!$A:$Q,3,FALSE),"No Provider") -> No Provider | K11: =IFERROR(VLOOKUP($G$8&"_"&$H$8&"_"&'COVER PAGE'!$A$4&"_"&K9,CCG_PROV_SELFCERT!$A:$Q,3,FALSE),"No Provider") -> No Provider | L11: =IFERROR(VLOOKUP($G$8&"_"&$H$8&"_"&'COVER PAGE'!$A$4&"_"&L9,CCG_PROV_SELFCERT!$A:$Q,3,FALSE),"No Provider") -> No Provider
B12: PLEASE IDENTIFY THE PERCENTAGE OF PROVIDER INCOME FOR CCG | C12: =IFERROR(VLOOKUP($G$8&"_"&$H$8&"_"&'COVER PAGE'!$A$4&"_"&C9,CCG_PROV_SELFCERT!$A:$Q,5,FALSE),"No Provider") -> 67 | D12: =IFERROR(VLOOKUP($G$8&"_"&$H$8&"_"&'COVER PAGE'!$A$4&"_"&D9,CCG_PROV_SELFCERT!$A:$Q,5,FALSE),"No Provider") -> 17 | E12: =IFERROR(VLOOKUP($G$8&"_"&$H$8&"_"&'COVER PAGE'!$A$4&"_"&E9,CCG_PROV_SELFCERT!$A:$Q,5,FALSE),"No Provider") -> No Provider | F12: =IFERROR(VLOOKUP($G$8&"_"&$H$8&"_"&'COVER PAGE'!$A$4&"_"&F9,CCG_PROV_SELFCERT!$A:$Q,5,FALSE),"No Provider") -> No Provider | G12: =IFERROR(VLOOKUP($G$8&"_"&$H$8&"_"&'COVER PAGE'!$A$4&"_"&G9,CCG_PROV_SELFCERT!$A:$Q,5,FALSE),"No Provider") -> No Provider | H12: =IFERROR(VLOOKUP($G$8&"_"&$H$8&"_"&'COVER PAGE'!$A$4&"_"&H9,CCG_PROV_SELFCERT!$A:$Q,5,FALSE),"No Provider") -> No Provider | I12: =IFERROR(VLOOKUP($G$8&"_"&$H$8&"_"&'COVER PAGE'!$A$4&"_"&I9,CCG_PROV_SELFCERT!$A:$Q,5,FALSE),"No Provider") -> No Provider | J12: =IFERROR(VLOOKUP($G$8&"_"&$H$8&"_"&'COVER PAGE'!$A$4&"_"&J9,CCG_PROV_SELFCERT!$A:$Q,5,FALSE),"No Provider") -> No Provider | K12: =IFERROR(VLOOKUP($G$8&"_"&$H$8&"_"&'COVER PAGE'!$A$4&"_"&K9,CCG_PROV_SELFCERT!$A:$Q,5,FALSE),"No Provider") -> No Provider | L12: =IFERROR(VLOOKUP($G$8&"_"&$H$8&"_"&'COVER PAGE'!$A$4&"_"&L9,CCG_PROV_SELFCERT!$A:$Q,5,FALSE),"No Provider") -> No Provider
B13: WHAT TYPE OF SERVICE IS COMMISSIONED FROM THIS PROVIDER? | C13: =IFERROR(VLOOKUP($G$8&"_"&$H$8&"_"&'COVER PAGE'!$A$4&"_"&C9,CCG_PROV_SELFCERT!$A:$Q,6,FALSE),"No Provider") -> Acute | D13: =IFERROR(VLOOKUP($G$8&"_"&$H$8&"_"&'COVER PAGE'!$A$4&"_"&D9,CCG_PROV_SELFCERT!$A:$Q,6,FALSE),"No Provider") -> MH | E13: =IFERROR(VLOOKUP($G$8&"_"&$H$8&"_"&'COVER PAGE'!$A$4&"_"&E9,CCG_PROV_SELFCERT!$A:$Q,6,FALSE),"No Provider") -> No Provider | F13: =IFERROR(VLOOKUP($G$8&"_"&$H$8&"_"&'COVER PAGE'!$A$4&"_"&F9,CCG_PROV_SELFCERT!$A:$Q,6,FALSE),"No Provider") -> No Provider | G13: =IFERROR(VLOOKUP($G$8&"_"&$H$8&"_"&'COVER PAGE'!$A$4&"_"&G9,CCG_PROV_SELFCERT!$A:$Q,6,FALSE),"No Provider") -> No Provider | H13: =IFERROR(VLOOKUP($G$8&"_"&$H$8&"_"&'COVER PAGE'!$A$4&"_"&H9,CCG_PROV_SELFCERT!$A:$Q,6,FALSE),"No Provider") -> No Provider | I13: =IFERROR(VLOOKUP($G$8&"_"&$H$8&"_"&'COVER PAGE'!$A$4&"_"&I9,CCG_PROV_SELFCERT!$A:$Q,6,FALSE),"No Provider") -> No Provider | J13: =IFERROR(VLOOKUP($G$8&"_"&$H$8&"_"&'COVER PAGE'!$A$4&"_"&J9,CCG_PROV_SELFCERT!$A:$Q,6,FALSE),"No Provider") -> No Provider | K13: =IFERROR(VLOOKUP($G$8&"_"&$H$8&"_"&'COVER PAGE'!$A$4&"_"&K9,CCG_PROV_SELFCERT!$A:$Q,6,FALSE),"No Provider") -> No Provider | L13: =IFERROR(VLOOKUP($G$8&"_"&$H$8&"_"&'COVER PAGE'!$A$4&"_"&L9,CCG_PROV_SELFCERT!$A:$Q,6,FALSE),"No Provider") -> No Provider
A14: Has local provider been subject to local enforcement action by the CQC? | B14: Has local provider been subject to local enforcement action by the CQC? | C14: =IFERROR(VLOOKUP($G$8&"_"&$H$8&"_"&'COVER PAGE'!$A$4&"_"&C9,CCG_PROV_SELFCERT!$A:$Q,7,FALSE),"No Provider") -> No | D14: =IFERROR(VLOOKUP($G$8&"_"&$H$8&"_"&'COVER PAGE'!$A$4&"_"&D9,CCG_PROV_SELFCERT!$A:$Q,7,FALSE),"No Provider") -> No | E14: =IFERROR(VLOOKUP($G$8&"_"&$H$8&"_"&'COVER PAGE'!$A$4&"_"&E9,CCG_PROV_SELFCERT!$A:$Q,7,FALSE),"No Provider") -> No Provider | F14: =IFERROR(VLOOKUP($G$8&"_"&$H$8&"_"&'COVER PAGE'!$A$4&"_"&F9,CCG_PROV_SELFCERT!$A:$Q,7,FALSE),"No Provider") -> No Provider | G14: =IFERROR(VLOOKUP($G$8&"_"&$H$8&"_"&'COVER PAGE'!$A$4&"_"&G9,CCG_PROV_SELFCERT!$A:$Q,7,FALSE),"No Provider") -> No Provider | H14: =IFERROR(VLOOKUP($G$8&"_"&$H$8&"_"&'COVER PAGE'!$A$4&"_"&H9,CCG_PROV_SELFCERT!$A:$Q,7,FALSE),"No Provider") -> No Provider | I14: =IFERROR(VLOOKUP($G$8&"_"&$H$8&"_"&'COVER PAGE'!$A$4&"_"&I9,CCG_PROV_SELFCERT!$A:$Q,7,FALSE),"No Provider") -> No Provider | J14: =IFERROR(VLOOKUP($G$8&"_"&$H$8&"_"&'COVER PAGE'!$A$4&"_"&J9,CCG_PROV_SELFCERT!$A:$Q,7,FALSE),"No Provider") -> No Provider | K14: =IFERROR(VLOOKUP($G$8&"_"&$H$8&"_"&'COVER PAGE'!$A$4&"_"&K9,CCG_PROV_SELFCERT!$A:$Q,7,FALSE),"No Provider") -> No Provider | L14: =IFERROR(VLOOKUP($G$8&"_"&$H$8&"_"&'COVER PAGE'!$A$4&"_"&L9,CCG_PROV_SELFCERT!$A:$Q,7,FALSE),"No Provider") -> No Provider
A15: Has local provider been flagged as a 'quality compliance risk' by Monitor and/or are requirements in place around breaches of provider licence conditions? | B15: Has local provider been flagged as a 'quality compliance risk' by Monitor and/or are requirements in place around breaches of provider licence conditions? | C15: =IFERROR(VLOOKUP($G$8&"_"&$H$8&"_"&'COVER PAGE'!$A$4&"_"&C9,CCG_PROV_SELFCERT!$A:$Q,8,FALSE),"No Provider") -> Yes - Action plan in place | D15: =IFERROR(VLOOKUP($G$8&"_"&$H$8&"_"&'COVER PAGE'!$A$4&"_"&D9,CCG_PROV_SELFCERT!$A:$Q,8,FALSE),"No Provider") -> No | E15: =IFERROR(VLOOKUP($G$8&"_"&$H$8&"_"&'COVER PAGE'!$A$4&"_"&E9,CCG_PROV_SELFCERT!$A:$Q,8,FALSE),"No Provider") -> No Provider | F15: =IFERROR(VLOOKUP($G$8&"_"&$H$8&"_"&'COVER PAGE'!$A$4&"_"&F9,CCG_PROV_SELFCERT!$A:$Q,8,FALSE),"No Provider") -> No Provider | G15: =IFERROR(VLOOKUP($G$8&"_"&$H$8&"_"&'COVER PAGE'!$A$4&"_"&G9,CCG_PROV_SELFCERT!$A:$Q,8,FALSE),"No Provider") -> No Provider | H15: =IFERROR(VLOOKUP($G$8&"_"&$H$8&"_"&'COVER PAGE'!$A$4&"_"&H9,CCG_PROV_SELFCERT!$A:$Q,8,FALSE),"No Provider") -> No Provider | I15: =IFERROR(VLOOKUP($G$8&"_"&$H$8&"_"&'COVER PAGE'!$A$4&"_"&I9,CCG_PROV_SELFCERT!$A:$Q,8,FALSE),"No Provider") -> No Provider | J15: =IFERROR(VLOOKUP($G$8&"_"&$H$8&"_"&'COVER PAGE'!$A$4&"_"&J9,CCG_PROV_SELFCERT!$A:$Q,8,FALSE),"No Provider") -> No Provider | K15: =IFERROR(VLOOKUP($G$8&"_"&$H$8&"_"&'COVER PAGE'!$A$4&"_"&K9,CCG_PROV_SELFCERT!$A:$Q,8,FALSE),"No Provider") -> No Provider | L15: =IFERROR(VLOOKUP($G$8&"_"&$H$8&"_"&'COVER PAGE'!$A$4&"_"&L9,CCG_PROV_SELFCERT!$A:$Q,8,FALSE),"No Provider") -> No Provider
A16: Has local provider been subject to enforcement action by the NHS TDA based on 'quality' risk? | B16: Has local provider been subject to enforcement action by the NHS TDA based on 'quality' risk? | C16: =IFERROR(VLOOKUP($G$8&"_"&$H$8&"_"&'COVER PAGE'!$A$4&"_"&C9,CCG_PROV_SELFCERT!$A:$Q,9,FALSE),"No Provider") -> No | D16: =IFERROR(VLOOKUP($G$8&"_"&$H$8&"_"&'COVER PAGE'!$A$4&"_"&D9,CCG_PROV_SELFCERT!$A:$Q,9,FALSE),"No Provider") -> No | E16: =IFERROR(VLOOKUP($G$8&"_"&$H$8&"_"&'COVER PAGE'!$A$4&"_"&E9,CCG_PROV_SELFCERT!$A:$Q,9,FALSE),"No Provider") -> No Provider | F16: =IFERROR(VLOOKUP($G$8&"_"&$H$8&"_"&'COVER PAGE'!$A$4&"_"&F9,CCG_PROV_SELFCERT!$A:$Q,9,FALSE),"No Provider") -> No Provider | G16: =IFERROR(VLOOKUP($G$8&"_"&$H$8&"_"&'COVER PAGE'!$A$4&"_"&G9,CCG_PROV_SELFCERT!$A:$Q,9,FALSE),"No Provider") -> No Provider | H16: =IFERROR(VLOOKUP($G$8&"_"&$H$8&"_"&'COVER PAGE'!$A$4&"_"&H9,CCG_PROV_SELFCERT!$A:$Q,9,FALSE),"No Provider") -> No Provider | I16: =IFERROR(VLOOKUP($G$8&"_"&$H$8&"_"&'COVER PAGE'!$A$4&"_"&I9,CCG_PROV_SELFCERT!$A:$Q,9,FALSE),"No Provider") -> No Provider | J16: =IFERROR(VLOOKUP($G$8&"_"&$H$8&"_"&'COVER PAGE'!$A$4&"_"&J9,CCG_PROV_SELFCERT!$A:$Q,9,FALSE),"No Provider") -> No Provider | K16: =IFERROR(VLOOKUP($G$8&"_"&$H$8&"_"&'COVER PAGE'!$A$4&"_"&K9,CCG_PROV_SELFCERT!$A:$Q,9,FALSE),"No Provider") -> No Provider | L16: =IFERROR(VLOOKUP($G$8&"_"&$H$8&"_"&'COVER PAGE'!$A$4&"_"&L9,CCG_PROV_SELFCERT!$A:$Q,9,FALSE),"No Provider") -> No Provider
A17: Does feedback from the Friends and Family test (or any other patient feedback) indicate any causes for concern? | B17: Does feedback from the Friends and Family test (or any other patient feedback) indicate any causes for concern? | C17: =IFERROR(VLOOKUP($G$8&"_"&$H$8&"_"&'COVER PAGE'!$A$4&"_"&C9,CCG_PROV_SELFCERT!$A:$Q,10,FALSE),"No Provider") -> No | D17: =IFERROR(VLOOKUP($G$8&"_"&$H$8&"_"&'COVER PAGE'!$A$4&"_"&D9,CCG_PROV_SELFCERT!$A:$Q,10,FALSE),"No Provider") -> No | E17: =IFERROR(VLOOKUP($G$8&"_"&$H$8&"_"&'COVER PAGE'!$A$4&"_"&E9,CCG_PROV_SELFCERT!$A:$Q,10,FALSE),"No Provider") -> No Provider | F17: =IFERROR(VLOOKUP($G$8&"_"&$H$8&"_"&'COVER PAGE'!$A$4&"_"&F9,CCG_PROV_SELFCERT!$A:$Q,10,FALSE),"No Provider") -> No Provider | G17: =IFERROR(VLOOKUP($G$8&"_"&$H$8&"_"&'COVER PAGE'!$A$4&"_"&G9,CCG_PROV_SELFCERT!$A:$Q,10,FALSE),"No Provider") -> No Provider | H17: =IFERROR(VLOOKUP($G$8&"_"&$H$8&"_"&'COVER PAGE'!$A$4&"_"&H9,CCG_PROV_SELFCERT!$A:$Q,10,FALSE),"No Provider") -> No Provider | I17: =IFERROR(VLOOKUP($G$8&"_"&$H$8&"_"&'COVER PAGE'!$A$4&"_"&I9,CCG_PROV_SELFCERT!$A:$Q,10,FALSE),"No Provider") -> No Provider | J17: =IFERROR(VLOOKUP($G$8&"_"&$H$8&"_"&'COVER PAGE'!$A$4&"_"&J9,CCG_PROV_SELFCERT!$A:$Q,10,FALSE),"No Provider") -> No Provider | K17: =IFERROR(VLOOKUP($G$8&"_"&$H$8&"_"&'COVER PAGE'!$A$4&"_"&K9,CCG_PROV_SELFCERT!$A:$Q,10,FALSE),"No Provider") -> No Provider | L17: =IFERROR(VLOOKUP($G$8&"_"&$H$8&"_"&'COVER PAGE'!$A$4&"_"&L9,CCG_PROV_SELFCERT!$A:$Q,10,FALSE),"No Provider") -> No Provider
A18: Has the provider been identified as a 'negative outlier' on SMHI or HSMR? | B18: Has the provider been identified as a 'negative outlier' on SMHI or HSMR? | C18: =IFERROR(VLOOKUP($G$8&"_"&$H$8&"_"&'COVER PAGE'!$A$4&"_"&C9,CCG_PROV_SELFCERT!$A:$Q,11,FALSE),"No Provider") -> No | D18: =IFERROR(VLOOKUP($G$8&"_"&$H$8&"_"&'COVER PAGE'!$A$4&"_"&D9,CCG_PROV_SELFCERT!$A:$Q,11,FALSE),"No Provider") -> No | E18: =IFERROR(VLOOKUP($G$8&"_"&$H$8&"_"&'COVER PAGE'!$A$4&"_"&E9,CCG_PROV_SELFCERT!$A:$Q,11,FALSE),"No Provider") -> No Provider | F18: =IFERROR(VLOOKUP($G$8&"_"&$H$8&"_"&'COVER PAGE'!$A$4&"_"&F9,CCG_PROV_SELFCERT!$A:$Q,11,FALSE),"No Provider") -> No Provider | G18: =IFERROR(VLOOKUP($G$8&"_"&$H$8&"_"&'COVER PAGE'!$A$4&"_"&G9,CCG_PROV_SELFCERT!$A:$Q,11,FALSE),"No Provider") -> No Provider | H18: =IFERROR(VLOOKUP($G$8&"_"&$H$8&"_"&'COVER PAGE'!$A$4&"_"&H9,CCG_PROV_SELFCERT!$A:$Q,11,FALSE),"No Provider") -> No Provider | I18: =IFERROR(VLOOKUP($G$8&"_"&$H$8&"_"&'COVER PAGE'!$A$4&"_"&I9,CCG_PROV_SELFCERT!$A:$Q,11,FALSE),"No Provider") -> No Provider | J18: =IFERROR(VLOOKUP($G$8&"_"&$H$8&"_"&'COVER PAGE'!$A$4&"_"&J9,CCG_PROV_SELFCERT!$A:$Q,11,FALSE),"No Provider") -> No Provider | K18: =IFERROR(VLOOKUP($G$8&"_"&$H$8&"_"&'COVER PAGE'!$A$4&"_"&K9,CCG_PROV_SELFCERT!$A:$Q,11,FALSE),"No Provider") -> No Provider | L18: =IFERROR(VLOOKUP($G$8&"_"&$H$8&"_"&'COVER PAGE'!$A$4&"_"&L9,CCG_PROV_SELFCERT!$A:$Q,11,FALSE),"No Provider") -> No Provider
A19: Do provider level indicators from the National Quality Dashboard show that MRSA cases are above zero? | B19: Do provider level indicators from the National Quality Dashboard show that MRSA cases are above zero? | C19: =IFERROR(VLOOKUP($G$8&"_"&$H$8&"_"&'COVER PAGE'!$A$4&"_"&C9,CCG_PROV_SELFCERT!$A:$Q,12,FALSE),"No Provider") -> No | D19: =IFERROR(VLOOKUP($G$8&"_"&$H$8&"_"&'COVER PAGE'!$A$4&"_"&D9,CCG_PROV_SELFCERT!$A:$Q,12,FALSE),"No Provider") -> No | E19: =IFERROR(VLOOKUP($G$8&"_"&$H$8&"_"&'COVER PAGE'!$A$4&"_"&E9,CCG_PROV_SELFCERT!$A:$Q,12,FALSE),"No Provider") -> No Provider | F19: =IFERROR(VLOOKUP($G$8&"_"&$H$8&"_"&'COVER PAGE'!$A$4&"_"&F9,CCG_PROV_SELFCERT!$A:$Q,12,FALSE),"No Provider") -> No Provider | G19: =IFERROR(VLOOKUP($G$8&"_"&$H$8&"_"&'COVER PAGE'!$A$4&"_"&G9,CCG_PROV_SELFCERT!$A:$Q,12,FALSE),"No Provider") -> No Provider | H19: =IFERROR(VLOOKUP($G$8&"_"&$H$8&"_"&'COVER PAGE'!$A$4&"_"&H9,CCG_PROV_SELFCERT!$A:$Q,12,FALSE),"No Provider") -> No Provider | I19: =IFERROR(VLOOKUP($G$8&"_"&$H$8&"_"&'COVER PAGE'!$A$4&"_"&I9,CCG_PROV_SELFCERT!$A:$Q,12,FALSE),"No Provider") -> No Provider | J19: =IFERROR(VLOOKUP($G$8&"_"&$H$8&"_"&'COVER PAGE'!$A$4&"_"&J9,CCG_PROV_SELFCERT!$A:$Q,12,FALSE),"No Provider") -> No Provider | K19: =IFERROR(VLOOKUP($G$8&"_"&$H$8&"_"&'COVER PAGE'!$A$4&"_"&K9,CCG_PROV_SELFCERT!$A:$Q,12,FALSE),"No Provider") -> No Provider | L19: =IFERROR(VLOOKUP($G$8&"_"&$H$8&"_"&'COVER PAGE'!$A$4&"_"&L9,CCG_PROV_SELFCERT!$A:$Q,12,FALSE),"No Provider") -> No Provider
A20: Do provider level indicators from the National Quality Dashboard show that the provider has reported more C difficile cases than trajectory? | B20: Do provider level indicators from the National Quality Dashboard show that the provider has reported more C difficile cases than trajectory? | C20: =IFERROR(VLOOKUP($G$8&"_"&$H$8&"_"&'COVER PAGE'!$A$4&"_"&C9,CCG_PROV_SELFCERT!$A:$Q,13,FALSE),"No Provider") -> Yes - Action plan in place | D20: =IFERROR(VLOOKUP($G$8&"_"&$H$8&"_"&'COVER PAGE'!$A$4&"_"&D9,CCG_PROV_SELFCERT!$A:$Q,13,FALSE),"No Provider") -> No | E20: =IFERROR(VLOOKUP($G$8&"_"&$H$8&"_"&'COVER PAGE'!$A$4&"_"&E9,CCG_PROV_SELFCERT!$A:$Q,13,FALSE),"No Provider") -> No Provider | F20: =IFERROR(VLOOKUP($G$8&"_"&$H$8&"_"&'COVER PAGE'!$A$4&"_"&F9,CCG_PROV_SELFCERT!$A:$Q,13,FALSE),"No Provider") -> No Provider | G20: =IFERROR(VLOOKUP($G$8&"_"&$H$8&"_"&'COVER PAGE'!$A$4&"_"&G9,CCG_PROV_SELFCERT!$A:$Q,13,FALSE),"No Provider") -> No Provider | H20: =IFERROR(VLOOKUP($G$8&"_"&$H$8&"_"&'COVER PAGE'!$A$4&"_"&H9,CCG_PROV_SELFCERT!$A:$Q,13,FALSE),"No Provider") -> No Provider | I20: =IFERROR(VLOOKUP($G$8&"_"&$H$8&"_"&'COVER PAGE'!$A$4&"_"&I9,CCG_PROV_SELFCERT!$A:$Q,13,FALSE),"No Provider") -> No Provider | J20: =IFERROR(VLOOKUP($G$8&"_"&$H$8&"_"&'COVER PAGE'!$A$4&"_"&J9,CCG_PROV_SELFCERT!$A:$Q,13,FALSE),"No Provider") -> No Provider | K20: =IFERROR(VLOOKUP($G$8&"_"&$H$8&"_"&'COVER PAGE'!$A$4&"_"&K9,CCG_PROV_SELFCERT!$A:$Q,13,FALSE),"No Provider") -> No Provider | L20: =IFERROR(VLOOKUP($G$8&"_"&$H$8&"_"&'COVER PAGE'!$A$4&"_"&L9,CCG_PROV_SELFCERT!$A:$Q,13,FALSE),"No Provider") -> No Provider
A21: Do provider level indicators from the National Quality Dashboard show that MSA breaches are above zero? | B21: Do provider level indicators from the National Quality Dashboard show that MSA breaches are above zero? | C21: =IFERROR(VLOOKUP($G$8&"_"&$H$8&"_"&'COVER PAGE'!$A$4&"_"&C9,CCG_PROV_SELFCERT!$A:$Q,14,FALSE),"No Provider") -> No | D21: =IFERROR(VLOOKUP($G$8&"_"&$H$8&"_"&'COVER PAGE'!$A$4&"_"&D9,CCG_PROV_SELFCERT!$A:$Q,14,FALSE),"No Provider") -> No | E21: =IFERROR(VLOOKUP($G$8&"_"&$H$8&"_"&'COVER PAGE'!$A$4&"_"&E9,CCG_PROV_SELFCERT!$A:$Q,14,FALSE),"No Provider") -> No Provider | F21: =IFERROR(VLOOKUP($G$8&"_"&$H$8&"_"&'COVER PAGE'!$A$4&"_"&F9,CCG_PROV_SELFCERT!$A:$Q,14,FALSE),"No Provider") -> No Provider | G21: =IFERROR(VLOOKUP($G$8&"_"&$H$8&"_"&'COVER PAGE'!$A$4&"_"&G9,CCG_PROV_SELFCERT!$A:$Q,14,FALSE),"No Provider") -> No Provider | H21: =IFERROR(VLOOKUP($G$8&"_"&$H$8&"_"&'COVER PAGE'!$A$4&"_"&H9,CCG_PROV_SELFCERT!$A:$Q,14,FALSE),"No Provider") -> No Provider | I21: =IFERROR(VLOOKUP($G$8&"_"&$H$8&"_"&'COVER PAGE'!$A$4&"_"&I9,CCG_PROV_SELFCERT!$A:$Q,14,FALSE),"No Provider") -> No Provider | J21: =IFERROR(VLOOKUP($G$8&"_"&$H$8&"_"&'COVER PAGE'!$A$4&"_"&J9,CCG_PROV_SELFCERT!$A:$Q,14,FALSE),"No Provider") -> No Provider | K21: =IFERROR(VLOOKUP($G$8&"_"&$H$8&"_"&'COVER PAGE'!$A$4&"_"&K9,CCG_PROV_SELFCERT!$A:$Q,14,FALSE),"No Provider") -> No Provider | L21: =IFERROR(VLOOKUP($G$8&"_"&$H$8&"_"&'COVER PAGE'!$A$4&"_"&L9,CCG_PROV_SELFCERT!$A:$Q,14,FALSE),"No Provider") -> No Provider
A22: Does provider currently have any unclosed Serious Untoward Incidents (SUIs)? | B22: Does provider currently have any unclosed Serious Incidents (SIs)? | C22: =IFERROR(VLOOKUP($G$8&"_"&$H$8&"_"&'COVER PAGE'!$A$4&"_"&C9,CCG_PROV_SELFCERT!$A:$Q,15,FALSE),"No Provider") -> Yes - Action plan in place | D22: =IFERROR(VLOOKUP($G$8&"_"&$H$8&"_"&'COVER PAGE'!$A$4&"_"&D9,CCG_PROV_SELFCERT!$A:$Q,15,FALSE),"No Provider") -> Yes - Action plan in place | E22: =IFERROR(VLOOKUP($G$8&"_"&$H$8&"_"&'COVER PAGE'!$A$4&"_"&E9,CCG_PROV_SELFCERT!$A:$Q,15,FALSE),"No Provider") -> No Provider | F22: =IFERROR(VLOOKUP($G$8&"_"&$H$8&"_"&'COVER PAGE'!$A$4&"_"&F9,CCG_PROV_SELFCERT!$A:$Q,15,FALSE),"No Provider") -> No Provider | G22: =IFERROR(VLOOKUP($G$8&"_"&$H$8&"_"&'COVER PAGE'!$A$4&"_"&G9,CCG_PROV_SELFCERT!$A:$Q,15,FALSE),"No Provider") -> No Provider | H22: =IFERROR(VLOOKUP($G$8&"_"&$H$8&"_"&'COVER PAGE'!$A$4&"_"&H9,CCG_PROV_SELFCERT!$A:$Q,15,FALSE),"No Provider") -> No Provider | I22: =IFERROR(VLOOKUP($G$8&"_"&$H$8&"_"&'COVER PAGE'!$A$4&"_"&I9,CCG_PROV_SELFCERT!$A:$Q,15,FALSE),"No Provider") -> No Provider | J22: =IFERROR(VLOOKUP($G$8&"_"&$H$8&"_"&'COVER PAGE'!$A$4&"_"&J9,CCG_PROV_SELFCERT!$A:$Q,15,FALSE),"No Provider") -> No Provider | K22: =IFERROR(VLOOKUP($G$8&"_"&$H$8&"_"&'COVER PAGE'!$A$4&"_"&K9,CCG_PROV_SELFCERT!$A:$Q,15,FALSE),"No Provider") -> No Provider | L22: =IFERROR(VLOOKUP($G$8&"_"&$H$8&"_"&'COVER PAGE'!$A$4&"_"&L9,CCG_PROV_SELFCERT!$A:$Q,15,FALSE),"No Provider") -> No Provider
A23: Has the provider experienced any 'Never Events' during the last quarter? | B23: Has the provider experienced any 'Never Events' during the last quarter? | C23: =IFERROR(VLOOKUP($G$8&"_"&$H$8&"_"&'COVER PAGE'!$A$4&"_"&C9,CCG_PROV_SELFCERT!$A:$Q,16,FALSE),"No Provider") -> No | D23: =IFERROR(VLOOKUP($G$8&"_"&$H$8&"_"&'COVER PAGE'!$A$4&"_"&D9,CCG_PROV_SELFCERT!$A:$Q,16,FALSE),"No Provider") -> No | E23: =IFERROR(VLOOKUP($G$8&"_"&$H$8&"_"&'COVER PAGE'!$A$4&"_"&E9,CCG_PROV_SELFCERT!$A:$Q,16,FALSE),"No Provider") -> No Provider | F23: =IFERROR(VLOOKUP($G$8&"_"&$H$8&"_"&'COVER PAGE'!$A$4&"_"&F9,CCG_PROV_SELFCERT!$A:$Q,16,FALSE),"No Provider") -> No Provider | G23: =IFERROR(VLOOKUP($G$8&"_"&$H$8&"_"&'COVER PAGE'!$A$4&"_"&G9,CCG_PROV_SELFCERT!$A:$Q,16,FALSE),"No Provider") -> No Provider | H23: =IFERROR(VLOOKUP($G$8&"_"&$H$8&"_"&'COVER PAGE'!$A$4&"_"&H9,CCG_PROV_SELFCERT!$A:$Q,16,FALSE),"No Provider") -> No Provider | I23: =IFERROR(VLOOKUP($G$8&"_"&$H$8&"_"&'COVER PAGE'!$A$4&"_"&I9,CCG_PROV_SELFCERT!$A:$Q,16,FALSE),"No Provider") -> No Provider | J23: =IFERROR(VLOOKUP($G$8&"_"&$H$8&"_"&'COVER PAGE'!$A$4&"_"&J9,CCG_PROV_SELFCERT!$A:$Q,16,FALSE),"No Provider") -> No Provider | K23: =IFERROR(VLOOKUP($G$8&"_"&$H$8&"_"&'COVER PAGE'!$A$4&"_"&K9,CCG_PROV_SELFCERT!$A:$Q,16,FALSE),"No Provider") -> No Provider | L23: =IFERROR(VLOOKUP($G$8&"_"&$H$8&"_"&'COVER PAGE'!$A$4&"_"&L9,CCG_PROV_SELFCERT!$A:$Q,16,FALSE),"No Provider") -> No Provider
A28: 13
A29: Does the CCG have any outstanding conditions of authorisation in place on clinical governance?
A31: Has the CCG self assessed and identified any risks associated with concerns around quality issues discussed regularly by the CCG governing body?
A32: Has the CCG self assessed and identified any risks associated with concerns around the arrangements in place to proactively identify early warnings of a failing service?
A33: Has the CCG self assessed and identified any risks associated with concerns around the arrangements in place to deal with and learn from serious untoward incidents and never events?
A34: 19
A35: If there was an emergency event in the last quarter, has the CCG self assessed and identified any areas of concern on the arrangements in place for dealing with such an event?
A36: 21
A37: Has the CCG self assessed and identified any risk to progress against its Winterbourne View action plan?
B46: rr
F62: TOTAL
B63: Yes – Action plan in place | C63: Yes – No action plan in place | D63: Yes – Enforcement Action | E63: No
B64: =SUMPRODUCT(--ISNUMBER(SEARCH($B$63,C14:L21)))+SUMPRODUCT(--ISNUMBER(SEARCH($B$63,C23:L37))) -> 0 | C64: =SUMPRODUCT(--ISNUMBER(SEARCH($C$63,C14:L21)))+SUMPRODUCT(--ISNUMBER(SEARCH($C$63,C23:L37))) -> 0 | D64: =SUMPRODUCT(--ISNUMBER(SEARCH($D$63,C14:L14))) -> 0 | E64: =COUNTIF(C14:L21,"No")+COUNTIF(C23:L37,"No") -> 16 | F64: =SUM(B64:E64) -> 16
B65: =IF(B64>=1, "AMBER GREEN", "") ->  | C65: =IF(C64>=1, "AMBER RED", "") ->  | D65: =IF(D64>=1, "RED", "") ->  | E65: =IF(E64>=0, "GREEN", "") -> GREEN
B67: TOTAL | C67: =IF($D$64>=1, "RED", IF($C$64>=1, "AMBER-RED", IF($B$64>=1, "AMBER GREEN", IF($E$64>=0, "GREEN")))) -> GREEN | D67: =SUM(B64+C64+D64) -> 0
A69: Provider 1 | B69: =SUMPRODUCT(--ISNUMBER(SEARCH($B$63,C14:C23))) -> 0 | C69: =SUMPRODUCT(--ISNUMBER(SEARCH($C$63,$C$14:$C$23))) -> 0 | D69: =SUMPRODUCT(--ISNUMBER(SEARCH($D$63,$C$14:$C$23))) -> 0 | E69: =COUNTIF($C$14:$C$23,"No") -> 7
A70: Provider 2 | B70: =SUMPRODUCT(--ISNUMBER(SEARCH($B$63,$D$14:$D$26))) -> 0 | C70: =SUMPRODUCT(--ISNUMBER(SEARCH($C$63,$D$14:$D$26))) -> 0 | D70: =SUMPRODUCT(--ISNUMBER(SEARCH($D$63,$D$14:$D$26))) -> 0 | E70: =COUNTIF($D$14:$D$26,"No") -> 9
A71: Provider 3 | B71: =SUMPRODUCT(--ISNUMBER(SEARCH($B$63,$E$14:$E$26))) -> 0 | C71: =SUMPRODUCT(--ISNUMBER(SEARCH($C$63,$E$14:$E$26))) -> 0 | D71: =SUMPRODUCT(--ISNUMBER(SEARCH($D$63,$E$14:$E$26))) -> 0 | E71: =COUNTIF($E$14:$E$26,"No") -> 0
A72: Provider 4 | B72: =SUMPRODUCT(--ISNUMBER(SEARCH($B$63,$F$14:$F$26))) -> 0 | C72: =SUMPRODUCT(--ISNUMBER(SEARCH($C$63,$F$14:$F$26))) -> 0 | D72: =SUMPRODUCT(--ISNUMBER(SEARCH($D$63,$F$14:$F$26))) -> 0 | E72: =COUNTIF($F$14:$F$26,"No") -> 0
A73: Provider 5 | B73: =SUMPRODUCT(--ISNUMBER(SEARCH($B$63,$G$14:$G$26))) -> 0 | C73: =SUMPRODUCT(--ISNUMBER(SEARCH($C$63,$G$14:$G$26))) -> 0 | D73: =SUMPRODUCT(--ISNUMBER(SEARCH($D$63,$G$14:$G$26))) -> 0 | E73: =COUNTIF($G$14:$G$26,"No") -> 0
A74: Provider 6 | B74: =SUMPRODUCT(--ISNUMBER(SEARCH($B$63,$H$14:$H$26))) -> 0 | C74: =SUMPRODUCT(--ISNUMBER(SEARCH($C$63,$H$14:$H$26))) -> 0 | D74: =SUMPRODUCT(--ISNUMBER(SEARCH($D$63,$H$14:$H$26))) -> 0 | E74: =COUNTIF($H$14:$H$26,"No") -> 0
A75: Provider 7 | B75: =SUMPRODUCT(--ISNUMBER(SEARCH($B$63,$I$14:$I$26))) -> 0 | C75: =SUMPRODUCT(--ISNUMBER(SEARCH($C$63,$I$14:$I$26))) -> 0 | D75: =SUMPRODUCT(--ISNUMBER(SEARCH($D$63,$I$14:$I$26))) -> 0 | E75: =COUNTIF($I$14:$I$26,"No") -> 0
A76: Provider 8 | B76: =SUMPRODUCT(--ISNUMBER(SEARCH($B$63,$J$14:$J$26))) -> 0 | C76: =SUMPRODUCT(--ISNUMBER(SEARCH($C$63,$J$14:$J$26))) -> 0 | D76: =SUMPRODUCT(--ISNUMBER(SEARCH($D$63,$J$14:$J$26))) -> 0 | E76: =COUNTIF($J$14:$J$26,"No") -> 0
A77: Provider 9 | B77: =SUMPRODUCT(--ISNUMBER(SEARCH($B$63,$K$14:$K$26))) -> 0 | C77: =SUMPRODUCT(--ISNUMBER(SEARCH($C$63,$K$14:$K$26))) -> 0 | D77: =SUMPRODUCT(--ISNUMBER(SEARCH($D$63,$K$14:$K$26))) -> 0 | E77: =COUNTIF($K$14:$K$26,"No") -> 0
A78: Provider 10 | B78: =SUMPRODUCT(--ISNUMBER(SEARCH($B$63,$L$14:$L$26))) -> 0 | C78: =SUMPRODUCT(--ISNUMBER(SEARCH($C$63,$L$14:$L$26))) -> 0 | D78: =SUMPRODUCT(--ISNUMBER(SEARCH($D$63,$L$14:$L$26))) -> 0 | E78: =COUNTIF($L$14:$L$26,"No") -> 0
A79: CCG | B79: =SUMPRODUCT(--ISNUMBER(SEARCH($B$63,$C$29:$C$37))) -> 0 | C79: =SUMPRODUCT(--ISNUMBER(SEARCH($C$63,$C$29:$C$37))) -> 0 | D79: =SUMPRODUCT(--ISNUMBER(SEARCH($D$63,$C$29:$C$37))) -> 0 | E79: =COUNTIF($C$29:$C$37,"No") -> 0
A80: TOTAL | B80: =SUM(B69:B79) -> 0 | C80: =SUM(C69:C79) -> 0 | D80: =SUM(D69:D79) -> 0 | E80: =SUM(E69:E79) -> 16
B81: =IF(B80>=1, "AMBER GREEN", "") ->  | C81: =IF(C80>=1, "AMBER RED", "") ->  | D81: =IF(D80>=1, "RED", "") ->  | E81: =IF(E80>=0, "GREEN", "") -> GREEN
C82: =IF($D$80>=1, "RED", IF($C$80>=1, "AMBER-RED", IF($B$80>=1, "AMBER GREEN", IF($E$80>=0, "GREEN")))) -> GREEN

Sheet NHS CONSTITUTION SECTION
B1: NHS CONSTITUTION SECTION
B2: =IFERROR(VLOOKUP('COVER PAGE'!$A$3,Lookup!$A:$C,2,FALSE),"") -> NHS Rotherham CCG
B3: =IFERROR(VLOOKUP('COVER PAGE'!$A$3,Lookup!$A:$H,6,FALSE),"") -> S Yorkshire & Bassetlaw
B4: =IFERROR(VLOOKUP('COVER PAGE'!$A$3,Lookup!$A:$H,4,FALSE),"") -> NORTH | F4: =VLOOKUP('COVER PAGE'!$A$3,Lookup!$A:$H,7,FALSE) -> Yrkshr Amblnce | G4: =VLOOKUP('COVER PAGE'!$A$3,Lookup!$A:$H,8,FALSE) -> YORKSHIRE AMBULANCE SERVICE NHS TRUST
A5: 2014-15 | D5: 14-15 Q1 | E5: 14-15 Q2 | F5: 14-15 Q3 | G5: 14-15 Q4 | I5: September
A6: CCG BASED INDICATORS | B6: OPERATIONAL STANDARD | D6: QUARTER 1 PERFORMANCE | E6: QUARTER 2 PERFORMANCE | F6: QUARTER 3 PERFORMANCE | G6: QUARTER 4 PERFORMANCE | H6: INDICATOR STATUES | I6: Jun-14 | J6: Sep-14 | K6: Dec-14 | L6: Mar-15 | R6: Q1 | S6: Q2 | T6: Q3 | U6: Q4 | V6: Q1 | W6: Q2 | X6: Q3 | Y6: Q4 | Z6: Q3RAG | AA6: Q4 RAG | AE6: Apr-14 | AF6: May-14 | AG6: Jun-14 | AH6: Jul-14 | AI6: Aug-14 | AJ6: Sep-14 | AK6: Oct-14 | AL6: Nov-14 | AM6: Dec-14 | AN6: Jan-15 | AO6: Feb-15 | AP6: Mar-15
A7: Referral to Treatment waiting times for non urgent consultant-led treatment | I7: 2014-15 Q1 | J7: 2014-15 Q2 | K7: 2014-15 Q3 | L7: 2014-15 Q4
A8: Admitted patients starting treatment within a maximum of 18 weeks from referral | B8: 0.9 | D8: =CUBEVALUE("PUBLIC_CUBE","[Commissioners].[Org Name].[All].["&B2&"]","[Date].[Fiscal Q Hierarchy].[All].["&$A5&"].["&$D5&"]","[Measures].[RTT % Within 18 Weeks]","[RTT Pathway Type].[RTT Pathways].[All].[Admitted].[Adjusted Admitted]") -> 0.9340761374 | H8: =IF(OR(V8="1 MONTH DATA GREEN",V8="1 MONTH DATA RED"),"1 MONTH RTT DATA",IF(OR(V8="2 MONTH DATA GREEN",V8="2 MONTH DATA RED"),"2 MONTH RTT DATA",IF(OR(V8="FULL QUARTER GREEN",V8=" "),""))) ->  | I8: =VLOOKUP('COVER PAGE'!$A$3,Lookup!$A:$F,6,FALSE) -> S Yorkshire & Bassetlaw | J8: =VLOOKUP('COVER PAGE'!$A$3,Lookup!$A:$F,3,FALSE) -> 03L | K8: =VLOOKUP('COVER PAGE'!$A$3,Lookup!$A:$F,4,FALSE) -> NORTH | R8: =IF(D8>=B8,"GREEN",IF(D8=0%,"NA",IF(D8<B8,"RED"))) -> GREEN | S8: =IF(E8>=B8,"GREEN",IF(E8=0%,"NA",IF(E8<B8,"RED"))) -> NA | T8: =IF(F8>=B8,"GREEN",IF(F8="","NA",IF(F8<B8,"RED"))) -> NA | U8: =IF(G8="","NA",IF(G8>=B8,"GREEN",IF(G8<B8,"RED"))) -> NA | V8: =IF(AND(AE8="",AF8="",AG8=""),"No Data",IF(AND(AF8="",AG8="",R8="GREEN"),"1 MONTH DATA GREEN",IF(AND(AF8="",AG8="",R8="RED"),"1 MONTH DATA RED",IF(AND(AG8="",R8="GREEN"),"2 MONTH DATA GREEN",IF(AND(AG8="",R8="RED"),"2 MONTH DATA RED",IF(AND(AF8="",AG8=""),"1 MONTH DATA",IF(AND(AG8=""),"2 MONTH DATA",IF(AND(AE8=AE8,AF8=AF8,AG8=AG8,R8="GREEN"),"FULL QUARTER GREEN",IF(AND(AE8=AE8,AF8=AF8,AG8=AG8,R8="RED"),"FULL QUARTER RED",))))))))) -> FULL QUARTER GREEN | W8: =IF(AND(AH8="",AI8="",AJ8=""),"No Data",IF(AND(AI8="",AJ8="",S8="GREEN"),"1 MONTH DATA GREEN",IF(AND(AI8="",AJ8="",S8="RED"),"1 MONTH DATA RED",IF(AND(AJ8="",S8="GREEN"),"2 MONTH DATA GREEN",IF(AND(AJ8="",S8="RED"),"2 MONTH DATA RED",IF(AND(AI8="",AJ8=""),"1 MONTH DATA",IF(AND(AJ8=""),"2 MONTH DATA",IF(AND(AH8=AH8,AI8=AI8,AJ8=AJ8,S8="GREEN"),"FULL QUARTER GREEN",IF(AND(AH8=AH8,AI8=AI8,AJ8=AJ8,S8="RED"),"FULL QUARTER RED",))))))))) -> No Data | X8: =IF(AND(AK8="",AL8="",AM8=""),"No Data",IF(AND(AL8="",AM8="",T8="GREEN"),"1 MONTH DATA GREEN",IF(AND(AL8="",AM8="",T8="RED"),"1 MONTH DATA RED",IF(AND(AM8="",T8="GREEN"),"2 MONTH DATA GREEN",IF(AND(AM8="",T8="RED"),"2 MONTH DATA RED",IF(AND(AL8="",AM8=""),"1 MONTH DATA",IF(AND(AM8=""),"2 MONTH DATA",IF(AND(AK8=AK8,AL8=AL8,AM8=AM8,T8="GREEN"),"FULL QUARTER GREEN",IF(AND(AK8=AK8,AL8=AL8,AM8=AM8,T8="RED"),"FULL QUARTER RED",))))))))) -> No Data | Y8: =IF(AND(AN8="",AO8="",AP8=""),"No Data",IF(AND(AO8="",AP8="",U8="GREEN"),"1 MONTH DATA GREEN",IF(AND(AO8="",AP8="",U8="RED"),"1 MONTH DATA RED",IF(AND(AP8="",U8="GREEN"),"2 MONTH DATA GREEN",IF(AND(AP8="",U8="RED"),"2 MONTH DATA RED",IF(AND(AO8="",AP8=""),"1 MONTH DATA",IF(AND(AP8=""),"2 MONTH DATA",IF(AND(AN8=AN8,AO8=AO8,AP8=AP8,U8="GREEN"),"FULL QUARTER GREEN",IF(AND(AN8=AN8,AO8=AO8,AP8=AP8,U8="RED"),"FULL QUARTER RED",))))))))) -> No Data | Z8: =IF(V8 ="GREEN",1,IF(V8 ="AMBER",2,IF(V8 ="RED",3))) -> FALSE | AA8: =IF(W8 ="GREEN",1,IF(W8 ="AMBER",2,IF(W8 ="RED",3,IF(W8 =" "," ")))) -> FALSE | AE8: =CUBEVALUE("PUBLIC_CUBE","[Commissioners].[Org Name].[All].["&B2&"]","[Date].[Short Month Year Label].[By Date].["&TEXT(AE$6,"mmm-yy")&"]","[Measures].[RTT % Within 18 Weeks]","[RTT Pathway Type].[RTT Pathways].[All].[Admitted].[Adjusted Admitted]",CUBESET("PUBLIC_CUBE","[Dim Data Status].[Data Status Hierarchy].[All].[PUBLIC]","Public data only")) -> 0.9323420074 | AF8: =CUBEVALUE("PUBLIC_CUBE","[Commissioners].[Org Name].[All].["&B2&"]","[Date].[Short Month Year Label].[By Date].["&TEXT(AF$6,"mmm-yy")&"]","[Measures].[RTT % Within 18 Weeks]","[RTT Pathway Type].[RTT Pathways].[All].[Admitted].[Adjusted Admitted]",CUBESET("PUBLIC_CUBE","[Dim Data Status].[Data Status Hierarchy].[All].[PUBLIC]","Public data only")) -> 0.936109117 | AG8: =CUBEVALUE("PUBLIC_CUBE","[Commissioners].[Org Name].[All].["&B2&"]","[Date].[Short Month Year Label].[By Date].["&TEXT(AG$6,"mmm-yy")&"]","[Measures].[RTT % Within 18 Weeks]","[RTT Pathway Type].[RTT Pathways].[All].[Admitted].[Adjusted Admitted]",CUBESET("PUBLIC_CUBE","[Dim Data Status].[Data Status Hierarchy].[All].[PUBLIC]","Public data only")) -> 0.9337579618 | AH8: =CUBEVALUE("PUBLIC_CUBE","[Commissioners].[Org Name].[All].["&B2&"]","[Date].[Short Month Year Label].[By Date].["&TEXT(AH$6,"mmm-yy")&"]","[Measures].[RTT % Within 18 Weeks]","[RTT Pathway Type].[RTT Pathways].[All].[Admitted].[Adjusted Admitted]",CUBESET("PUBLIC_CUBE","[Dim Data Status].[Data Status Hierarchy].[All].[PUBLIC]","Public data only")) ->  | AI8: =CUBEVALUE("PUBLIC_CUBE","[Commissioners].[Org Name].[All].["&B2&"]","[Date].[Short Month Year Label].[By Date].["&TEXT(AI$6,"mmm-yy")&"]","[Measures].[RTT % Within 18 Weeks]","[RTT Pathway Type].[RTT Pathways].[All].[Admitted].[Adjusted Admitted]",CUBESET("PUBLIC_CUBE","[Dim Data Status].[Data Status Hierarchy].[All].[PUBLIC]","Public data only")) ->  | AJ8: =CUBEVALUE("PUBLIC_CUBE","[Commissioners].[Org Name].[All].["&B2&"]","[Date].[Short Month Year Label].[By Date].["&TEXT(AJ$6,"mmm-yy")&"]","[Measures].[RTT % Within 18 Weeks]","[RTT Pathway Type].[RTT Pathways].[All].[Admitted].[Adjusted Admitted]",CUBESET("PUBLIC_CUBE","[Dim Data Status].[Data Status Hierarchy].[All].[PUBLIC]","Public data only")) ->  | AK8: =CUBEVALUE("PUBLIC_CUBE","[Commissioners].[Org Name].[All].["&B2&"]","[Date].[Short Month Year Label].[By Date].["&TEXT(AK$6,"mmm-yy")&"]","[Measures].[RTT % Within 18 Weeks]","[RTT Pathway Type].[RTT Pathways].[All].[Admitted].[Adjusted Admitted]",CUBESET("PUBLIC_CUBE","[Dim Data Status].[Data Status Hierarchy].[All].[PUBLIC]","Public data only")) ->  | AL8: =CUBEVALUE("PUBLIC_CUBE","[Commissioners].[Org Name].[All].["&B2&"]","[Date].[Short Month Year Label].[By Date].["&TEXT(AL$6,"mmm-yy")&"]","[Measures].[RTT % Within 18 Weeks]","[RTT Pathway Type].[RTT Pathways].[All].[Admitted].[Adjusted Admitted]",CUBESET("PUBLIC_CUBE","[Dim Data Status].[Data Status Hierarchy].[All].[PUBLIC]","Public data only")) ->  | AM8: =CUBEVALUE("PUBLIC_CUBE","[Commissioners].[Org Name].[All].["&B2&"]","[Date].[Short Month Year Label].[By Date].["&TEXT(AM$6,"mmm-yy")&"]","[Measures].[RTT % Within 18 Weeks]","[RTT Pathway Type].[RTT Pathways].[All].[Admitted].[Adjusted Admitted]",CUBESET("PUBLIC_CUBE","[Dim Data Status].[Data Status Hierarchy].[All].[PUBLIC]","Public data only")) ->  | AN8: =CUBEVALUE("PUBLIC_CUBE","[Commissioners].[Org Name].[All].["&B2&"]","[Date].[Short Month Year Label].[By Date].["&TEXT(AN$6,"mmm-yy")&"]","[Measures].[RTT % Within 18 Weeks]","[RTT Pathway Type].[RTT Pathways].[All].[Admitted].[Adjusted Admitted]",CUBESET("PUBLIC_CUBE","[Dim Data Status].[Data Status Hierarchy].[All].[PUBLIC]","Public data only")) ->  | AO8: =CUBEVALUE("PUBLIC_CUBE","[Commissioners].[Org Name].[All].["&B2&"]","[Date].[Short Month Year Label].[By Date].["&TEXT(AO$6,"mmm-yy")&"]","[Measures].[RTT % Within 18 Weeks]","[RTT Pathway Type].[RTT Pathways].[All].[Admitted].[Adjusted Admitted]",CUBESET("PUBLIC_CUBE","[Dim Data Status].[Data Status Hierarchy].[All].[PUBLIC]","Public data only")) ->  | AP8: =CUBEVALUE("PUBLIC_CUBE","[Commissioners].[Org Name].[All].["&B2&"]","[Date].[Short Month Year Label].[By Date].["&TEXT(AP$6,"mmm-yy")&"]","[Measures].[RTT % Within 18 Weeks]","[RTT Pathway Type].[RTT Pathways].[All].[Admitted].[Adjusted Admitted]",CUBESET("PUBLIC_CUBE","[Dim Data Status].[Data Status Hierarchy].[All].[PUBLIC]","Public data only")) -> 
A9: Non-admitted patients starting treatment within a maximum of 18 weeks from referral | B9: 0.95 | D9: =CUBEVALUE("PUBLIC_CUBE","[Commissioners].[Org Name].[All].["&B2&"]","[Date].[Fiscal Q Hierarchy].[All].["&$A5&"].["&$D5&"]","[Measures].[RTT % Within 18 Weeks]","[RTT Pathway Type].[RTT Pathways].[All].[Non-Admitted including Audiology].[Non-Admitted]") -> 0.9852954362 | H9: =IF(OR(V9="1 MONTH DATA GREEN",V9="1 MONTH DATA RED"),"1 MONTH RTT DATA",IF(OR(V9="2 MONTH DATA GREEN",V9="2 MONTH DATA RED"),"2 MONTH RTT DATA",IF(OR(V9="FULL QUARTER GREEN",V9=" "),""))) ->  | R9: =IF(D9>=B9,"GREEN",IF(D9=0%,"NA",IF(D9<B9,"RED"))) -> GREEN | S9: =IF(E9>=B9,"GREEN",IF(E9=0%,"NA",IF(E9<B9,"RED"))) -> NA | T9: =IF(F9="","NA",IF(F9>=B9,"GREEN",IF(F9<B9,"RED"))) -> NA | U9: =IF(G9="","NA",IF(G9>=B9,"GREEN",IF(G9<B9,"RED"))) -> NA | V9: =IF(AND(AE9="",AF9="",AG9=""),"No Data",IF(AND(AF9="",AG9="",R9="GREEN"),"1 MONTH DATA GREEN",IF(AND(AF9="",AG9="",R9="RED"),"1 MONTH DATA RED",IF(AND(AG9="",R9="GREEN"),"2 MONTH DATA GREEN",IF(AND(AG9="",R9="RED"),"2 MONTH DATA RED",IF(AND(AF9="",AG9=""),"1 MONTH DATA",IF(AND(AG9=""),"2 MONTH DATA",IF(AND(AE9=AE9,AF9=AF9,AG9=AG9,R9="GREEN"),"FULL QUARTER GREEN",IF(AND(AE9=AE9,AF9=AF9,AG9=AG9,R9="RED"),"FULL QUARTER RED",))))))))) -> FULL QUARTER GREEN | W9: =IF(AND(AH9="",AI9="",AJ9=""),"No Data",IF(AND(AI9="",AJ9="",S9="GREEN"),"1 MONTH DATA GREEN",IF(AND(AI9="",AJ9="",S9="RED"),"1 MONTH DATA RED",IF(AND(AJ9="",S9="GREEN"),"2 MONTH DATA GREEN",IF(AND(AJ9="",S9="RED"),"2 MONTH DATA RED",IF(AND(AI9="",AJ9=""),"1 MONTH DATA",IF(AND(AJ9=""),"2 MONTH DATA",IF(AND(AH9=AH9,AI9=AI9,AJ9=AJ9,S9="GREEN"),"FULL QUARTER GREEN",IF(AND(AH9=AH9,AI9=AI9,AJ9=AJ9,S9="RED"),"FULL QUARTER RED",))))))))) -> No Data | X9: =IF(AND(AK9="",AL9="",AM9=""),"No Data",IF(AND(AL9="",AM9="",T9="GREEN"),"1 MONTH DATA GREEN",IF(AND(AL9="",AM9="",T9="RED"),"1 MONTH DATA RED",IF(AND(AM9="",T9="GREEN"),"2 MONTH DATA GREEN",IF(AND(AM9="",T9="RED"),"2 MONTH DATA RED",IF(AND(AL9="",AM9=""),"1 MONTH DATA",IF(AND(AM9=""),"2 MONTH DATA",IF(AND(AK9=AK9,AL9=AL9,AM9=AM9,T9="GREEN"),"FULL QUARTER GREEN",IF(AND(AK9=AK9,AL9=AL9,AM9=AM9,T9="RED"),"FULL QUARTER RED",))))))))) -> No Data | Y9: =IF(AND(AN9="",AO9="",AP9=""),"No Data",IF(AND(AO9="",AP9="",U9="GREEN"),"1 MONTH DATA GREEN",IF(AND(AO9="",AP9="",U9="RED"),"1 MONTH DATA RED",IF(AND(AP9="",U9="GREEN"),"2 MONTH DATA GREEN",IF(AND(AP9="",U9="RED"),"2 MONTH DATA RED",IF(AND(AO9="",AP9=""),"1 MONTH DATA",IF(AND(AP9=""),"2 MONTH DATA",IF(AND(AN9=AN9,AO9=AO9,AP9=AP9,U9="GREEN"),"FULL QUARTER GREEN",IF(AND(AN9=AN9,AO9=AO9,AP9=AP9,U9="RED"),"FULL QUARTER RED",))))))))) -> No Data | Z9: =IF(V9 ="GREEN",1,IF(V9 ="AMBER",2,IF(V9 ="RED",3))) -> FALSE | AA9: =IF(W9 ="GREEN",1,IF(W9 ="AMBER",2,IF(W9 ="RED",3,IF(W9 =" "," ")))) -> FALSE | AE9: =CUBEVALUE("PUBLIC_CUBE","[Commissioners].[Org Name].[All].["&B2&"]","[Date].[Short Month Year Label].[By Date].["&TEXT(AE6,"mmm-yy")&"]","[Measures].[RTT % Within 18 Weeks]","[RTT Pathway Type].[RTT Pathways].[All].[Non-Admitted including Audiology].[Non-Admitted]",CUBESET("PUBLIC_CUBE","[Dim Data Status].[Data Status Hierarchy].[All].[PUBLIC]","Public data only")) -> 0.9870354365 | AF9: =CUBEVALUE("PUBLIC_CUBE","[Commissioners].[Org Name].[All].["&B2&"]","[Date].[Short Month Year Label].[By Date].["&TEXT(AF6,"mmm-yy")&"]","[Measures].[RTT % Within 18 Weeks]","[RTT Pathway Type].[RTT Pathways].[All].[Non-Admitted including Audiology].[Non-Admitted]",CUBESET("PUBLIC_CUBE","[Dim Data Status].[Data Status Hierarchy].[All].[PUBLIC]","Public data only")) -> 0.982369146 | AG9: =CUBEVALUE("PUBLIC_CUBE","[Commissioners].[Org Name].[All].["&B2&"]","[Date].[Short Month Year Label].[By Date].["&TEXT(AG6,"mmm-yy")&"]","[Measures].[RTT % Within 18 Weeks]","[RTT Pathway Type].[RTT Pathways].[All].[Non-Admitted including Audiology].[Non-Admitted]",CUBESET("PUBLIC_CUBE","[Dim Data Status].[Data Status Hierarchy].[All].[PUBLIC]","Public data only")) -> 0.9864264561 | AH9: =CUBEVALUE("PUBLIC_CUBE","[Commissioners].[Org Name].[All].["&B2&"]","[Date].[Short Month Year Label].[By Date].["&TEXT(AH6,"mmm-yy")&"]","[Measures].[RTT % Within 18 Weeks]","[RTT Pathway Type].[RTT Pathways].[All].[Non-Admitted including Audiology].[Non-Admitted]",CUBESET("PUBLIC_CUBE","[Dim Data Status].[Data Status Hierarchy].[All].[PUBLIC]","Public data only")) ->  | AI9: =CUBEVALUE("PUBLIC_CUBE","[Commissioners].[Org Name].[All].["&B2&"]","[Date].[Short Month Year Label].[By Date].["&TEXT(AI6,"mmm-yy")&"]","[Measures].[RTT % Within 18 Weeks]","[RTT Pathway Type].[RTT Pathways].[All].[Non-Admitted including Audiology].[Non-Admitted]",CUBESET("PUBLIC_CUBE","[Dim Data Status].[Data Status Hierarchy].[All].[PUBLIC]","Public data only")) ->  | AJ9: =CUBEVALUE("PUBLIC_CUBE","[Commissioners].[Org Name].[All].["&B2&"]","[Date].[Short Month Year Label].[By Date].["&TEXT(AJ6,"mmm-yy")&"]","[Measures].[RTT % Within 18 Weeks]","[RTT Pathway Type].[RTT Pathways].[All].[Non-Admitted including Audiology].[Non-Admitted]",CUBESET("PUBLIC_CUBE","[Dim Data Status].[Data Status Hierarchy].[All].[PUBLIC]","Public data only")) ->  | AK9: =CUBEVALUE("PUBLIC_CUBE","[Commissioners].[Org Name].[All].["&B2&"]","[Date].[Short Month Year Label].[By Date].["&TEXT(AK6,"mmm-yy")&"]","[Measures].[RTT % Within 18 Weeks]","[RTT Pathway Type].[RTT Pathways].[All].[Non-Admitted including Audiology].[Non-Admitted]",CUBESET("PUBLIC_CUBE","[Dim Data Status].[Data Status Hierarchy].[All].[PUBLIC]","Public data only")) ->  | AL9: =CUBEVALUE("PUBLIC_CUBE","[Commissioners].[Org Name].[All].["&B2&"]","[Date].[Short Month Year Label].[By Date].["&TEXT(AL6,"mmm-yy")&"]","[Measures].[RTT % Within 18 Weeks]","[RTT Pathway Type].[RTT Pathways].[All].[Non-Admitted including Audiology].[Non-Admitted]",CUBESET("PUBLIC_CUBE","[Dim Data Status].[Data Status Hierarchy].[All].[PUBLIC]","Public data only")) ->  | AM9: =CUBEVALUE("PUBLIC_CUBE","[Commissioners].[Org Name].[All].["&B2&"]","[Date].[Short Month Year Label].[By Date].["&TEXT(AM6,"mmm-yy")&"]","[Measures].[RTT % Within 18 Weeks]","[RTT Pathway Type].[RTT Pathways].[All].[Non-Admitted including Audiology].[Non-Admitted]",CUBESET("PUBLIC_CUBE","[Dim Data Status].[Data Status Hierarchy].[All].[PUBLIC]","Public data only")) ->  | AN9: =CUBEVALUE("PUBLIC_CUBE","[Commissioners].[Org Name].[All].["&B2&"]","[Date].[Short Month Year Label].[By Date].["&TEXT(AN6,"mmm-yy")&"]","[Measures].[RTT % Within 18 Weeks]","[RTT Pathway Type].[RTT Pathways].[All].[Non-Admitted including Audiology].[Non-Admitted]",CUBESET("PUBLIC_CUBE","[Dim Data Status].[Data Status Hierarchy].[All].[PUBLIC]","Public data only")) ->  | AO9: =CUBEVALUE("PUBLIC_CUBE","[Commissioners].[Org Name].[All].["&B2&"]","[Date].[Short Month Year Label].[By Date].["&TEXT(AO6,"mmm-yy")&"]","[Measures].[RTT % Within 18 Weeks]","[RTT Pathway Type].[RTT Pathways].[All].[Non-Admitted including Audiology].[Non-Admitted]",CUBESET("PUBLIC_CUBE","[Dim Data Status].[Data Status Hierarchy].[All].[PUBLIC]","Public data only")) ->  | AP9: =CUBEVALUE("PUBLIC_CUBE","[Commissioners].[Org Name].[All].["&B2&"]","[Date].[Short Month Year Label].[By Date].["&TEXT(AP6,"mmm-yy")&"]","[Measures].[RTT % Within 18 Weeks]","[RTT Pathway Type].[RTT Pathways].[All].[Non-Admitted including Audiology].[Non-Admitted]",CUBESET("PUBLIC_CUBE","[Dim Data Status].[Data Status Hierarchy].[All].[PUBLIC]","Public data only")) -> 
A10: Patients on incomplete non-emergency pathways (yet to start treatment) waiting no more than 18 weeks from referral | B10: 0.92 | D10: =CUBEVALUE("PUBLIC_CUBE","[Commissioners].[Org Name].[All].["&B2&"]","[Date].[Fiscal Q Hierarchy].[All].["&$A5&"].["&$D5&"]","[Measures].[RTT % Within 18 Weeks]","[RTT Pathway Type].[RTT Pathways].[All].[Incomplete including Audiology].[Incomplete]") -> 0.9531835206 | R10: =IF(D10>=B10,"GREEN",IF(D10=0%,"NA",IF(D10<B10,"RED"))) -> GREEN | S10: =IF(E10>=B10,"GREEN",IF(E10=0%,"NA",IF(E10<B10,"RED"))) -> NA | T10: =IF(F10="","NA",IF(F10>=B10,"GREEN",IF(F10<B10,"RED"))) -> NA | U10: =IF(G10="","NA",IF(G10>=B10,"GREEN",IF(G10<B10,"RED"))) -> NA | V10: =IF(AND(AE10="",AF10="",AG10=""),"No Data",IF(AND(AF10="",AG10="",R10="GREEN"),"1 MONTH DATA GREEN",IF(AND(AF10="",AG10="",R10="RED"),"1 MONTH DATA RED",IF(AND(AG10="",R10="GREEN"),"2 MONTH DATA GREEN",IF(AND(AG10="",R10="RED"),"2 MONTH DATA RED",IF(AND(AF10="",AG10=""),"1 MONTH DATA",IF(AND(AG10=""),"2 MONTH DATA",IF(AND(AE10=AE10,AF10=AF10,AG10=AG10,R10="GREEN"),"FULL QUARTER GREEN",IF(AND(AE10=AE10,AF10=AF10,AG10=AG10,R10="RED"),"FULL QUARTER RED",))))))))) -> FULL QUARTER GREEN | W10: =IF(AND(AH10="",AI10="",AJ10=""),"No Data",IF(AND(AI10="",AJ10="",S10="GREEN"),"1 MONTH DATA GREEN",IF(AND(AI10="",AJ10="",S10="RED"),"1 MONTH DATA RED",IF(AND(AJ10="",S10="GREEN"),"2 MONTH DATA GREEN",IF(AND(AJ10="",S10="RED"),"2 MONTH DATA RED",IF(AND(AI10="",AJ10=""),"1 MONTH DATA",IF(AND(AJ10=""),"2 MONTH DATA",IF(AND(AH10=AH10,AI10=AI10,AJ10=AJ10,S10="GREEN"),"FULL QUARTER GREEN",IF(AND(AH10=AH10,AI10=AI10,AJ10=AJ10,S10="RED"),"FULL QUARTER RED",))))))))) -> No Data | X10: =IF(AND(AK10="",AL10="",AM10=""),"No Data",IF(AND(AL10="",AM10="",T10="GREEN"),"1 MONTH DATA GREEN",IF(AND(AL10="",AM10="",T10="RED"),"1 MONTH DATA RED",IF(AND(AM10="",T10="GREEN"),"2 MONTH DATA GREEN",IF(AND(AM10="",T10="RED"),"2 MONTH DATA RED",IF(AND(AL10="",AM10=""),"1 MONTH DATA",IF(AND(AM10=""),"2 MONTH DATA",IF(AND(AK10=AK10,AL10=AL10,AM10=AM10,T10="GREEN"),"FULL QUARTER GREEN",IF(AND(AK10=AK10,AL10=AL10,AM10=AM10,T10="RED"),"FULL QUARTER RED",))))))))) -> No Data | Y10: =IF(AND(AN10="",AO10="",AP10=""),"No Data",IF(AND(AO10="",AP10="",U10="GREEN"),"1 MONTH DATA GREEN",IF(AND(AO10="",AP10="",U10="RED"),"1 MONTH DATA RED",IF(AND(AP10="",U10="GREEN"),"2 MONTH DATA GREEN",IF(AND(AP10="",U10="RED"),"2 MONTH DATA RED",IF(AND(AO10="",AP10=""),"1 MONTH DATA",IF(AND(AP10=""),"2 MONTH DATA",IF(AND(AN10=AN10,AO10=AO10,AP10=AP10,U10="GREEN"),"FULL QUARTER GREEN",IF(AND(AN10=AN10,AO10=AO10,AP10=AP10,U10="RED"),"FULL QUARTER RED",))))))))) -> No Data | Z10: FALSE | AA10: FALSE | AE10: =CUBEVALUE("PUBLIC_CUBE","[Commissioners].[Org Name].[All].["&B2&"]","[Date].[Short Month Year Label].[By Date].["&TEXT(AE6,"mmm-yy")&"]","[Measures].[RTT % Within 18 Weeks]","[RTT Pathway Type].[RTT Pathways].[All].[Incomplete including Audiology].[Incomplete]",CUBESET("PUBLIC_CUBE","[Dim Data Status].[Data Status Hierarchy].[All].[PUBLIC]","Public data only")) -> 0.9525324404 | AF10: =CUBEVALUE("PUBLIC_CUBE","[Commissioners].[Org Name].[All].["&B2&"]","[Date].[Short Month Year Label].[By Date].["&TEXT(AF6,"mmm-yy")&"]","[Measures].[RTT % Within 18 Weeks]","[RTT Pathway Type].[RTT Pathways].[All].[Incomplete including Audiology].[Incomplete]",CUBESET("PUBLIC_CUBE","[Dim Data Status].[Data Status Hierarchy].[All].[PUBLIC]","Public data only")) -> 0.9494128275 | AG10: =CUBEVALUE("PUBLIC_CUBE","[Commissioners].[Org Name].[All].["&B2&"]","[Date].[Short Month Year Label].[By Date].["&TEXT(AG6,"mmm-yy")&"]","[Measures].[RTT % Within 18 Weeks]","[RTT Pathway Type].[RTT Pathways].[All].[Incomplete including Audiology].[Incomplete]",CUBESET("PUBLIC_CUBE","[Dim Data Status].[Data Status Hierarchy].[All].[PUBLIC]","Public data only")) -> 0.9531835206 | AH10: =CUBEVALUE("PUBLIC_CUBE","[Commissioners].[Org Name].[All].["&B2&"]","[Date].[Short Month Year Label].[By Date].["&TEXT(AH6,"mmm-yy")&"]","[Measures].[RTT % Within 18 Weeks]","[RTT Pathway Type].[RTT Pathways].[All].[Incomplete including Audiology].[Incomplete]",CUBESET("PUBLIC_CUBE","[Dim Data Status].[Data Status Hierarchy].[All].[PUBLIC]","Public data only")) ->  | AI10: =CUBEVALUE("PUBLIC_CUBE","[Commissioners].[Org Name].[All].["&B2&"]","[Date].[Short Month Year Label].[By Date].["&TEXT(AI6,"mmm-yy")&"]","[Measures].[RTT % Within 18 Weeks]","[RTT Pathway Type].[RTT Pathways].[All].[Incomplete including Audiology].[Incomplete]",CUBESET("PUBLIC_CUBE","[Dim Data Status].[Data Status Hierarchy].[All].[PUBLIC]","Public data only")) ->  | AJ10: =CUBEVALUE("PUBLIC_CUBE","[Commissioners].[Org Name].[All].["&B2&"]","[Date].[Short Month Year Label].[By Date].["&TEXT(AJ6,"mmm-yy")&"]","[Measures].[RTT % Within 18 Weeks]","[RTT Pathway Type].[RTT Pathways].[All].[Incomplete including Audiology].[Incomplete]",CUBESET("PUBLIC_CUBE","[Dim Data Status].[Data Status Hierarchy].[All].[PUBLIC]","Public data only")) ->  | AK10: =CUBEVALUE("PUBLIC_CUBE","[Commissioners].[Org Name].[All].["&B2&"]","[Date].[Short Month Year Label].[By Date].["&TEXT(AK6,"mmm-yy")&"]","[Measures].[RTT % Within 18 Weeks]","[RTT Pathway Type].[RTT Pathways].[All].[Incomplete including Audiology].[Incomplete]",CUBESET("PUBLIC_CUBE","[Dim Data Status].[Data Status Hierarchy].[All].[PUBLIC]","Public data only")) ->  | AL10: =CUBEVALUE("PUBLIC_CUBE","[Commissioners].[Org Name].[All].["&B2&"]","[Date].[Short Month Year Label].[By Date].["&TEXT(AL6,"mmm-yy")&"]","[Measures].[RTT % Within 18 Weeks]","[RTT Pathway Type].[RTT Pathways].[All].[Incomplete including Audiology].[Incomplete]",CUBESET("PUBLIC_CUBE","[Dim Data Status].[Data Status Hierarchy].[All].[PUBLIC]","Public data only")) ->  | AM10: =CUBEVALUE("PUBLIC_CUBE","[Commissioners].[Org Name].[All].["&B2&"]","[Date].[Short Month Year Label].[By Date].["&TEXT(AM6,"mmm-yy")&"]","[Measures].[RTT % Within 18 Weeks]","[RTT Pathway Type].[RTT Pathways].[All].[Incomplete including Audiology].[Incomplete]",CUBESET("PUBLIC_CUBE","[Dim Data Status].[Data Status Hierarchy].[All].[PUBLIC]","Public data only")) ->  | AN10: =CUBEVALUE("PUBLIC_CUBE","[Commissioners].[Org Name].[All].["&B2&"]","[Date].[Short Month Year Label].[By Date].["&TEXT(AN6,"mmm-yy")&"]","[Measures].[RTT % Within 18 Weeks]","[RTT Pathway Type].[RTT Pathways].[All].[Incomplete including Audiology].[Incomplete]",CUBESET("PUBLIC_CUBE","[Dim Data Status].[Data Status Hierarchy].[All].[PUBLIC]","Public data only")) ->  | AO10: =CUBEVALUE("PUBLIC_CUBE","[Commissioners].[Org Name].[All].["&B2&"]","[Date].[Short Month Year Label].[By Date].["&TEXT(AO6,"mmm-yy")&"]","[Measures].[RTT % Within 18 Weeks]","[RTT Pathway Type].[RTT Pathways].[All].[Incomplete including Audiology].[Incomplete]",CUBESET("PUBLIC_CUBE","[Dim Data Status].[Data Status Hierarchy].[All].[PUBLIC]","Public data only")) ->  | AP10: =CUBEVALUE("PUBLIC_CUBE","[Commissioners].[Org Name].[All].["&B2&"]","[Date].[Short Month Year Label].[By Date].["&TEXT(AP6,"mmm-yy")&"]","[Measures].[RTT % Within 18 Weeks]","[RTT Pathway Type].[RTT Pathways].[All].[Incomplete including Audiology].[Incomplete]",CUBESET("PUBLIC_CUBE","[Dim Data Status].[Data Status Hierarchy].[All].[PUBLIC]","Public data only")) -> 
A11: Number of patients waiting more than 52 weeks on incomplete pathways | B11: 0 | D11: =CUBEVALUE("PUBLIC_CUBE","[Commissioners].[Org Name].[All].["&B2&"]","[Date].[Fiscal Q Hierarchy].[All].["&$A5&"].["&$D5&"]","[Measures].[Gt52 Weeks - RTT]","[RTT Pathway Type].[RTT Pathways].[All].[Incomplete including Audiology].[Incomplete]") -> 0 | R11: =IF(D11=B11,"GREEN",IF(D11="NO DATA","NA",IF(D11>B11,"RED"))) -> GREEN | S11: =IF(E11=B11,"GREEN",IF(E11="NO DATA","NA",IF(E11>=B11,"RED"))) -> GREEN | T11: =IF(F11=B11,"GREEN",IF(F11="","NA",IF(F11>=B11,"RED"))) -> GREEN | U11: =IF(G11=B11,"GREEN",IF(G11="","NA",IF(G11>=B11,"RED"))) -> GREEN | V11: FULL QUARTER GREEN | W11: No Data | X11: No Data | Y11: No Data | Z11: FALSE | AA11: FALSE | AE11: =CUBEVALUE("PUBLIC_CUBE","[Commissioners].[Org Name].[All].["&B2&"]","[Date].[Short Month Year Label].[By Date].["&TEXT(AE6,"mmm-yy")&"]","[Measures].[Gt52 Weeks - RTT]","[RTT Pathway Type].[RTT Pathways].[All].[Incomplete including Audiology].[Incomplete]",CUBESET("PUBLIC_CUBE","[Dim Data Status].[Data Status Hierarchy].[All].[PUBLIC]","Public data only")) -> 1 | AF11: =CUBEVALUE("PUBLIC_CUBE","[Commissioners].[Org Name].[All].["&B2&"]","[Date].[Short Month Year Label].[By Date].["&TEXT(AF6,"mmm-yy")&"]","[Measures].[Gt52 Weeks - RTT]","[RTT Pathway Type].[RTT Pathways].[All].[Incomplete including Audiology].[Incomplete]",CUBESET("PUBLIC_CUBE","[Dim Data Status].[Data Status Hierarchy].[All].[PUBLIC]","Public data only")) -> 0 | AG11: =CUBEVALUE("PUBLIC_CUBE","[Commissioners].[Org Name].[All].["&B2&"]","[Date].[Short Month Year Label].[By Date].["&TEXT(AG6,"mmm-yy")&"]","[Measures].[Gt52 Weeks - RTT]","[RTT Pathway Type].[RTT Pathways].[All].[Incomplete including Audiology].[Incomplete]",CUBESET("PUBLIC_CUBE","[Dim Data Status].[Data Status Hierarchy].[All].[PUBLIC]","Public data only")) -> 0 | AH11: =CUBEVALUE("PUBLIC_CUBE","[Commissioners].[Org Name].[All].["&B2&"]","[Date].[Short Month Year Label].[By Date].["&TEXT(AH6,"mmm-yy")&"]","[Measures].[Gt52 Weeks - RTT]","[RTT Pathway Type].[RTT Pathways].[All].[Incomplete including Audiology].[Incomplete]",CUBESET("PUBLIC_CUBE","[Dim Data Status].[Data Status Hierarchy].[All].[PUBLIC]","Public data only")) ->  | AI11: =CUBEVALUE("PUBLIC_CUBE","[Commissioners].[Org Name].[All].["&B2&"]","[Date].[Short Month Year Label].[By Date].["&TEXT(AI6,"mmm-yy")&"]","[Measures].[Gt52 Weeks - RTT]","[RTT Pathway Type].[RTT Pathways].[All].[Incomplete including Audiology].[Incomplete]",CUBESET("PUBLIC_CUBE","[Dim Data Status].[Data Status Hierarchy].[All].[PUBLIC]","Public data only")) ->  | AJ11: =CUBEVALUE("PUBLIC_CUBE","[Commissioners].[Org Name].[All].["&B2&"]","[Date].[Short Month Year Label].[By Date].["&TEXT(AJ6,"mmm-yy")&"]","[Measures].[Gt52 Weeks - RTT]","[RTT Pathway Type].[RTT Pathways].[All].[Incomplete including Audiology].[Incomplete]",CUBESET("PUBLIC_CUBE","[Dim Data Status].[Data Status Hierarchy].[All].[PUBLIC]","Public data only")) ->  | AK11: =CUBEVALUE("PUBLIC_CUBE","[Commissioners].[Org Name].[All].["&B2&"]","[Date].[Short Month Year Label].[By Date].["&TEXT(AK6,"mmm-yy")&"]","[Measures].[Gt52 Weeks - RTT]","[RTT Pathway Type].[RTT Pathways].[All].[Incomplete including Audiology].[Incomplete]",CUBESET("PUBLIC_CUBE","[Dim Data Status].[Data Status Hierarchy].[All].[PUBLIC]","Public data only")) ->  | AL11: =CUBEVALUE("PUBLIC_CUBE","[Commissioners].[Org Name].[All].["&B2&"]","[Date].[Short Month Year Label].[By Date].["&TEXT(AL6,"mmm-yy")&"]","[Measures].[Gt52 Weeks - RTT]","[RTT Pathway Type].[RTT Pathways].[All].[Incomplete including Audiology].[Incomplete]",CUBESET("PUBLIC_CUBE","[Dim Data Status].[Data Status Hierarchy].[All].[PUBLIC]","Public data only")) ->  | AM11: =CUBEVALUE("PUBLIC_CUBE","[Commissioners].[Org Name].[All].["&B2&"]","[Date].[Short Month Year Label].[By Date].["&TEXT(AM6,"mmm-yy")&"]","[Measures].[Gt52 Weeks - RTT]","[RTT Pathway Type].[RTT Pathways].[All].[Incomplete including Audiology].[Incomplete]",CUBESET("PUBLIC_CUBE","[Dim Data Status].[Data Status Hierarchy].[All].[PUBLIC]","Public data only")) ->  | AN11: =CUBEVALUE("PUBLIC_CUBE","[Commissioners].[Org Name].[All].["&B2&"]","[Date].[Short Month Year Label].[By Date].["&TEXT(AN6,"mmm-yy")&"]","[Measures].[Gt52 Weeks - RTT]","[RTT Pathway Type].[RTT Pathways].[All].[Incomplete including Audiology].[Incomplete]",CUBESET("PUBLIC_CUBE","[Dim Data Status].[Data Status Hierarchy].[All].[PUBLIC]","Public data only")) ->  | AO11: =CUBEVALUE("PUBLIC_CUBE","[Commissioners].[Org Name].[All].["&B2&"]","[Date].[Short Month Year Label].[By Date].["&TEXT(AO6,"mmm-yy")&"]","[Measures].[Gt52 Weeks - RTT]","[RTT Pathway Type].[RTT Pathways].[All].[Incomplete including Audiology].[Incomplete]",CUBESET("PUBLIC_CUBE","[Dim Data Status].[Data Status Hierarchy].[All].[PUBLIC]","Public data only")) ->  | AP11: =CUBEVALUE("PUBLIC_CUBE","[Commissioners].[Org Name].[All].["&B2&"]","[Date].[Short Month Year Label].[By Date].["&TEXT(AP6,"mmm-yy")&"]","[Measures].[Gt52 Weeks - RTT]","[RTT Pathway Type].[RTT Pathways].[All].[Incomplete including Audiology].[Incomplete]",CUBESET("PUBLIC_CUBE","[Dim Data Status].[Data Status Hierarchy].[All].[PUBLIC]","Public data only")) -> 
A12: Diagnostic test waiting times | Z12: FALSE | AA12: FALSE
A13: Percentage of patients waiting 6 weeks or more for a diagnostic test | B13: 0.01 | D13: =CUBEVALUE("PUBLIC_CUBE","[Commissioners].[Org Name].[All].["&B2&"]","[Date].[Fiscal Q Hierarchy].[All].["&$A5&"].["&$D5&"]","[Measures].[Actual Current Percentage Diagnostic Waits Over 6 weeks]") -> 0.01517825627 | H13: =IF(OR(V13="1 MONTH DATA GREEN",V13="1 MONTH DATA RED"),"1 MONTH DIAGNOSTIC TEST DATA",IF(OR(V13="2 MONTH DATA GREEN",V13="2 MONTH DATA RED"),"2 MONTH DIAGNOSTIC TEST DATA",IF(OR(V13="FULL QUARTER GREEN",V13=" "),""))) -> FALSE | R13: =IF(D13>B13,"RED",IF(D13="NO DATA","NA",IF(D13<=B13,"GREEN"))) -> RED | S13: =IF(E13>D13,"RED",IF(E13="NO DATA","NA",IF(E13<=B13,"GREEN",))) -> GREEN | T13: =IF(F13="","NA",IF(F13>B13,"RED",IF(F13<=B13,"GREEN",))) -> NA | U13: =IF(G13="","NA",IF(G13>B13,"RED",IF(G13<=B13,"GREEN",))) -> NA | V13: FULL QUARTER RED | W13: No Data | X13: No Data | Y13: No Data | Z13: FALSE | AA13: FALSE | AE13: =CUBEVALUE("PUBLIC_CUBE","[Commissioners].[Org Name].[All].["&B2&"]","[Date].[Short Month Year Label].[By Date].["&TEXT(AE6,"mmm-yy")&"]","[Measures].[Actual Current Percentage Diagnostic Waits Over 6 weeks]",CUBESET("PUBLIC_CUBE","[Dim Data Status].[Data Status Hierarchy].[All].[PUBLIC]","Public data only")) -> 0.0103250478 | AF13: =CUBEVALUE("PUBLIC_CUBE","[Commissioners].[Org Name].[All].["&B2&"]","[Date].[Short Month Year Label].[By Date].["&TEXT(AF6,"mmm-yy")&"]","[Measures].[Actual Current Percentage Diagnostic Waits Over 6 weeks]",CUBESET("PUBLIC_CUBE","[Dim Data Status].[Data Status Hierarchy].[All].[PUBLIC]","Public data only")) -> 0.02185141041 | AG13: =CUBEVALUE("PUBLIC_CUBE","[Commissioners].[Org Name].[All].["&B2&"]","[Date].[Short Month Year Label].[By Date].["&TEXT(AG6,"mmm-yy")&"]","[Measures].[Actual Current Percentage Diagnostic Waits Over 6 weeks]",CUBESET("PUBLIC_CUBE","[Dim Data Status].[Data Status Hierarchy].[All].[PUBLIC]","Public data only")) -> 0.01517825627 | AH13: =CUBEVALUE("PUBLIC_CUBE","[Commissioners].[Org Name].[All].["&B2&"]","[Date].[Short Month Year Label].[By Date].["&TEXT(AH6,"mmm-yy")&"]","[Measures].[Actual Current Percentage Diagnostic Waits Over 6 weeks]",CUBESET("PUBLIC_CUBE","[Dim Data Status].[Data Status Hierarchy].[All].[PUBLIC]","Public data only")) ->  | AI13: =CUBEVALUE("PUBLIC_CUBE","[Commissioners].[Org Name].[All].["&B2&"]","[Date].[Short Month Year Label].[By Date].["&TEXT(AI6,"mmm-yy")&"]","[Measures].[Actual Current Percentage Diagnostic Waits Over 6 weeks]",CUBESET("PUBLIC_CUBE","[Dim Data Status].[Data Status Hierarchy].[All].[PUBLIC]","Public data only")) ->  | AJ13: =CUBEVALUE("PUBLIC_CUBE","[Commissioners].[Org Name].[All].["&B2&"]","[Date].[Short Month Year Label].[By Date].["&TEXT(AJ6,"mmm-yy")&"]","[Measures].[Actual Current Percentage Diagnostic Waits Over 6 weeks]",CUBESET("PUBLIC_CUBE","[Dim Data Status].[Data Status Hierarchy].[All].[PUBLIC]","Public data only")) ->  | AK13: =CUBEVALUE("PUBLIC_CUBE","[Commissioners].[Org Name].[All].["&B2&"]","[Date].[Short Month Year Label].[By Date].["&TEXT(AK6,"mmm-yy")&"]","[Measures].[Actual Current Percentage Diagnostic Waits Over 6 weeks]",CUBESET("PUBLIC_CUBE","[Dim Data Status].[Data Status Hierarchy].[All].[PUBLIC]","Public data only")) ->  | AL13: =CUBEVALUE("PUBLIC_CUBE","[Commissioners].[Org Name].[All].["&B2&"]","[Date].[Short Month Year Label].[By Date].["&TEXT(AL6,"mmm-yy")&"]","[Measures].[Actual Current Percentage Diagnostic Waits Over 6 weeks]",CUBESET("PUBLIC_CUBE","[Dim Data Status].[Data Status Hierarchy].[All].[PUBLIC]","Public data only")) ->  | AM13: =CUBEVALUE("PUBLIC_CUBE","[Commissioners].[Org Name].[All].["&B2&"]","[Date].[Short Month Year Label].[By Date].["&TEXT(AM6,"mmm-yy")&"]","[Measures].[Actual Current Percentage Diagnostic Waits Over 6 weeks]",CUBESET("PUBLIC_CUBE","[Dim Data Status].[Data Status Hierarchy].[All].[PUBLIC]","Public data only")) ->  | AN13: =CUBEVALUE("PUBLIC_CUBE","[Commissioners].[Org Name].[All].["&B2&"]","[Date].[Short Month Year Label].[By Date].["&TEXT(AN6,"mmm-yy")&"]","[Measures].[Actual Current Percentage Diagnostic Waits Over 6 weeks]",CUBESET("PUBLIC_CUBE","[Dim Data Status].[Data Status Hierarchy].[All].[PUBLIC]","Public data only")) ->  | AO13: =CUBEVALUE("PUBLIC_CUBE","[Commissioners].[Org Name].[All].["&B2&"]","[Date].[Short Month Year Label].[By Date].["&TEXT(AO6,"mmm-yy")&"]","[Measures].[Actual Current Percentage Diagnostic Waits Over 6 weeks]",CUBESET("PUBLIC_CUBE","[Dim Data Status].[Data Status Hierarchy].[All].[PUBLIC]","Public data only")) ->  | AP13: =CUBEVALUE("PUBLIC_CUBE","[Commissioners].[Org Name].[All].["&B2&"]","[Date].[Short Month Year Label].[By Date].["&TEXT(AP6,"mmm-yy")&"]","[Measures].[Actual Current Percentage Diagnostic Waits Over 6 weeks]",CUBESET("PUBLIC_CUBE","[Dim Data Status].[Data Status Hierarchy].[All].[PUBLIC]","Public data only")) -> 
A14: Cancer patients - Two-week wait | Z14: FALSE | AA14: FALSE
A15: Maximum two-week wait for first outpatient appointment for patients referred urgently with suspected cancer by a GP | B15: 0.93 | D15: =CUBEVALUE("PUBLIC_CUBE","[Commissioners].[Commissioners by Area Team].[Org Name].["&$B2&"]","[Date].[Fiscal Q Hierarchy].[All].["&$A5&"].["&$D5&"]","[Cancer Selections].[Cancer Hierarchy].[Cancer Record Description].&[Seen within 2 weeks of referral]","[Measures].[Actual Current Comm Cancer Percentage Treated within Target - Qtrly]") -> 0.9310148233 | R15: =IF(D15="","NA",IF(D15>=B15,"GREEN",IF(DBC1942,"RED"))) -> GREEN | S15: =IF(E15="","NA",IF(E15>=B15,"GREEN",IF(E15<B15,"RED"))) -> NA | T15: =IF(F15="","NA",IF(F15>=B15,"GREEN",IF(F15<B15,"RED"))) -> NA | U15: =IF(G15="","NA",IF(G15>=B15,"GREEN",IF(G15<B15,"RED"))) -> NA | V15: FULL QUARTER GREEN | W15: No Data | X15: No Data | Y15: No Data | Z15: FALSE | AA15: FALSE | AE15: =CUBEVALUE("PUBLIC_CUBE","[Commissioners].[Org Name].[All].["&B2&"]","[Date].[Short Month Year Label].[By Date].["&TEXT(AE6,"mmm-yy")&"]","[Measures].[Actual Current Comm Cancer Percentage Treated within Target - Qtrly]") ->  | AF15: =CUBEVALUE("PUBLIC_CUBE","[Commissioners].[Org Name].[All].["&B2&"]","[Date].[Short Month Year Label].[By Date].["&TEXT(AF6,"mmm-yy")&"]","[Measures].[Actual Current Comm Cancer Percentage Treated within Target - Qtrly]") ->  | AG15: =CUBEVALUE("PUBLIC_CUBE","[Commissioners].[Org Name].[All].["&B2&"]","[Date].[Short Month Year Label].[By Date].["&TEXT(AG6,"mmm-yy")&"]","[Measures].[Actual Current Comm Cancer Percentage Treated within Target - Qtrly]") -> 0.9380503145 | AH15: =CUBEVALUE("PUBLIC_CUBE","[Commissioners].[Org Name].[All].["&B2&"]","[Date].[Short Month Year Label].[By Date].["&TEXT(AH6,"mmm-yy")&"]","[Measures].[Actual Current Comm Cancer Percentage Treated within Target - Qtrly]") ->  | AI15: =CUBEVALUE("PUBLIC_CUBE","[Commissioners].[Org Name].[All].["&B2&"]","[Date].[Short Month Year Label].[By Date].["&TEXT(AI6,"mmm-yy")&"]","[Measures].[Actual Current Comm Cancer Percentage Treated within Target - Qtrly]") ->  | AJ15: =CUBEVALUE("PUBLIC_CUBE","[Commissioners].[Org Name].[All].["&B2&"]","[Date].[Short Month Year Label].[By Date].["&TEXT(AJ6,"mmm-yy")&"]","[Measures].[Actual Current Comm Cancer Percentage Treated within Target - Qtrly]") ->  | AK15: =CUBEVALUE("PUBLIC_CUBE","[Commissioners].[Org Name].[All].["&B2&"]","[Date].[Short Month Year Label].[By Date].["&TEXT(AK6,"mmm-yy")&"]","[Measures].[Actual Current Comm Cancer Percentage Treated within Target - Qtrly]") ->  | AL15: =CUBEVALUE("PUBLIC_CUBE","[Commissioners].[Org Name].[All].["&B2&"]","[Date].[Short Month Year Label].[By Date].["&TEXT(AL6,"mmm-yy")&"]","[Measures].[Actual Current Comm Cancer Percentage Treated within Target - Qtrly]") ->  | AM15: =CUBEVALUE("PUBLIC_CUBE","[Commissioners].[Org Name].[All].["&B2&"]","[Date].[Short Month Year Label].[By Date].["&TEXT(AM6,"mmm-yy")&"]","[Measures].[Actual Current Comm Cancer Percentage Treated within Target - Qtrly]") ->  | AN15: =CUBEVALUE("PUBLIC_CUBE","[Commissioners].[Org Name].[All].["&B2&"]","[Date].[Short Month Year Label].[By Date].["&TEXT(AN6,"mmm-yy")&"]","[Measures].[Actual Current Comm Cancer Percentage Treated within Target - Qtrly]") ->  | AO15: =CUBEVALUE("PUBLIC_CUBE","[Commissioners].[Org Name].[All].["&B2&"]","[Date].[Short Month Year Label].[By Date].["&TEXT(AO6,"mmm-yy")&"]","[Measures].[Actual Current Comm Cancer Percentage Treated within Target - Qtrly]") ->  | AP15: =CUBEVALUE("PUBLIC_CUBE","[Commissioners].[Org Name].[All].["&B2&"]","[Date].[Short Month Year Label].[By Date].["&TEXT(AP6,"mmm-yy")&"]","[Measures].[Actual Current Comm Cancer Percentage Treated within Target - Qtrly]") -> 
A16: Maximum two-week wait for first outpatient appointment for patients referred urgently with breast symptoms (where cancer was not initially suspected) | B16: 0.93 | D16: =CUBEVALUE("PUBLIC_CUBE","[Commissioners].[Commissioners by Area Team].[Org Name].["&$B2&"]","[Date].[Fiscal Q Hierarchy].[All].["&$A5&"].["&$D5&"]","[Cancer Selections].[Cancer Hierarchy].[Cancer Record Description].&[Seen within 2 weeks of referral - Breast Symptoms]","[Measures].[Actual Current Comm Cancer Percentage Treated within Target - Qtrly]") -> 0.933908046 | R16: =IF(D16="","NA",IF(D16>=B16,"GREEN",IF(D16<B16,"RED"))) -> GREEN | S16: =IF(E16="","NA",IF(E16>=B16,"GREEN",IF(E16<B16,"RED"))) -> NA | T16: =IF(F16="","NA",IF(F16>=B16,"GREEN",IF(F16<B16,"RED"))) -> NA | U16: =IF(G16="","NA",IF(G16>=B16,"GREEN",IF(G16<B16,"RED"))) -> NA | V16: FULL QUARTER GREEN | W16: No Data | X16: No Data | Y16: No Data | Z16: FALSE | AA16: FALSE | AE16: =CUBEVALUE("PUBLIC_CUBE","[Commissioners].[Org Name].[All].["&B2&"]","[Date].[Short Month Year Label].[By Date].["&TEXT(AE6,"mmm-yy")&"]","[Measures].[Actual Current Comm Cancer Percentage Treated within Target - Qtrly]") ->  | AF16: =CUBEVALUE("PUBLIC_CUBE","[Commissioners].[Org Name].[All].["&B2&"]","[Date].[Short Month Year Label].[By Date].["&TEXT(AF6,"mmm-yy")&"]","[Measures].[Actual Current Comm Cancer Percentage Treated within Target - Qtrly]") ->  | AG16: =CUBEVALUE("PUBLIC_CUBE","[Commissioners].[Org Name].[All].["&B2&"]","[Date].[Short Month Year Label].[By Date].["&TEXT(AG6,"mmm-yy")&"]","[Measures].[Actual Current Comm Cancer Percentage Treated within Target - Qtrly]") -> 0.9380503145 | AH16: =CUBEVALUE("PUBLIC_CUBE","[Commissioners].[Org Name].[All].["&B2&"]","[Date].[Short Month Year Label].[By Date].["&TEXT(AH6,"mmm-yy")&"]","[Measures].[Actual Current Comm Cancer Percentage Treated within Target - Qtrly]") ->  | AI16: =CUBEVALUE("PUBLIC_CUBE","[Commissioners].[Org Name].[All].["&B2&"]","[Date].[Short Month Year Label].[By Date].["&TEXT(AI6,"mmm-yy")&"]","[Measures].[Actual Current Comm Cancer Percentage Treated within Target - Qtrly]") ->  | AJ16: =CUBEVALUE("PUBLIC_CUBE","[Commissioners].[Org Name].[All].["&B2&"]","[Date].[Short Month Year Label].[By Date].["&TEXT(AJ6,"mmm-yy")&"]","[Measures].[Actual Current Comm Cancer Percentage Treated within Target - Qtrly]") ->  | AK16: =CUBEVALUE("PUBLIC_CUBE","[Commissioners].[Org Name].[All].["&B2&"]","[Date].[Short Month Year Label].[By Date].["&TEXT(AK6,"mmm-yy")&"]","[Measures].[Actual Current Comm Cancer Percentage Treated within Target - Qtrly]") ->  | AL16: =CUBEVALUE("PUBLIC_CUBE","[Commissioners].[Org Name].[All].["&B2&"]","[Date].[Short Month Year Label].[By Date].["&TEXT(AL6,"mmm-yy")&"]","[Measures].[Actual Current Comm Cancer Percentage Treated within Target - Qtrly]") ->  | AM16: =CUBEVALUE("PUBLIC_CUBE","[Commissioners].[Org Name].[All].["&B2&"]","[Date].[Short Month Year Label].[By Date].["&TEXT(AM6,"mmm-yy")&"]","[Measures].[Actual Current Comm Cancer Percentage Treated within Target - Qtrly]") ->  | AN16: =CUBEVALUE("PUBLIC_CUBE","[Commissioners].[Org Name].[All].["&B2&"]","[Date].[Short Month Year Label].[By Date].["&TEXT(AN6,"mmm-yy")&"]","[Measures].[Actual Current Comm Cancer Percentage Treated within Target - Qtrly]") ->  | AO16: =CUBEVALUE("PUBLIC_CUBE","[Commissioners].[Org Name].[All].["&B2&"]","[Date].[Short Month Year Label].[By Date].["&TEXT(AO6,"mmm-yy")&"]","[Measures].[Actual Current Comm Cancer Percentage Treated within Target - Qtrly]") ->  | AP16: =CUBEVALUE("PUBLIC_CUBE","[Commissioners].[Org Name].[All].["&B2&"]","[Date].[Short Month Year Label].[By Date].["&TEXT(AP6,"mmm-yy")&"]","[Measures].[Actual Current Comm Cancer Percentage Treated within Target - Qtrly]") -> 
A17: Cancer waits - 31 days | V17: =IF(AND(AE17="",AF17="",AG17=""),"No Data",IF(AND(AF17="",AG17="",R17="GREEN"),"1 MONTH DATA GREEN",IF(AND(AF17="",AG17="",R17="RED"),"1 MONTH DATA RED",IF(AND(AG17="",R17="GREEN"),"2 MONTH DATA GREEN",IF(AND(AG17="",R17="RED"),"2 MONTH DATA RED",IF(AND(AF17="",AG17=""),"1 MONTH DATA",IF(AND(AG17=""),"2 MONTH DATA",IF(AND(AE17=AE17,AF17=AF17,AG17=AG17,R17="GREEN"),"FULL QUARTER GREEN",IF(AND(AE17=AE17,AF17=AF17,AG17=AG17,R17="RED"),"FULL QUARTER RED",))))))))) -> No Data | W17: =IF(AND(AH17="",AI17="",AJ17=""),"No Data",IF(AND(AI17="",AJ17="",S17="GREEN"),"1 MONTH DATA GREEN",IF(AND(AI17="",AJ17="",S17="RED"),"1 MONTH DATA RED",IF(AND(AJ17="",S17="GREEN"),"2 MONTH DATA GREEN",IF(AND(AJ17="",S17="RED"),"2 MONTH DATA RED",IF(AND(AI17="",AJ17=""),"1 MONTH DATA",IF(AND(AJ17=""),"2 MONTH DATA",IF(AND(AH17=AH17,AI17=AI17,AJ17=AJ17,S17="GREEN"),"FULL QUARTER GREEN",IF(AND(AH17=AH17,AI17=AI17,AJ17=AJ17,S17="RED"),"FULL QUARTER RED",))))))))) -> No Data | X17: =IF(AND(AK17="",AL17="",AM17=""),"No Data",IF(AND(AL17="",AM17="",T17="GREEN"),"1 MONTH DATA GREEN",IF(AND(AL17="",AM17="",T17="RED"),"1 MONTH DATA RED",IF(AND(AM17="",T17="GREEN"),"2 MONTH DATA GREEN",IF(AND(AM17="",T17="RED"),"2 MONTH DATA RED",IF(AND(AL17="",AM17=""),"1 MONTH DATA",IF(AND(AM17=""),"2 MONTH DATA",IF(AND(AK17=AK17,AL17=AL17,AM17=AM17,T17="GREEN"),"FULL QUARTER GREEN",IF(AND(AK17=AK17,AL17=AL17,AM17=AM17,T17="RED"),"FULL QUARTER RED",))))))))) -> No Data | Y17: =IF(AND(AN17="",AO17="",AP17=""),"No Data",IF(AND(AO17="",AP17="",U17="GREEN"),"1 MONTH DATA GREEN",IF(AND(AO17="",AP17="",U17="RED"),"1 MONTH DATA RED",IF(AND(AP17="",U17="GREEN"),"2 MONTH DATA GREEN",IF(AND(AP17="",U17="RED"),"2 MONTH DATA RED",IF(AND(AO17="",AP17=""),"1 MONTH DATA",IF(AND(AP17=""),"2 MONTH DATA",IF(AND(AN17=AN17,AO17=AO17,AP17=AP17,U17="GREEN"),"FULL QUARTER GREEN",IF(AND(AN17=AN17,AO17=AO17,AP17=AP17,U17="RED"),"FULL QUARTER RED",))))))))) -> No Data | Z17: FALSE | AA17: FALSE
A18: Maximum 31-day wait from diagnosis to first definitive treatment for all cancers | B18: 0.96 | D18: =CUBEVALUE("PUBLIC_CUBE","[Commissioners].[Commissioners by Area Team].[Org Name].["&$B2&"]","[Date].[Fiscal Q Hierarchy].[All].["&$A5&"].["&$D5&"]","[Cancer Selections].[Cancer Hierarchy].[All].[Treated < 31 Days by Treatment Type]","[Measures].[Actual Current Comm Cancer Percentage Treated within Target - Qtrly]") -> 0.9781931464 | R18: =IF(D18>=B18,"GREEN",IF(D18<B18,"RED")) -> GREEN | S18: =IF(E18>=B18,"GREEN",IF(E18="","NA",IF(E18<B18,"RED"))) -> NA | T18: =IF(F18="","NA",IF(F18>=B18,"GREEN",IF(F18<B18,"RED"))) -> NA | U18: =IF(G18="","NA",IF(G18>=B18,"GREEN",IF(G18<B18,"RED"))) -> NA | V18: =IF(AND(AE18="",AF18="",AG18=""),"No Data",IF(AND(AF18="",AG18="",R18="GREEN"),"1 MONTH DATA GREEN",IF(AND(AF18="",AG18="",R18="RED"),"1 MONTH DATA RED",IF(AND(AG18="",R18="GREEN"),"2 MONTH DATA GREEN",IF(AND(AG18="",R18="RED"),"2 MONTH DATA RED",IF(AND(AF18="",AG18=""),"1 MONTH DATA",IF(AND(AG18=""),"2 MONTH DATA",IF(AND(AE18=AE18,AF18=AF18,AG18=AG18,R18="GREEN"),"FULL QUARTER GREEN",IF(AND(AE18=AE18,AF18=AF18,AG18=AG18,R18="RED"),"FULL QUARTER RED",))))))))) -> FULL QUARTER GREEN | W18: =IF(AND(AH18="",AI18="",AJ18=""),"No Data",IF(AND(AI18="",AJ18="",S18="GREEN"),"1 MONTH DATA GREEN",IF(AND(AI18="",AJ18="",S18="RED"),"1 MONTH DATA RED",IF(AND(AJ18="",S18="GREEN"),"2 MONTH DATA GREEN",IF(AND(AJ18="",S18="RED"),"2 MONTH DATA RED",IF(AND(AI18="",AJ18=""),"1 MONTH DATA",IF(AND(AJ18=""),"2 MONTH DATA",IF(AND(AH18=AH18,AI18=AI18,AJ18=AJ18,S18="GREEN"),"FULL QUARTER GREEN",IF(AND(AH18=AH18,AI18=AI18,AJ18=AJ18,S18="RED"),"FULL QUARTER RED",))))))))) -> No Data | X18: =IF(AND(AK18="",AL18="",AM18=""),"No Data",IF(AND(AL18="",AM18="",T18="GREEN"),"1 MONTH DATA GREEN",IF(AND(AL18="",AM18="",T18="RED"),"1 MONTH DATA RED",IF(AND(AM18="",T18="GREEN"),"2 MONTH DATA GREEN",IF(AND(AM18="",T18="RED"),"2 MONTH DATA RED",IF(AND(AL18="",AM18=""),"1 MONTH DATA",IF(AND(AM18=""),"2 MONTH DATA",IF(AND(AK18=AK18,AL18=AL18,AM18=AM18,T18="GREEN"),"FULL QUARTER GREEN",IF(AND(AK18=AK18,AL18=AL18,AM18=AM18,T18="RED"),"FULL QUARTER RED",))))))))) -> No Data | Y18: =IF(AND(AN18="",AO18="",AP18=""),"No Data",IF(AND(AO18="",AP18="",U18="GREEN"),"1 MONTH DATA GREEN",IF(AND(AO18="",AP18="",U18="RED"),"1 MONTH DATA RED",IF(AND(AP18="",U18="GREEN"),"2 MONTH DATA GREEN",IF(AND(AP18="",U18="RED"),"2 MONTH DATA RED",IF(AND(AO18="",AP18=""),"1 MONTH DATA",IF(AND(AP18=""),"2 MONTH DATA",IF(AND(AN18=AN18,AO18=AO18,AP18=AP18,U18="GREEN"),"FULL QUARTER GREEN",IF(AND(AN18=AN18,AO18=AO18,AP18=AP18,U18="RED"),"FULL QUARTER RED",))))))))) -> No Data | Z18: FALSE | AA18: FALSE | AE18: =CUBEVALUE("PUBLIC_CUBE","[Commissioners].[Org Name].[All].["&B2&"]","[Date].[Short Month Year Label].[By Date].["&TEXT(AE6,"mmm-yy")&"]","[Measures].[Actual Current Comm Cancer Percentage Treated within Target - Qtrly]") ->  | AF18: =CUBEVALUE("PUBLIC_CUBE","[Commissioners].[Org Name].[All].["&B2&"]","[Date].[Short Month Year Label].[By Date].["&TEXT(AF6,"mmm-yy")&"]","[Measures].[Actual Current Comm Cancer Percentage Treated within Target - Qtrly]") ->  | AG18: =CUBEVALUE("PUBLIC_CUBE","[Commissioners].[Org Name].[All].["&B2&"]","[Date].[Short Month Year Label].[By Date].["&TEXT(AG6,"mmm-yy")&"]","[Measures].[Actual Current Comm Cancer Percentage Treated within Target - Qtrly]") -> 0.9380503145 | AH18: =CUBEVALUE("PUBLIC_CUBE","[Commissioners].[Org Name].[All].["&B2&"]","[Date].[Short Month Year Label].[By Date].["&TEXT(AH6,"mmm-yy")&"]","[Measures].[Actual Current Comm Cancer Percentage Treated within Target - Qtrly]") ->  | AI18: =CUBEVALUE("PUBLIC_CUBE","[Commissioners].[Org Name].[All].["&B2&"]","[Date].[Short Month Year Label].[By Date].["&TEXT(AI6,"mmm-yy")&"]","[Measures].[Actual Current Comm Cancer Percentage Treated within Target - Qtrly]") ->  | AJ18: =CUBEVALUE("PUBLIC_CUBE","[Commissioners].[Org Name].[All].["&B2&"]","[Date].[Short Month Year Label].[By Date].["&TEXT(AJ6,"mmm-yy")&"]","[Measures].[Actual Current Comm Cancer Percentage Treated within Target - Qtrly]") ->  | AK18: =CUBEVALUE("PUBLIC_CUBE","[Commissioners].[Org Name].[All].["&B2&"]","[Date].[Short Month Year Label].[By Date].["&TEXT(AK6,"mmm-yy")&"]","[Measures].[Actual Current Comm Cancer Percentage Treated within Target - Qtrly]") ->  | AL18: =CUBEVALUE("PUBLIC_CUBE","[Commissioners].[Org Name].[All].["&B2&"]","[Date].[Short Month Year Label].[By Date].["&TEXT(AL6,"mmm-yy")&"]","[Measures].[Actual Current Comm Cancer Percentage Treated within Target - Qtrly]") ->  | AM18: =CUBEVALUE("PUBLIC_CUBE","[Commissioners].[Org Name].[All].["&B2&"]","[Date].[Short Month Year Label].[By Date].["&TEXT(AM6,"mmm-yy")&"]","[Measures].[Actual Current Comm Cancer Percentage Treated within Target - Qtrly]") ->  | AN18: =CUBEVALUE("PUBLIC_CUBE","[Commissioners].[Org Name].[All].["&B2&"]","[Date].[Short Month Year Label].[By Date].["&TEXT(AN6,"mmm-yy")&"]","[Measures].[Actual Current Comm Cancer Percentage Treated within Target - Qtrly]") ->  | AO18: =CUBEVALUE("PUBLIC_CUBE","[Commissioners].[Org Name].[All].["&B2&"]","[Date].[Short Month Year Label].[By Date].["&TEXT(AO6,"mmm-yy")&"]","[Measures].[Actual Current Comm Cancer Percentage Treated within Target - Qtrly]") ->  | AP18: =CUBEVALUE("PUBLIC_CUBE","[Commissioners].[Org Name].[All].["&B2&"]","[Date].[Short Month Year Label].[By Date].["&TEXT(AP6,"mmm-yy")&"]","[Measures].[Actual Current Comm Cancer Percentage Treated within Target - Qtrly]") -> 
A19: Maximum 31-day wait for subsequent treatment where that treatment is a surgery | B19: 0.94 | D19: =CUBEVALUE("PUBLIC_CUBE","[Commissioners].[Commissioners by Area Team].[Org Name].["&$B2&"]","[Date].[Fiscal Q Hierarchy].[All].["&$A5&"].["&$D5&"]","[Cancer Selections].[Cancer Hierarchy].[Selection Key].&[405]","[Measures].[Actual Current Comm Cancer Percentage Treated within Target - Qtrly]") -> 0.9285714286 | R19: =IF(D19>=B19,"GREEN",IF(D19="","NA",IF(D19<B19,"RED"))) -> RED | S19: =IF(E19>=B19,"GREEN",IF(E19="","NA",IF(E19<B19,"RED"))) -> NA | T19: =IF(F19="","NA",IF(F19>=B19,"GREEN",IF(F19<B19,"RED"))) -> NA | U19: =IF(G19="","NA",IF(G19>=B19,"GREEN",IF(G19<B19,"RED"))) -> NA | V19: FULL QUARTER RED | W19: No Data | X19: =IF(AND(AK19="",AL19="",AM19=""),"No Data",IF(AND(AL19="",AM19="",T19="GREEN"),"1 MONTH DATA GREEN",IF(AND(AL19="",AM19="",T19="RED"),"1 MONTH DATA RED",IF(AND(AM19="",T19="GREEN"),"2 MONTH DATA GREEN",IF(AND(AM19="",T19="RED"),"2 MONTH DATA RED",IF(AND(AL19="",AM19=""),"1 MONTH DATA",IF(AND(AM19=""),"2 MONTH DATA",IF(AND(AK19=AK19,AL19=AL19,AM19=AM19,T19="GREEN"),"FULL QUARTER GREEN",IF(AND(AK19=AK19,AL19=AL19,AM19=AM19,T19="RED"),"FULL QUARTER RED",))))))))) -> No Data | Y19: =IF(AND(AN19="",AO19="",AP19=""),"No Data",IF(AND(AO19="",AP19="",U19="GREEN"),"1 MONTH DATA GREEN",IF(AND(AO19="",AP19="",U19="RED"),"1 MONTH DATA RED",IF(AND(AP19="",U19="GREEN"),"2 MONTH DATA GREEN",IF(AND(AP19="",U19="RED"),"2 MONTH DATA RED",IF(AND(AO19="",AP19=""),"1 MONTH DATA",IF(AND(AP19=""),"2 MONTH DATA",IF(AND(AN19=AN19,AO19=AO19,AP19=AP19,U19="GREEN"),"FULL QUARTER GREEN",IF(AND(AN19=AN19,AO19=AO19,AP19=AP19,U19="RED"),"FULL QUARTER RED",))))))))) -> No Data | Z19: FALSE | AA19: FALSE | AE19: =CUBEVALUE("PUBLIC_CUBE","[Commissioners].[Org Name].[All].["&B2&"]","[Date].[Short Month Year Label].[By Date].["&TEXT(AE6,"mmm-yy")&"]","[Measures].[Actual Current Comm Cancer Percentage Treated within Target - Qtrly]") ->  | AF19: =CUBEVALUE("PUBLIC_CUBE","[Commissioners].[Org Name].[All].["&B2&"]","[Date].[Short Month Year Label].[By Date].["&TEXT(AF6,"mmm-yy")&"]","[Measures].[Actual Current Comm Cancer Percentage Treated within Target - Qtrly]") ->  | AG19: =CUBEVALUE("PUBLIC_CUBE","[Commissioners].[Org Name].[All].["&B2&"]","[Date].[Short Month Year Label].[By Date].["&TEXT(AG6,"mmm-yy")&"]","[Measures].[Actual Current Comm Cancer Percentage Treated within Target - Qtrly]") -> 0.9380503145 | AH19: =CUBEVALUE("PUBLIC_CUBE","[Commissioners].[Org Name].[All].["&B2&"]","[Date].[Short Month Year Label].[By Date].["&TEXT(AH6,"mmm-yy")&"]","[Measures].[Actual Current Comm Cancer Percentage Treated within Target - Qtrly]") ->  | AI19: =CUBEVALUE("PUBLIC_CUBE","[Commissioners].[Org Name].[All].["&B2&"]","[Date].[Short Month Year Label].[By Date].["&TEXT(AI6,"mmm-yy")&"]","[Measures].[Actual Current Comm Cancer Percentage Treated within Target - Qtrly]") ->  | AJ19: =CUBEVALUE("PUBLIC_CUBE","[Commissioners].[Org Name].[All].["&B2&"]","[Date].[Short Month Year Label].[By Date].["&TEXT(AJ6,"mmm-yy")&"]","[Measures].[Actual Current Comm Cancer Percentage Treated within Target - Qtrly]") ->  | AK19: =CUBEVALUE("PUBLIC_CUBE","[Commissioners].[Org Name].[All].["&B2&"]","[Date].[Short Month Year Label].[By Date].["&TEXT(AK6,"mmm-yy")&"]","[Measures].[Actual Current Comm Cancer Percentage Treated within Target - Qtrly]") ->  | AL19: =CUBEVALUE("PUBLIC_CUBE","[Commissioners].[Org Name].[All].["&B2&"]","[Date].[Short Month Year Label].[By Date].["&TEXT(AL6,"mmm-yy")&"]","[Measures].[Actual Current Comm Cancer Percentage Treated within Target - Qtrly]") ->  | AM19: =CUBEVALUE("PUBLIC_CUBE","[Commissioners].[Org Name].[All].["&B2&"]","[Date].[Short Month Year Label].[By Date].["&TEXT(AM6,"mmm-yy")&"]","[Measures].[Actual Current Comm Cancer Percentage Treated within Target - Qtrly]") ->  | AN19: =CUBEVALUE("PUBLIC_CUBE","[Commissioners].[Org Name].[All].["&B2&"]","[Date].[Short Month Year Label].[By Date].["&TEXT(AN6,"mmm-yy")&"]","[Measures].[Actual Current Comm Cancer Percentage Treated within Target - Qtrly]") ->  | AO19: =CUBEVALUE("PUBLIC_CUBE","[Commissioners].[Org Name].[All].["&B2&"]","[Date].[Short Month Year Label].[By Date].["&TEXT(AO6,"mmm-yy")&"]","[Measures].[Actual Current Comm Cancer Percentage Treated within Target - Qtrly]") ->  | AP19: =CUBEVALUE("PUBLIC_CUBE","[Commissioners].[Org Name].[All].["&B2&"]","[Date].[Short Month Year Label].[By Date].["&TEXT(AP6,"mmm-yy")&"]","[Measures].[Actual Current Comm Cancer Percentage Treated within Target - Qtrly]") -> 
A20: Maximum 31-day wait for subsequent treatment where the treatment is an anti-cancer drug regime | B20: 0.98 | D20: =CUBEVALUE("PUBLIC_CUBE","[Commissioners].[Commissioners by Area Team].[Org Name].["&$B2&"]","[Date].[Fiscal Q Hierarchy].[All].["&$A5&"].["&$D5&"]","[Cancer Selections].[Cancer Hierarchy].[All].[Treated < 31 Days Subsequent Treatment].[ Drug Treatments]","[Measures].[Actual Current Comm Cancer Percentage Treated within Target - Qtrly]") -> 1 | R20: =IF(D20>=B20,"GREEN",IF(D20="","NA",IF(D20<B20,"RED"))) -> GREEN | S20: =IF(E20>=B20,"GREEN",IF(E20="","NA",IF(E20<B20,"RED"))) -> NA | T20: =IF(F20="","NA",IF(F20>=B20,"GREEN",IF(F20<B20,"RED"))) -> NA | U20: =IF(G20="","NA",IF(G20>=B20,"GREEN",IF(G20<B20,"RED"))) -> NA | V20: FULL QUARTER GREEN | W20: No Data | X20: No Data | Y20: No Data | Z20: FALSE | AA20: FALSE | AE20: =CUBEVALUE("PUBLIC_CUBE","[Commissioners].[Org Name].[All].["&B2&"]","[Date].[Short Month Year Label].[By Date].["&TEXT(AE6,"mmm-yy")&"]","[Measures].[Actual Current Comm Cancer Percentage Treated within Target - Qtrly]") ->  | AF20: =CUBEVALUE("PUBLIC_CUBE","[Commissioners].[Org Name].[All].["&B2&"]","[Date].[Short Month Year Label].[By Date].["&TEXT(AF6,"mmm-yy")&"]","[Measures].[Actual Current Comm Cancer Percentage Treated within Target - Qtrly]") ->  | AG20: =CUBEVALUE("PUBLIC_CUBE","[Commissioners].[Org Name].[All].["&B2&"]","[Date].[Short Month Year Label].[By Date].["&TEXT(AG6,"mmm-yy")&"]","[Measures].[Actual Current Comm Cancer Percentage Treated within Target - Qtrly]") -> 0.9380503145 | AH20: =CUBEVALUE("PUBLIC_CUBE","[Commissioners].[Org Name].[All].["&B2&"]","[Date].[Short Month Year Label].[By Date].["&TEXT(AH6,"mmm-yy")&"]","[Measures].[Actual Current Comm Cancer Percentage Treated within Target - Qtrly]") ->  | AI20: =CUBEVALUE("PUBLIC_CUBE","[Commissioners].[Org Name].[All].["&B2&"]","[Date].[Short Month Year Label].[By Date].["&TEXT(AI6,"mmm-yy")&"]","[Measures].[Actual Current Comm Cancer Percentage Treated within Target - Qtrly]") ->  | AJ20: =CUBEVALUE("PUBLIC_CUBE","[Commissioners].[Org Name].[All].["&B2&"]","[Date].[Short Month Year Label].[By Date].["&TEXT(AJ6,"mmm-yy")&"]","[Measures].[Actual Current Comm Cancer Percentage Treated within Target - Qtrly]") ->  | AK20: =CUBEVALUE("PUBLIC_CUBE","[Commissioners].[Org Name].[All].["&B2&"]","[Date].[Short Month Year Label].[By Date].["&TEXT(AK6,"mmm-yy")&"]","[Measures].[Actual Current Comm Cancer Percentage Treated within Target - Qtrly]") ->  | AL20: =CUBEVALUE("PUBLIC_CUBE","[Commissioners].[Org Name].[All].["&B2&"]","[Date].[Short Month Year Label].[By Date].["&TEXT(AL6,"mmm-yy")&"]","[Measures].[Actual Current Comm Cancer Percentage Treated within Target - Qtrly]") ->  | AM20: =CUBEVALUE("PUBLIC_CUBE","[Commissioners].[Org Name].[All].["&B2&"]","[Date].[Short Month Year Label].[By Date].["&TEXT(AM6,"mmm-yy")&"]","[Measures].[Actual Current Comm Cancer Percentage Treated within Target - Qtrly]") ->  | AN20: =CUBEVALUE("PUBLIC_CUBE","[Commissioners].[Org Name].[All].["&B2&"]","[Date].[Short Month Year Label].[By Date].["&TEXT(AN6,"mmm-yy")&"]","[Measures].[Actual Current Comm Cancer Percentage Treated within Target - Qtrly]") ->  | AO20: =CUBEVALUE("PUBLIC_CUBE","[Commissioners].[Org Name].[All].["&B2&"]","[Date].[Short Month Year Label].[By Date].["&TEXT(AO6,"mmm-yy")&"]","[Measures].[Actual Current Comm Cancer Percentage Treated within Target - Qtrly]") ->  | AP20: =CUBEVALUE("PUBLIC_CUBE","[Commissioners].[Org Name].[All].["&B2&"]","[Date].[Short Month Year Label].[By Date].["&TEXT(AP6,"mmm-yy")&"]","[Measures].[Actual Current Comm Cancer Percentage Treated within Target - Qtrly]") -> 
A21: Maximum 31-day wait for subsequent treatment where the treatment is a course of radiotherapy | B21: 0.94 | D21: =CUBEVALUE("PUBLIC_CUBE","[Commissioners].[Commissioners by Area Team].[Org Name].["&$B2&"]","[Date].[Fiscal Q Hierarchy].[All].["&$A5&"].["&$D5&"]","[Cancer Selections].[Cancer Hierarchy].[Selection Key].&[404]","[Measures].[Actual Current Comm Cancer Percentage Treated within Target - Qtrly]") -> 1 | R21: =IF(D21>=B21,"GREEN",IF(D21="","NA",IF(D21<B21,"RED"))) -> GREEN | S21: =IF(E21>=B21,"GREEN",IF(E21="","NA",IF(E21<B21,"RED"))) -> NA | T21: =IF(F21="","NA",IF(F21>=B21,"GREEN",IF(F21<B21,"RED"))) -> NA | U21: =IF(G21="","NA",IF(G21>=B21,"GREEN",IF(G21<B21,"RED"))) -> NA | V21: =IF(AND(AE21="",AF21="",AG21=""),"No Data",IF(AND(AF21="",AG21="",R21="GREEN"),"1 MONTH DATA GREEN",IF(AND(AF21="",AG21="",R21="RED"),"1 MONTH DATA RED",IF(AND(AG21="",R21="GREEN"),"2 MONTH DATA GREEN",IF(AND(AG21="",R21="RED"),"2 MONTH DATA RED",IF(AND(AF21="",AG21=""),"1 MONTH DATA",IF(AND(AG21=""),"2 MONTH DATA",IF(AND(AE21=AE21,AF21=AF21,AG21=AG21,R21="GREEN"),"FULL QUARTER GREEN",IF(AND(AE21=AE21,AF21=AF21,AG21=AG21,R21="RED"),"FULL QUARTER RED",))))))))) -> FULL QUARTER GREEN | W21: =IF(AND(AH21="",AI21="",AJ21=""),"No Data",IF(AND(AI21="",AJ21="",S21="GREEN"),"1 MONTH DATA GREEN",IF(AND(AI21="",AJ21="",S21="RED"),"1 MONTH DATA RED",IF(AND(AJ21="",S21="GREEN"),"2 MONTH DATA GREEN",IF(AND(AJ21="",S21="RED"),"2 MONTH DATA RED",IF(AND(AI21="",AJ21=""),"1 MONTH DATA",IF(AND(AJ21=""),"2 MONTH DATA",IF(AND(AH21=AH21,AI21=AI21,AJ21=AJ21,S21="GREEN"),"FULL QUARTER GREEN",IF(AND(AH21=AH21,AI21=AI21,AJ21=AJ21,S21="RED"),"FULL QUARTER RED",))))))))) -> No Data | X21: =IF(AND(AK21="",AL21="",AM21=""),"No Data",IF(AND(AL21="",AM21="",T21="GREEN"),"1 MONTH DATA GREEN",IF(AND(AL21="",AM21="",T21="RED"),"1 MONTH DATA RED",IF(AND(AM21="",T21="GREEN"),"2 MONTH DATA GREEN",IF(AND(AM21="",T21="RED"),"2 MONTH DATA RED",IF(AND(AL21="",AM21=""),"1 MONTH DATA",IF(AND(AM21=""),"2 MONTH DATA",IF(AND(AK21=AK21,AL21=AL21,AM21=AM21,T21="GREEN"),"FULL QUARTER GREEN",IF(AND(AK21=AK21,AL21=AL21,AM21=AM21,T21="RED"),"FULL QUARTER RED",))))))))) -> No Data | Y21: =IF(AND(AN21="",AO21="",AP21=""),"No Data",IF(AND(AO21="",AP21="",U21="GREEN"),"1 MONTH DATA GREEN",IF(AND(AO21="",AP21="",U21="RED"),"1 MONTH DATA RED",IF(AND(AP21="",U21="GREEN"),"2 MONTH DATA GREEN",IF(AND(AP21="",U21="RED"),"2 MONTH DATA RED",IF(AND(AO21="",AP21=""),"1 MONTH DATA",IF(AND(AP21=""),"2 MONTH DATA",IF(AND(AN21=AN21,AO21=AO21,AP21=AP21,U21="GREEN"),"FULL QUARTER GREEN",IF(AND(AN21=AN21,AO21=AO21,AP21=AP21,U21="RED"),"FULL QUARTER RED",))))))))) -> No Data | Z21: FALSE | AA21: FALSE | AE21: =CUBEVALUE("PUBLIC_CUBE","[Commissioners].[Org Name].[All].["&B2&"]","[Date].[Short Month Year Label].[By Date].["&TEXT(AE6,"mmm-yy")&"]","[Measures].[Actual Current Comm Cancer Percentage Treated within Target - Qtrly]") ->  | AF21: =CUBEVALUE("PUBLIC_CUBE","[Commissioners].[Org Name].[All].["&B2&"]","[Date].[Short Month Year Label].[By Date].["&TEXT(AF6,"mmm-yy")&"]","[Measures].[Actual Current Comm Cancer Percentage Treated within Target - Qtrly]") ->  | AG21: =CUBEVALUE("PUBLIC_CUBE","[Commissioners].[Org Name].[All].["&B2&"]","[Date].[Short Month Year Label].[By Date].["&TEXT(AG6,"mmm-yy")&"]","[Measures].[Actual Current Comm Cancer Percentage Treated within Target - Qtrly]") -> 0.9380503145 | AH21: =CUBEVALUE("PUBLIC_CUBE","[Commissioners].[Org Name].[All].["&B2&"]","[Date].[Short Month Year Label].[By Date].["&TEXT(AH6,"mmm-yy")&"]","[Measures].[Actual Current Comm Cancer Percentage Treated within Target - Qtrly]") ->  | AI21: =CUBEVALUE("PUBLIC_CUBE","[Commissioners].[Org Name].[All].["&B2&"]","[Date].[Short Month Year Label].[By Date].["&TEXT(AI6,"mmm-yy")&"]","[Measures].[Actual Current Comm Cancer Percentage Treated within Target - Qtrly]") ->  | AJ21: =CUBEVALUE("PUBLIC_CUBE","[Commissioners].[Org Name].[All].["&B2&"]","[Date].[Short Month Year Label].[By Date].["&TEXT(AJ6,"mmm-yy")&"]","[Measures].[Actual Current Comm Cancer Percentage Treated within Target - Qtrly]") ->  | AK21: =CUBEVALUE("PUBLIC_CUBE","[Commissioners].[Org Name].[All].["&B2&"]","[Date].[Short Month Year Label].[By Date].["&TEXT(AK6,"mmm-yy")&"]","[Measures].[Actual Current Comm Cancer Percentage Treated within Target - Qtrly]") ->  | AL21: =CUBEVALUE("PUBLIC_CUBE","[Commissioners].[Org Name].[All].["&B2&"]","[Date].[Short Month Year Label].[By Date].["&TEXT(AL6,"mmm-yy")&"]","[Measures].[Actual Current Comm Cancer Percentage Treated within Target - Qtrly]") ->  | AM21: =CUBEVALUE("PUBLIC_CUBE","[Commissioners].[Org Name].[All].["&B2&"]","[Date].[Short Month Year Label].[By Date].["&TEXT(AM6,"mmm-yy")&"]","[Measures].[Actual Current Comm Cancer Percentage Treated within Target - Qtrly]") ->  | AN21: =CUBEVALUE("PUBLIC_CUBE","[Commissioners].[Org Name].[All].["&B2&"]","[Date].[Short Month Year Label].[By Date].["&TEXT(AN6,"mmm-yy")&"]","[Measures].[Actual Current Comm Cancer Percentage Treated within Target - Qtrly]") ->  | AO21: =CUBEVALUE("PUBLIC_CUBE","[Commissioners].[Org Name].[All].["&B2&"]","[Date].[Short Month Year Label].[By Date].["&TEXT(AO6,"mmm-yy")&"]","[Measures].[Actual Current Comm Cancer Percentage Treated within Target - Qtrly]") ->  | AP21: =CUBEVALUE("PUBLIC_CUBE","[Commissioners].[Org Name].[All].["&B2&"]","[Date].[Short Month Year Label].[By Date].["&TEXT(AP6,"mmm-yy")&"]","[Measures].[Actual Current Comm Cancer Percentage Treated within Target - Qtrly]") -> 
A22: Cancer waits - 62-days | V22: =IF(AND(AE22="",AF22="",AG22=""),"No Data",IF(AND(AF22="",AG22="",R22="GREEN"),"1 MONTH DATA GREEN",IF(AND(AF22="",AG22="",R22="RED"),"1 MONTH DATA RED",IF(AND(AG22="",R22="GREEN"),"2 MONTH DATA GREEN",IF(AND(AG22="",R22="RED"),"2 MONTH DATA RED",IF(AND(AF22="",AG22=""),"1 MONTH DATA",IF(AND(AG22=""),"2 MONTH DATA",IF(AND(AE22=AE22,AF22=AF22,AG22=AG22,R22="GREEN"),"FULL QUARTER GREEN",IF(AND(AE22=AE22,AF22=AF22,AG22=AG22,R22="RED"),"FULL QUARTER RED",))))))))) -> No Data | W22: =IF(AND(AH22="",AI22="",AJ22=""),"No Data",IF(AND(AI22="",AJ22="",S22="GREEN"),"1 MONTH DATA GREEN",IF(AND(AI22="",AJ22="",S22="RED"),"1 MONTH DATA RED",IF(AND(AJ22="",S22="GREEN"),"2 MONTH DATA GREEN",IF(AND(AJ22="",S22="RED"),"2 MONTH DATA RED",IF(AND(AI22="",AJ22=""),"1 MONTH DATA",IF(AND(AJ22=""),"2 MONTH DATA",IF(AND(AH22=AH22,AI22=AI22,AJ22=AJ22,S22="GREEN"),"FULL QUARTER GREEN",IF(AND(AH22=AH22,AI22=AI22,AJ22=AJ22,S22="RED"),"FULL QUARTER RED",))))))))) -> No Data | X22: =IF(AND(AK22="",AL22="",AM22=""),"No Data",IF(AND(AL22="",AM22="",T22="GREEN"),"1 MONTH DATA GREEN",IF(AND(AL22="",AM22="",T22="RED"),"1 MONTH DATA RED",IF(AND(AM22="",T22="GREEN"),"2 MONTH DATA GREEN",IF(AND(AM22="",T22="RED"),"2 MONTH DATA RED",IF(AND(AL22="",AM22=""),"1 MONTH DATA",IF(AND(AM22=""),"2 MONTH DATA",IF(AND(AK22=AK22,AL22=AL22,AM22=AM22,T22="GREEN"),"FULL QUARTER GREEN",IF(AND(AK22=AK22,AL22=AL22,AM22=AM22,T22="RED"),"FULL QUARTER RED",))))))))) -> No Data | Y22: =IF(AND(AN22="",AO22="",AP22=""),"No Data",IF(AND(AO22="",AP22="",U22="GREEN"),"1 MONTH DATA GREEN",IF(AND(AO22="",AP22="",U22="RED"),"1 MONTH DATA RED",IF(AND(AP22="",U22="GREEN"),"2 MONTH DATA GREEN",IF(AND(AP22="",U22="RED"),"2 MONTH DATA RED",IF(AND(AO22="",AP22=""),"1 MONTH DATA",IF(AND(AP22=""),"2 MONTH DATA",IF(AND(AN22=AN22,AO22=AO22,AP22=AP22,U22="GREEN"),"FULL QUARTER GREEN",IF(AND(AN22=AN22,AO22=AO22,AP22=AP22,U22="RED"),"FULL QUARTER RED",))))))))) -> No Data | Z22: FALSE | AA22: FALSE
A23: Maximum 62-day wait from urgent GP referral to first definitive treatment for cancer | B23: 0.85 | D23: =CUBEVALUE("PUBLIC_CUBE","[Commissioners].[Commissioners by Area Team].[Org Name].["&$B2&"]","[Date].[Fiscal Q Hierarchy].[All].["&$A5&"].["&$D5&"]","[Cancer Selections].[Cancer Hierarchy].[Cancer Record Description].&[Treated < 62 Days - including rare cancers]","[Measures].[Actual Current Comm Cancer Percentage Treated within Target - Qtrly]") -> 0.9064327485 | R23: =IF(D23="","NA",IF(D23>=$B$23,"GREEN",IF(D23<B23,"RED"))) -> GREEN | S23: =IF(E23="","NA",IF(E23>=$B$23,"GREEN",IF(E23<B23,"RED"))) -> NA | T23: =IF(F23="","NA",IF(F23>=$B$23,"GREEN",IF(F23<B23,"RED"))) -> NA | U23: =IF(G23="","NA",IF(G23>=$B$23,"GREEN",IF(G23<B23,"RED"))) -> NA | V23: FULL QUARTER GREEN | W23: No Data | X23: No Data | Y23: No Data | Z23: FALSE | AA23: FALSE | AE23: =CUBEVALUE("PUBLIC_CUBE","[Commissioners].[Org Name].[All].["&B2&"]","[Date].[Short Month Year Label].[By Date].["&TEXT(AE6,"mmm-yy")&"]","[Measures].[Actual Current Comm Cancer Percentage Treated within Target - Qtrly]") ->  | AF23: =CUBEVALUE("PUBLIC_CUBE","[Commissioners].[Org Name].[All].["&B2&"]","[Date].[Short Month Year Label].[By Date].["&TEXT(AF6,"mmm-yy")&"]","[Measures].[Actual Current Comm Cancer Percentage Treated within Target - Qtrly]") ->  | AG23: =CUBEVALUE("PUBLIC_CUBE","[Commissioners].[Org Name].[All].["&B2&"]","[Date].[Short Month Year Label].[By Date].["&TEXT(AG6,"mmm-yy")&"]","[Measures].[Actual Current Comm Cancer Percentage Treated within Target - Qtrly]") -> 0.9380503145 | AH23: =CUBEVALUE("PUBLIC_CUBE","[Commissioners].[Org Name].[All].["&B2&"]","[Date].[Short Month Year Label].[By Date].["&TEXT(AH6,"mmm-yy")&"]","[Measures].[Actual Current Comm Cancer Percentage Treated within Target - Qtrly]") ->  | AI23: =CUBEVALUE("PUBLIC_CUBE","[Commissioners].[Org Name].[All].["&B2&"]","[Date].[Short Month Year Label].[By Date].["&TEXT(AI6,"mmm-yy")&"]","[Measures].[Actual Current Comm Cancer Percentage Treated within Target - Qtrly]") ->  | AJ23: =CUBEVALUE("PUBLIC_CUBE","[Commissioners].[Org Name].[All].["&B2&"]","[Date].[Short Month Year Label].[By Date].["&TEXT(AJ6,"mmm-yy")&"]","[Measures].[Actual Current Comm Cancer Percentage Treated within Target - Qtrly]") ->  | AK23: =CUBEVALUE("PUBLIC_CUBE","[Commissioners].[Org Name].[All].["&B2&"]","[Date].[Short Month Year Label].[By Date].["&TEXT(AK6,"mmm-yy")&"]","[Measures].[Actual Current Comm Cancer Percentage Treated within Target - Qtrly]") ->  | AL23: =CUBEVALUE("PUBLIC_CUBE","[Commissioners].[Org Name].[All].["&B2&"]","[Date].[Short Month Year Label].[By Date].["&TEXT(AL6,"mmm-yy")&"]","[Measures].[Actual Current Comm Cancer Percentage Treated within Target - Qtrly]") ->  | AM23: =CUBEVALUE("PUBLIC_CUBE","[Commissioners].[Org Name].[All].["&B2&"]","[Date].[Short Month Year Label].[By Date].["&TEXT(AM6,"mmm-yy")&"]","[Measures].[Actual Current Comm Cancer Percentage Treated within Target - Qtrly]") ->  | AN23: =CUBEVALUE("PUBLIC_CUBE","[Commissioners].[Org Name].[All].["&B2&"]","[Date].[Short Month Year Label].[By Date].["&TEXT(AN6,"mmm-yy")&"]","[Measures].[Actual Current Comm Cancer Percentage Treated within Target - Qtrly]") ->  | AO23: =CUBEVALUE("PUBLIC_CUBE","[Commissioners].[Org Name].[All].["&B2&"]","[Date].[Short Month Year Label].[By Date].["&TEXT(AO6,"mmm-yy")&"]","[Measures].[Actual Current Comm Cancer Percentage Treated within Target - Qtrly]") ->  | AP23: =CUBEVALUE("PUBLIC_CUBE","[Commissioners].[Org Name].[All].["&B2&"]","[Date].[Short Month Year Label].[By Date].["&TEXT(AP6,"mmm-yy")&"]","[Measures].[Actual Current Comm Cancer Percentage Treated within Target - Qtrly]") -> 
A24: Maximum 62-day wait from referral from an NHS screening service to first definitive treatment for all cancers | B24: 0.9 | D24: =CUBEVALUE("PUBLIC_CUBE","[Commissioners].[Commissioners by Area Team].[Org Name].["&$B2&"]","[Date].[Fiscal Q Hierarchy].[All].["&$A5&"].["&$D5&"]","[Cancer Selections].[Cancer Hierarchy].[Cancer Record Description].&[Treated <62 Days - Screening]","[Measures].[Actual Current Comm Cancer Percentage Treated within Target - Qtrly]") -> 0.9230769231 | R24: =IF(D24="","NA",IF(D24>=B24,"GREEN",IF(D24<B24,"RED"))) -> GREEN | S24: =IF(E24="","NA",IF(E24>=B24,"GREEN",IF(AND(E24<B24,E24>=C24),"AMBER",IF(E24<C24,"RED")))) -> NA | T24: =IF(F24="","NA",IF(F24>=B24,"GREEN",IF(F24<B24,"RED"))) -> NA | U24: =IF(G24="","NA",IF(G24>=B24,"GREEN",IF(G24<B24,"RED"))) -> NA | V24: =IF(AND(AE24="",AF24="",AG24=""),"No Data",IF(AND(AF24="",AG24="",R24="GREEN"),"1 MONTH DATA GREEN",IF(AND(AF24="",AG24="",R24="RED"),"1 MONTH DATA RED",IF(AND(AG24="",R24="GREEN"),"2 MONTH DATA GREEN",IF(AND(AG24="",R24="RED"),"2 MONTH DATA RED",IF(AND(AF24="",AG24=""),"1 MONTH DATA",IF(AND(AG24=""),"2 MONTH DATA",IF(AND(AE24=AE24,AF24=AF24,AG24=AG24,R24="GREEN"),"FULL QUARTER GREEN",IF(AND(AE24=AE24,AF24=AF24,AG24=AG24,R24="RED"),"FULL QUARTER RED",))))))))) -> FULL QUARTER GREEN | W24: No Data | X24: No Data | Y24: No Data | Z24: FALSE | AA24: FALSE | AE24: =CUBEVALUE("PUBLIC_CUBE","[Commissioners].[Org Name].[All].["&B2&"]","[Date].[Short Month Year Label].[By Date].["&TEXT(AE6,"mmm-yy")&"]","[Measures].[Actual Current Comm Cancer Percentage Treated within Target - Qtrly]") ->  | AF24: =CUBEVALUE("PUBLIC_CUBE","[Commissioners].[Org Name].[All].["&B2&"]","[Date].[Short Month Year Label].[By Date].["&TEXT(AF6,"mmm-yy")&"]","[Measures].[Actual Current Comm Cancer Percentage Treated within Target - Qtrly]") ->  | AG24: =CUBEVALUE("PUBLIC_CUBE","[Commissioners].[Org Name].[All].["&B2&"]","[Date].[Short Month Year Label].[By Date].["&TEXT(AG6,"mmm-yy")&"]","[Measures].[Actual Current Comm Cancer Percentage Treated within Target - Qtrly]") -> 0.9380503145 | AH24: =CUBEVALUE("PUBLIC_CUBE","[Commissioners].[Org Name].[All].["&B2&"]","[Date].[Short Month Year Label].[By Date].["&TEXT(AH6,"mmm-yy")&"]","[Measures].[Actual Current Comm Cancer Percentage Treated within Target - Qtrly]") ->  | AI24: =CUBEVALUE("PUBLIC_CUBE","[Commissioners].[Org Name].[All].["&B2&"]","[Date].[Short Month Year Label].[By Date].["&TEXT(AI6,"mmm-yy")&"]","[Measures].[Actual Current Comm Cancer Percentage Treated within Target - Qtrly]") ->  | AJ24: =CUBEVALUE("PUBLIC_CUBE","[Commissioners].[Org Name].[All].["&B2&"]","[Date].[Short Month Year Label].[By Date].["&TEXT(AJ6,"mmm-yy")&"]","[Measures].[Actual Current Comm Cancer Percentage Treated within Target - Qtrly]") ->  | AK24: =CUBEVALUE("PUBLIC_CUBE","[Commissioners].[Org Name].[All].["&B2&"]","[Date].[Short Month Year Label].[By Date].["&TEXT(AK6,"mmm-yy")&"]","[Measures].[Actual Current Comm Cancer Percentage Treated within Target - Qtrly]") ->  | AL24: =CUBEVALUE("PUBLIC_CUBE","[Commissioners].[Org Name].[All].["&B2&"]","[Date].[Short Month Year Label].[By Date].["&TEXT(AL6,"mmm-yy")&"]","[Measures].[Actual Current Comm Cancer Percentage Treated within Target - Qtrly]") ->  | AM24: =CUBEVALUE("PUBLIC_CUBE","[Commissioners].[Org Name].[All].["&B2&"]","[Date].[Short Month Year Label].[By Date].["&TEXT(AM6,"mmm-yy")&"]","[Measures].[Actual Current Comm Cancer Percentage Treated within Target - Qtrly]") ->  | AN24: =CUBEVALUE("PUBLIC_CUBE","[Commissioners].[Org Name].[All].["&B2&"]","[Date].[Short Month Year Label].[By Date].["&TEXT(AN6,"mmm-yy")&"]","[Measures].[Actual Current Comm Cancer Percentage Treated within Target - Qtrly]") ->  | AO24: =CUBEVALUE("PUBLIC_CUBE","[Commissioners].[Org Name].[All].["&B2&"]","[Date].[Short Month Year Label].[By Date].["&TEXT(AO6,"mmm-yy")&"]","[Measures].[Actual Current Comm Cancer Percentage Treated within Target - Qtrly]") ->  | AP24: =CUBEVALUE("PUBLIC_CUBE","[Commissioners].[Org Name].[All].["&B2&"]","[Date].[Short Month Year Label].[By Date].["&TEXT(AP6,"mmm-yy")&"]","[Measures].[Actual Current Comm Cancer Percentage Treated within Target - Qtrly]") -> 
A25: Maximum 62-day wait for first definitive treatment following a consultants decision to upgrade the priority of the patients (all cancers) | B25: No operational standard | D25: =IFERROR(CUBEVALUE("PUBLIC_CUBE","[Commissioners].[Commissioners by Area Team].[Org Name].["&$B2&"]","[Date].[Fiscal Q Hierarchy].[All].["&$A5&"].["&$D5&"]","[Cancer Selections].[Cancer Hierarchy].[Cancer Record Description].&[Treated <62 Days - Consultant Upgrade]","[Measures].[Actual Current Comm Cancer Percentage Treated within Target - Qtrly]"),"") -> 0.9175257732 | V25: No Data | W25: No Data | X25: No Data | Y25: No Data | Z25: FALSE | AA25: FALSE
A26: Mixed-Sex Accommodation | Z26: FALSE | AA26: FALSE
A27: Breaches of Mixed-Sex Accommodation | B27: 0 | D27: =IFERROR(CUBEVALUE("PUBLIC_CUBE","[Commissioners].[Org Name].[All].["&B2&"]","[Date].[Fiscal Q Hierarchy].[All].["&$A5&"].["&$D5&"]","[Measures].[Mixed Sex Breaches]")*1,0) -> 0 | R27: =IF(D27="","GREEN",IF(D27=B27,"GREEN",IF(D27>B27,"RED"))) -> GREEN | S27: =IF(E27="","",IF(E27=B27,"GREEN",IF(E27>B5,"RED"))) ->  | T27: =IF(F27="","",IF(F27=B27,"GREEN",IF(F27>B27,"RED"))) ->  | U27: =IF(G27="","",IF(G27=B27,"GREEN",IF(G27>B27,"RED"))) ->  | V27: FULL QUARTER GREEN | W27: 2 MONTH DATA | X27: 0 | Y27: 0 | Z27: FALSE | AA27: FALSE | AE27: =IFERROR(CUBEVALUE("PUBLIC_CUBE","[Commissioners].[Org Name].[All].["&B2&"]","[Date].[Short Month Year Label].[By Date].["&TEXT(AE6,"mmm-yy")&"]","[Measures].[Mixed Sex Breaches]","[Dim Data Status].[Data Status Hierarchy].[All].[PUBLIC]")*1,0) -> 0 | AF27: =IFERROR(CUBEVALUE("PUBLIC_CUBE","[Commissioners].[Org Name].[All].["&B2&"]","[Date].[Short Month Year Label].[By Date].["&TEXT(AF6,"mmm-yy")&"]","[Measures].[Mixed Sex Breaches]","[Dim Data Status].[Data Status Hierarchy].[All].[PUBLIC]")*1,0) -> 0 | AG27: =IFERROR(CUBEVALUE("PUBLIC_CUBE","[Commissioners].[Org Name].[All].["&B2&"]","[Date].[Short Month Year Label].[By Date].["&TEXT(AG6,"mmm-yy")&"]","[Measures].[Mixed Sex Breaches]","[Dim Data Status].[Data Status Hierarchy].[All].[PUBLIC]")*1,0) -> 0 | AH27: =IFERROR(CUBEVALUE("PUBLIC_CUBE","[Commissioners].[Org Name].[All].["&B2&"]","[Date].[Short Month Year Label].[By Date].["&TEXT(AH6,"mmm-yy")&"]","[Measures].[Mixed Sex Breaches]","[Dim Data Status].[Data Status Hierarchy].[All].[PUBLIC]")*1,0) -> 0 | AI27: =IFERROR(CUBEVALUE("PUBLIC_CUBE","[Commissioners].[Org Name].[All].["&B2&"]","[Date].[Short Month Year Label].[By Date].["&TEXT(AI6,"mmm-yy")&"]","[Measures].[Mixed Sex Breaches]","[Dim Data Status].[Data Status Hierarchy].[All].[PUBLIC]")*1,0) -> 0 | AJ27: =CUBEVALUE("PUBLIC_CUBE","[Commissioners].[Org Name].[All].["&B2&"]","[Date].[Short Month Year Label].[By Date].["&TEXT(AJ6,"mmm-yy")&"]","[Measures].[Mixed Sex Breaches]","[Dim Data Status].[Data Status Hierarchy].[All].[PUBLIC]") ->  | AK27: =IFERROR(CUBEVALUE("PUBLIC_CUBE","[Commissioners].[Org Name].[All].["&B2&"]","[Date].[Short Month Year Label].[By Date].["&TEXT(AK6,"mmm-yy")&"]","[Measures].[Mixed Sex Breaches]","[Dim Data Status].[Data Status Hierarchy].[All].[PUBLIC]")*1,0) -> 0 | AL27: =IFERROR(CUBEVALUE("PUBLIC_CUBE","[Commissioners].[Org Name].[All].["&B2&"]","[Date].[Short Month Year Label].[By Date].["&TEXT(AL6,"mmm-yy")&"]","[Measures].[Mixed Sex Breaches]","[Dim Data Status].[Data Status Hierarchy].[All].[PUBLIC]")*1,0) -> 0 | AM27: =IFERROR(CUBEVALUE("PUBLIC_CUBE","[Commissioners].[Org Name].[All].["&B2&"]","[Date].[Short Month Year Label].[By Date].["&TEXT(AM6,"mmm-yy")&"]","[Measures].[Mixed Sex Breaches]","[Dim Data Status].[Data Status Hierarchy].[All].[PUBLIC]")*1,0) -> 0 | AN27: =IFERROR(CUBEVALUE("PUBLIC_CUBE","[Commissioners].[Org Name].[All].["&B2&"]","[Date].[Short Month Year Label].[By Date].["&TEXT(AN6,"mmm-yy")&"]","[Measures].[Mixed Sex Breaches]","[Dim Data Status].[Data Status Hierarchy].[All].[PUBLIC]")*1,0) -> 0 | AO27: =IFERROR(CUBEVALUE("PUBLIC_CUBE","[Commissioners].[Org Name].[All].["&B2&"]","[Date].[Short Month Year Label].[By Date].["&TEXT(AO6,"mmm-yy")&"]","[Measures].[Mixed Sex Breaches]","[Dim Data Status].[Data Status Hierarchy].[All].[PUBLIC]")*1,0) -> 0 | AP27: =IFERROR(CUBEVALUE("PUBLIC_CUBE","[Commissioners].[Org Name].[All].["&B2&"]","[Date].[Short Month Year Label].[By Date].["&TEXT(AP6,"mmm-yy")&"]","[Measures].[Mixed Sex Breaches]","[Dim Data Status].[Data Status Hierarchy].[All].[PUBLIC]")*1,0) -> 0
A28: Mental Health | Z28: FALSE | AA28: FALSE
A29: Care Programme Approach (CPA): The proportion of people under adult mental illness specialities on CPA who were followed up within 7 days of discharge from psychiatric inpatient care during the period | B29: 0.95 | D29: =IFERROR(CUBEVALUE("PUBLIC_CUBE","[Commissioners].[Org Name].["&B2&"]","[Date].[Fiscal Q Hierarchy].[All].["&$A5&"].["&$D5&"]", "[Measures].[CPA Percentage Follow up in 7 days]"),"") -> 0.9692307692 | R29: =IF(D29="","NA",IF(D29>=B29,"GREEN",IF(D29<B29,"RED"))) -> GREEN | S29: =IF(E29="","NA",IF(E29>=B29,"GREEN",IF(E29<B29,"RED"))) -> NA | T29: =IF(F29="","NA",IF(F29>=B29,"GREEN",IF(F29<B29,"RED"))) -> NA | U29: =IF(G29="","NA",IF(G29>=B29,"GREEN",IF(G29<B29,"RED"))) -> NA | V29: =IF(AND(AE29="",AF29="",AG29=""),"No Data",IF(AND(AF29="",AG29="",R29="GREEN"),"1 MONTH DATA GREEN",IF(AND(AF29="",AG29="",R29="RED"),"1 MONTH DATA RED",IF(AND(AG29="",R29="GREEN"),"2 MONTH DATA GREEN",IF(AND(AG29="",R29="RED"),"2 MONTH DATA RED",IF(AND(AF29="",AG29=""),"1 MONTH DATA",IF(AND(AG29=""),"2 MONTH DATA",IF(AND(AE29=AE29,AF29=AF29,AG29=AG29,R29="GREEN"),"FULL QUARTER GREEN",IF(AND(AE29=AE29,AF29=AF29,AG29=AG29,R29="RED"),"FULL QUARTER RED",))))))))) -> No Data | W29: =IF(AND(AH29="",AI29="",AJ29=""),"No Data",IF(AND(AI29="",AJ29="",S29="GREEN"),"1 MONTH DATA GREEN",IF(AND(AI29="",AJ29="",S29="RED"),"1 MONTH DATA RED",IF(AND(AJ29="",S29="GREEN"),"2 MONTH DATA GREEN",IF(AND(AJ29="",S29="RED"),"2 MONTH DATA RED",IF(AND(AI29="",AJ29=""),"1 MONTH DATA",IF(AND(AJ29=""),"2 MONTH DATA",IF(AND(AH29=AH29,AI29=AI29,AJ29=AJ29,S29="GREEN"),"FULL QUARTER GREEN",IF(AND(AH29=AH29,AI29=AI29,AJ29=AJ29,S29="RED"),"FULL QUARTER RED",))))))))) -> No Data | X29: =IF(AND(AK29="",AL29="",AM29=""),"No Data",IF(AND(AL29="",AM29="",T29="GREEN"),"1 MONTH DATA GREEN",IF(AND(AL29="",AM29="",T29="RED"),"1 MONTH DATA RED",IF(AND(AM29="",T29="GREEN"),"2 MONTH DATA GREEN",IF(AND(AM29="",T29="RED"),"2 MONTH DATA RED",IF(AND(AL29="",AM29=""),"1 MONTH DATA",IF(AND(AM29=""),"2 MONTH DATA",IF(AND(AK29=AK29,AL29=AL29,AM29=AM29,T29="GREEN"),"FULL QUARTER GREEN",IF(AND(AK29=AK29,AL29=AL29,AM29=AM29,T29="RED"),"FULL QUARTER RED",))))))))) -> No Data | Y29: =IF(AND(AN29="",AO29="",AP29=""),"No Data",IF(AND(AO29="",AP29="",U29="GREEN"),"1 MONTH DATA GREEN",IF(AND(AO29="",AP29="",U29="RED"),"1 MONTH DATA RED",IF(AND(AP29="",U29="GREEN"),"2 MONTH DATA GREEN",IF(AND(AP29="",U29="RED"),"2 MONTH DATA RED",IF(AND(AO29="",AP29=""),"1 MONTH DATA",IF(AND(AP29=""),"2 MONTH DATA",IF(AND(AN29=AN29,AO29=AO29,AP29=AP29,U29="GREEN"),"FULL QUARTER GREEN",IF(AND(AN29=AN29,AO29=AO29,AP29=AP29,U29="RED"),"FULL QUARTER RED",))))))))) -> No Data | Z29: FALSE | AA29: FALSE | AE29: =IFERROR(CUBEVALUE("PUBLIC_CUBE","[Commissioners].[Org Name].[All].["&#REF!&"]","[Date].[Short Month Year Label].[By Date].["&TEXT(AE6,"mmm-yy")&"]","[Measures].[CPA Percentage Follow up in 7 days]",CUBESET("PUBLIC_CUBE","[Dim Data Status].[Data Status Hierarchy].[All].[PUBLIC]")),"") ->  | AF29: =IFERROR(CUBEVALUE("PUBLIC_CUBE","[Commissioners].[Org Name].[All].["&#REF!&"]","[Date].[Short Month Year Label].[By Date].["&TEXT(AF6,"mmm-yy")&"]","[Measures].[CPA Percentage Follow up in 7 days]",CUBESET("PUBLIC_CUBE","[Dim Data Status].[Data Status Hierarchy].[All].[PUBLIC]")),"") ->  | AG29: =IFERROR(CUBEVALUE("PUBLIC_CUBE","[Commissioners].[Org Name].[All].["&#REF!&"]","[Date].[Short Month Year Label].[By Date].["&TEXT(AG6,"mmm-yy")&"]","[Measures].[CPA Percentage Follow up in 7 days]",CUBESET("PUBLIC_CUBE","[Dim Data Status].[Data Status Hierarchy].[All].[PUBLIC]")),"") ->  | AH29: =IFERROR(CUBEVALUE("PUBLIC_CUBE","[Commissioners].[Org Name].[All].["&#REF!&"]","[Date].[Short Month Year Label].[By Date].["&TEXT(AH6,"mmm-yy")&"]","[Measures].[CPA Percentage Follow up in 7 days]",CUBESET("PUBLIC_CUBE","[Dim Data Status].[Data Status Hierarchy].[All].[PUBLIC]")),"") ->  | AI29: =IFERROR(CUBEVALUE("PUBLIC_CUBE","[Commissioners].[Org Name].[All].["&#REF!&"]","[Date].[Short Month Year Label].[By Date].["&TEXT(AI6,"mmm-yy")&"]","[Measures].[CPA Percentage Follow up in 7 days]",CUBESET("PUBLIC_CUBE","[Dim Data Status].[Data Status Hierarchy].[All].[PUBLIC]")),"") ->  | AJ29: =IFERROR(CUBEVALUE("PUBLIC_CUBE","[Commissioners].[Org Name].[All].["&#REF!&"]","[Date].[Short Month Year Label].[By Date].["&TEXT(AJ6,"mmm-yy")&"]","[Measures].[CPA Percentage Follow up in 7 days]",CUBESET("PUBLIC_CUBE","[Dim Data Status].[Data Status Hierarchy].[All].[PUBLIC]")),"") ->  | AK29: =IFERROR(CUBEVALUE("PUBLIC_CUBE","[Commissioners].[Org Name].[All].["&#REF!&"]","[Date].[Short Month Year Label].[By Date].["&TEXT(AK6,"mmm-yy")&"]","[Measures].[CPA Percentage Follow up in 7 days]",CUBESET("PUBLIC_CUBE","[Dim Data Status].[Data Status Hierarchy].[All].[PUBLIC]")),"") ->  | AL29: =IFERROR(CUBEVALUE("PUBLIC_CUBE","[Commissioners].[Org Name].[All].["&#REF!&"]","[Date].[Short Month Year Label].[By Date].["&TEXT(AL6,"mmm-yy")&"]","[Measures].[CPA Percentage Follow up in 7 days]",CUBESET("PUBLIC_CUBE","[Dim Data Status].[Data Status Hierarchy].[All].[PUBLIC]")),"") ->  | AM29: =IFERROR(CUBEVALUE("PUBLIC_CUBE","[Commissioners].[Org Name].[All].["&#REF!&"]","[Date].[Short Month Year Label].[By Date].["&TEXT(AM6,"mmm-yy")&"]","[Measures].[CPA Percentage Follow up in 7 days]",CUBESET("PUBLIC_CUBE","[Dim Data Status].[Data Status Hierarchy].[All].[PUBLIC]")),"") ->  | AN29: =IFERROR(CUBEVALUE("PUBLIC_CUBE","[Commissioners].[Org Name].[All].["&#REF!&"]","[Date].[Short Month Year Label].[By Date].["&TEXT(AN6,"mmm-yy")&"]","[Measures].[CPA Percentage Follow up in 7 days]",CUBESET("PUBLIC_CUBE","[Dim Data Status].[Data Status Hierarchy].[All].[PUBLIC]")),"") ->  | AO29: =IFERROR(CUBEVALUE("PUBLIC_CUBE","[Commissioners].[Org Name].[All].["&#REF!&"]","[Date].[Short Month Year Label].[By Date].["&TEXT(AO6,"mmm-yy")&"]","[Measures].[CPA Percentage Follow up in 7 days]",CUBESET("PUBLIC_CUBE","[Dim Data Status].[Data Status Hierarchy].[All].[PUBLIC]")),"") ->  | AP29: =IFERROR(CUBEVALUE("PUBLIC_CUBE","[Commissioners].[Org Name].[All].["&#REF!&"]","[Date].[Short Month Year Label].[By Date].["&TEXT(AP6,"mmm-yy")&"]","[Measures].[CPA Percentage Follow up in 7 days]",CUBESET("PUBLIC_CUBE","[Dim Data Status].[Data Status Hierarchy].[All].[PUBLIC]")),"") -> 
A33: PROVIDER BASED INDICATORS | B33: OPERATIONAL STANDARD | D33: QUARTER 1 PERFORMANCE | E33: QUARTER 2 PERFORMANCE | F33: QUARTER 3 PERFORMANCE | G33: QUARTER 4 PERFORMANCE
F34: =VLOOKUP('COVER PAGE'!$A$3,Lookup!$A:$H,7,FALSE) -> Yrkshr Amblnce | G34: =VLOOKUP('COVER PAGE'!$A$3,Lookup!$A:$H,8,FALSE) -> YORKSHIRE AMBULANCE SERVICE NHS TRUST | AE34: April | AI34: May | AM34: June | AR34: July | AV34: August | AZ34: September | BE34: October | BI34: November | BM34: December | BR34: January | BV34: February | BZ34: March
AE35: 2014-04-06 | AF35: =AE35+7 -> 2014-04-13 | AG35: =AF35+7 -> 2014-04-20 | AH35: =AG35+7 -> 2014-04-27 | AI35: =AH35+7 -> 2014-05-04 | AJ35: =AI35+7 -> 2014-05-11 | AK35: 2014-05-18 | AL35: 2014-05-25 | AM35: 2014-06-01 | AN35: 2014-06-08 | AO35: 2014-06-15 | AP35: 2014-06-22 | AQ35: 2014-06-29 | AR35: 2014-07-06 | AS35: 2014-07-13 | AT35: 2014-07-20 | AU35: 2014-07-27 | AV35: 2014-08-03 | AW35: 2014-08-10 | AX35: 2014-08-17 | AY35: 2014-08-24 | AZ35: 2014-08-31 | BA35: 2014-09-07 | BB35: 2014-09-14 | BC35: 2014-09-21 | BD35: 2014-09-28 | BE35: 2014-10-05 | BF35: 2014-10-12 | BG35: 2014-10-19 | BH35: 2014-10-26 | BI35: 2014-11-02 | BJ35: 2014-11-09 | BK35: 2014-11-16 | BL35: 2014-11-23 | BM35: 2014-11-30 | BN35: 2014-12-07 | BO35: 2014-12-14 | BP35: 2014-12-21 | BQ35: 2014-12-28 | BR35: 2015-01-04 | BS35: 2015-01-11 | BT35: 2015-01-18 | BU35: 2015-01-25 | BV35: 2015-02-01 | BW35: 2015-02-08 | BX35: 2015-02-15 | BY35: 2015-02-22 | BZ35: 2015-03-01 | CA35: 2015-03-08 | CB35: 2015-03-15 | CC35: 2015-03-22 | CD35: 2015-03-29
A36: A & E waits - Patients admitted, transferred or discharged within 4 hours of their arrival at an A & E department
A37: =IFERROR(VLOOKUP($B$2,'TOP 3 PROVIDER LIST'!$B:$S,10,FALSE),"") -> THE ROTHERHAM NHS FOUNDATION TRUST | B37: 0.95 | D37: =IFERROR(CUBEVALUE("PUBLIC_CUBE","[Providers].[Org Name].["&A37&"]","[Date].[Sitrep Qtr Hierarchy].[All].["&$A$5&"].["&$I$7&"]","[Measures].[Actual Current A+E All Types Percentage within 4 Hrs] "),"") -> 0.9551397078 | I37: 99.99 % | R37: =IF(D37="","NA",IF(D37>=B37,"GREEN",IF(D37<B37,"RED"))) -> GREEN | S37: =IF(E37="","NA",IF(E37>=B37,"GREEN",IF(E37<B37,"RED"))) -> NA | T37: =IF(F37="","NA",IF(F37>=B37,"GREEN",IF(F37<B37,"RED"))) -> NA | U37: =IF(G37="","NA",IF(G37>=B37,"GREEN",IF(G37<B37,"RED"))) -> NA | V37: =IF(AND(AE37="",AF37="",AG37="",AH37="",AI37="",AJ37="",AK37="",AL37="",AM37="",AN37="",AO37="",AP37="",AQ37=""),"No Data",IF(AND(AF37="",AG37="",R37="GREEN"),"1 MONTH DATA GREEN",IF(AND(AF37="",AG37="",R37="RED"),"1 MONTH DATA RED",IF(AND(AG37="",R37="GREEN"),"2 MONTH DATA GREEN",IF(AND(AG37="",R37="RED"),"2 MONTH DATA RED",IF(AND(AF37="",AG37=""),"1 MONTH DATA",IF(AND(AG37=""),"2 MONTH DATA",IF(AND(AE37=AE37,AF37=AF37,AG37=AG37,R37="GREEN"),"FULL QUARTER GREEN",IF(AND(AE37=AE37,AF37=AF37,AG37=AG37,R37="RED"),"FULL QUARTER RED",))))))))) -> FULL QUARTER GREEN | Z37: =IF(V37 ="GREEN",1,IF(V37 ="AMBER",2,IF(V37 ="RED",3))) -> FALSE | AA37: =IF(W37 ="GREEN",1,IF(W37 ="AMBER",2,IF(W37 ="RED",3,IF(W37 =" "," ")))) -> FALSE | AE37: =IFERROR(CUBEVALUE("PUBLIC_CUBE","[Providers].[Org Name].["&$A$37&"]","[Date].[Sitrep Week Hierarchy].[All].[2014-15].[w-e "&TEXT(AE35,"dd mmm yy")&"]","[Measures].[Actual Current A+E All Types Percentage within 4 Hrs] "),"") -> 0.9364435429 | AF37: 0.9334229993 | AG37: 0.9886039886 | AH37: 0.9111111111 | AI37: 0.9507422402 | AJ37: 0.9253028264 | AK37: 0.9681787407 | AL37: 0.9484808454 | AM37: 0.9533333333 | AN37: 0.9494007989 | AO37: 0.9834355828 | AP37: 0.9759949463 | AQ37: 0.9881656805 | AR37: 0.9701017812 | AS37: 0.9604449938 | AT37: 0.9710610932 | AU37: 0.9725310661 | AV37: 0.9680781759 | AW37: 0.9165535957 | AX37: 0.9463519313 | BK37: =IFERROR(CUBEVALUE("PUBLIC_CUBE","[Providers].[Org Name].["&$A$37&"]","[Date].[Sitrep Week Hierarchy].[All].[2014-15].[w-e "&TEXT(BK35,"dd mmm yy")&"]","[Measures].[Actual Current A+E All Types Percentage within 4 Hrs] "),"") -> 
A38: =IFERROR(VLOOKUP($B$2,'TOP 3 PROVIDER LIST'!$B:$S,12,FALSE),"") -> DONCASTER AND BASSETLAW HOSPITALS NHS FOUNDATION TRUST | B38: =IF(A38="CARE UK","NO DATA FOR CURRENT QUATER",IF(A38="SIRONA CARE & HEALTH","NO DATA FOR CURRENT QUATER",IF(A38="VIRGIN CARE SERVICES LTD","NO DATA FOR CURRENT QUATER",IF(A38="ANGLIAN COMMUNITY ENTERPRISE COMMUNITY INTEREST COMPANY (ACE CIC) (NQ1)","NO DATA FOR CURRENT QUATER",IF(A38="CITY HEALTH CARE PARTNERSHIP CIC","NO DATA FOR CURRENT QUATER",IF(A38="ASSURA LEA VALLEY LLP","NO DATA FOR CURRENT QUATER",IF(A38="","","95%"))))))) -> 95% | D38: =IFERROR(CUBEVALUE("PUBLIC_CUBE","[Providers].[Org Name].["&A38&"]","[Date].[Sitrep Qtr Hierarchy].[All].["&$A$5&"].["&$I$7&"]","[Measures].[Actual Current A+E All Types Percentage within 4 Hrs] "),"") -> 0.9463024331 | H38: =IFERROR(CUBEVALUE("PUBLIC_CUBE","[Providers].[Org Name].["&H37&"]","[Date].[Sitrep Qtr Hierarchy].[All].["&$A$5&"].["&$I$7&"]","[Measures].[Actual Current A+E All Types Percentage within 4 Hrs] "),"") ->  | I38: =IFERROR(VLOOKUP('COVER PAGE'!$A$4,#REF!,8,FALSE),"") ->  | R38: =IF(D38="","NA",IF(D38>=95%,"GREEN",IF(D38<95%,"RED"))) -> RED | S38: NA | T38: NA | U38: NA | Z38: FALSE | AA38: FALSE | AE38: =IFERROR(CUBEVALUE("PUBLIC_CUBE","[Providers].[Org Name].["&$A$38&"]","[Date].[Sitrep Week Hierarchy].[All].[2014-15].[w-e "&TEXT(AE35,"dd mmm yy")&"]","[Measures].[Actual Current A+E All Types Percentage within 4 Hrs] "),"") -> 0.9508383063 | AF38: 0.9658753709 | AG38: 0.9732431638 | AH38: 0.9484942302 | AI38: 0.9492671928 | AJ38: 0.9601880011 | AK38: 0.9503311258 | AL38: 0.9537556803 | AM38: 0.9507531866 | AN38: 0.9320332664 | AO38: 0.9320797081 | AP38: 0.9319942611 | AQ38: 0.9036488027 | AR38: 0.8795782464 | AS38: 0.8928870293 | AT38: 0.9212976023 | AU38: 0.9553493766 | AV38: 0.9072446196 | AW38: 0.9093740268 | AX38: 0.9503942181 | BK38: =IFERROR(CUBEVALUE("PUBLIC_CUBE","[Providers].[Org Name].["&$A$38&"]","[Date].[Sitrep Week Hierarchy].[All].[2014-15].[w-e "&TEXT(BK35,"dd mmm yy")&"]","[Measures].[Actual Current A+E All Types Percentage within 4 Hrs] "),"") -> 
A39: =IFERROR(VLOOKUP($B$2,'TOP 3 PROVIDER LIST'!$B:$S,14,FALSE),"") -> SHEFFIELD TEACHING HOSPITALS NHS FOUNDATION TRUST | B39: =IF(A39="CARE UK","NO DATA FOR CURRENT QUATER",IF(A39="SIRONA CARE & HEALTH","NO DATA FOR CURRENT QUATER",IF(A39="VIRGIN CARE SERVICES LTD","NO DATA FOR CURRENT QUATER",IF(A39="ANGLIAN COMMUNITY ENTERPRISE COMMUNITY INTEREST COMPANY (ACE CIC) (NQ1)","NO DATA FOR CURRENT QUATER",IF(A39="CITY HEALTH CARE PARTNERSHIP CIC","NO DATA FOR CURRENT QUATER",IF(A39="ASSURA LEA VALLEY LLP","NO DATA FOR CURRENT QUATER",IF(A39="","","95%"))))))) -> 95% | D39: =IFERROR(CUBEVALUE("PUBLIC_CUBE","[Providers].[Org Name].["&A39&"]","[Date].[Sitrep Qtr Hierarchy].[All].["&$A$5&"].["&$I$7&"]","[Measures].[Actual Current A+E All Types Percentage within 4 Hrs] "),"") -> 0.9587780254 | I39: =IFERROR(VLOOKUP('COVER PAGE'!$A$4,#REF!,9,FALSE),"") ->  | R39: =IF(D39="","NA",IF(D39>=95%,"GREEN",IF(D39<95%,"RED"))) -> GREEN | S39: NA | T39: NA | U39: NA | Z39: FALSE | AA39: FALSE | AE39: =IFERROR(CUBEVALUE("PUBLIC_CUBE","[Providers].[Org Name].["&$A$39&"]","[Date].[Sitrep Week Hierarchy].[All].[2014-15].[w-e "&TEXT(AE35,"dd mmm yy")&"]","[Measures].[Actual Current A+E All Types Percentage within 4 Hrs] "),"") -> 0.9795570698 | AF39: 0.9748555895 | AG39: 0.9851694915 | AH39: 0.9414462081 | AI39: 0.9563944029 | AJ39: 0.9761010584 | AK39: 0.9419703104 | AL39: 0.9194480103 | AM39: 0.9469476744 | AN39: 0.9669794925 | AO39: 0.9538409704 | AP39: 0.9609218437 | AQ39: 0.9629756599 | AR39: 0.9550052319 | AS39: 0.9549934297 | AT39: 0.9514529915 | AU39: 0.9411184211 | AV39: 0.9161575017 | AW39: 0.9747666782 | AX39: 0.9820473644 | BK39: =IFERROR(CUBEVALUE("PUBLIC_CUBE","[Providers].[Org Name].["&$A$39&"]","[Date].[Sitrep Week Hierarchy].[All].[2014-15].[w-e "&TEXT(BK35,"dd mmm yy")&"]","[Measures].[Actual Current A+E All Types Percentage within 4 Hrs] "),"") -> 
A40: Category A Ambulance Calls | D40: =G4 -> YORKSHIRE AMBULANCE SERVICE NHS TRUST
A41: Category A calls resulting in an emergency response arriving within 8 minutes (Red 1) | B41: =IF(A41="","","75%") -> 75% | D41: =CUBEVALUE("PUBLIC_CUBE","[Providers].[Org Short Name].["&F4&"]","[Date].[Fiscal Q Hierarchy].[All].["&$A5&"].["&$D5&"]", "[Measures].[Percentage Red1 Responded To Within 8 Minutes]") -> 0.6910502656 | R41: =IF(D41="","NA",IF(D41>=75%,"GREEN",IF(D41<75%,"RED"))) -> RED | S41: =IF(E41="","NA",IF(E41>=B41,"GREEN",IF(E41<B41,"RED"))) -> NA | T41: =IF(F41="","NA",IF(F41>=B41,"GREEN",IF(F41<B41,"RED"))) -> NA | U41: =IF(G41="","NA",IF(G41>=B41,"GREEN",IF(G41<B41,"RED"))) -> NA | Z41: FALSE | AA41: FALSE | AE41: =IFERROR(CUBEVALUE("PUBLIC_CUBE","[Providers].[Org Name]","["&$F$4&"]","[Date].[Short Month Year Label].[By Date].["&TEXT(AE6,"mmm-yy")&"]","[Measures].[Percentage Red1 Responded To Within 8 Minutes]",CUBESET("PUBLIC_CUBE","[Dim Data Status].[Data Status Hierarchy].[All].[PUBLIC]","Public data only")),) -> 0.6977777778 | AF41: 0.6957047792 | AG41: 0.6800720288
A42: Category A calls resulting in an emergency response arriving within 8 minutes (Red 2) | B42: =IF(A42="","","75%") -> 75% | D42: =CUBEVALUE("PUBLIC_CUBE","[Providers].[Org Short Name].["&F4&"]","[Date].[Fiscal Q Hierarchy].[All].["&$A5&"].["&$D5&"]","[Measures].[Percentage Red2 Responded To Within 8 Minutes]") -> 0.6949540952 | R42: =IF(D42="","NA",IF(D42>=75%,"GREEN",IF(D42<75%,"RED"))) -> RED | S42: =IF(E42="","NA",IF(E42>=B42,"GREEN",IF(E42<B42,"RED"))) -> NA | T42: =IF(F42="","NA",IF(F42>=B42,"GREEN",IF(F42<B42,"RED"))) -> NA | U42: =IF(G42="","NA",IF(G42>=B42,"GREEN",IF(G42<B42,"RED"))) -> NA | Z42: =IF(V42 ="GREEN",1,IF(V42 ="AMBER",2,IF(V42 ="RED",3))) -> FALSE | AA42: =IF(W42 ="GREEN",1,IF(W42 ="AMBER",2,IF(W42 ="RED",3,IF(W42 =" "," ")))) -> FALSE | AE42: =IFERROR(CUBEVALUE("PUBLIC_CUBE","[Providers].[Org Name]","["&$F$4&"]","[Date].[Short Month Year Label].[By Date].["&TEXT(AE6,"mmm-yy")&"]","[Measures].[Percentage Red2 Responded To Within 8 Minutes]",CUBESET("PUBLIC_CUBE","[Dim Data Status].[Data Status Hierarchy].[All].[PUBLIC]","Public data only")),) -> 0.7064607991 | AF42: 0.6945369753 | AG42: 0.6838847575
A43: Category A calls resulting in an ambulance arriving at the scene within 19 minutes | B43: =IF(A43="","","95%") -> 95% | D43: =CUBEVALUE("PUBLIC_CUBE","[Providers].[Org Short Name].["&F4&"]","[Date].[Fiscal Q Hierarchy].[All].["&$A5&"].["&$D5&"]","[Measures].[Percentage Responded To Within 19 Minutes]") -> 0.9587686213 | R43: =IF(D43="","NA",IF(D43>=95%,"GREEN",IF(D43<95%,"RED"))) -> GREEN | S43: NA | T43: NA | U43: NA | Z43: FALSE | AA43: FALSE | AE43: =IFERROR(CUBEVALUE("PUBLIC_CUBE","[Providers].[Org Name]","["&$F$4&"]","[Date].[Short Month Year Label].[By Date].["&TEXT(AE6,"mmm-yy")&"]","[Measures].[Percentage Responded To Within 19 Minutes]",CUBESET("PUBLIC_CUBE","[Dim Data Status].[Data Status Hierarchy].[All].[PUBLIC]","Public data only")),) -> 0.961855928 | AF43: 0.9590259892 | AG43: 0.9554208866
A44: Cancelled Elective Operations: Number of urgent operations that are cancelled by the trust for non-clinical reasons, which have already been previously cancelled once for non-clinical reasons.
A45: =IFERROR(VLOOKUP($B$2,'TOP 3 PROVIDER LIST'!$B:$S,2,FALSE),"") -> THE ROTHERHAM NHS FOUNDATION TRUST | B45: =IF(A45="","","No operational standard") -> No operational standard | D45: =IFERROR(CUBEVALUE("PUBLIC_CUBE","[Providers].[Org Name].["&A45&"]","[Date].[Fiscal Q Hierarchy].[All].["&$A$5&"].["&$D$5&"]","[Measures].[Breaches Of Standard]"),"") -> 0 | I45: =IFERROR(VLOOKUP('COVER PAGE'!$A$4,#REF!,3,FALSE),"") ->  | R45: =IF(D45="","NA",IF(D45>=B45,"GREEN",IF(D45<B45,"RED"))) -> RED | S45: =IF(E45="","NA",IF(E45>=B45,"GREEN",IF(E45<B45,"RED"))) -> NA | T45: =IF(F45="","NA",IF(F45>=B45,"GREEN",IF(F45<B45,"RED"))) -> NA | U45: =IF(G45="","NA",IF(G45>=B45,"GREEN",IF(G45<B45,"RED"))) -> NA | Z45: FALSE | AA45: FALSE
A46: =IFERROR(VLOOKUP($B$2,'TOP 3 PROVIDER LIST'!$B:$S,4,FALSE),"") -> SHEFFIELD TEACHING HOSPITALS NHS FOUNDATION TRUST | B46: =IF(A46="","","No operational standard") -> No operational standard | D46: =IFERROR(CUBEVALUE("PUBLIC_CUBE","[Providers].[Org Name].["&A46&"]","[Date].[Fiscal Q Hierarchy].[All].["&$A$5&"].["&$D$5&"]","[Measures].[Breaches Of Standard]"),"") -> 8 | I46: =IFERROR(VLOOKUP('COVER PAGE'!$A$4,#REF!,4,FALSE),"") -> 
A47: =IFERROR(VLOOKUP($B$2,'TOP 3 PROVIDER LIST'!$B:$S,6,FALSE),"") ->  | B47: =IF(A47="","","No operational standard") ->  | D47: =IFERROR(CUBEVALUE("PUBLIC_CUBE","[Providers].[Org Name].["&A47&"]","[Date].[Fiscal Q Hierarchy].[All].["&$A$5&"].["&$D$5&"]","[Measures].[Breaches Of Standard]"),"") ->  | I47: =IFERROR(VLOOKUP('COVER PAGE'!$A$4,#REF!,5,FALSE),"") -> 
A94: INDICATOR RED | B94: INDICATOR AMBER | C94: TOTAL INDICATOR
A95: =IF(ISERROR(INDEX(A8:G8,MATCH("RED",W8,FALSE),1)),"",INDEX(A8:G8,MATCH("RED",W8,FALSE),1)) ->  | C95: =A95 -> 
A96: =IF(ISERROR(INDEX(A9:G9,MATCH("RED",W9,FALSE),1)),"",INDEX(A9:G9,MATCH("RED",W9,FALSE),1)) ->  | C96: =A96 -> 
A97: =IF(ISERROR(INDEX(A10:G10,MATCH("RED",W10,FALSE),1)),"",INDEX(A10:G10,MATCH("RED",W10,FALSE),1)) -> 
A98: =IF(ISERROR(INDEX(A11:G11,MATCH("RED",W11,FALSE),1)),"",INDEX(A11:G11,MATCH("RED",W11,FALSE),1)) -> 
A99: =IF(ISERROR(INDEX(A13:G13,MATCH("RED",W13,FALSE),1)),"",INDEX(A13:G13,MATCH("RED",W13,FALSE),1)) -> 
A100: =IF(ISERROR(INDEX(#REF!,MATCH("RED",#REF!,FALSE),1)),"",INDEX(#REF!,MATCH("RED",#REF!,FALSE),1)) ->  | C100: =A100 -> 
A101: =IF(ISERROR(INDEX(#REF!,MATCH("RED",#REF!,FALSE),1)),"",INDEX(#REF!,MATCH("RED",#REF!,FALSE),1)) -> 
A102: =IF(ISERROR(INDEX(#REF!,MATCH("RED",#REF!,FALSE),1)),"",INDEX(#REF!,MATCH("RED",#REF!,FALSE),1)) -> 
A103: =IF(ISERROR(INDEX(A15:G15,MATCH("RED",W15,FALSE),1)),"",INDEX(A15:G15,MATCH("RED",W15,FALSE),1)) -> 
A104: =IF(ISERROR(INDEX(A16:G16,MATCH("RED",W16,FALSE),1)),"",INDEX(A16:G16,MATCH("RED",W16,FALSE),1)) -> 
A105: =IF(ISERROR(INDEX(A18:G18,MATCH("RED",W18,FALSE),1)),"",INDEX(A18:G18,MATCH("RED",W18,FALSE),1)) -> 
A106: =IF(ISERROR(INDEX(A19:G19,MATCH("RED",W19,FALSE),1)),"",INDEX(A19:G19,MATCH("RED",W19,FALSE),1)) -> 
A107: =IF(ISERROR(INDEX(A20:G20,MATCH("RED",W20,FALSE),1)),"",INDEX(A20:G20,MATCH("RED",W20,FALSE),1)) -> 
A108: =IF(ISERROR(INDEX(A21:G21,MATCH("RED",W21,FALSE),1)),"",INDEX(A21:G21,MATCH("RED",W21,FALSE),1)) -> 
A109: =IF(ISERROR(INDEX(A23:G23,MATCH("RED",W23,FALSE),1)),"",INDEX(A23:G23,MATCH("RED",W23,FALSE),1)) -> 
A110: =IF(ISERROR(INDEX(A24:G24,MATCH("RED",W24,FALSE),1)),"",INDEX(A24:G24,MATCH("RED",W24,FALSE),1)) -> 
A111: =IF(ISERROR(INDEX(A25:G25,MATCH("RED",W25,FALSE),1)),"",INDEX(A25:G25,MATCH("RED",W25,FALSE),1)) -> 
A112: =IF(ISERROR(INDEX(#REF!,MATCH("RED",#REF!,FALSE),1)),"",INDEX(#REF!,MATCH("RED",#REF!,FALSE),1)) -> 
A113: =IF(ISERROR(INDEX(#REF!,MATCH("RED",#REF!,FALSE),1)),"",INDEX(#REF!,MATCH("RED",#REF!,FALSE),1)) -> 
A114: =IF(ISERROR(INDEX(#REF!,MATCH("RED",#REF!,FALSE),1)),"",INDEX(#REF!,MATCH("RED",#REF!,FALSE),1)) -> 
A115: =IF(ISERROR(INDEX(A27:G27,MATCH("RED",W27,FALSE),1)),"",INDEX(A27:G27,MATCH("RED",W27,FALSE),1)) -> 
A116: =IF(ISERROR(INDEX(#REF!,MATCH("RED",#REF!,FALSE),1)),"",INDEX(#REF!,MATCH("RED",#REF!,FALSE),1)) -> 
A117: =IF(ISERROR(INDEX(A29:G29,MATCH("RED",W29,FALSE),1)),"",INDEX(A29:G29,MATCH("RED",W29,FALSE),1)) -> 

Sheet QUALITY AND OUTCOME SECTION
B1: QUALITY AND OUTCOMES SECTION
B2: =IFERROR(VLOOKUP('COVER PAGE'!$A$3,Lookup!$A:$C,2,FALSE),"") -> NHS Rotherham CCG
B3: =IFERROR(VLOOKUP('COVER PAGE'!$A$3,Lookup!$A:$H,6,FALSE),"") -> S Yorkshire & Bassetlaw
B4: =IFERROR(VLOOKUP('COVER PAGE'!$A$3,Lookup!$A:$H,4,FALSE),"") -> NORTH
G8: =CUBEVALUE("PUBLIC_CUBE","[Measures].[Period Current MRSA]") -> Jun-14
A11: CCG BASED INDICATORS
A12: ANNUAL | B12: BASELINE 2013-14 | D12: 2014-15 | E12: 2015-16
A13: Preventing people from dying prematurely | F13: UpperConfidenceInterval2012 | G13: LowerConfidenceInterval2012 | H13: UpperConfidenceInterval2011
A14: Potential years of life lost (PYLL) from causes considered amendable to healthcare (rate per 100,000 population) | C14: PLAN | F14: =IFERROR(VLOOKUP('COVER PAGE'!$A$4&"_"&"2012",PYLL!$A:$F,4,FALSE),"") -> 2452.9 | G14: =IFERROR(VLOOKUP('COVER PAGE'!$A$4&"_"&"2012",PYLL!$A:$F,5,FALSE),"") -> 2334.4 | H14: =IFERROR(VLOOKUP('COVER PAGE'!$A$4&"_"&"2011",PYLL!$A:$F,4,FALSE),"") -> 2683.8
C15: PERFORMANCE
A16: Enhancing quality of life for people with long term conditions
A17: Health-related quality of life for people with long term conditions (EQ-5D per 100 people with long term condition) | C17: PLAN
C18: PERFORMANCE
A19: Estimated diagnosis rate for people with dementia | C19: PLAN
C20: PERFORMANCE
A21: Positive experience of care
A22: Composite indicator of patient experience of primary care (i) GP Services and (ii) GP Out of Hours service (average negative responses per 100 patients) | C22: PLAN
C23: PERFORMANCE
A24: Patient experience of hospital care (average negative responses per 100 patients) | B24: =IFERROR(VLOOKUP('COVER PAGE'!$A$4&"_"&"2013",'POSITIVE EXP OF HOSP CARE'!$A:$E,3,FALSE),"") -> 124.2 | C24: PLAN
C25: PERFORMANCE
A27: QUARTERLY | B27: 2014-15 | D27: 14-15 Q1 | E27: 14-15 Q2 | F27: 14-15 Q3 | G27: 14-15 Q4 | H27: =CUBEVALUE("PUBLIC_CUBE","[Measures].[Period Current CDiff]") -> Jun-14
A28: CCG BASED INDICATORS | B28: BASELINE 2013-14 | D28: QUARTER 1 | E28: QUARTER 2 | F28: QUARTER 3 | G28: QUARTER 4
A29: Composite Measure - Reducing the time people unnecessarily spend in hospital
A30: Avoidable emergency admissions per 100,000 population | B30: =CUBEVALUE("PUBLIC_CUBE","[Commissioners].[Org Name].["&B2&"]","[Date].[Fiscal Q Hierarchy].[All].[2013-14].[13-14 Q1]","[Measures].[Avoidable Emergency Admissions Indirectly Standardised Rate per 100,000]") -> 584.4289182 | C30: PLAN
C31: PERFORMANCE | D31: =CUBEVALUE("PUBLIC_CUBE","[Commissioners].[Org Name].["&B2&"]","[Date].[Fiscal Q Hierarchy].[All].["&B27&"].["&D27&"]","[Measures].[Avoidable Emergency Admissions Indirectly Standardised Rate per 100,000]") ->  | E31: =CUBEVALUE("PUBLIC_CUBE","[Commissioners].[Org Name].["&B2&"]","[Date].[Fiscal Q Hierarchy].[All].["&B27&"].["&E27&"]","[Measures].[Avoidable Emergency Admissions Indirectly Standardised Rate per 100,000]") ->  | F31: =CUBEVALUE("PUBLIC_CUBE","[Commissioners].[Org Name].["&B2&"]","[Date].[Fiscal Q Hierarchy].[All].["&B27&"].["&F27&"]","[Measures].[Avoidable Emergency Admissions Indirectly Standardised Rate per 100,000]") ->  | G31: =CUBEVALUE("PUBLIC_CUBE","[Commissioners].[Org Name].["&B2&"]","[Date].[Fiscal Q Hierarchy].[All].["&B27&"].["&G27&"]","[Measures].[Avoidable Emergency Admissions Indirectly Standardised Rate per 100,000]") -> 
L32: 2014-15 | M32: 14-15 Q1 | N32: 14-15 Q2 | O32: 14-15 Q3 | P32: 14-15 Q4
A33: Treating and caring for people in a safe environment an protecting them from avoidable harm | K33: PERFORMANCE | L33: =IFERROR(CUBEVALUE("PUBLIC_CUBE","[Commissioners].[Org Name].[All].["&$B2&"]","[Date].[Fiscal M Hierarchy].[All].[2014-15]","[Measures].[Actual YTD CDiff Cases]"),0) -> 24 | M33: =CUBEVALUE("PUBLIC_CUBE","[Commissioners].[Org Name].["&B2&"]","[Date].[Fiscal Q Hierarchy].[All].["&B27&"].["&D27&"]","[Measures].[Actual Current CDiff Cases]") -> 24 | N33: =CUBEVALUE("PUBLIC_CUBE","[Commissioners].[Org Name].["&B2&"]","[Date].[Fiscal Q Hierarchy].[All].["&B27&"].["&E27&"]","[Measures].[Actual Current CDiff Cases]") ->  | O33: =CUBEVALUE("PUBLIC_CUBE","[Commissioners].[Org Name].["&B2&"]","[Date].[Fiscal Q Hierarchy].[All].["&B27&"].["&F27&"]","[Measures].[Actual Current CDiff Cases]") ->  | P33: =CUBEVALUE("PUBLIC_CUBE","[Commissioners].[Org Name].["&B2&"]","[Date].[Fiscal Q Hierarchy].[All].["&B27&"].["&G27&"]","[Measures].[Actual Current CDiff Cases]") -> 
A34: Incidence of healthcare associated infection (HCAI) i) MRSA - Includes cases which have been assigned to the CCG following a Post Infection Review | B34: =CUBEVALUE("PUBLIC_CUBE","[Commissioners].[Org Name].["&B2&"]","[Date].[Fiscal Q Hierarchy].[All].[2013-14].[13-14 Q4]","[Measures].[Actual Current MRSA Cases]") -> 0 | C34: CEILING | D34: 0 | K34: C.DIFF PLAN | L34: =ROUND(CUBEVALUE("PUBLIC_CUBE","[Commissioners].[Org Name].[All].["&$B2&"]","[Date].[Fiscal M Hierarchy].[All].[2014-15]","[Measures].[Plan Current CDiff Cases]"),0) -> 66 | M34: =CUBEVALUE("PUBLIC_CUBE","[Commissioners].[Org Name].["&B2&"]","[Date].[Fiscal Q Hierarchy].[All].["&B27&"].["&D27&"]","[Measures].[Plan Current CDiff Cases]") -> 19 | N34: =CUBEVALUE("PUBLIC_CUBE","[Commissioners].[Org Name].["&B2&"]","[Date].[Fiscal Q Hierarchy].[All].["&B27&"].["&E27&"]","[Measures].[Plan Current CDiff Cases]") -> 17 | O34: =CUBEVALUE("PUBLIC_CUBE","[Commissioners].[Org Name].["&B2&"]","[Date].[Fiscal Q Hierarchy].[All].["&B27&"].["&F27&"]","[Measures].[Plan Current CDiff Cases]") -> 15 | P34: =CUBEVALUE("PUBLIC_CUBE","[Commissioners].[Org Name].["&B2&"]","[Date].[Fiscal Q Hierarchy].[All].["&B27&"].["&G27&"]","[Measures].[Plan Current CDiff Cases]") -> 15
C35: PERFORMANCE | D35: =CUBEVALUE("PUBLIC_CUBE","[Commissioners].[Org Name].["&B2&"]","[Date].[Fiscal Q Hierarchy].[All].["&B27&"].["&D27&"]","[Measures].[Actual Current MRSA Cases]") -> 0 | I35: =IF(AND(G35="NO DATA",B34=0),"NA",IF(G35<=B34,"GREEN",IF(AND(G35>B34,B34=0),"RED",IF(G35>B34,"RED")))) -> GREEN | L35: 1 | M35: 2 | N35: 3 | O35: 4 | P35: 5 | Q35: 6 | R35: 7 | S35: 8 | T35: 9 | U35: 10 | V35: 11 | W35: 12
A36: Incidence of healthcare associated infection (HCAI) ii) C.difficile | B36: =CUBEVALUE("PUBLIC_CUBE","[Commissioners].[Org Name].["&B2&"]","[Date].[Fiscal Q Hierarchy].[All].[2013-14].[13-14 Q4]","[Measures].[Actual Current CDiff Cases]") -> 12 | C36: CEILING | D36: =M34 -> 19 | H36: End of Year | L36: 2014-04-01 | M36: 2014-05-01 | N36: 2014-06-01 | O36: 2014-07-01 | P36: 2014-08-01 | Q36: 2014-09-01 | R36: 2014-10-01 | S36: 2014-11-01 | T36: 2014-12-01 | U36: 2015-01-01 | V36: 2015-02-01 | W36: 2015-03-01
C37: PERFORMANCE | D37: =CUBEVALUE("PUBLIC_CUBE","[Commissioners].[Org Name].["&B2&"]","[Date].[Fiscal Q Hierarchy].[All].["&B27&"].["&D27&"]","[Measures].[Actual Current CDiff Cases]") -> 24 | H37: =IFERROR(CUBEVALUE("PUBLIC_CUBE","[Commissioners].[Org Name].[All].["&$B2&"]","[Date].[Fiscal M Hierarchy].[All].[2014-15]","[Measures].[Actual YTD CDiff Cases]"),0) -> 24 | I37: =IF(AND(G37="NO DATA",B36="NO DATA"),"NA",IF(G37<=B36,"GREEN",IF(AND(G37>B36,B36=0),"AMBER",IF(G37>B36,"RED")))) -> GREEN | K37: MONTHLY C.DIFF PLAN | L37: =$L$34*L35/12 -> 5.5 | M37: 11 | N37: 16.5 | O37: 22 | P37: 27.5 | Q37: 33 | R37: =$L$34*R35/12 -> 38.5 | S37: 44 | T37: 49.5 | U37: 55 | V37: 60.5 | W37: 66
D38: =IF(M33="","",IF(M33<=M34,"GREEN",IF(M33>M34,"RED"))) -> RED | E38: =IF(N33="","",IF(N33<=N34,"GREEN",IF(N33>N34,"RED"))) ->  | F38: =IF(O33="","",IF(O33<=O34,"GREEN",IF(O33>O34,"RED"))) ->  | G38: =IF(P33="","",IF(P33<=P34,"GREEN",IF(P33>P34,"RED"))) ->  | H38: =IF(AND(D38="GREEN",E38="",F38="",G38=""),"ON TRACK",IF(AND(D38="RED",E38="",F38="",G38=""),"NOT ON TRACK",IF(AND(D38="GREEN",E38="GREEN",F38="GREEN",G38="GREEN"),"ON TRACK","NOT ON TRACK"))) -> NOT ON TRACK | K38: EOY RAG | L38: =IF(AND(L33<=L34,H38="ON TRACK"),"GREEN",IF(AND(L33>L34,H38="ON TRACK"),"AMBER",IF(H38="NOT ON TRACK","RED"))) -> RED
A39: Improving Access to Psychological Therapies (IAPT) | J39: =IF(AND($H$37<$L$34,$H$37>=$M$34) | P39: EOY | Q39: EOY
A40: Access: the proportion of people entering treatment against the level of need in the general population | B40: =CUBEVALUE("PUBLIC_CUBE","[Commissioners].[Org Name].[All].["&B2&"]","[Date].[Fiscal Q Hierarchy].[All].[2013-14].[13-14 Q4]","[Measures].[Actual Comm IAPT Receiving Therapies Rate]",CUBESET("PUBLIC_CUBE","[Dim Data Status].[Data Status Hierarchy].[All].[PUBLIC]","")) -> 0.0425343358 | C40: PLAN | D40: =CUBEVALUE("PUBLIC_CUBE","[Commissioners].[Org Name].[All].["&$B$2&"]","[Date].[Fiscal Q Hierarchy].["&$B$27&"].["&D27&"]","[Measures].[Plan IAPT Receiving Therapies Rate]") -> 0.0349846259 | K40: LINE1,IAPT | L40: =IF(D41="","",IF(D41>=D40,"ON TRACK",IF(D41<D40,"NOT ON TRACK",))) ->  | M40: =IF(E41="","",IF(E41>=E40,"ON TRACK",IF(E41<E40,"NOT ON TRACK",))) ->  | P40: =IF(G40>=15%,"ON TRACK",IF(G40<15%,"NOT ON TRACK",IF(G40="",""))) -> NOT ON TRACK | Q40: =IF(AND(L40="ON TRACK",M40="ON TRACK",N40="ON TRACK",P40="ON TRACK"),"GREEN",IF(AND(L40="ON TRACK",M40="ON TRACK",N40="ON TRACK",P40="NOT ON TRACK"),"AMBER",IF(AND(L40="NOT ON TRACK",M40="NOT ON TRACK",N40="NOT ON TRACK",P40="NOT ON TRACK"),"RED"))) -> FALSE
C41: PERFORMANCE | D41: =CUBEVALUE("PUBLIC_CUBE","[Commissioners].[Org Name].[All].["&B2&"]","[Date].[Fiscal Q Hierarchy].["&$B$27&"].["&$D$27&"]","[Measures].[Actual Comm IAPT Receiving Therapies Rate]",CUBESET("PUBLIC_CUBE","[Dim Data Status].[Data Status Hierarchy].[All].[PUBLIC]","")) -> 
A42: Recovery: the proportion of people who complete treatment who are moving to recovery | B42: =CUBEVALUE("PUBLIC_CUBE","[Commissioners].[Org Name].[All].["&B2&"]","[Date].[Fiscal Q Hierarchy].[All].[2013-14].[13-14 Q4]","[Measures].[Actual Comm IAPT Recovery Rate]",CUBESET("PUBLIC_CUBE","[Dim Data Status].[Data Status Hierarchy].[All].[PUBLIC]","")) -> 0.5384615385 | C42: PLAN | D42: =CUBEVALUE("PUBLIC_CUBE","[Commissioners].[Org Name].[All].["&B2&"]","[Date].[Fiscal Year Name].[By Date].[2014-15]","[Measures].[Plan IAPT Recovery Rate]") -> 0.5001335827
C43: PERFORMANCE | D43: =CUBEVALUE("PUBLIC_CUBE","[Commissioners].[Org Name].[All].["&B2&"]","[Date].[Fiscal Q Hierarchy].["&$B$27&"].["&$D$27&"]","[Measures].[Actual Comm IAPT Recovery Rate]",CUBESET("PUBLIC_CUBE","[Dim Data Status].[Data Status Hierarchy].[All].[PUBLIC]","")) -> 
D44: =CUBEVALUE("PUBLIC_CUBE","[Commissioners].[Org Name].[All].["&B2&"]","[Date].[Fiscal Q Hierarchy].[All].[2013-14].[13-14 Q1]","[Measures].[Actual Comm IAPT Receiving Therapies Rate]",CUBESET("PUBLIC_CUBE","[Dim Data Status].[Data Status Hierarchy].[All].[PUBLIC]","")) -> 
A47: PROVIDER BASED INDICATORS
A48: QUARTERLY
A49: Friends and Family Test (FFT)
A50: FFT SCORES A&E | B50: QUARTER 1 | C50: QUARTER 2 | D50: QUARTER 3 | E50: QUARTER 4
A51: =IFERROR(VLOOKUP($B$2,'TOP 3 PROVIDER LIST'!$B:$S,10,FALSE),"") -> THE ROTHERHAM NHS FOUNDATION TRUST | B51: =IFERROR(CUBEVALUE("PUBLIC_CUBE","[Providers].[Org Name].["&A51&"]","[Date].[Fiscal Q Hierarchy].[All].["&$B$27&"].["&$D$27&"]","[Measures].[FFT Test Score]","[Friends And Family Type].&[A&E]"),"") -> 57.86956522 | D51: =IFERROR(CUBEVALUE("PUBLIC_CUBE","[Providers].[Org Name].["&A51&"]","[Date].[Fiscal Q Hierarchy].[All].["&$B$27&"].["&$F$27&"]","[Measures].[FFT Test Score]","[Friends And Family Type].&[A&E]"),CUBESET("PUBLIC_CUBE","[Dim Data Status].[Data Status Hierarchy].[All].[PUBLIC]","")) ->  | E51: =IFERROR(CUBEVALUE("PUBLIC_CUBE","[Providers].[Org Name].["&A51&"]","[Date].[Fiscal Q Hierarchy].[All].["&$B$27&"].["&$G$27&"]","[Measures].[FFT Test Score]","[Friends And Family Type].&[A&E]"),CUBESET("PUBLIC_CUBE","[Dim Data Status].[Data Status Hierarchy].[All].[PUBLIC]","")) -> 
A52: =IFERROR(VLOOKUP($B$2,'TOP 3 PROVIDER LIST'!$B:$S,12,FALSE),"") -> DONCASTER AND BASSETLAW HOSPITALS NHS FOUNDATION TRUST | B52: =IFERROR(CUBEVALUE("PUBLIC_CUBE","[Providers].[Org Name].["&A52&"]","[Date].[Fiscal Q Hierarchy].[All].["&$B$27&"].["&$D$27&"]","[Measures].[FFT Test Score]","[Friends And Family Type].&[A&E]"),"") -> 24.57731959 | D52: =IFERROR(CUBEVALUE("PUBLIC_CUBE","[Providers].[Org Name].["&A52&"]","[Date].[Fiscal Q Hierarchy].[All].["&$B$27&"].["&$F$27&"]","[Measures].[FFT Test Score]","[Friends And Family Type].&[A&E]"),CUBESET("PUBLIC_CUBE","[Dim Data Status].[Data Status Hierarchy].[All].[PUBLIC]","")) ->  | E52: =IFERROR(CUBEVALUE("PUBLIC_CUBE","[Providers].[Org Name].["&A52&"]","[Date].[Fiscal Q Hierarchy].[All].["&$B$27&"].["&$G$27&"]","[Measures].[FFT Test Score]","[Friends And Family Type].&[A&E]"),CUBESET("PUBLIC_CUBE","[Dim Data Status].[Data Status Hierarchy].[All].[PUBLIC]","")) -> 
A53: =IFERROR(VLOOKUP($B$2,'TOP 3 PROVIDER LIST'!$B:$S,14,FALSE),"") -> SHEFFIELD TEACHING HOSPITALS NHS FOUNDATION TRUST | B53: =IFERROR(CUBEVALUE("PUBLIC_CUBE","[Providers].[Org Name].["&A53&"]","[Date].[Fiscal Q Hierarchy].[All].["&$B$27&"].["&$D$27&"]","[Measures].[FFT Test Score]","[Friends And Family Type].&[A&E]"),"") -> 48.29842932 | D53: =IFERROR(CUBEVALUE("PUBLIC_CUBE","[Providers].[Org Name].["&A53&"]","[Date].[Fiscal Q Hierarchy].[All].["&$B$27&"].["&$F$27&"]","[Measures].[FFT Test Score]","[Friends And Family Type].&[A&E]"),CUBESET("PUBLIC_CUBE","[Dim Data Status].[Data Status Hierarchy].[All].[PUBLIC]","")) ->  | E53: =IFERROR(CUBEVALUE("PUBLIC_CUBE","[Providers].[Org Name].["&A53&"]","[Date].[Fiscal Q Hierarchy].[All].["&$B$27&"].["&$G$27&"]","[Measures].[FFT Test Score]","[Friends And Family Type].&[A&E]"),CUBESET("PUBLIC_CUBE","[Dim Data Status].[Data Status Hierarchy].[All].[PUBLIC]","")) -> 
A54: FFT SCORES INPATIENT | B54: QUARTER 1 | C54: QUARTER 2 | D54: QUARTER 3 | E54: QUARTER 4
A55: =IFERROR(VLOOKUP($B$2,'TOP 3 PROVIDER LIST'!$B:$S,2,FALSE),"") -> THE ROTHERHAM NHS FOUNDATION TRUST | B55: =IFERROR(CUBEVALUE("PUBLIC_CUBE","[Providers].[Org Name].["&A55&"]","[Date].[Fiscal Q Hierarchy].[All].["&$B$27&"].["&$D$27&"]","[Measures].[FFT Test Score]","[Friends And Family Type].&[Inpatients]"),"") -> 74.85418017 | D55: =IFERROR(CUBEVALUE("PUBLIC_CUBE","[Providers].[Org Name].["&A55&"]","[Date].[Fiscal Q Hierarchy].[All].["&$B$27&"].["&$F$27&"]","[Measures].[FFT Test Score]","[Friends And Family Type].&[Inpatients]"),CUBESET("PUBLIC_CUBE","[Dim Data Status].[Data Status Hierarchy].[All].[PUBLIC]","")) ->  | E55: =IFERROR(CUBEVALUE("PUBLIC_CUBE","[Providers].[Org Name].["&A55&"]","[Date].[Fiscal Q Hierarchy].[All].["&$B$27&"].["&$G$27&"]","[Measures].[FFT Test Score]","[Friends And Family Type].&[Inpatients]"),CUBESET("PUBLIC_CUBE","[Dim Data Status].[Data Status Hierarchy].[All].[PUBLIC]","")) -> 
A56: =IFERROR(VLOOKUP($B$2,'TOP 3 PROVIDER LIST'!$B:$S,4,FALSE),"") -> SHEFFIELD TEACHING HOSPITALS NHS FOUNDATION TRUST | B56: =IFERROR(CUBEVALUE("PUBLIC_CUBE","[Providers].[Org Name].["&A56&"]","[Date].[Fiscal Q Hierarchy].[All].["&$B$27&"].["&$D$27&"]","[Measures].[FFT Test Score]","[Friends And Family Type].&[Inpatients]"),"") -> 76.87011537 | D56: =IFERROR(CUBEVALUE("PUBLIC_CUBE","[Providers].[Org Name].["&A56&"]","[Date].[Fiscal Q Hierarchy].[All].["&$B$27&"].["&$F$27&"]","[Measures].[FFT Test Score]","[Friends And Family Type].&[Inpatients]"),CUBESET("PUBLIC_CUBE","[Dim Data Status].[Data Status Hierarchy].[All].[PUBLIC]","")) ->  | E56: =IFERROR(CUBEVALUE("PUBLIC_CUBE","[Providers].[Org Name].["&A56&"]","[Date].[Fiscal Q Hierarchy].[All].["&$B$27&"].["&$G$27&"]","[Measures].[FFT Test Score]","[Friends And Family Type].&[Inpatients]"),CUBESET("PUBLIC_CUBE","[Dim Data Status].[Data Status Hierarchy].[All].[PUBLIC]","")) -> 
A57: =IFERROR(VLOOKUP($B$2,'TOP 3 PROVIDER LIST'!$B:$S,6,FALSE),"") ->  | B57: =IFERROR(CUBEVALUE("PUBLIC_CUBE","[Providers].[Org Name].["&A57&"]","[Date].[Fiscal Q Hierarchy].[All].["&$B$27&"].["&$D$27&"]","[Measures].[FFT Test Score]","[Friends And Family Type].&[Inpatients]"),"") ->  | C57: =IFERROR(CUBEVALUE("PUBLIC_CUBE","[Providers].[Org Name].["&A57&"]","[Date].[Fiscal Q Hierarchy].[All].["&$B$27&"].["&$E$27&"]","[Measures].[FFT Test Score]","[Friends And Family Type].&[Inpatients]"),CUBESET("PUBLIC_CUBE","[Dim Data Status].[Data Status Hierarchy].[All].[PUBLIC]","")) ->  | D57: =IFERROR(CUBEVALUE("PUBLIC_CUBE","[Providers].[Org Name].["&A57&"]","[Date].[Fiscal Q Hierarchy].[All].["&$B$27&"].["&$F$27&"]","[Measures].[FFT Test Score]","[Friends And Family Type].&[Inpatients]"),CUBESET("PUBLIC_CUBE","[Dim Data Status].[Data Status Hierarchy].[All].[PUBLIC]","")) ->  | E57: =IFERROR(CUBEVALUE("PUBLIC_CUBE","[Providers].[Org Name].["&A57&"]","[Date].[Fiscal Q Hierarchy].[All].["&$B$27&"].["&$G$27&"]","[Measures].[FFT Test Score]","[Friends And Family Type].&[Inpatients]"),CUBESET("PUBLIC_CUBE","[Dim Data Status].[Data Status Hierarchy].[All].[PUBLIC]","")) -> 
B58: =CUBEVALUE("PUBLIC_CUBE","[Measures].[Period Current Patient Safety Incidents]") -> 2013-14 1st Half | C58: 13-14 Q1
A59: HALF YEARLY
A60: Improving the reporting of medication-related safety incidents
A61: MEDICATION-RELATED INCIDENTS | B61: April - September 2013-14 - Incidents Count | C61: April - September 2013-14 - Percentage of Total Safety Incidents | D61: October- March 2013-14 - Incidents Count | E61: October- March 2013-14 - Percentage of Total Safety Incidents | F61: April - September 2014-15 - Incidents Count | G61: April - September 2014-15 - Percentage of Total Safety Incidents | H61: October- March 2014-15 - Incidents Count | I61: October- March 2014-15 - Percentage of Total Safety Incidents
A62: =IFERROR(VLOOKUP($B$2,'TOP 3 PROVIDER LIST'!$B:$S,16,FALSE),"") -> THE ROTHERHAM NHS FOUNDATION TRUST | B62: =IFERROR(CUBEVALUE("PUBLIC_CUBE","[Providers].[Org Name].["&A62&"]","[Date].[Fiscal H Hierachy].[All].[2013-14].[2013-14 1st Half]","[Measures].[Number Of Safety Incidents]","[Dim Safety Incident Category].[Safety Incident Category].[All].[Medication]"),"") -> 367 | C62: =IFERROR(CUBEVALUE("PUBLIC_CUBE","[Providers].[Org Name].["&A62&"]","[Date].[Fiscal H Hierachy].[All].[2013-14].[2013-14 1st Half]","[Measures].[Safety Incident Type as percentage of Total Safety Incidents]","[Dim Safety Incident Category].[Incident Category].[All].[Medication]"),"") -> 0.1213624339
A63: =IFERROR(VLOOKUP($B$2,'TOP 3 PROVIDER LIST'!$B:$S,17,FALSE),"") -> SHEFFIELD TEACHING HOSPITALS NHS FOUNDATION TRUST | B63: =IFERROR(CUBEVALUE("PUBLIC_CUBE","[Providers].[Org Name].["&A63&"]","[Date].[Fiscal H Hierachy].[All].[2013-14].[2013-14 1st Half]","[Measures].[Number Of Safety Incidents]","[Dim Safety Incident Category].[Safety Incident Category].[All].[Medication]"),"") -> 645 | C63: =IFERROR(CUBEVALUE("PUBLIC_CUBE","[Providers].[Org Name].["&A63&"]","[Date].[Fiscal H Hierachy].[All].[2013-14].[2013-14 1st Half]","[Measures].[Safety Incident Type as percentage of Total Safety Incidents]","[Dim Safety Incident Category].[Incident Category].[All].[Medication]"),"") -> 0.1288968825
A64: =IFERROR(VLOOKUP($B$2,'TOP 3 PROVIDER LIST'!$B:$S,18,FALSE),"") -> DONCASTER AND BASSETLAW HOSPITALS NHS FOUNDATION TRUST | B64: 286 | C64: 0.1062407132
G65: =IFERROR(CUBEVALUE("PUBLIC_CUBE","[Providers].[Org Name].["&A65&"]","[Date].[Fiscal Q Hierarchy].[All].["&$B$8&"]","[Measures].[FFT Test Score]","[Friends And Family Type].[FFT Source].[All types].[Combined A&E and Inpatients]")*1,"") -> 
E67: =IFERROR(CUBEVALUE("PUBLIC_CUBE","[Providers].[Org Name].["&A67&"]","[Date].[Fiscal Q Hierarchy].[All].["&$B$8&"].["&$E$8&"]","[Measures].[FFT Test Score]","[Friends And Family Type].[FFT Source].[All types].[Combined A&E and Inpatients]")*1,"") ->  | F67: =IFERROR(CUBEVALUE("PUBLIC_CUBE","[Providers].[Org Name].["&A67&"]","[Date].[Fiscal Q Hierarchy].[All].["&$B$8&"].["&$F$8&"]","[Measures].[FFT Test Score]","[Friends And Family Type].[FFT Source].[All types].[Combined A&E and Inpatients]")*1,"") ->  | G67: =IFERROR(CUBEVALUE("PUBLIC_CUBE","[Providers].[Org Name].["&A67&"]","[Date].[Fiscal Q Hierarchy].[All].["&$B$8&"]","[Measures].[FFT Test Score]","[Friends And Family Type].[FFT Source].[All types].[Combined A&E and Inpatients]")*1,"") -> 
E68: =IFERROR(CUBEVALUE("PUBLIC_CUBE","[Providers].[Org Name].["&A68&"]","[Date].[Fiscal Q Hierarchy].[All].["&$B$8&"].["&$E$8&"]","[Measures].[FFT Test Score]","[Friends And Family Type].[FFT Source].[All types].[Combined A&E and Inpatients]")*1,"") ->  | F68: =IFERROR(CUBEVALUE("PUBLIC_CUBE","[Providers].[Org Name].["&A68&"]","[Date].[Fiscal Q Hierarchy].[All].["&$B$8&"].["&$F$8&"]","[Measures].[FFT Test Score]","[Friends And Family Type].[FFT Source].[All types].[Combined A&E and Inpatients]")*1,"") ->  | G68: =IFERROR(CUBEVALUE("PUBLIC_CUBE","[Providers].[Org Name].["&A68&"]","[Date].[Short Month Year Label].[By Date].["&TEXT(#REF!,"mmm-yy")&"]","[Measures].[FFT Test Score]","[Friends And Family Type].[FFT Source].[All types].[Combined A&E and Inpatients]")*1,"") -> 
E205: TOTAL INDICATOR
E206: =A206 -> 0
E207: =A207 -> 0
E208: 0
E209: 0
E210: 0
E211: 0
E212: 0
E213: 0
E214: 0
E215: 0
E216: 0
E217: 0
E218: 0
E219: 0
E220: 0
E221: 0
E222: 0
E223: 0
E224: 0
E225: 0
E226: 0
E227: 0
E228: 0
E229: 0
E230: 0

Sheet BETTER CARE FUND
B1: BETTER CARE FUND SECTION
B2: =IFERROR(VLOOKUP('COVER PAGE'!$A$3,Lookup!$A:$C,2,FALSE),"") -> NHS Rotherham CCG
B3: =IFERROR(VLOOKUP('COVER PAGE'!$A$3,Lookup!$A:$H,6,FALSE),"") -> S Yorkshire & Bassetlaw
B4: =IFERROR(VLOOKUP('COVER PAGE'!$A$3,Lookup!$A:$H,4,FALSE),"") -> NORTH
B5: No Data for
A6: ANNUAL | B6: =$E$90 -> E08000018
A7: Health and Well-Being Board: 1 | B7: =$A$90 -> Rotherham | D7: 13-14 Q1 | G7: 13-14 Q4 | H7: =CUBEVALUE("PROD_CUBE","[Measures].[Period Current CDiff]") -> Jun-14
A8: INDICATOR | B8: BASELINE - 2013-14 | D8: 2014-15
A9: Permanent admissions of older people (aged 65 and over) to residential and nursing care homes, per 100,000 population | C9: PLAN
C10: PERFORMANCE
A11: Proportion of older people (65 and over) still at home 91 days after discharge from hospital into reablement / rehabilitation services | C11: PLAN
C12: PERFORMANCE
A13: bed days | C13: PLAN
C14: PERFORMANCE
A15: QUARTERLY | B15: =$E$90 -> E08000018 | C15: 2014-15 | D15: 14-15 Q1 | E15: 14-15 Q2 | F15: 14-15 Q3 | G15: 14-15 Q4
A16: Health and Well-Being Board: 1 | B16: =$A$90 -> Rotherham
A17: INDICATOR | B17: BASELINE - 2013-14 | D17: QUARTER 1 | E17: QUARTER 2 | F17: QUARTER 3 | G17: QUARTER 4
A18: Delayed transfers of care (delayed days) from hospital per 100,000 population (average per month) | B18: =CUBEVALUE("PUBLIC_CUBE","[Local Authorities].[Local Authorities].["&$B$16&"]","[Date].[Fiscal Q Hierarchy].[All].[2013-14].[13-14 Q4]","[Measures].[Average Monthly Bed Delays per 100,000 Population over 18 by Local Authority]") -> 180.3331556 | C18: PLAN
C19: PERFORMANCE | D19: =CUBEVALUE("PUBLIC_CUBE","[Local Authorities].[Local Authorities].["&$B$16&"]","[Date].[Fiscal Q Hierarchy].["&$C$15&"].["&D15&"]","[Measures].[Average Monthly Bed Delays per 100,000 Population over 18 by Local Authority]") -> 225.4164445
A20: Non-Elective Admissions rate per 100,000 population | B20: =CUBEVALUE("PROD_CUBE","[Date].[Fiscal Year Qtr Name].[13-14 Q4]","[Local Authorities].[Org Name].[All Local Authorities].["&$B$16&"]","[Measures].[HWB Non Electives]") -> 7446.894363 | C20: PLAN
C21: PERFORMANCE | D21: =CUBEVALUE("PROD_CUBE","[Date].[Fiscal Year Qtr Name].["&$D$15&"]","[Local Authorities].[Org Name].[All Local Authorities].["&$B$16&"]","[Measures].[HWB Non Electives]") -> 7570.223381
A22: bed days | C22: PLAN
C23: PERFORMANCE
A24: =D38 -> 
A25: ANNUAL | B25: =$E$91 -> 
A26: Health and Well-Being Board: 2 | B26: =$A$91 ->  | D26: 13-14 Q1 | E26: 13-14 Q2 | F26: 13-14 Q3 | G26: 13-14 Q4 | H26: =CUBEVALUE("PROD_CUBE","[Measures].[Period Current CDiff]") -> Jun-14
A27: INDICATOR | B27: BASELINE - 2013-14 | D27: 2014-15 | E27: 2015-16
A28: Permanent admissions of older people (aged 65 and over) to residential and nursing care homes, per 100,000 population | C28: PLAN | E28: =IFERROR(VLOOKUP("2012-13"&"_"&$B$25&"_"&$B$26,'PERMANENT ADMISSIONS '!$A:$G,7,FALSE),"") -> 
C29: PERFORMANCE
A30: Proportion of older people (65 and over) were still at home 91 days after discharge from hospital into reablement / rehabilitation services | C30: PLAN
C31: PERFORMANCE | D31: =IFERROR(VLOOKUP("2012-13"&"_"&$B$25&"_"&$B$26,'OLDER PEOPLE STILL AT HOME'!$A:$F,2,FALSE),"") -> 
A32: bed days | C32: PLAN
C33: PERFORMANCE
A34: QUARTERLY | B34: =$E$91 ->  | D34: =$A$103 -> 
A35: Health and Well-Being Board: 2 | B35: =$A$91 -> 
A36: INDICATOR | B36: BASELINE - 2013-14 | D36: QUARTER 1 | E36: QUARTER 2 | F36: QUARTER 3 | G36: QUARTER 4
A37: Delayed transfers of care (delayed days) from hospital per 100,000 population (average per month) | B37: =CUBEVALUE("PUBLIC_CUBE","[Local Authorities].[Local Authorities].["&$B$35&"]","[Date].[Fiscal Q Hierarchy].[All].[2013-14].[13-14 Q4]","[Measures].[Average Monthly Bed Delays per 100,000 Population over 18 by Local Authority]") ->  | C37: PLAN
C38: PERFORMANCE | D38: =CUBEVALUE("PUBLIC_CUBE","[Local Authorities].[Local Authorities].["&$B$35&"]","[Date].[Fiscal Q Hierarchy].["&$C$15&"].["&D15&"]","[Measures].[Average Monthly Bed Delays per 100,000 Population over 18 by Local Authority]") -> 
A39: Non-Elective Admissions rate per 100,000 population | B39: =IFERROR(CUBEVALUE("PROD_CUBE","[Date].[Fiscal Year Qtr Name].[13-14 Q4]","[Local Authorities].[Org Name].[All Local Authorities].["&$D$34&"]","[Measures].[HWB Non Electives]"),"") ->  | C39: PLAN
C40: PERFORMANCE | D40: =IFERROR(CUBEVALUE("PROD_CUBE","[Date].[Fiscal Year Qtr Name].["&$D$15&"]","[Local Authorities].[Org Name].[All Local Authorities].["&$D$34&"]","[Measures].[HWB Non Electives]"),"") -> 
A41: bed days | C41: PLAN
C42: PERFORMANCE
A43: =D57 -> 
A44: ANNUAL | B44: =$E$92 -> 
A45: Health and Well-Being Board: 3 | B45: =$A$92 ->  | D45: 13-14 Q1 | E45: 13-14 Q2 | F45: 13-14 Q3 | G45: 13-14 Q4 | H45: =CUBEVALUE("PROD_CUBE","[Measures].[Period Current CDiff]") -> Jun-14
A46: INDICATOR | B46: BASELINE - 2013-14 | D46: 2014-15
A47: Permanent admissions of older people (aged 65 and over) to residential and nursing care homes, per 100,000 population | C47: PLAN | E47: =IFERROR(VLOOKUP("2012-13"&"_"&$B$44&"_"&$B$45,'PERMANENT ADMISSIONS '!$A:$G,7,FALSE),"") -> 
C48: PERFORMANCE
A49: Proportion of older people (65 and over) were still at home 91 days after discharge from hospital into reablement / rehabilitation services | C49: PLAN
C50: PERFORMANCE
A51: bed days | C51: PLAN
C52: PERFORMANCE
A53: QUARTERLY | B53: =$E$92 -> 
A54: Health and Well-Being Board: 3 | B54: =$A$92 -> 
A55: INDICATOR | B55: BASELINE - 2013-14 | D55: QUARTER 1 | E55: QUARTER 2 | F55: QUARTER 3 | G55: QUARTER 4
A56: Delayed transfers of care (delayed days) from hospital per 100,000 population (average per month) | B56: =CUBEVALUE("PUBLIC_CUBE","[Local Authorities].[Local Authorities].["&$B$54&"]","[Date].[Fiscal Q Hierarchy].[All].[2013-14].[13-14 Q4]","[Measures].[Average Monthly Bed Delays per 100,000 Population over 18 by Local Authority]") ->  | C56: PLAN
C57: PERFORMANCE | D57: =CUBEVALUE("PUBLIC_CUBE","[Local Authorities].[Local Authorities].["&$B$54&"]","[Date].[Fiscal Q Hierarchy].["&$C$15&"].["&D15&"]","[Measures].[Average Monthly Bed Delays per 100,000 Population over 18 by Local Authority]") -> 
A58: Non-Elective Admissions rate per 100,000 population | B58: =IFERROR(CUBEVALUE("PROD_CUBE","[Date].[Fiscal Year Qtr Name].[13-14 Q4]","[Local Authorities].[Org Name].[All Local Authorities].["&$B$54&"]","[Measures].[HWB Non Electives]"),"") ->  | C58: PLAN
C59: PERFORMANCE | D59: =IFERROR(CUBEVALUE("PROD_CUBE","[Date].[Fiscal Year Qtr Name].["&$D$15&"]","[Local Authorities].[Org Name].[All Local Authorities].["&$B$54&"]","[Measures].[HWB Non Electives]"),"") -> 
A60: bed days
A62: =D76 -> 
A63: ANNUAL | B63: =$E$93 -> 
A64: Health and Well-Being Board: 4 | B64: =$A$93 ->  | D64: 13-14 Q1 | F64: 13-14 Q3 | G64: 13-14 Q4 | H64: =CUBEVALUE("PROD_CUBE","[Measures].[Period Current CDiff]") -> Jun-14
A65: INDICATOR | B65: BASELINE - 2013-14 | D65: 2014-15 | E65: 2015-16
A66: Permanent admissions of older people (aged 65 and over) to residential and nursing care homes, per 100,000 population | C66: PLAN | E66: =IFERROR(VLOOKUP("2012-13"&"_"&$B$63&"_"&$B$64,'PERMANENT ADMISSIONS '!$A:$G,7,FALSE),"") -> 
C67: PERFORMANCE
A68: Proportion of older people (65 and over) were still at home 91 days after discharge from hospital into reablement / rehabilitation services | C68: PLAN
C69: PERFORMANCE
A70: bed days | C70: PLAN
C71: PERFORMANCE
A72: QUARTERLY | B72: =E93 -> 
A73: Health and Well-Being Board: 4 | B73: =A93 -> 
A74: INDICATOR | B74: BASELINE - 2013-14 | D74: QUARTER 1 | E74: QUARTER 2 | F74: QUARTER 3 | G74: QUARTER 4
A75: Delayed transfers of care (delayed days) from hospital per 100,000 population (average per month) | B75: =CUBEVALUE("PUBLIC_CUBE","[Local Authorities].[Local Authorities].["&$B$73&"]","[Date].[Fiscal Q Hierarchy].[All].[2013-14].[13-14 Q4]","[Measures].[Average Monthly Bed Delays per 100,000 Population over 18 by Local Authority]") ->  | C75: PLAN
C76: PERFORMANCE | D76: =CUBEVALUE("PUBLIC_CUBE","[Local Authorities].[Local Authorities].["&$B$73&"]","[Date].[Fiscal Q Hierarchy].["&$C$15&"].["&D15&"]","[Measures].[Average Monthly Bed Delays per 100,000 Population over 18 by Local Authority]") -> 
A77: Non-Elective Admissions rate per 100,000 population | B77: =IFERROR(CUBEVALUE("PROD_CUBE","[Date].[Fiscal Year Qtr Name].[13-14 Q4]","[Local Authorities].[Org Name].[All Local Authorities].["&$B$73&"]","[Measures].[HWB Non Electives]"),"") ->  | C77: PLAN
C78: PERFORMANCE | D78: =IFERROR(CUBEVALUE("PROD_CUBE","[Date].[Fiscal Year Qtr Name].["&$D$15&"]","[Local Authorities].[Org Name].[All Local Authorities].["&$B$73&"]","[Measures].[HWB Non Electives]"),"") -> 
A79: bed days | C79: PLAN
C80: PERFORMANCE
A90: =IFERROR(VLOOKUP(D90,'CCG MAPPING TO HWBB'!$C$5:$G$247,4,FALSE),"") -> Rotherham | B90: 1 | C90: ='COVER PAGE'!A4 -> 03L | D90: =B90&C90 -> 103L | E90: =IFERROR(VLOOKUP(D90,'CCG MAPPING TO HWBB'!C:E,3,FALSE),"") -> E08000018
A91: =IFERROR(VLOOKUP(D91,'CCG MAPPING TO HWBB'!$C$5:$G$247,4,FALSE),"") ->  | B91: 2 | C91: ='COVER PAGE'!A4 -> 03L | D91: =B91&C91 -> 203L | E91: =IFERROR(VLOOKUP(D91,'CCG MAPPING TO HWBB'!C:E,3,FALSE),"") -> 
A92: =IFERROR(VLOOKUP(D92,'CCG MAPPING TO HWBB'!$C$5:$G$247,4,FALSE),"") ->  | B92: 3 | C92: ='COVER PAGE'!A4 -> 03L | D92: =B92&C92 -> 303L | E92: =IFERROR(VLOOKUP(D92,'CCG MAPPING TO HWBB'!C:E,3,FALSE),"") -> 
A93: =IFERROR(VLOOKUP(D93,'CCG MAPPING TO HWBB'!$C$5:$G$247,4,FALSE),"") ->  | B93: 4 | C93: ='COVER PAGE'!A4 -> 03L | D93: =B93&C93 -> 403L | E93: =IFERROR(VLOOKUP(D93,'CCG MAPPING TO HWBB'!C:E,3,FALSE),"") -> 
A102: =IFERROR(VLOOKUP(D102,'NON ELECTIVE HWB'!$C:$F,4,FALSE),"") -> Rotherham | B102: 1 | C102: ='COVER PAGE'!A4 -> 03L | D102: =B102&C102 -> 103L | E102: =IFERROR(VLOOKUP(D102,'NON ELECTIVE HWB'!$C:$F,3,FALSE),"") -> E08000018
A103: =IFERROR(VLOOKUP(D103,'NON ELECTIVE HWB'!$C:$F,4,FALSE),"") ->  | B103: 2 | C103: ='COVER PAGE'!A4 -> 03L | D103: =B103&C103 -> 203L | E103: =IFERROR(VLOOKUP(D103,'NON ELECTIVE HWB'!$C:$F,3,FALSE),"") -> 
A104: =IFERROR(VLOOKUP(D104,'NON ELECTIVE HWB'!$C:$F,4,FALSE),"") ->  | B104: 3 | C104: ='COVER PAGE'!A4 -> 03L | D104: =B104&C104 -> 303L | E104: =IFERROR(VLOOKUP(D104,'NON ELECTIVE HWB'!$C:$F,3,FALSE),"") -> 
A105: =IFERROR(VLOOKUP(D105,'NON ELECTIVE HWB'!$C:$F,4,FALSE),"") ->  | B105: 4 | C105: ='COVER PAGE'!A4 -> 03L | D105: =B105&C105 -> 403L | E105: =IFERROR(VLOOKUP(D105,'NON ELECTIVE HWB'!$C:$F,3,FALSE),"") -> 

Sheet CCG_AF_CONDITIONS_DOMAIN5 (hidden)
A1: ID | B1: Domain 1 | C1: Domain 2 | D1: Domain 3 | E1: Domain 4 | F1: Domain 5 | G1: Domain 6 | H1: Period
A2: 07L_2012-13_March | B2: 0 | C2: 0 | D2: 5 | E2: 1 | F2: 0 | G2: 1 | H2: 2012-13_March
A3: 07M_2012-13_March | B3: 0 | C3: 2 | D3: 4 | E3: 0 | F3: 1 | G3: 2 | H3: 2012-13_March
A4: 07N_2012-13_March | B4: 0 | C4: 0 | D4: 2 | E4: 0 | F4: 1 | G4: 0 | H4: 2012-13_March
A5: 07P_2012-13_March | B5: 0 | C5: 0 | D5: 0 | E5: 0 | F5: 0 | G5: 0 | H5: 2012-13_March
A6: 07Q_2012-13_March | B6: 0 | C6: 0 | D6: 1 | E6: 0 | F6: 0 | G6: 0 | H6: 2012-13_March
A7: 07R_2012-13_March | B7: 0 | C7: 0 | D7: 2 | E7: 2 | F7: 2 | G7: 1 | H7: 2012-13_March
A8: 09A_2012-13_March | B8: 0 | C8: 0 | D8: 0 | E8: 0 | F8: 0 | G8: 0 | H8: 2012-13_March
A9: 07T_2012-13_March | B9: 0 | C9: 0 | D9: 1 | E9: 0 | F9: 1 | G9: 0 | H9: 2012-13_March
A10: 07V_2012-13_March | B10: 0 | C10: 0 | D10: 4 | E10: 3 | F10: 0 | G10: 0 | H10: 2012-13_March
A11: 07W_2012-13_March | B11: 0 | C11: 0 | D11: 0 | E11: 0 | F11: 0 | G11: 0 | H11: 2012-13_March
A12: 07X_2012-13_March | B12: 0 | C12: 0 | D12: 2 | E12: 3 | F12: 1 | G12: 1 | H12: 2012-13_March
A13: 08A_2012-13_March | B13: 0 | C13: 0 | D13: 2 | E13: 0 | F13: 0 | G13: 0 | H13: 2012-13_March
A14: 08C_2012-13_March | B14: 0 | C14: 0 | D14: 0 | E14: 0 | F14: 0 | G14: 0 | H14: 2012-13_March
A15: 08D_2012-13_March | B15: 0 | C15: 0 | D15: 0 | E15: 1 | F15: 1 | G15: 0 | H15: 2012-13_March
A16: 08E_2012-13_March | B16: 0 | C16: 0 | D16: 3 | E16: 2 | F16: 0 | G16: 0 | H16: 2012-13_March
A17: 08F_2012-13_March | B17: 0 | C17: 0 | D17: 4 | E17: 1 | F17: 0 | G17: 1 | H17: 2012-13_March
A18: 08G_2012-13_March | B18: 0 | C18: 0 | D18: 5 | E18: 0 | F18: 0 | G18: 0 | H18: 2012-13_March
A19: 07Y_2012-13_March | B19: 0 | C19: 1 | D19: 2 | E19: 0 | F19: 0 | G19: 0 | H19: 2012-13_March
A20: 08H_2012-13_March | B20: 0 | C20: 0 | D20: 0 | E20: 0 | F20: 1 | G20: 0 | H20: 2012-13_March
A21: 08J_2012-13_March | B21: 0 | C21: 0 | D21: 0 | E21: 0 | F21: 0 | G21: 0 | H21: 2012-13_March
A22: 08K_2012-13_March | B22: 0 | C22: 0 | D22: 0 | E22: 0 | F22: 0 | G22: 0 | H22: 2012-13_March
A23: 08L_2012-13_March | B23: 0 | C23: 0 | D23: 0 | E23: 0 | F23: 0 | G23: 0 | H23: 2012-13_March
A24: 08R_2012-13_March | B24: 0 | C24: 0 | D24: 0 | E24: 1 | F24: 0 | G24: 0 | H24: 2012-13_March
A25: 08M_2012-13_March | B25: 1 | C25: 0 | D25: 2 | E25: 2 | F25: 3 | G25: 0 | H25: 2012-13_March
A26: 08N_2012-13_March | B26: 0 | C26: 0 | D26: 4 | E26: 1 | F26: 0 | G26: 1 | H26: 2012-13_March
A27: 08P_2012-13_March | B27: 0 | C27: 0 | D27: 0 | E27: 0 | F27: 0 | G27: 0 | H27: 2012-13_March
A28: 08Q_2012-13_March | B28: 0 | C28: 0 | D28: 0 | E28: 0 | F28: 0 | G28: 0 | H28: 2012-13_March
A29: 08T_2012-13_March | B29: 0 | C29: 1 | D29: 0 | E29: 1 | F29: 1 | G29: 0 | H29: 2012-13_March
A30: 08V_2012-13_March | B30: 0 | C30: 0 | D30: 3 | E30: 1 | F30: 1 | G30: 1 | H30: 2012-13_March
A31: 08W_2012-13_March | B31: 1 | C31: 4 | D31: 4 | E31: 7 | F31: 1 | G31: 8 | H31: 2012-13_March
A32: 08X_2013-14_March | B32: 0 | C32: 0 | D32: 0 | E32: 0 | F32: 0 | G32: 0 | H32: 2013-14_March
A33: 08Y_2013-14_March | B33: 0 | C33: 1 | D33: 0 | E33: 1 | F33: 0 | G33: 0 | H33: 2013-14_March
A34: 07L_2013-14_June | B34: 0 | C34: 0 | D34: 0 | E34: 0 | F34: 0 | G34: 0 | H34: 2013-14_June
A35: 07M_2013-14_June | B35: 0 | C35: 0 | D35: 2 | E35: 0 | F35: 1 | G35: 1 | H35: 2013-14_June
A36: 07N_2013-14_June | B36: 0 | C36: 0 | D36: 0 | E36: 0 | F36: 0 | G36: 0 | H36: 2013-14_June
A37: 07P_2013-14_June | B37: 0 | C37: 0 | D37: 0 | E37: 0 | F37: 0 | G37: 0 | H37: 2013-14_June
A38: 07Q_2013-14_June | B38: 0 | C38: 0 | D38: 1 | E38: 0 | F38: 0 | G38: 0 | H38: 2013-14_June
A39: 07R_2013-14_June | B39: 0 | C39: 0 | D39: 0 | E39: 1 | F39: 1 | G39: 0 | H39: 2013-14_June
A40: 09A_2013-14_June | B40: 0 | C40: 0 | D40: 0 | E40: 0 | F40: 0 | G40: 0 | H40: 2013-14_June
A41: 07T_2013-14_June | B41: 0 | C41: 0 | D41: 0 | E41: 0 | F41: 0 | G41: 0 | H41: 2013-14_June
A42: 07V_2013-14_June | B42: 0 | C42: 0 | D42: 3 | E42: 1 | F42: 0 | G42: 0 | H42: 2013-14_June
A43: 07W_2013-14_June | B43: 0 | C43: 0 | D43: 0 | E43: 0 | F43: 0 | G43: 0 | H43: 2013-14_June
A44: 07X_2013-14_June | B44: 0 | C44: 0 | D44: 2 | E44: 1 | F44: 1 | G44: 0 | H44: 2013-14_June
A45: 08A_2013-14_June | B45: 0 | C45: 0 | D45: 0 | E45: 0 | F45: 0 | G45: 0 | H45: 2013-14_June
A46: 08C_2013-14_June | B46: 0 | C46: 0 | D46: 0 | E46: 0 | F46: 0 | G46: 0 | H46: 2013-14_June
A47: 08D_2013-14_June | B47: 0 | C47: 0 | D47: 0 | E47: 0 | F47: 1 | G47: 0 | H47: 2013-14_June
A48: 08E_2013-14_June | B48: 0 | C48: 0 | D48: 1 | E48: 0 | F48: 0 | G48: 0 | H48: 2013-14_June
A49: 08F_2013-14_June | B49: 0 | C49: 0 | D49: 3 | E49: 0 | F49: 0 | G49: 0 | H49: 2013-14_June
A50: 08G_2013-14_June | B50: 0 | C50: 0 | D50: 1 | E50: 0 | F50: 0 | G50: 0 | H50: 2013-14_June
A51: 07Y_2013-14_June | B51: 0 | C51: 0 | D51: 0 | E51: 0 | F51: 0 | G51: 0 | H51: 2013-14_June
A52: 08H_2013-14_June | B52: 0 | C52: 0 | D52: 0 | E52: 0 | F52: 1 | G52: 0 | H52: 2013-14_June
A53: 08J_2013-14_June | B53: 0 | C53: 0 | D53: 0 | E53: 0 | F53: 0 | G53: 0 | H53: 2013-14_June
A54: 08K_2013-14_June | B54: 0 | C54: 0 | D54: 0 | E54: 0 | F54: 0 | G54: 0 | H54: 2013-14_June
A55: 08L_2013-14_June | B55: 0 | C55: 0 | D55: 0 | E55: 0 | F55: 0 | G55: 0 | H55: 2013-14_June
A56: 08R_2013-14_June | B56: 0 | C56: 0 | D56: 0 | E56: 0 | F56: 0 | G56: 0 | H56: 2013-14_June
A57: 08M_2013-14_June | B57: 0 | C57: 0 | D57: 0 | E57: 0 | F57: 0 | G57: 0 | H57: 2013-14_June
A58: 08N_2013-14_June | B58: 0 | C58: 0 | D58: 3 | E58: 0 | F58: 0 | G58: 0 | H58: 2013-14_June
A59: 08P_2013-14_June | B59: 0 | C59: 0 | D59: 0 | E59: 0 | F59: 0 | G59: 0 | H59: 2013-14_June
A60: 08Q_2013-14_June | B60: 0 | C60: 0 | D60: 0 | E60: 0 | F60: 0 | G60: 0 | H60: 2013-14_June
A61: 08T_2013-14_June | B61: 0 | C61: 0 | D61: 0 | E61: 0 | F61: 0 | G61: 0 | H61: 2013-14_June
A62: 08V_2013-14_June | B62: 0 | C62: 0 | D62: 0 | E62: 0 | F62: 0 | G62: 0 | H62: 2013-14_June
A63: 08W_2013-14_June | B63: 1 | C63: 4 | D63: 2 | E63: 7 | F63: 0 | G63: 8 | H63: 2013-14_June
A64: 08X_2013-14_June | B64: 0 | C64: 0 | D64: 0 | E64: 0 | F64: 0 | G64: 0 | H64: 2013-14_June
A65: 08Y_2013-14_June | B65: 0 | C65: 0 | D65: 0 | E65: 0 | F65: 0 | G65: 0 | H65: 2013-14_June
A66: 09C_2013-14_June | B66: 0 | C66: 1 | D66: 0 | E66: 1 | F66: 0 | G66: 1 | H66: 2013-14_June
A67: 09D_2013-14_June | B67: 0 | C67: 0 | D67: 0 | E67: 0 | F67: 0 | G67: 1 | H67: 2013-14_June
A68: 09E_2013-14_June | B68: 0 | C68: 0 | D68: 0 | E68: 0 | F68: 0 | G68: 0 | H68: 2013-14_June
A69: 09F_2013-14_June | B69: 0 | C69: 0 | D69: 4 | E69: 0 | F69: 0 | G69: 0 | H69: 2013-14_June
A70: 09G_2013-14_June | B70: 0 | C70: 0 | D70: 4 | E70: 0 | F70: 0 | G70: 0 | H70: 2013-14_June
A71: 09H_2013-14_June | B71: 0 | C71: 0 | D71: 2 | E71: 0 | F71: 0 | G71: 0 | H71: 2013-14_June
A72: 09J_2013-14_June | B72: 0 | C72: 0 | D72: 1 | E72: 0 | F72: 0 | G72: 0 | H72: 2013-14_June
A73: 09L_2013-14_June | B73: 0 | C73: 0 | D73: 2 | E73: 2 | F73: 1 | G73: 0 | H73: 2013-14_June
A74: 09N_2013-14_June | B74: 0 | C74: 0 | D74: 0 | E74: 0 | F74: 0 | G74: 0 | H74: 2013-14_June
A75: 09P_2013-14_June | B75: 0 | C75: 0 | D75: 2 | E75: 0 | F75: 0 | G75: 0 | H75: 2013-14_June
A76: 09W_2013-14_June | B76: 0 | C76: 0 | D76: 0 | E76: 0 | F76: 0 | G76: 0 | H76: 2013-14_June
A77: 09X_2013-14_June | B77: 0 | C77: 0 | D77: 2 | E77: 0 | F77: 0 | G77: 0 | H77: 2013-14_June
A78: 09Y_2013-14_June | B78: 0 | C78: 0 | D78: 0 | E78: 0 | F78: 0 | G78: 0 | H78: 2013-14_June
A79: 10A_2013-14_June | B79: 1 | C79: 1 | D79: 0 | E79: 1 | F79: 0 | G79: 1 | H79: 2013-14_June
A80: 10C_2013-14_June | B80: 0 | C80: 0 | D80: 0 | E80: 0 | F80: 0 | G80: 1 | H80: 2013-14_June
A81: 10D_2013-14_June | B81: 0 | C81: 1 | D81: 0 | E81: 0 | F81: 0 | G81: 0 | H81: 2013-14_June
A82: 10E_2013-14_June | B82: 1 | C82: 0 | D82: 0 | E82: 0 | F82: 0 | G82: 0 | H82: 2013-14_June
A83: 10G_2013-14_June | B83: 0 | C83: 0 | D83: 0 | E83: 0 | F83: 0 | G83: 0 | H83: 2013-14_June
A84: 10H_2013-14_June | B84: 0 | C84: 0 | D84: 0 | E84: 0 | F84: 0 | G84: 0 | H84: 2013-14_June
A85: 10J_2013-14_June | B85: 0 | C85: 0 | D85: 2 | E85: 0 | F85: 0 | G85: 0 | H85: 2013-14_June
A86: 10K_2013-14_June | B86: 1 | C86: 0 | D86: 0 | E86: 0 | F86: 0 | G86: 0 | H86: 2013-14_June
A87: 10L_2013-14_June | B87: 0 | C87: 0 | D87: 0 | E87: 0 | F87: 0 | G87: 0 | H87: 2013-14_June
A88: 10M_2013-14_June | B88: 0 | C88: 0 | D88: 0 | E88: 0 | F88: 0 | G88: 0 | H88: 2013-14_June
A89: 10N_2013-14_June | B89: 0 | C89: 0 | D89: 0 | E89: 0 | F89: 0 | G89: 0 | H89: 2013-14_June
A90: 10Q_2013-14_June | B90: 0 | C90: 0 | D90: 3 | E90: 0 | F90: 0 | G90: 0 | H90: 2013-14_June
A91: 10R_2013-14_June | B91: 0 | C91: 0 | D91: 0 | E91: 0 | F91: 0 | G91: 0 | H91: 2013-14_June
A92: 10T_2013-14_June | B92: 0 | C92: 0 | D92: 0 | E92: 0 | F92: 0 | G92: 0 | H92: 2013-14_June
A93: 10V_2013-14_June | B93: 0 | C93: 0 | D93: 0 | E93: 0 | F93: 0 | G93: 0 | H93: 2013-14_June
A94: 10W_2013-14_June | B94: 0 | C94: 0 | D94: 0 | E94: 0 | F94: 0 | G94: 0 | H94: 2013-14_June
A95: 10X_2013-14_June | B95: 0 | C95: 0 | D95: 0 | E95: 0 | F95: 0 | G95: 0 | H95: 2013-14_June
A96: 10Y_2013-14_June | B96: 0 | C96: 0 | D96: 0 | E96: 0 | F96: 0 | G96: 0 | H96: 2013-14_June
A97: 11A_2013-14_June | B97: 0 | C97: 0 | D97: 0 | E97: 0 | F97: 0 | G97: 0 | H97: 2013-14_June
A98: 11C_2013-14_June | B98: 0 | C98: 0 | D98: 0 | E98: 0 | F98: 0 | G98: 0 | H98: 2013-14_June
A99: 11D_2013-14_June | B99: 0 | C99: 0 | D99: 0 | E99: 0 | F99: 0 | G99: 0 | H99: 2013-14_June
A100: 11E_2013-14_June | B100: 0 | C100: 0 | D100: 0 | E100: 0 | F100: 0 | G100: 0 | H100: 2013-14_June
A101: 11H_2013-14_June | B101: 0 | C101: 0 | D101: 2 | E101: 0 | F101: 0 | G101: 1 | H101: 2013-14_June
A102: 11J_2013-14_June | B102: 0 | C102: 0 | D102: 0 | E102: 0 | F102: 0 | G102: 0 | H102: 2013-14_June
A103: 11M_2013-14_June | B103: 0 | C103: 0 | D103: 0 | E103: 0 | F103: 0 | G103: 0 | H103: 2013-14_June
A104: 11N_2013-14_June | B104: 0 | C104: 0 | D104: 0 | E104: 0 | F104: 0 | G104: 0 | H104: 2013-14_June
A105: 11T_2013-14_June | B105: 0 | C105: 0 | D105: 2 | E105: 2 | F105: 0 | G105: 0 | H105: 2013-14_June
A106: 11X_2013-14_June | B106: 0 | C106: 0 | D106: 0 | E106: 0 | F106: 0 | G106: 0 | H106: 2013-14_June
A107: 12A_2013-14_June | B107: 0 | C107: 0 | D107: 2 | E107: 0 | F107: 0 | G107: 0 | H107: 2013-14_June
A108: 12D_2013-14_June | B108: 0 | C108: 0 | D108: 0 | E108: 0 | F108: 0 | G108: 0 | H108: 2013-14_June
A109: 99H_2013-14_June | B109: 0 | C109: 0 | D109: 2 | E109: 0 | F109: 0 | G109: 0 | H109: 2013-14_June
A110: 99J_2013-14_June | B110: 0 | C110: 0 | D110: 2 | E110: 0 | F110: 0 | G110: 0 | H110: 2013-14_June
A111: 99K_2013-14_June | B111: 0 | C111: 1 | D111: 4 | E111: 0 | F111: 0 | G111: 1 | H111: 2013-14_June
A112: 99M_2013-14_June | B112: 0 | C112: 1 | D112: 0 | E112: 0 | F112: 0 | G112: 1 | H112: 2013-14_June
A113: 99N_2013-14_June | B113: 0 | C113: 0 | D113: 0 | E113: 0 | F113: 0 | G113: 0 | H113: 2013-14_June
A114: 99P_2013-14_June | B114: 0 | C114: 0 | D114: 0 | E114: 0 | F114: 0 | G114: 0 | H114: 2013-14_June
A115: 99Q_2013-14_June | B115: 0 | C115: 0 | D115: 0 | E115: 0 | F115: 0 | G115: 0 | H115: 2013-14_June
A116: 03T_2013-14_June | B116: 0 | C116: 0 | D116: 0 | E116: 0 | F116: 0 | G116: 0 | H116: 2013-14_June
A117: 03V_2013-14_June | B117: 0 | C117: 0 | D117: 0 | E117: 0 | F117: 0 | G117: 0 | H117: 2013-14_June
A118: 03W_2013-14_June | B118: 0 | C118: 0 | D118: 0 | E118: 0 | F118: 0 | G118: 0 | H118: 2013-14_June
A119: 03X_2013-14_June | B119: 0 | C119: 0 | D119: 0 | E119: 0 | F119: 0 | G119: 0 | H119: 2013-14_June
A120: 03Y_2013-14_June | B120: 0 | C120: 0 | D120: 0 | E120: 0 | F120: 0 | G120: 0 | H120: 2013-14_June
A121: 04C_2013-14_June | B121: 0 | C121: 0 | D121: 0 | E121: 0 | F121: 0 | G121: 0 | H121: 2013-14_June
A122: 04D_2013-14_June | B122: 0 | C122: 0 | D122: 0 | E122: 0 | F122: 0 | G122: 0 | H122: 2013-14_June
A123: 04E_2013-14_June | B123: 0 | C123: 0 | D123: 0 | E123: 0 | F123: 0 | G123: 0 | H123: 2013-14_June
A124: 04F_2013-14_June | B124: 0 | C124: 0 | D124: 0 | E124: 0 | F124: 0 | G124: 1 | H124: 2013-14_June
A125: 04G_2013-14_June | B125: 0 | C125: 0 | D125: 0 | E125: 0 | F125: 0 | G125: 0 | H125: 2013-14_June
A126: 04H_2013-14_June | B126: 0 | C126: 0 | D126: 0 | E126: 0 | F126: 0 | G126: 0 | H126: 2013-14_June
A127: 04J_2013-14_June | B127: 0 | C127: 0 | D127: 0 | E127: 0 | F127: 0 | G127: 0 | H127: 2013-14_June
A128: 04K_2013-14_June | B128: 0 | C128: 0 | D128: 0 | E128: 0 | F128: 0 | G128: 0 | H128: 2013-14_June
A129: 04L_2013-14_June | B129: 0 | C129: 0 | D129: 3 | E129: 0 | F129: 0 | G129: 0 | H129: 2013-14_June
A130: 04M_2013-14_June | B130: 0 | C130: 0 | D130: 0 | E130: 0 | F130: 0 | G130: 0 | H130: 2013-14_June
A131: 04N_2013-14_June | B131: 0 | C131: 0 | D131: 0 | E131: 0 | F131: 0 | G131: 0 | H131: 2013-14_June
A132: 04Q_2013-14_June | B132: 0 | C132: 0 | D132: 0 | E132: 0 | F132: 0 | G132: 0 | H132: 2013-14_June
A133: 04R_2013-14_June | B133: 0 | C133: 0 | D133: 0 | E133: 0 | F133: 0 | G133: 0 | H133: 2013-14_June
A134: 04V_2013-14_June | B134: 0 | C134: 0 | D134: 0 | E134: 0 | F134: 0 | G134: 0 | H134: 2013-14_June
A135: 04X_2013-14_June | B135: 0 | C135: 0 | D135: 0 | E135: 0 | F135: 0 | G135: 0 | H135: 2013-14_June
A136: 04Y_2013-14_June | B136: 0 | C136: 0 | D136: 3 | E136: 0 | F136: 0 | G136: 0 | H136: 2013-14_June
A137: 05A_2013-14_June | B137: 0 | C137: 0 | D137: 0 | E137: 1 | F137: 0 | G137: 0 | H137: 2013-14_June
A138: 05C_2013-14_June | B138: 0 | C138: 0 | D138: 0 | E138: 0 | F138: 0 | G138: 0 | H138: 2013-14_June
A139: 05D_2013-14_June | B139: 0 | C139: 0 | D139: 2 | E139: 0 | F139: 0 | G139: 0 | H139: 2013-14_June
A140: 05F_2013-14_June | B140: 0 | C140: 1 | D140: 0 | E140: 3 | F140: 0 | G140: 1 | H140: 2013-14_June
A141: 05G_2013-14_June | B141: 0 | C141: 0 | D141: 0 | E141: 0 | F141: 0 | G141: 0 | H141: 2013-14_June
A142: 05H_2013-14_June | B142: 0 | C142: 0 | D142: 2 | E142: 0 | F142: 0 | G142: 0 | H142: 2013-14_June
A143: 05J_2013-14_June | B143: 0 | C143: 0 | D143: 0 | E143: 0 | F143: 0 | G143: 0 | H143: 2013-14_June
A144: 05L_2013-14_June | B144: 0 | C144: 0 | D144: 0 | E144: 0 | F144: 0 | G144: 0 | H144: 2013-14_June
A145: 05N_2013-14_June | B145: 0 | C145: 0 | D145: 0 | E145: 0 | F145: 0 | G145: 0 | H145: 2013-14_June
A146: 05P_2013-14_June | B146: 0 | C146: 0 | D146: 1 | E146: 0 | F146: 0 | G146: 0 | H146: 2013-14_June
A147: 05Q_2013-14_June | B147: 0 | C147: 0 | D147: 3 | E147: 0 | F147: 0 | G147: 0 | H147: 2013-14_June
A148: 05R_2013-14_June | B148: 0 | C148: 0 | D148: 0 | E148: 0 | F148: 0 | G148: 0 | H148: 2013-14_June
A149: 05T_2013-14_June | B149: 0 | C149: 0 | D149: 0 | E149: 0 | F149: 0 | G149: 0 | H149: 2013-14_June
A150: 05V_2013-14_June | B150: 0 | C150: 0 | D150: 2 | E150: 0 | F150: 0 | G150: 0 | H150: 2013-14_June
A151: 05W_2013-14_June | B151: 0 | C151: 0 | D151: 0 | E151: 0 | F151: 0 | G151: 0 | H151: 2013-14_June
A152: 05X_2013-14_June | B152: 0 | C152: 0 | D152: 0 | E152: 0 | F152: 0 | G152: 0 | H152: 2013-14_June
A153: 05Y_2013-14_June | B153: 0 | C153: 0 | D153: 0 | E153: 0 | F153: 0 | G153: 0 | H153: 2013-14_June
A154: 06A_2013-14_June | B154: 0 | C154: 0 | D154: 1 | E154: 0 | F154: 0 | G154: 0 | H154: 2013-14_June
A155: 06D_2013-14_June | B155: 0 | C155: 0 | D155: 0 | E155: 0 | F155: 0 | G155: 0 | H155: 2013-14_June
A156: 06F_2013-14_June | B156: 0 | C156: 0 | D156: 0 | E156: 0 | F156: 0 | G156: 0 | H156: 2013-14_June
A157: 06H_2013-14_June | B157: 0 | C157: 0 | D157: 2 | E157: 0 | F157: 0 | G157: 0 | H157: 2013-14_June
A158: 06K_2013-14_June | B158: 0 | C158: 0 | D158: 0 | E158: 0 | F158: 0 | G158: 0 | H158: 2013-14_June
A159: 06L_2013-14_June | B159: 0 | C159: 0 | D159: 0 | E159: 0 | F159: 0 | G159: 0 | H159: 2013-14_June
A160: 06M_2013-14_June | B160: 0 | C160: 0 | D160: 0 | E160: 0 | F160: 0 | G160: 0 | H160: 2013-14_June
A161: 06N_2013-14_June | B161: 0 | C161: 0 | D161: 0 | E161: 0 | F161: 0 | G161: 0 | H161: 2013-14_June
A162: 06P_2013-14_June | B162: 0 | C162: 0 | D162: 0 | E162: 0 | F162: 0 | G162: 0 | H162: 2013-14_June
A163: 06Q_2013-14_June | B163: 0 | C163: 0 | D163: 2 | E163: 0 | F163: 0 | G163: 0 | H163: 2013-14_June
A164: 06T_2013-14_June | B164: 0 | C164: 0 | D164: 0 | E164: 0 | F164: 0 | G164: 0 | H164: 2013-14_June
A165: 06V_2013-14_June | B165: 0 | C165: 0 | D165: 0 | E165: 0 | F165: 0 | G165: 0 | H165: 2013-14_June
A166: 06W_2013-14_June | B166: 0 | C166: 0 | D166: 0 | E166: 0 | F166: 0 | G166: 0 | H166: 2013-14_June
A167: 06Y_2013-14_June | B167: 0 | C167: 0 | D167: 0 | E167: 1 | F167: 0 | G167: 0 | H167: 2013-14_June
A168: 07G_2013-14_June | B168: 2 | C168: 5 | D168: 0 | E168: 0 | F168: 1 | G168: 7 | H168: 2013-14_June
A169: 07H_2013-14_June | B169: 0 | C169: 0 | D169: 0 | E169: 0 | F169: 0 | G169: 0 | H169: 2013-14_June
A170: 07J_2013-14_June | B170: 0 | C170: 0 | D170: 0 | E170: 0 | F170: 0 | G170: 0 | H170: 2013-14_June
A171: 07K_2013-14_June | B171: 0 | C171: 0 | D171: 0 | E171: 0 | F171: 0 | G171: 0 | H171: 2013-14_June
A172: 13P_2013-14_June | B172: 0 | C172: 0 | D172: 0 | E172: 0 | F172: 0 | G172: 0 | H172: 2013-14_June
A173: 99D_2013-14_June | B173: 0 | C173: 0 | D173: 0 | E173: 0 | F173: 0 | G173: 0 | H173: 2013-14_June
A174: 99E_2013-14_June | B174: 1 | C174: 2 | D174: 6 | E174: 2 | F174: 2 | G174: 5 | H174: 2013-14_June
A175: 99F_2013-14_June | B175: 0 | C175: 0 | D175: 4 | E175: 1 | F175: 0 | G175: 1 | H175: 2013-14_June
A176: 99G_2013-14_June | B176: 0 | C176: 0 | D176: 0 | E176: 0 | F176: 0 | G176: 0 | H176: 2013-14_June
A177: 00C_2013-14_June | B177: 0 | C177: 0 | D177: 0 | E177: 0 | F177: 0 | G177: 0 | H177: 2013-14_June
A178: 00D_2013-14_June | B178: 0 | C178: 0 | D178: 0 | E178: 0 | F178: 0 | G178: 0 | H178: 2013-14_June
A179: 00F_2013-14_June | B179: 0 | C179: 0 | D179: 0 | E179: 0 | F179: 0 | G179: 0 | H179: 2013-14_June
A180: 00G_2013-14_June | B180: 0 | C180: 0 | D180: 0 | E180: 0 | F180: 0 | G180: 0 | H180: 2013-14_June
A181: 00H_2013-14_June | B181: 0 | C181: 0 | D181: 0 | E181: 0 | F181: 0 | G181: 0 | H181: 2013-14_June
A182: 00J_2013-14_June | B182: 0 | C182: 0 | D182: 0 | E182: 0 | F182: 0 | G182: 0 | H182: 2013-14_June
A183: 00K_2013-14_June | B183: 0 | C183: 0 | D183: 0 | E183: 0 | F183: 0 | G183: 0 | H183: 2013-14_June
A184: 00L_2013-14_June | B184: 0 | C184: 0 | D184: 0 | E184: 0 | F184: 0 | G184: 0 | H184: 2013-14_June
A185: 00M_2013-14_June | B185: 0 | C185: 0 | D185: 0 | E185: 0 | F185: 0 | G185: 0 | H185: 2013-14_June
A186: 00N_2013-14_June | B186: 0 | C186: 0 | D186: 0 | E186: 0 | F186: 0 | G186: 0 | H186: 2013-14_June
A187: 00P_2013-14_June | B187: 0 | C187: 0 | D187: 0 | E187: 0 | F187: 0 | G187: 0 | H187: 2013-14_June
A188: 00Q_2013-14_June | B188: 0 | C188: 0 | D188: 0 | E188: 0 | F188: 0 | G188: 0 | H188: 2013-14_June
A189: 00R_2013-14_June | B189: 0 | C189: 0 | D189: 0 | E189: 0 | F189: 0 | G189: 0 | H189: 2013-14_June
A190: 00T_2013-14_June | B190: 0 | C190: 0 | D190: 2 | E190: 0 | F190: 0 | G190: 0 | H190: 2013-14_June
A191: 00V_2013-14_June | B191: 0 | C191: 0 | D191: 0 | E191: 0 | F191: 0 | G191: 0 | H191: 2013-14_June
A192: 00W_2013-14_June | B192: 0 | C192: 0 | D192: 0 | E192: 0 | F192: 0 | G192: 0 | H192: 2013-14_June
A193: 00X_2013-14_June | B193: 0 | C193: 0 | D193: 0 | E193: 0 | F193: 0 | G193: 0 | H193: 2013-14_June
A194: 00Y_2013-14_June | B194: 0 | C194: 0 | D194: 0 | E194: 0 | F194: 0 | G194: 0 | H194: 2013-14_June
A195: 01A_2013-14_June | B195: 0 | C195: 0 | D195: 0 | E195: 0 | F195: 0 | G195: 0 | H195: 2013-14_June
A196: 01C_2013-14_June | B196: 0 | C196: 0 | D196: 0 | E196: 0 | F196: 0 | G196: 0 | H196: 2013-14_June
A197: 01D_2013-14_June | B197: 0 | C197: 0 | D197: 0 | E197: 0 | F197: 0 | G197: 0 | H197: 2013-14_June
A198: 01E_2013-14_June | B198: 0 | C198: 0 | D198: 0 | E198: 0 | F198: 0 | G198: 0 | H198: 2013-14_June
A199: 01F_2013-14_June | B199: 0 | C199: 0 | D199: 0 | E199: 0 | F199: 0 | G199: 0 | H199: 2013-14_June
A200: 01G_2013-14_June | B200: 0 | C200: 0 | D200: 0 | E200: 0 | F200: 0 | G200: 0 | H200: 2013-14_June
... 210 more rows

Sheet FINANCE SECTION
C1: FINANCE SECTION
C2: =IFERROR(VLOOKUP('COVER PAGE'!$A$3,Lookup!$A:$C,2,FALSE),"") -> NHS Rotherham CCG
C3: =IFERROR(VLOOKUP('COVER PAGE'!$A$3,Lookup!$A:$H,6,FALSE),"") -> S Yorkshire & Bassetlaw
C4: =IFERROR(VLOOKUP('COVER PAGE'!$A$3,Lookup!$A:$H,4,FALSE),"") -> NORTH | P4: June | Q4: September | R4: December | S4: March
A6: 2014-15 | C6: JUNE | D6: SEPTEMBER | E6: DECEMBER | F6: MARCH | G6: INDIVIDUAL INDICATOR RAG RATING THRESHOLD
A7: CCG BASED INDICATOR | B7: PRIMARY/SUPPORTING INDICATOR | C7: QUARTER 1 PERFORMANCE | D7: QUARTER 2 PERFORMANCE | E7: QUARTER 3 PERFORMANCE | F7: QUARTER 4 PERFORMANCE | G7: GREEN | H7: AMBER | I7: RED | J7: GUIDANCE
A8: Plan - year to date (variance to plan as % of YTD allocation) | B8: Primary | C8: =IFERROR(VLOOKUP('COVER PAGE'!$A$4&"_"&'FINANCE SECTION'!$A$6&"_"&'FINANCE SECTION'!C6,FINANCE!$A:$L,9,FALSE),"") -> G | G8: Positive variance to plan or negative variance <= 0.1% | H8: 0.1% > variance <0.5% (negative variance) | I8: Negative variance => 0.5% | J8: Calculate CCG year to date variance to surplus/(deficit) plan as a % of the CCG year to date allocation and then RAG rate accordingly
A9: Plan - full year (variance to plan as % of allocation) | B9: Primary | C9: =IFERROR(VLOOKUP('COVER PAGE'!$A$4&"_"&'FINANCE SECTION'!$A$6&"_"&'FINANCE SECTION'!C6,FINANCE!$A:$L,8,FALSE),"") -> G | G9: Positive variance to plan or negative variance <= 0.1% | H9: 0.1% > variance <0.5% (negative variance) | I9: Negative variance => 0.5% | J9: Calculate CCG full year variance to surplus/(deficit) plan as a % of the CCG annual allocation and then RAG rate accordingly
A10: QIPP - year to date delivery | B10: Primary | C10: =IFERROR(VLOOKUP('COVER PAGE'!$A$4&"_"&'FINANCE SECTION'!$A$6&"_"&'FINANCE SECTION'!C6,FINANCE!$A:$L,6,FALSE),"") -> A | G10: >= 95% of plan | H10: >95% of plan>= 75% of plan | I10: < 75% of plan | J10: Utilise the submitted non ISFE returns and RAG rating generated to complete (covering transactional and transformational schemes)
A11: QIPP - full year forecast | B11: Primary | C11: =IFERROR(VLOOKUP('COVER PAGE'!$A$4&"_"&'FINANCE SECTION'!$A$6&"_"&'FINANCE SECTION'!C6,FINANCE!$A:$L,5,FALSE),"") -> G | G11: >= 95% of plan | H11: >95% of plan>= 75% of plan | I11: < 75% of plan | J11: Utilise the submitted non ISFE returns and RAG rating generated to complete (covering transactional and transformational schemes)
A12: Clear identification of risks against financial delivery and mitigations | B12: Primary | C12: =IFERROR(VLOOKUP('COVER PAGE'!$A$4&"_"&'FINANCE SECTION'!$A$6&"_"&'FINANCE SECTION'!C6,FINANCE!$A:$L,3,FALSE),"") -> G | G12: Mitigations equal to or greater than risks | H12: Risks not fully mitigated and, if they were to materialise, the CCG would not be in deficit or would be in deficit up to 1% of allocation | I12: Risks not fully mitigated and, if they were to materialise, the CCG would be in deficit greater than 1% of allocation | J12: Utilise information from the submitted non ISFE returns
A13: Running costs | B13: Primary | C13: =IFERROR(VLOOKUP('COVER PAGE'!$A$4&"_"&'FINANCE SECTION'!$A$6&"_"&'FINANCE SECTION'!C6,FINANCE!$A:$L,4,FALSE),"") -> G | G13: <= RCA | I13: > RCA | J13: Assess if CCG full year running costs breach annual allocation and RAG rate accordingly
A14: Underlying recurrent surplus on exit of 2014/15 | B14: Primary | C14: =IFERROR(VLOOKUP('COVER PAGE'!$A$4&"_"&'FINANCE SECTION'!$A$6&"_"&'FINANCE SECTION'!C6,FINANCE!$A:$L,10,FALSE),"") -> G | G14: >= 2.5% | H14: 2.5% > surplus >=0% | I14: < 0% | J14: Rate the underlying position the CCG will exit 14/15 (as % of allocation) as populated on the underlying surplus template.
A15: Financial Performance and Management - Supporting Indicators
A16: Financial position meets the 2014/15 surplus planning requirement | B16: Supporting | C16: =IFERROR(VLOOKUP('COVER PAGE'!$A$4&"_"&'FINANCE SECTION'!$A$6&"_"&'FINANCE SECTION'!C6,FINANCE!$A:$L,2,FALSE),"") -> G | G16: >=1% surplus forecast | H16: >= breakeven and <1% surplus forecast | I16: Deficit forecast | J16: Assesses forecast delivery against the planning criteria of a 1% surplus.
A17: Planned usage of non-recurrent headroom funds in line with business rules | B17: Supporting | C17: =IFERROR(VLOOKUP('COVER PAGE'!$A$4&"_"&'FINANCE SECTION'!$A$6&"_"&'FINANCE SECTION'!C6,FINANCE!$A:$L,7,FALSE),"") -> G | G17: >=2.5% | H17: 2.5% > funds committed non recurrently >=1% | I17: <1% committed or set aside for investment | J17: Assesses the % committed or set aside for investment in planning stage(rather than used to support the bottom line CCG position). Local assurance will be given the option to override the generated rating is exception was made at planning stage to utilise to support bottom line position.
A18: BPPC performance - invoices paid within Better Payment Practice Code. | B18: Supporting | C18: =IFERROR(VLOOKUP('COVER PAGE'!$A$4&"_"&'FINANCE SECTION'!$A$6&"_"&'FINANCE SECTION'!C6,FINANCE!$A:$L,11,FALSE),"") -> G | G18: >=95% paid within target. | H18: 95% > paid within target >=75% | I18: < 75% paid within target. | J18: Weighted percentage of both volume and value of invoices. BI report to be adapted by central team to capture information quarterly.
A19: Cash utilisation | B19: Supporting | C19: =IFERROR(VLOOKUP('COVER PAGE'!$A$4&"_"&'FINANCE SECTION'!$A$6&"_"&'FINANCE SECTION'!C6,FINANCE!$A:$L,12,FALSE),"") -> 0 | G19: TBC | H19: TBC | I19: TBC | J19: Metric to be developed on cash drawdown.

Sheet CCG_AF_FINANCE_DOMAIN4 (hidden)
A1: ID | B1: Surplus Underlying | C1: Surplus YTD | D1: Surplus Year End | E1: NR Funds | F1: QIPP YTD | G1: QIPP Year End | H1: Act YTD | I1: Act End Year | J1: Run Cost | K1: Risk | L1: Balance Sheet | M1: Overall rating | N1: Afq Fin Plan
A2: 02A_2013-14_June | B2: 0 | C2: AG | D2: G | E2: G | F2: AG | G2: G | H2: 0 | I2: 0 | J2: G | K2: G | L2: 0 | M2: AMBER-GREEN | N2: 0
A3: 03H_2013-14_June | B3: 0 | C3: G | D3: G | E3: G | F3: AG | G3: G | H3: 0 | I3: 0 | J3: G | K3: G | L3: 0 | M3: AMBER-GREEN | N3: 0
A4: 11N_2013-14_June | B4: 0 | C4: G | D4: G | E4: G | F4: G | G4: G | H4: 0 | I4: 0 | J4: G | K4: G | L4: 0 | M4: GREEN | N4: 0
A5: 99M_2013-14_June | B5: 0 | C5: G | D5: G | E5: G | F5: AG | G5: G | H5: 0 | I5: 0 | J5: G | K5: G | L5: 0 | M5: AMBER-GREEN | N5: 0
A6: 02R_2013-14_June | B6: 0 | C6: G | D6: G | E6: G | F6: G | G6: G | H6: 0 | I6: 0 | J6: G | K6: G | L6: 0 | M6: GREEN | N6: 0
A7: 06Q_2013-14_June | B7: 0 | C7: AR | D7: G | E7: G | F7: AR | G7: AG | H7: 0 | I7: 0 | J7: G | K7: AR | L7: 0 | M7: AMBER-GREEN | N7: 0
A8: 07H_2013-14_June | B8: 0 | C8: G | D8: G | E8: G | F8: G | G8: G | H8: 0 | I8: 0 | J8: G | K8: AR | L8: 0 | M8: AMBER-GREEN | N8: 0
A9: 99E_2013-14_June | B9: 0 | C9: R | D9: G | E9: G | F9: R | G9: AR | H9: 0 | I9: 0 | J9: G | K9: G | L9: 0 | M9: RED | N9: 0
A10: 99F_2013-14_June | B10: 0 | C10: G | D10: AG | E10: G | F10: G | G10: AG | H10: 0 | I10: 0 | J10: G | K10: G | L10: 0 | M10: AMBER-GREEN | N10: 0
A11: 01T_2013-14_June | B11: 0 | C11: G | D11: G | E11: G | F11: G | G11: G | H11: 0 | I11: 0 | J11: G | K11: G | L11: 0 | M11: GREEN | N11: 0
A12: 05Q_2013-14_June | B12: 0 | C12: AR | D12: G | E12: G | F12: AR | G12: G | H12: 0 | I12: 0 | J12: G | K12: AR | L12: 0 | M12: AMBER-GREEN | N12: 0
A13: 04V_2013-14_June | B13: 0 | C13: G | D13: G | E13: G | F13: G | G13: G | H13: 0 | I13: 0 | J13: G | K13: G | L13: 0 | M13: GREEN | N13: 0
A14: 02T_2013-14_June | B14: 0 | C14: G | D14: G | E14: G | F14: R | G14: G | H14: 0 | I14: 0 | J14: G | K14: G | L14: 0 | M14: AMBER-RED | N14: 0
A15: 10Q_2013-14_June | B15: 0 | C15: AG | D15: G | E15: G | F15: R | G15: G | H15: 0 | I15: 0 | J15: G | K15: R | L15: 0 | M15: RED | N15: 0
A16: 10W_2013-14_June | B16: 0 | C16: G | D16: G | E16: G | F16: G | G16: G | H16: 0 | I16: 0 | J16: G | K16: G | L16: 0 | M16: GREEN | N16: 0
A17: 11D_2013-14_June | B17: 0 | C17: G | D17: G | E17: G | F17: G | G17: G | H17: 0 | I17: 0 | J17: G | K17: G | L17: 0 | M17: GREEN | N17: 0
A18: 12F_2013-14_June | B18: 0 | C18: G | D18: G | E18: G | F18: G | G18: G | H18: 0 | I18: 0 | J18: G | K18: G | L18: 0 | M18: GREEN | N18: 0
A19: 06H_2013-14_June | B19: 0 | C19: AR | D19: G | E19: R | F19: G | G19: G | H19: 0 | I19: 0 | J19: G | K19: AR | L19: 0 | M19: AMBER-GREEN | N19: 0
A20: 06V_2013-14_June | B20: 0 | C20: G | D20: G | E20: G | F20: G | G20: G | H20: 0 | I20: 0 | J20: G | K20: AR | L20: 0 | M20: AMBER-GREEN | N20: 0
A21: 06Y_2013-14_June | B21: 0 | C21: G | D21: G | E21: R | F21: R | G21: G | H21: 0 | I21: 0 | J21: G | K21: AR | L21: 0 | M21: AMBER-RED | N21: 0
A22: 08N_2013-14_June | B22: 0 | C22: R | D22: G | E22: G | F22: G | G22: G | H22: 0 | I22: 0 | J22: G | K22: AG | L22: 0 | M22: AMBER-RED | N22: 0
A23: 08X_2013-14_June | B23: 0 | C23: G | D23: G | E23: G | F23: G | G23: G | H23: 0 | I23: 0 | J23: G | K23: G | L23: 0 | M23: GREEN | N23: 0
A24: 09H_2013-14_June | B24: 0 | C24: G | D24: G | E24: G | F24: G | G24: G | H24: 0 | I24: 0 | J24: G | K24: R | L24: 0 | M24: AMBER-RED | N24: 0
A25: 09P_2013-14_June | B25: 0 | C25: AG | D25: G | E25: G | F25: G | G25: G | H25: 0 | I25: 0 | J25: G | K25: G | L25: 0 | M25: AMBER-GREEN | N25: 0
A26: 07L_2013-14_June | B26: 0 | C26: AR | D26: G | E26: G | F26: G | G26: G | H26: 0 | I26: 0 | J26: G | K26: AG | L26: 0 | M26: AMBER-GREEN | N26: 0
A27: 07X_2013-14_June | B27: 0 | C27: G | D27: G | E27: G | F27: G | G27: AG | H27: 0 | I27: 0 | J27: G | K27: R | L27: 0 | M27: AMBER-RED | N27: 0
A28: 00F_2013-14_June | B28: 0 | C28: G | D28: G | E28: G | F28: G | G28: G | H28: 0 | I28: 0 | J28: G | K28: G | L28: 0 | M28: GREEN | N28: 0
A29: 05J_2013-14_June | B29: 0 | C29: R | D29: R | E29: G | F29: AG | G29: AG | H29: 0 | I29: 0 | J29: G | K29: R | L29: 0 | M29: RED | N29: 0
A30: 01E_2013-14_June | B30: 0 | C30: AG | D30: G | E30: G | F30: AR | G30: G | H30: 0 | I30: 0 | J30: G | K30: AR | L30: 0 | M30: AMBER-GREEN | N30: 0
A31: 00W_2013-14_June | B31: 0 | C31: G | D31: G | E31: G | F31: G | G31: G | H31: 0 | I31: 0 | J31: G | K31: G | L31: 0 | M31: GREEN | N31: 0
A32: 01M_2013-14_June | B32: 0 | C32: G | D32: G | E32: G | F32: G | G32: G | H32: 0 | I32: 0 | J32: G | K32: G | L32: 0 | M32: GREEN | N32: 0
A33: 02H_2013-14_June | B33: 0 | C33: G | D33: G | E33: G | F33: G | G33: G | H33: 0 | I33: 0 | J33: G | K33: G | L33: 0 | M33: GREEN | N33: 0
A34: 99K_2013-14_June | B34: 0 | C34: G | D34: G | E34: G | F34: AR | G34: AR | H34: 0 | I34: 0 | J34: G | K34: R | L34: 0 | M34: AMBER-RED | N34: 0
A35: 99N_2013-14_June | B35: 0 | C35: G | D35: G | E35: G | F35: G | G35: AR | H35: 0 | I35: 0 | J35: G | K35: G | L35: 0 | M35: AMBER-GREEN | N35: 0
A36: 03M_2013-14_June | B36: 0 | C36: G | D36: G | E36: G | F36: AR | G36: AR | H36: 0 | I36: 0 | J36: G | K36: AR | L36: 0 | M36: AMBER-GREEN | N36: 0
A37: 02E_2013-14_June | B37: 0 | C37: AR | D37: AR | E37: G | F37: G | G37: G | H37: 0 | I37: 0 | J37: G | K37: R | L37: 0 | M37: AMBER-RED | N37: 0
A38: 02Y_2013-14_June | B38: 0 | C38: G | D38: G | E38: G | F38: AR | G38: AR | H38: 0 | I38: 0 | J38: G | K38: G | L38: 0 | M38: AMBER-GREEN | N38: 0
A39: 03A_2013-14_June | B39: 0 | C39: G | D39: G | E39: G | F39: G | G39: G | H39: 0 | I39: 0 | J39: G | K39: G | L39: 0 | M39: GREEN | N39: 0
A40: 08K_2013-14_June | B40: 0 | C40: G | D40: G | E40: G | F40: G | G40: G | H40: 0 | I40: 0 | J40: G | K40: AG | L40: 0 | M40: AMBER-GREEN | N40: 0
A41: 08L_2013-14_June | B41: 0 | C41: G | D41: G | E41: G | F41: G | G41: G | H41: 0 | I41: 0 | J41: G | K41: G | L41: 0 | M41: GREEN | N41: 0
A42: 09X_2013-14_June | B42: 0 | C42: AG | D42: G | E42: G | F42: G | G42: G | H42: 0 | I42: 0 | J42: G | K42: R | L42: 0 | M42: AMBER-RED | N42: 0
A43: 10C_2013-14_June | B43: 0 | C43: G | D43: G | E43: G | F43: R | G43: AR | H43: 0 | I43: 0 | J43: G | K43: G | L43: 0 | M43: AMBER-RED | N43: 0
A44: 05D_2013-14_June | B44: 0 | C44: R | D44: G | E44: G | F44: AR | G44: G | H44: 0 | I44: 0 | J44: G | K44: AR | L44: 0 | M44: AMBER-RED | N44: 0
A45: 05X_2013-14_June | B45: 0 | C45: R | D45: G | E45: G | F45: AR | G45: G | H45: 0 | I45: 0 | J45: G | K45: G | L45: 0 | M45: AMBER-RED | N45: 0
A46: 01A_2013-14_June | B46: 0 | C46: G | D46: G | E46: G | F46: AR | G46: AR | H46: 0 | I46: 0 | J46: G | K46: G | L46: 0 | M46: AMBER-GREEN | N46: 0
A47: 01J_2013-14_June | B47: 0 | C47: G | D47: G | E47: G | F47: G | G47: G | H47: 0 | I47: 0 | J47: G | K47: G | L47: 0 | M47: GREEN | N47: 0
A48: 01R_2013-14_June | B48: 0 | C48: G | D48: G | E48: R | F48: G | G48: G | H48: 0 | I48: 0 | J48: G | K48: R | L48: 0 | M48: AMBER-RED | N48: 0
A49: 09W_2013-14_June | B49: 0 | C49: G | D49: G | E49: G | F49: G | G49: AG | H49: 0 | I49: 0 | J49: G | K49: G | L49: 0 | M49: AMBER-GREEN | N49: 0
A50: 00T_2013-14_June | B50: 0 | C50: G | D50: G | E50: G | F50: G | G50: G | H50: 0 | I50: 0 | J50: G | K50: G | L50: 0 | M50: GREEN | N50: 0
A51: 02V_2013-14_June | B51: 0 | C51: G | D51: G | E51: G | F51: G | G51: G | H51: 0 | I51: 0 | J51: G | K51: G | L51: 0 | M51: GREEN | N51: 0
A52: 03C_2013-14_June | B52: 0 | C52: G | D52: G | E52: G | F52: G | G52: G | H52: 0 | I52: 0 | J52: G | K52: G | L52: 0 | M52: GREEN | N52: 0
A53: 99P_2013-14_June | B53: 0 | C53: G | D53: G | E53: G | F53: AR | G53: G | H53: 0 | I53: 0 | J53: G | K53: G | L53: 0 | M53: AMBER-GREEN | N53: 0
A54: 02X_2013-14_June | B54: 0 | C54: G | D54: G | E54: G | F54: G | G54: G | H54: 0 | I54: 0 | J54: G | K54: G | L54: 0 | M54: GREEN | N54: 0
A55: 02N_2013-14_June | B55: 0 | C55: G | D55: G | E55: G | F55: G | G55: G | H55: 0 | I55: 0 | J55: G | K55: G | L55: 0 | M55: GREEN | N55: 0
A56: 07P_2013-14_June | B56: 0 | C56: G | D56: G | E56: G | F56: AR | G56: AG | H56: 0 | I56: 0 | J56: G | K56: G | L56: 0 | M56: AMBER-GREEN | N56: 0
A57: 03R_2013-14_June | B57: 0 | C57: AG | D57: G | E57: G | F57: R | G57: G | H57: 0 | I57: 0 | J57: G | K57: G | L57: 0 | M57: AMBER-RED | N57: 0
A58: 03Y_2013-14_June | B58: 0 | C58: G | D58: G | E58: G | F58: G | G58: G | H58: 0 | I58: 0 | J58: G | K58: G | L58: 0 | M58: GREEN | N58: 0
A59: 04J_2013-14_June | B59: 0 | C59: G | D59: G | E59: G | F59: G | G59: G | H59: 0 | I59: 0 | J59: G | K59: G | L59: 0 | M59: GREEN | N59: 0
A60: 04N_2013-14_June | B60: 0 | C60: G | D60: G | E60: G | F60: G | G60: G | H60: 0 | I60: 0 | J60: G | K60: G | L60: 0 | M60: GREEN | N60: 0
A61: 02Q_2013-14_June | B61: 0 | C61: G | D61: G | E61: G | F61: G | G61: G | H61: 0 | I61: 0 | J61: G | K61: G | L61: 0 | M61: GREEN | N61: 0
A62: 10N_2013-14_June | B62: 0 | C62: G | D62: G | E62: G | F62: G | G62: G | H62: 0 | I62: 0 | J62: G | K62: G | L62: 0 | M62: GREEN | N62: 0
A63: 10T_2013-14_June | B63: 0 | C63: G | D63: G | E63: G | F63: AG | G63: G | H63: 0 | I63: 0 | J63: G | K63: G | L63: 0 | M63: AMBER-GREEN | N63: 0
A64: 11J_2013-14_June | B64: 0 | C64: G | D64: G | E64: G | F64: G | G64: G | H64: 0 | I64: 0 | J64: G | K64: G | L64: 0 | M64: GREEN | N64: 0
A65: 06W_2013-14_June | B65: 0 | C65: G | D65: G | E65: R | F65: AR | G65: G | H65: 0 | I65: 0 | J65: G | K65: AR | L65: 0 | M65: AMBER-GREEN | N65: 0
A66: 08D_2013-14_June | B66: 0 | C66: AR | D66: G | E66: G | F66: G | G66: G | H66: 0 | I66: 0 | J66: G | K66: G | L66: 0 | M66: AMBER-GREEN | N66: 0
A67: 09D_2013-14_June | B67: 0 | C67: G | D67: G | E67: G | F67: AG | G67: AR | H67: 0 | I67: 0 | J67: G | K67: G | L67: 0 | M67: AMBER-GREEN | N67: 0
A68: 09F_2013-14_June | B68: 0 | C68: AG | D68: G | E68: G | F68: AR | G68: AR | H68: 0 | I68: 0 | J68: G | K68: R | L68: 0 | M68: AMBER-RED | N68: 0
A69: 09L_2013-14_June | B69: 0 | C69: G | D69: G | E69: G | F69: R | G69: AR | H69: 0 | I69: 0 | J69: G | K69: R | L69: 0 | M69: RED | N69: 0
A70: 10K_2013-14_June | B70: 0 | C70: G | D70: G | E70: G | F70: G | G70: G | H70: 0 | I70: 0 | J70: G | K70: G | L70: 0 | M70: GREEN | N70: 0
A71: 07N_2013-14_June | B71: 0 | C71: G | D71: G | E71: G | F71: G | G71: G | H71: 0 | I71: 0 | J71: G | K71: G | L71: 0 | M71: GREEN | N71: 0
A72: 00Q_2013-14_June | B72: 0 | C72: G | D72: G | E72: G | F72: AR | G72: G | H72: 0 | I72: 0 | J72: G | K72: AG | L72: 0 | M72: AMBER-GREEN | N72: 0
A73: 07Q_2013-14_June | B73: 0 | C73: G | D73: G | E73: G | F73: G | G73: G | H73: 0 | I73: 0 | J73: G | K73: G | L73: 0 | M73: GREEN | N73: 0
A74: 09J_2013-14_June | B74: 0 | C74: G | D74: G | E74: G | F74: G | G74: G | H74: 0 | I74: 0 | J74: G | K74: G | L74: 0 | M74: GREEN | N74: 0
A75: 10A_2013-14_June | B75: 0 | C75: G | D75: G | E75: G | F75: G | G75: G | H75: 0 | I75: 0 | J75: G | K75: AG | L75: 0 | M75: AMBER-GREEN | N75: 0
A76: 10D_2013-14_June | B76: 0 | C76: G | D76: G | E76: G | F76: G | G76: G | H76: 0 | I76: 0 | J76: G | K76: G | L76: 0 | M76: GREEN | N76: 0
A77: 01N_2013-14_June | B77: 0 | C77: G | D77: G | E77: G | F77: G | G77: G | H77: 0 | I77: 0 | J77: G | K77: G | L77: 0 | M77: GREEN | N77: 0
A78: 01Y_2013-14_June | B78: 0 | C78: G | D78: G | E78: G | F78: G | G78: G | H78: 0 | I78: 0 | J78: G | K78: G | L78: 0 | M78: GREEN | N78: 0
A79: 99A_2013-14_June | B79: 0 | C79: G | D79: G | E79: G | F79: G | G79: G | H79: 0 | I79: 0 | J79: G | K79: G | L79: 0 | M79: GREEN | N79: 0
A80: 99H_2013-14_June | B80: 0 | C80: G | D80: G | E80: G | F80: AR | G80: G | H80: 0 | I80: 0 | J80: G | K80: AG | L80: 0 | M80: AMBER-GREEN | N80: 0
A81: 00L_2013-14_June | B81: 0 | C81: AR | D81: G | E81: G | F81: G | G81: G | H81: 0 | I81: 0 | J81: G | K81: AG | L81: 0 | M81: AMBER-GREEN | N81: 0
A82: 08W_2013-14_June | B82: 0 | C82: AG | D82: G | E82: G | F82: AR | G82: AR | H82: 0 | I82: 0 | J82: G | K82: R | L82: 0 | M82: AMBER-RED | N82: 0
A83: 08E_2013-14_June | B83: 0 | C83: G | D83: G | E83: G | F83: AR | G83: AG | H83: 0 | I83: 0 | J83: G | K83: G | L83: 0 | M83: AMBER-GREEN | N83: 0
A84: 07W_2013-14_June | B84: 0 | C84: G | D84: G | E84: G | F84: AR | G84: AR | H84: 0 | I84: 0 | J84: G | K84: G | L84: 0 | M84: AMBER-GREEN | N84: 0
A85: 03K_2013-14_June | B85: 0 | C85: G | D85: G | E85: G | F85: AR | G85: G | H85: 0 | I85: 0 | J85: G | K85: G | L85: 0 | M85: AMBER-GREEN | N85: 0
A86: 03Q_2013-14_June | B86: 0 | C86: R | D86: R | E86: G | F86: AR | G86: AR | H86: 0 | I86: 0 | J86: G | K86: AR | L86: 0 | M86: RED | N86: 0
A87: 04C_2013-14_June | B87: 0 | C87: G | D87: G | E87: G | F87: G | G87: G | H87: 0 | I87: 0 | J87: G | K87: G | L87: 0 | M87: GREEN | N87: 0
A88: 04M_2013-14_June | B88: 0 | C88: G | D88: G | E88: G | F88: G | G88: G | H88: 0 | I88: 0 | J88: G | K88: G | L88: 0 | M88: GREEN | N88: 0
A89: 02D_2013-14_June | B89: 0 | C89: G | D89: G | E89: G | F89: G | G89: G | H89: 0 | I89: 0 | J89: G | K89: AG | L89: 0 | M89: AMBER-GREEN | N89: 0
A90: 03D_2013-14_June | B90: 0 | C90: G | D90: G | E90: G | F90: G | G90: G | H90: 0 | I90: 0 | J90: G | K90: G | L90: 0 | M90: GREEN | N90: 0
A91: 10M_2013-14_June | B91: 0 | C91: G | D91: G | E91: G | F91: G | G91: G | H91: 0 | I91: 0 | J91: G | K91: G | L91: 0 | M91: GREEN | N91: 0
A92: 10R_2013-14_June | B92: 0 | C92: G | D92: G | E92: G | F92: G | G92: G | H92: 0 | I92: 0 | J92: G | K92: G | L92: 0 | M92: GREEN | N92: 0
A93: 11C_2013-14_June | B93: 0 | C93: AG | D93: G | E93: G | F93: G | G93: AG | H93: 0 | I93: 0 | J93: G | K93: G | L93: 0 | M93: AMBER-GREEN | N93: 0
A94: 11M_2013-14_June | B94: 0 | C94: G | D94: G | E94: G | F94: G | G94: G | H94: 0 | I94: 0 | J94: G | K94: G | L94: 0 | M94: GREEN | N94: 0
A95: 08A_2013-14_June | B95: 0 | C95: G | D95: G | E95: G | F95: G | G95: G | H95: 0 | I95: 0 | J95: G | K95: AR | L95: 0 | M95: AMBER-GREEN | N95: 0
A96: 08M_2013-14_June | B96: 0 | C96: G | D96: G | E96: G | F96: AG | G96: AG | H96: 0 | I96: 0 | J96: G | K96: AG | L96: 0 | M96: AMBER-GREEN | N96: 0
A97: 08Q_2013-14_June | B97: 0 | C97: G | D97: G | E97: G | F97: G | G97: G | H97: 0 | I97: 0 | J97: G | K97: G | L97: 0 | M97: GREEN | N97: 0
A98: 09E_2013-14_June | B98: 0 | C98: G | D98: G | E98: G | F98: G | G98: G | H98: 0 | I98: 0 | J98: G | K98: G | L98: 0 | M98: GREEN | N98: 0
A99: 07V_2013-14_June | B99: 0 | C99: G | D99: G | E99: G | F99: AG | G99: AG | H99: 0 | I99: 0 | J99: G | K99: G | L99: 0 | M99: AMBER-GREEN | N99: 0
A100: 04X_2013-14_June | B100: 0 | C100: G | D100: G | E100: G | F100: G | G100: G | H100: 0 | I100: 0 | J100: G | K100: G | L100: 0 | M100: GREEN | N100: 0
A101: 00K_2013-14_June | B101: 0 | C101: G | D101: G | E101: G | F101: G | G101: G | H101: 0 | I101: 0 | J101: G | K101: G | L101: 0 | M101: GREEN | N101: 0
A102: 05P_2013-14_June | B102: 0 | C102: G | D102: G | E102: G | F102: G | G102: G | H102: 0 | I102: 0 | J102: G | K102: G | L102: 0 | M102: GREEN | N102: 0
A103: 05Y_2013-14_June | B103: 0 | C103: G | D103: G | E103: G | F103: G | G103: G | H103: 0 | I103: 0 | J103: G | K103: G | L103: 0 | M103: GREEN | N103: 0
A104: 01C_2013-14_June | B104: 0 | C104: G | D104: G | E104: R | F104: G | G104: G | H104: 0 | I104: 0 | J104: G | K104: R | L104: 0 | M104: AMBER-RED | N104: 0
A105: 01X_2013-14_June | B105: 0 | C105: G | D105: G | E105: G | F105: G | G105: G | H105: 0 | I105: 0 | J105: G | K105: G | L105: 0 | M105: GREEN | N105: 0
A106: 04D_2013-14_June | B106: 0 | C106: G | D106: G | E106: G | F106: G | G106: G | H106: 0 | I106: 0 | J106: G | K106: G | L106: 0 | M106: GREEN | N106: 0
A107: 08G_2013-14_June | B107: 0 | C107: G | D107: G | E107: G | F107: AR | G107: AG | H107: 0 | I107: 0 | J107: G | K107: G | L107: 0 | M107: AMBER-GREEN | N107: 0
A108: 09N_2013-14_June | B108: 0 | C108: G | D108: G | E108: G | F108: R | G108: AR | H108: 0 | I108: 0 | J108: G | K108: G | L108: 0 | M108: AMBER-RED | N108: 0
A109: 06T_2013-14_June | B109: 0 | C109: G | D109: G | E109: G | F109: G | G109: AG | H109: 0 | I109: 0 | J109: G | K109: AR | L109: 0 | M109: AMBER-GREEN | N109: 0
A110: 07R_2013-14_June | B110: 0 | C110: G | D110: G | E110: G | F110: AR | G110: AR | H110: 0 | I110: 0 | J110: G | K110: G | L110: 0 | M110: AMBER-GREEN | N110: 0
A111: 05C_2013-14_June | B111: 0 | C111: G | D111: G | E111: G | F111: G | G111: G | H111: 0 | I111: 0 | J111: G | K111: G | L111: 0 | M111: GREEN | N111: 0
A112: 03W_2013-14_June | B112: 0 | C112: G | D112: G | E112: G | F112: G | G112: G | H112: 0 | I112: 0 | J112: G | K112: G | L112: 0 | M112: GREEN | N112: 0
A113: 04R_2013-14_June | B113: 0 | C113: AG | D113: AG | E113: G | F113: G | G113: G | H113: 0 | I113: 0 | J113: G | K113: G | L113: 0 | M113: AMBER-GREEN | N113: 0
A114: 03E_2013-14_June | B114: 0 | C114: G | D114: G | E114: G | F114: AG | G114: AG | H114: 0 | I114: 0 | J114: G | K114: AG | L114: 0 | M114: AMBER-GREEN | N114: 0
A115: 06D_2013-14_June | B115: 0 | C115: G | D115: G | E115: G | F115: G | G115: G | H115: 0 | I115: 0 | J115: G | K115: G | L115: 0 | M115: GREEN | N115: 0
A116: 10Y_2013-14_June | B116: 0 | C116: G | D116: G | E116: G | F116: AR | G116: G | H116: 0 | I116: 0 | J116: G | K116: G | L116: 0 | M116: AMBER-GREEN | N116: 0
A117: 11E_2013-14_June | B117: 0 | C117: G | D117: G | E117: G | F117: G | G117: G | H117: 0 | I117: 0 | J117: G | K117: G | L117: 0 | M117: GREEN | N117: 0
A118: 06N_2013-14_June | B118: 0 | C118: G | D118: G | E118: G | F118: AG | G118: G | H118: 0 | I118: 0 | J118: G | K118: AG | L118: 0 | M118: AMBER-GREEN | N118: 0
A119: 07J_2013-14_June | B119: 0 | C119: G | D119: G | E119: G | F119: AR | G119: G | H119: 0 | I119: 0 | J119: G | K119: AR | L119: 0 | M119: AMBER-GREEN | N119: 0
A120: 08J_2013-14_June | B120: 0 | C120: G | D120: G | E120: G | F120: G | G120: G | H120: 0 | I120: 0 | J120: G | K120: G | L120: 0 | M120: GREEN | N120: 0
A121: 08R_2013-14_June | B121: 0 | C121: G | D121: G | E121: G | F121: AG | G121: G | H121: 0 | I121: 0 | J121: G | K121: G | L121: 0 | M121: AMBER-GREEN | N121: 0
A122: 07T_2013-14_June | B122: 0 | C122: R | D122: G | E122: G | F122: AR | G122: AG | H122: 0 | I122: 0 | J122: G | K122: G | L122: 0 | M122: AMBER-RED | N122: 0
A123: 00P_2013-14_June | B123: 0 | C123: G | D123: G | E123: G | F123: G | G123: G | H123: 0 | I123: 0 | J123: G | K123: G | L123: 0 | M123: GREEN | N123: 0
A124: 05G_2013-14_June | B124: 0 | C124: R | D124: G | E124: G | F124: G | G124: G | H124: 0 | I124: 0 | J124: G | K124: G | L124: 0 | M124: AMBER-RED | N124: 0
A125: 05H_2013-14_June | B125: 0 | C125: G | D125: G | E125: G | F125: AR | G125: G | H125: 0 | I125: 0 | J125: G | K125: AR | L125: 0 | M125: AMBER-GREEN | N125: 0
A126: 05N_2013-14_June | B126: 0 | C126: G | D126: G | E126: G | F126: G | G126: G | H126: 0 | I126: 0 | J126: G | K126: AR | L126: 0 | M126: AMBER-GREEN | N126: 0
A127: 05T_2013-14_June | B127: 0 | C127: R | D127: R | E127: G | F127: AG | G127: AG | H127: 0 | I127: 0 | J127: G | K127: G | L127: 0 | M127: RED | N127: 0
A128: 01F_2013-14_June | B128: 0 | C128: G | D128: G | E128: G | F128: G | G128: G | H128: 0 | I128: 0 | J128: G | K128: G | L128: 0 | M128: GREEN | N128: 0
A129: 09C_2013-14_June | B129: 0 | C129: G | D129: G | E129: G | F129: G | G129: G | H129: 0 | I129: 0 | J129: G | K129: AG | L129: 0 | M129: AMBER-GREEN | N129: 0
A130: 00Y_2013-14_June | B130: 0 | C130: G | D130: G | E130: G | F130: AR | G130: G | H130: 0 | I130: 0 | J130: G | K130: G | L130: 0 | M130: AMBER-GREEN | N130: 0
A131: 01G_2013-14_June | B131: 0 | C131: G | D131: G | E131: G | F131: G | G131: G | H131: 0 | I131: 0 | J131: G | K131: G | L131: 0 | M131: GREEN | N131: 0
A132: 99Q_2013-14_June | B132: 0 | C132: G | D132: G | E132: G | F132: G | G132: G | H132: 0 | I132: 0 | J132: G | K132: G | L132: 0 | M132: GREEN | N132: 0
A133: 01W_2013-14_June | B133: 0 | C133: G | D133: G | E133: G | F133: AR | G133: G | H133: 0 | I133: 0 | J133: G | K133: G | L133: 0 | M133: AMBER-GREEN | N133: 0
A134: 99C_2013-14_June | B134: 0 | C134: G | D134: G | E134: G | F134: G | G134: G | H134: 0 | I134: 0 | J134: G | K134: AG | L134: 0 | M134: AMBER-GREEN | N134: 0
A135: 05F_2013-14_June | B135: 0 | C135: R | D135: G | E135: G | F135: G | G135: G | H135: 0 | I135: 0 | J135: G | K135: G | L135: 0 | M135: AMBER-RED | N135: 0
A136: 03L_2013-14_June | B136: 0 | C136: G | D136: G | E136: G | F136: G | G136: G | H136: 0 | I136: 0 | J136: G | K136: G | L136: 0 | M136: GREEN | N136: 0
A137: 03J_2013-14_June | B137: 0 | C137: G | D137: G | E137: G | F137: G | G137: G | H137: 0 | I137: 0 | J137: G | K137: G | L137: 0 | M137: GREEN | N137: 0
A138: 03V_2013-14_June | B138: 0 | C138: G | D138: G | E138: G | F138: G | G138: G | H138: 0 | I138: 0 | J138: G | K138: AG | L138: 0 | M138: AMBER-GREEN | N138: 0
A139: 13P_2013-14_June | B139: 0 | C139: G | D139: G | E139: G | F139: AR | G139: AR | H139: 0 | I139: 0 | J139: G | K139: G | L139: 0 | M139: AMBER-GREEN | N139: 0
A140: 02F_2013-14_June | B140: 0 | C140: G | D140: G | E140: G | F140: G | G140: G | H140: 0 | I140: 0 | J140: G | K140: G | L140: 0 | M140: GREEN | N140: 0
A141: 03F_2013-14_June | B141: 0 | C141: G | D141: G | E141: G | F141: G | G141: G | H141: 0 | I141: 0 | J141: G | K141: G | L141: 0 | M141: GREEN | N141: 0
A142: 10X_2013-14_June | B142: 0 | C142: G | D142: G | E142: G | F142: AG | G142: G | H142: 0 | I142: 0 | J142: G | K142: G | L142: 0 | M142: AMBER-GREEN | N142: 0
A143: 11X_2013-14_June | B143: 0 | C143: G | D143: G | E143: G | F143: G | G143: G | H143: 0 | I143: 0 | J143: G | K143: G | L143: 0 | M143: GREEN | N143: 0
A144: 06M_2013-14_June | B144: 0 | C144: G | D144: G | E144: G | F144: AG | G144: G | H144: 0 | I144: 0 | J144: G | K144: G | L144: 0 | M144: AMBER-GREEN | N144: 0
A145: 08C_2013-14_June | B145: 0 | C145: G | D145: G | E145: G | F145: G | G145: AG | H145: 0 | I145: 0 | J145: G | K145: G | L145: 0 | M145: AMBER-GREEN | N145: 0
A146: 08F_2013-14_June | B146: 0 | C146: R | D146: G | E146: G | F146: G | G146: G | H146: 0 | I146: 0 | J146: G | K146: AG | L146: 0 | M146: AMBER-RED | N146: 0
A147: 08H_2013-14_June | B147: 0 | C147: G | D147: G | E147: G | F147: AG | G147: AG | H147: 0 | I147: 0 | J147: G | K147: G | L147: 0 | M147: AMBER-GREEN | N147: 0
A148: 08T_2013-14_June | B148: 0 | C148: G | D148: G | E148: G | F148: AG | G148: AR | H148: 0 | I148: 0 | J148: G | K148: G | L148: 0 | M148: AMBER-GREEN | N148: 0
A149: 10G_2013-14_June | B149: 0 | C149: G | D149: G | E149: G | F149: R | G149: AR | H149: 0 | I149: 0 | J149: G | K149: G | L149: 0 | M149: AMBER-RED | N149: 0
A150: 10L_2013-14_June | B150: 0 | C150: G | D150: G | E150: G | F150: G | G150: G | H150: 0 | I150: 0 | J150: G | K150: G | L150: 0 | M150: GREEN | N150: 0
A151: 07Y_2013-14_June | B151: 0 | C151: G | D151: G | E151: G | F151: AR | G151: AG | H151: 0 | I151: 0 | J151: G | K151: AR | L151: 0 | M151: AMBER-GREEN | N151: 0
A152: 00J_2013-14_June | B152: 0 | C152: G | D152: G | E152: G | F152: G | G152: G | H152: 0 | I152: 0 | J152: G | K152: G | L152: 0 | M152: GREEN | N152: 0
A153: 01V_2013-14_June | B153: 0 | C153: G | D153: G | E153: G | F153: G | G153: G | H153: 0 | I153: 0 | J153: G | K153: G | L153: 0 | M153: GREEN | N153: 0
A154: 00V_2013-14_June | B154: 0 | C154: G | D154: G | E154: G | F154: G | G154: G | H154: 0 | I154: 0 | J154: G | K154: AR | L154: 0 | M154: AMBER-GREEN | N154: 0
A155: 01K_2013-14_June | B155: 0 | C155: G | D155: G | E155: G | F155: AR | G155: AR | H155: 0 | I155: 0 | J155: G | K155: AG | L155: 0 | M155: AMBER-GREEN | N155: 0
A156: 99D_2013-14_June | B156: 0 | C156: G | D156: G | E156: G | F156: R | G156: G | H156: 0 | I156: 0 | J156: G | K156: G | L156: 0 | M156: AMBER-RED | N156: 0
A157: 01D_2013-14_June | B157: 0 | C157: G | D157: G | E157: G | F157: AG | G157: G | H157: 0 | I157: 0 | J157: G | K157: G | L157: 0 | M157: AMBER-GREEN | N157: 0
A158: 08Y_2013-14_June | B158: 0 | C158: R | D158: G | E158: G | F158: AG | G158: AG | H158: 0 | I158: 0 | J158: G | K158: G | L158: 0 | M158: AMBER-RED | N158: 0
A159: 02M_2013-14_June | B159: 0 | C159: G | D159: G | E159: G | F159: AR | G159: G | H159: 0 | I159: 0 | J159: G | K159: AG | L159: 0 | M159: AMBER-GREEN | N159: 0
A160: 01H_2013-14_June | B160: 0 | C160: G | D160: G | E160: G | F160: G | G160: G | H160: 0 | I160: 0 | J160: G | K160: AG | L160: 0 | M160: AMBER-GREEN | N160: 0
A161: 99J_2013-14_June | B161: 0 | C161: G | D161: G | E161: G | F161: G | G161: G | H161: 0 | I161: 0 | J161: G | K161: AG | L161: 0 | M161: AMBER-GREEN | N161: 0
A162: 04H_2013-14_June | B162: 0 | C162: G | D162: G | E162: G | F162: G | G162: G | H162: 0 | I162: 0 | J162: G | K162: G | L162: 0 | M162: GREEN | N162: 0
A163: 03N_2013-14_June | B163: 0 | C163: G | D163: G | E163: G | F163: G | G163: G | H163: 0 | I163: 0 | J163: G | K163: G | L163: 0 | M163: GREEN | N163: 0
A164: 03X_2013-14_June | B164: 0 | C164: G | D164: G | E164: G | F164: G | G164: G | H164: 0 | I164: 0 | J164: G | K164: G | L164: 0 | M164: GREEN | N164: 0
A165: 06A_2013-14_June | B165: 0 | C165: G | D165: G | E165: G | F165: G | G165: G | H165: 0 | I165: 0 | J165: G | K165: G | L165: 0 | M165: GREEN | N165: 0
A166: 11A_2013-14_June | B166: 0 | C166: G | D166: G | E166: G | F166: G | G166: G | H166: 0 | I166: 0 | J166: G | K166: G | L166: 0 | M166: GREEN | N166: 0
A167: 11T_2013-14_June | B167: 0 | C167: G | D167: G | E167: G | F167: G | G167: G | H167: 0 | I167: 0 | J167: G | K167: R | L167: 0 | M167: AMBER-RED | N167: 0
A168: 12A_2013-14_June | B168: 0 | C168: G | D168: G | E168: G | F168: AR | G168: AG | H168: 0 | I168: 0 | J168: G | K168: R | L168: 0 | M168: AMBER-RED | N168: 0
A169: 12D_2013-14_June | B169: 0 | C169: R | D169: G | E169: G | F169: AR | G169: G | H169: 0 | I169: 0 | J169: G | K169: AR | L169: 0 | M169: AMBER-RED | N169: 0
A170: 06K_2013-14_June | B170: 0 | C170: G | D170: G | E170: G | F170: G | G170: G | H170: 0 | I170: 0 | J170: G | K170: AG | L170: 0 | M170: AMBER-GREEN | N170: 0
A171: 06P_2013-14_June | B171: 0 | C171: R | D171: G | E171: G | F171: AR | G171: AR | H171: 0 | I171: 0 | J171: G | K171: AR | L171: 0 | M171: AMBER-RED | N171: 0
A172: 08V_2013-14_June | B172: 0 | C172: G | D172: G | E172: G | F172: G | G172: G | H172: 0 | I172: 0 | J172: G | K172: G | L172: 0 | M172: GREEN | N172: 0
A173: 09A_2013-14_June | B173: 0 | C173: R | D173: G | E173: G | F173: AG | G173: AG | H173: 0 | I173: 0 | J173: G | K173: G | L173: 0 | M173: AMBER-RED | N173: 0
A174: 09G_2013-14_June | B174: 0 | C174: G | D174: G | E174: G | F174: AG | G174: G | H174: 0 | I174: 0 | J174: G | K174: R | L174: 0 | M174: AMBER-RED | N174: 0
A175: 10H_2013-14_June | B175: 0 | C175: G | D175: G | E175: G | F175: AR | G175: G | H175: 0 | I175: 0 | J175: G | K175: G | L175: 0 | M175: AMBER-GREEN | N175: 0
A176: 07M_2013-14_June | B176: 0 | C176: G | D176: G | E176: G | F176: G | G176: G | H176: 0 | I176: 0 | J176: G | K176: G | L176: 0 | M176: GREEN | N176: 0
A177: 00C_2013-14_June | B177: 0 | C177: G | D177: G | E177: G | F177: G | G177: G | H177: 0 | I177: 0 | J177: G | K177: G | L177: 0 | M177: GREEN | N177: 0
A178: 00H_2013-14_June | B178: 0 | C178: G | D178: G | E178: G | F178: G | G178: G | H178: 0 | I178: 0 | J178: G | K178: G | L178: 0 | M178: GREEN | N178: 0
A179: 00M_2013-14_June | B179: 0 | C179: G | D179: G | E179: G | F179: G | G179: G | H179: 0 | I179: 0 | J179: G | K179: G | L179: 0 | M179: GREEN | N179: 0
A180: 00N_2013-14_June | B180: 0 | C180: G | D180: G | E180: G | F180: G | G180: G | H180: 0 | I180: 0 | J180: G | K180: AR | L180: 0 | M180: AMBER-GREEN | N180: 0
A181: 05A_2013-14_June | B181: 0 | C181: R | D181: R | E181: G | F181: AG | G181: G | H181: 0 | I181: 0 | J181: G | K181: AG | L181: 0 | M181: RED | N181: 0
A182: 05W_2013-14_June | B182: 0 | C182: R | D182: G | E182: G | F182: G | G182: G | H182: 0 | I182: 0 | J182: G | K182: G | L182: 0 | M182: AMBER-RED | N182: 0
A183: 10E_2013-14_June | B183: 0 | C183: G | D183: G | E183: G | F183: G | G183: G | H183: 0 | I183: 0 | J183: G | K183: AG | L183: 0 | M183: AMBER-GREEN | N183: 0
A184: 00R_2013-14_June | B184: 0 | C184: G | D184: G | E184: G | F184: G | G184: G | H184: 0 | I184: 0 | J184: G | K184: G | L184: 0 | M184: GREEN | N184: 0
A185: 04Q_2013-14_June | B185: 0 | C185: G | D185: G | E185: G | F185: G | G185: G | H185: 0 | I185: 0 | J185: G | K185: G | L185: 0 | M185: GREEN | N185: 0
A186: 05L_2013-14_June | B186: 0 | C186: AR | D186: G | E186: G | F186: G | G186: G | H186: 0 | I186: 0 | J186: G | K186: AR | L186: 0 | M186: AMBER-GREEN | N186: 0
A187: 02W_2013-14_June | B187: 0 | C187: G | D187: G | E187: G | F187: G | G187: G | H187: 0 | I187: 0 | J187: G | K187: G | L187: 0 | M187: GREEN | N187: 0
A188: 04L_2013-14_June | B188: 0 | C188: G | D188: G | E188: G | F188: G | G188: G | H188: 0 | I188: 0 | J188: G | K188: G | L188: 0 | M188: GREEN | N188: 0
A189: 07K_2013-14_June | B189: 0 | C189: G | D189: G | E189: R | F189: G | G189: G | H189: 0 | I189: 0 | J189: G | K189: AG | L189: 0 | M189: AMBER-GREEN | N189: 0
A190: 07G_2013-14_June | B190: 0 | C190: R | D190: G | E190: G | F190: R | G190: AR | H190: 0 | I190: 0 | J190: G | K190: G | L190: 0 | M190: RED | N190: 0
A191: 99G_2013-14_June | B191: 0 | C191: R | D191: G | E191: G | F191: AR | G191: AG | H191: 0 | I191: 0 | J191: G | K191: G | L191: 0 | M191: AMBER-RED | N191: 0
A192: 03G_2013-14_June | B192: 0 | C192: G | D192: G | E192: G | F192: G | G192: G | H192: 0 | I192: 0 | J192: G | K192: G | L192: 0 | M192: GREEN | N192: 0
A193: 04K_2013-14_June | B193: 0 | C193: G | D193: G | E193: G | F193: G | G193: G | H193: 0 | I193: 0 | J193: G | K193: G | L193: 0 | M193: GREEN | N193: 0
A194: 04E_2013-14_June | B194: 0 | C194: G | D194: G | E194: G | F194: AG | G194: G | H194: 0 | I194: 0 | J194: G | K194: G | L194: 0 | M194: AMBER-GREEN | N194: 0
A195: 03T_2013-14_June | B195: 0 | C195: G | D195: G | E195: G | F195: R | G195: G | H195: 0 | I195: 0 | J195: G | K195: G | L195: 0 | M195: AMBER-RED | N195: 0
A196: 04F_2013-14_June | B196: 0 | C196: R | D196: G | E196: G | F196: AR | G196: G | H196: 0 | I196: 0 | J196: G | K196: AG | L196: 0 | M196: AMBER-RED | N196: 0
A197: 04G_2013-14_June | B197: 0 | C197: G | D197: G | E197: G | F197: AG | G197: AR | H197: 0 | I197: 0 | J197: G | K197: AG | L197: 0 | M197: AMBER-GREEN | N197: 0
A198: 02G_2013-14_June | B198: 0 | C198: G | D198: G | E198: G | F198: AG | G198: G | H198: 0 | I198: 0 | J198: G | K198: AG | L198: 0 | M198: AMBER-GREEN | N198: 0
A199: 02P_2013-14_June | B199: 0 | C199: G | D199: G | E199: G | F199: G | G199: G | H199: 0 | I199: 0 | J199: G | K199: G | L199: 0 | M199: GREEN | N199: 0
A200: 10V_2013-14_June | B200: 0 | C200: G | D200: G | E200: G | F200: G | G200: G | H200: 0 | I200: 0 | J200: G | K200: G | L200: 0 | M200: GREEN | N200: 0
... 434 more rows

Sheet CCG_PROV_SELFCERT_DOMAIN1 (hidden)
A1: CCG Code | B1: ID | C1: Provider Code | D1: Scq Prov Name | E1: Prov Percent | F1: CCG Lead | G1: CQC | H1: Monitor | I1: TDA | J1: F&F Feedback | K1: Negative | L1: MRSA | M1: CDiff | N1: MSA | O1: SUI | P1: Never Event | Q1: F&F rate | R1: Year | S1: Period
A2: 00C | B2: 2013-14_June_00C_PROV1 | C2: RXP | D2: COUNTY DURHAM AND DARLINGTON NHS FOUNDATION TRUST | E2: 19 | F2: Associate | G2: No | H2: No | I2: No | J2: No | K2: No | L2: No | M2: No | N2: No | O2: Yes – Action plan in place | P2: No | Q2: No | R2: 2013-14 | S2: June
A3: 00C | B3: 2013-14_June_00C_PROV2 | C3: RTR | D3: SOUTH TEES HOSPITALS NHS FOUNDATION TRUST | E3: 5 | F3: Associate | G3: No | H3: Yes – Action plan in place | I3: No | J3: No | K3: No | L3: No | M3: Yes – Action plan in place | N3: No | O3: Yes – Action plan in place | P3: Yes – Action plan in place | Q3: No | R3: 2013-14 | S3: June
A4: 00C | B4: 2013-14_June_00C_PROV3 | C4: RX3 | D4: TEES, ESK AND WEAR VALLEYS NHS FOUNDATION TRUST | E4: 8 | F4: Associate | G4: Yes – Action plan in place | H4: Yes – Action plan in place | I4: No | J4: No | K4: No | L4: No | M4: No | N4: No | O4: Yes – Action plan in place | P4: No | Q4: Further development required | R4: 2013-14 | S4: June
A5: 00C | B5: 2013-14_June_00C_PROV4 | C5: RX6 | D5: NORTH EAST AMBULANCE SERVICE NHS FOUNDATION TRUST | E5: 5 | F5: Associate | G5: No | H5: No | I5: No | J5: No | K5: No | L5: No | M5: No | N5: No | O5: Yes – Action plan in place | P5: No | Q5: Further development required | R5: 2013-14 | S5: June
A6: 00D | B6: 2013-14_June_00D_PROV1 | C6: RXP | D6: COUNTY DURHAM AND DARLINGTON NHS FOUNDATION TRUST | E6: 41 | F6: Lead | G6: No | H6: No | I6: No | J6: No | K6: No | L6: No | M6: No | N6: No | O6: Yes – Action plan in place | P6: No | Q6: No | R6: 2013-14 | S6: June
A7: 00D | B7: 2013-14_June_00D_PROV2 | C7: RVW | D7: NORTH TEES AND HARTLEPOOL NHS FOUNDATION TRUST | E7: 19 | F7: Lead | G7: No | H7: No | I7: No | J7: No | K7: No | L7: No | M7: No | N7: No | O7: Yes – Action plan in place | P7: No | Q7: No | R7: 2013-14 | S7: June
A8: 00D | B8: 2013-14_June_00D_PROV3 | C8: RLN | D8: CITY HOSPITALS SUNDERLAND NHS FOUNDATION TRUST | E8: 10 | F8: Lead | G8: No | H8: No | I8: No | J8: No | K8: No | L8: Yes – Action plan in place | M8: Yes – Action plan in place | N8: No | O8: Yes – Action plan in place | P8: Yes – Action plan in place | Q8: No | R8: 2013-14 | S8: June
A9: 00D | B9: 2013-14_June_00D_PROV4 | C9: RX6 | D9: NORTH EAST AMBULANCE SERVICE NHS FOUNDATION TRUST | E9: 14 | F9: Associate | G9: No | H9: No | I9: No | J9: No | K9: No | L9: No | M9: No | N9: No | O9: Yes – Action plan in place | P9: No | Q9: Further development required | R9: 2013-14 | S9: June
A10: 00D | B10: 2013-14_June_00D_PROV5 | C10: RX3 | D10: TEES, ESK AND WEAR VALLEYS NHS FOUNDATION TRUST | E10: 27 | F10: Associate | G10: Yes – Action plan in place | H10: Yes – Action plan in place | I10: No | J10: No | K10: No | L10: No | M10: No | N10: No | O10: Yes – Action plan in place | P10: No | Q10: Further development required | R10: 2013-14 | S10: June
A11: 00F | B11: 2013-14_June_00F_PROV1 | C11: RR7 | D11: GATESHEAD HEALTH NHS FOUNDATION TRUST | E11: 0 | F11: 0 | G11: No | H11: No | I11: No | J11: No | K11: No | L11: No | M11: No | N11: No | O11: Yes – Action plan in place | P11: No | Q11: No | R11: 2013-14 | S11: June
A12: 00F | B12: 2013-14_June_00F_PROV2 | C12: RTD | D12: THE NEWCASTLE UPON TYNE HOSPITALS NHS FOUNDATION TRUST | E12: 0 | F12: 0 | G12: No | H12: No | I12: No | J12: No | K12: No | L12: Yes – Action plan in place | M12: Yes – Action plan in place | N12: No | O12: Yes – Action plan in place | P12: Yes – Action plan in place | Q12: No | R12: 2013-14 | S12: June
A13: 00F | B13: 2013-14_June_00F_PROV3 | C13: RE9 | D13: SOUTH TYNESIDE NHS FOUNDATION TRUST | E13: 0 | F13: 0 | G13: No | H13: No | I13: No | J13: No | K13: No | L13: Yes – Action plan in place | M13: Yes – Action plan in place | N13: No | O13: Yes – Action plan in place | P13: No | Q13: No | R13: 2013-14 | S13: June
A14: 00F | B14: 2013-14_June_00F_PROV4 | C14: RX4 | D14: NORTHUMBERLAND, TYNE AND WEAR NHS FOUNDATION TRUST | E14: 0 | F14: 0 | G14: No | H14: No | I14: No | J14: No | K14: No | L14: No | M14: No | N14: No | O14: Yes – Action plan in place | P14: No | Q14: No | R14: 2013-14 | S14: June
A15: 00F | B15: 2013-14_June_00F_PROV5 | C15: RX6 | D15: NORTH EAST AMBULANCE SERVICE NHS FOUNDATION TRUST | E15: 0 | F15: 0 | G15: No | H15: No | I15: No | J15: No | K15: No | L15: No | M15: No | N15: No | O15: Yes – Action plan in place | P15: No | Q15: No | R15: 2013-14 | S15: June
A16: 00G | B16: 2013-14_June_00G_PROV1 | C16: RTD | D16: THE NEWCASTLE UPON TYNE HOSPITALS NHS FOUNDATION TRUST | E16: 0 | F16: 0 | G16: No | H16: No | I16: No | J16: No | K16: No | L16: Yes – Action plan in place | M16: Yes – Action plan in place | N16: No | O16: Yes – Action plan in place | P16: Yes – Action plan in place | Q16: No | R16: 2013-14 | S16: June
A17: 00G | B17: 2013-14_June_00G_PROV2 | C17: RTF | D17: NORTHUMBRIA HEALTHCARE NHS FOUNDATION TRUST | E17: 0 | F17: 0 | G17: No | H17: No | I17: No | J17: No | K17: Yes – Action plan in place | L17: Yes – Action plan in place | M17: No | N17: No | O17: Yes – Action plan in place | P17: No | Q17: Further development required | R17: 2013-14 | S17: June
A18: 00G | B18: 2013-14_June_00G_PROV3 | C18: RX4 | D18: NORTHUMBERLAND, TYNE AND WEAR NHS FOUNDATION TRUST | E18: 0 | F18: 0 | G18: No | H18: No | I18: No | J18: No | K18: No | L18: No | M18: No | N18: No | O18: Yes – Action plan in place | P18: No | Q18: No | R18: 2013-14 | S18: June
A19: 00G | B19: 2013-14_June_00G_PROV4 | C19: RX6 | D19: NORTH EAST AMBULANCE SERVICE NHS FOUNDATION TRUST | E19: 0 | F19: 0 | G19: No | H19: No | I19: No | J19: No | K19: No | L19: No | M19: No | N19: No | O19: Yes – Action plan in place | P19: No | Q19: No | R19: 2013-14 | S19: June
A20: 00H | B20: 2013-14_June_00H_PROV1 | C20: RTD | D20: THE NEWCASTLE UPON TYNE HOSPITALS NHS FOUNDATION TRUST | E20: 0 | F20: 0 | G20: No | H20: No | I20: No | J20: No | K20: No | L20: Yes – Action plan in place | M20: Yes – Action plan in place | N20: No | O20: Yes – Action plan in place | P20: Yes – Action plan in place | Q20: No | R20: 2013-14 | S20: June
A21: 00H | B21: 2013-14_June_00H_PROV2 | C21: RTF | D21: NORTHUMBRIA HEALTHCARE NHS FOUNDATION TRUST | E21: 0 | F21: 0 | G21: No | H21: No | I21: No | J21: No | K21: Yes – Action plan in place | L21: Yes – Action plan in place | M21: No | N21: No | O21: Yes – Action plan in place | P21: No | Q21: No | R21: 2013-14 | S21: June
A22: 00H | B22: 2013-14_June_00H_PROV3 | C22: RX4 | D22: NORTHUMBERLAND, TYNE AND WEAR NHS FOUNDATION TRUST | E22: 0 | F22: 0 | G22: No | H22: No | I22: No | J22: No | K22: No | L22: No | M22: No | N22: No | O22: Yes – Action plan in place | P22: No | Q22: No | R22: 2013-14 | S22: June
A23: 00H | B23: 2013-14_June_00H_PROV4 | C23: RX6 | D23: NORTH EAST AMBULANCE SERVICE NHS FOUNDATION TRUST | E23: 0 | F23: 0 | G23: No | H23: No | I23: No | J23: No | K23: No | L23: No | M23: No | N23: No | O23: Yes – Action plan in place | P23: No | Q23: No | R23: 2013-14 | S23: June
A24: 00J | B24: 2013-14_June_00J_PROV1 | C24: RXP | D24: COUNTY DURHAM AND DARLINGTON NHS FOUNDATION TRUST | E24: 40 | F24: Associate | G24: No | H24: No | I24: No | J24: No | K24: No | L24: No | M24: No | N24: No | O24: Yes – Action plan in place | P24: No | Q24: No | R24: 2013-14 | S24: June
A25: 00J | B25: 2013-14_June_00J_PROV2 | C25: RLN | D25: CITY HOSPITALS SUNDERLAND NHS FOUNDATION TRUST | E25: 5 | F25: Associate | G25: No | H25: No | I25: No | J25: No | K25: No | L25: Yes – Action plan in place | M25: Yes – Action plan in place | N25: No | O25: Yes – Action plan in place | P25: Yes – Action plan in place | Q25: No | R25: 2013-14 | S25: June
A26: 00J | B26: 2013-14_June_00J_PROV3 | C26: RX3 | D26: TEES, ESK AND WEAR VALLEYS NHS FOUNDATION TRUST | E26: 21 | F26: Lead | G26: Yes – Action plan in place | H26: Yes – Action plan in place | I26: No | J26: No | K26: No | L26: No | M26: No | N26: No | O26: Yes – Action plan in place | P26: No | Q26: Further development required | R26: 2013-14 | S26: June
A27: 00J | B27: 2013-14_June_00J_PROV4 | C27: RX6 | D27: NORTH EAST AMBULANCE SERVICE NHS FOUNDATION TRUST | E27: 10 | F27: Associate | G27: No | H27: No | I27: No | J27: No | K27: No | L27: No | M27: No | N27: No | O27: Yes – Action plan in place | P27: No | Q27: Further development required | R27: 2013-14 | S27: June
A28: 00K | B28: 2013-14_June_00K_PROV1 | C28: RVW | D28: NORTH TEES AND HARTLEPOOL NHS FOUNDATION TRUST | E28: 80 | F28: Lead | G28: No | H28: No | I28: No | J28: No | K28: No | L28: No | M28: No | N28: No | O28: Yes – Action plan in place | P28: No | Q28: No | R28: 2013-14 | S28: June
A29: 00K | B29: 2013-14_June_00K_PROV2 | C29: RTR | D29: SOUTH TEES HOSPITALS NHS FOUNDATION TRUST | E29: 13 | F29: Associate | G29: No | H29: Yes – Action plan in place | I29: No | J29: No | K29: No | L29: No | M29: Yes – Action plan in place | N29: No | O29: Yes – Action plan in place | P29: Yes – Action plan in place | Q29: No | R29: 2013-14 | S29: June
A30: 00K | B30: 2013-14_June_00K_PROV3 | C30: RX3 | D30: TEES, ESK AND WEAR VALLEYS NHS FOUNDATION TRUST | E30: 19 | F30: Associate | G30: Yes – Action plan in place | H30: Yes – Action plan in place | I30: No | J30: No | K30: No | L30: No | M30: No | N30: No | O30: Yes – Action plan in place | P30: No | Q30: Further development required | R30: 2013-14 | S30: June
A31: 00K | B31: 2013-14_June_00K_PROV4 | C31: RX6 | D31: NORTH EAST AMBULANCE SERVICE NHS FOUNDATION TRUST | E31: 11 | F31: Associate | G31: No | H31: No | I31: No | J31: No | K31: No | L31: No | M31: No | N31: No | O31: Yes – Action plan in place | P31: No | Q31: Further development required | R31: 2013-14 | S31: June
A32: 00L | B32: 2013-14_June_00L_PROV1 | C32: RR7 | D32: GATESHEAD HEALTH NHS FOUNDATION TRUST | E32: 0 | F32: Associate | G32: No | H32: No | I32: No | J32: No | K32: No | L32: No | M32: No | N32: No | O32: Yes – Action plan in place | P32: No | Q32: No | R32: 2013-14 | S32: June
A33: 00L | B33: 2013-14_June_00L_PROV2 | C33: RTF | D33: NORTHUMBRIA HEALTHCARE NHS FOUNDATION TRUST | E33: 46 | F33: Lead | G33: No | H33: No | I33: No | J33: No | K33: Yes – Action plan in place | L33: Yes – Action plan in place | M33: No | N33: No | O33: Yes – Action plan in place | P33: No | Q33: No | R33: 2013-14 | S33: June
A34: 00L | B34: 2013-14_June_00L_PROV3 | C34: RTD | D34: THE NEWCASTLE UPON TYNE HOSPITALS NHS FOUNDATION TRUST | E34: 14 | F34: Associate | G34: No | H34: No | I34: No | J34: No | K34: No | L34: Yes – Action plan in place | M34: Yes – Action plan in place | N34: No | O34: Yes – Action plan in place | P34: Yes – Action plan in place | Q34: No | R34: 2013-14 | S34: June
A35: 00L | B35: 2013-14_June_00L_PROV4 | C35: RX4 | D35: NORTHUMBERLAND, TYNE AND WEAR NHS FOUNDATION TRUST | E35: 11 | F35: Associate | G35: No | H35: No | I35: No | J35: No | K35: No | L35: No | M35: No | N35: No | O35: Yes – Action plan in place | P35: No | Q35: No | R35: 2013-14 | S35: June
A36: 00L | B36: 2013-14_June_00L_PROV5 | C36: RX6 | D36: NORTH EAST AMBULANCE SERVICE NHS FOUNDATION TRUST | E36: 0 | F36: Associate | G36: No | H36: No | I36: No | J36: No | K36: No | L36: No | M36: No | N36: No | O36: Yes – Action plan in place | P36: No | Q36: No | R36: 2013-14 | S36: June
A37: 00M | B37: 2013-14_June_00M_PROV1 | C37: RTR | D37: SOUTH TEES HOSPITALS NHS FOUNDATION TRUST | E37: 80 | F37: Lead | G37: No | H37: Yes – Action plan in place | I37: No | J37: No | K37: No | L37: No | M37: Yes – Action plan in place | N37: No | O37: Yes – Action plan in place | P37: Yes – Action plan in place | Q37: No | R37: 2013-14 | S37: June
A38: 00M | B38: 2013-14_June_00M_PROV2 | C38: RVW | D38: NORTH TEES AND HARTLEPOOL NHS FOUNDATION TRUST | E38: 5 | F38: Associate | G38: No | H38: No | I38: No | J38: No | K38: No | L38: No | M38: No | N38: No | O38: Yes – Action plan in place | P38: No | Q38: No | R38: 2013-14 | S38: June
A39: 00M | B39: 2013-14_June_00M_PROV3 | C39: RX3 | D39: TEES, ESK AND WEAR VALLEYS NHS FOUNDATION TRUST | E39: 19 | F39: Associate | G39: Yes – Action plan in place | H39: Yes – Action plan in place | I39: No | J39: No | K39: No | L39: No | M39: No | N39: No | O39: Yes – Action plan in place | P39: No | Q39: Further development required | R39: 2013-14 | S39: June
A40: 00M | B40: 2013-14_June_00M_PROV4 | C40: RX6 | D40: NORTH EAST AMBULANCE SERVICE NHS FOUNDATION TRUST | E40: 11 | F40: Associate | G40: No | H40: No | I40: No | J40: No | K40: No | L40: No | M40: No | N40: No | O40: Yes – Action plan in place | P40: No | Q40: Further development required | R40: 2013-14 | S40: June
A41: 00N | B41: 2013-14_June_00N_PROV1 | C41: RE9 | D41: SOUTH TYNESIDE NHS FOUNDATION TRUST | E41: 82 | F41: Lead | G41: No | H41: No | I41: No | J41: No | K41: No | L41: Yes – Action plan in place | M41: Yes – Action plan in place | N41: No | O41: Yes – Action plan in place | P41: No | Q41: No | R41: 2013-14 | S41: June
A42: 00N | B42: 2013-14_June_00N_PROV2 | C42: RLN | D42: CITY HOSPITALS SUNDERLAND NHS FOUNDATION TRUST | E42: 28 | F42: Associate | G42: No | H42: No | I42: No | J42: No | K42: No | L42: Yes – Action plan in place | M42: Yes – Action plan in place | N42: No | O42: Yes – Action plan in place | P42: Yes – Action plan in place | Q42: No | R42: 2013-14 | S42: June
A43: 00N | B43: 2013-14_June_00N_PROV3 | C43: RX4 | D43: NORTHUMBERLAND, TYNE AND WEAR NHS FOUNDATION TRUST | E43: 14 | F43: Associate | G43: No | H43: No | I43: No | J43: No | K43: No | L43: No | M43: No | N43: No | O43: Yes – Action plan in place | P43: No | Q43: No | R43: 2013-14 | S43: June
A44: 00N | B44: 2013-14_June_00N_PROV4 | C44: RX6 | D44: NORTH EAST AMBULANCE SERVICE NHS FOUNDATION TRUST | E44: 7 | F44: Associate | G44: No | H44: No | I44: No | J44: No | K44: No | L44: No | M44: No | N44: No | O44: Yes – Action plan in place | P44: No | Q44: No | R44: 2013-14 | S44: June
A45: 00P | B45: 2013-14_June_00P_PROV1 | C45: RLN | D45: CITY HOSPITALS SUNDERLAND NHS FOUNDATION TRUST | E45: 60 | F45: Lead | G45: No | H45: No | I45: No | J45: No | K45: No | L45: Yes – Action plan in place | M45: Yes – Action plan in place | N45: No | O45: Yes – Action plan in place | P45: Yes – Action plan in place | Q45: No | R45: 2013-14 | S45: June
A46: 00P | B46: 2013-14_June_00P_PROV2 | C46: RE9 | D46: SOUTH TYNESIDE NHS FOUNDATION TRUST | E46: 14 | F46: Associate | G46: No | H46: No | I46: No | J46: No | K46: No | L46: Yes – Action plan in place | M46: Yes – Action plan in place | N46: No | O46: Yes – Action plan in place | P46: No | Q46: No | R46: 2013-14 | S46: June
A47: 00P | B47: 2013-14_June_00P_PROV3 | C47: RR7 | D47: GATESHEAD HEALTH NHS FOUNDATION TRUST | E47: 9 | F47: Associate | G47: No | H47: No | I47: No | J47: No | K47: No | L47: No | M47: No | N47: No | O47: Yes – Action plan in place | P47: No | Q47: No | R47: 2013-14 | S47: June
A48: 00P | B48: 2013-14_June_00P_PROV4 | C48: RX4 | D48: NORTHUMBERLAND, TYNE AND WEAR NHS FOUNDATION TRUST | E48: 17 | F48: Lead | G48: No | H48: No | I48: No | J48: No | K48: No | L48: No | M48: No | N48: No | O48: Yes – Action plan in place | P48: No | Q48: No | R48: 2013-14 | S48: June
A49: 00P | B49: 2013-14_June_00P_PROV5 | C49: RX6 | D49: NORTH EAST AMBULANCE SERVICE NHS FOUNDATION TRUST | E49: 12 | F49: Lead | G49: No | H49: No | I49: No | J49: No | K49: No | L49: No | M49: No | N49: No | O49: Yes – Action plan in place | P49: No | Q49: No | R49: 2013-14 | S49: June
A50: 00Q | B50: 2013-14_June_00Q_PROV1 | C50: RXR | D50: EAST LANCASHIRE HOSPITALS NHS TRUST | E50: 25 | F50: Associate | G50: No | H50: No | I50: Yes – Action plan in place | J50: Yes – Action plan in place | K50: Yes – Action plan in place | L50: Yes – Action plan in place | M50: No | N50: No | O50: Yes – Action plan in place | P50: No | Q50: Yes | R50: 2013-14 | S50: June
A51: 00Q | B51: 2013-14_June_00Q_PROV2 | C51: RW5 | D51: LANCASHIRE CARE NHS FOUNDATION TRUST | E51: 11 | F51: Lead | G51: No | H51: No | I51: No | J51: No | K51: No | L51: No | M51: No | N51: No | O51: Yes – Action plan in place | P51: No | Q51: Further development required | R51: 2013-14 | S51: June
A52: 00R | B52: 2013-14_June_00R_PROV1 | C52: RXL | D52: BLACKPOOL TEACHING HOSPITALS NHS FOUNDATION TRUST | E52: 30 | F52: Lead | G52: No | H52: No | I52: No | J52: No | K52: Yes – Action plan in place | L52: No | M52: No | N52: No | O52: Yes – Action plan in place | P52: No | Q52: No | R52: 2013-14 | S52: June
A53: 00T | B53: 2013-14_June_00T_PROV1 | C53: RMC | D53: BOLTON NHS FOUNDATION TRUST | E53: 81 | F53: Lead | G53: No | H53: Yes – Action plan in place | I53: No | J53: No | K53: No | L53: No | M53: Yes – Action plan in place | N53: Yes – Action plan in place | O53: Yes – Action plan in place | P53: No | Q53: No | R53: 2013-14 | S53: June
A54: 00V | B54: 2013-14_June_00V_PROV1 | C54: RW6 | D54: PENNINE ACUTE HOSPITALS NHS TRUST | E54: 15 | F54: Lead | G54: No | H54: No | I54: No | J54: No | K54: No | L54: Yes – Action plan in place | M54: Yes – Action plan in place | N54: No | O54: Yes – Action plan in place | P54: No | Q54: No | R54: 2013-14 | S54: June
A55: 00V | B55: 2013-14_June_00V_PROV2 | C55: RT2 | D55: PENNINE CARE NHS FOUNDATION TRUST | E55: 16 | F55: Associate | G55: No | H55: No | I55: No | J55: No | K55: No | L55: No | M55: No | N55: No | O55: Yes – Action plan in place | P55: No | Q55: Further development required | R55: 2013-14 | S55: June
A56: 00W | B56: 2013-14_June_00W_PROV1 | C56: RW3 | D56: CENTRAL MANCHESTER UNIVERSITY HOSPITALS NHS FOUNDATION TRUST | E56: 17 | F56: Lead | G56: No | H56: No | I56: No | J56: No | K56: Yes – Action plan in place | L56: Yes – Action plan in place | M56: No | N56: No | O56: Yes – Action plan in place | P56: Yes – Action plan in place | Q56: No | R56: 2013-14 | S56: June
A57: 00W | B57: 2013-14_June_00W_PROV2 | C57: RM2 | D57: UNIVERSITY HOSPITAL OF SOUTH MANCHESTER NHS FOUNDATION TRUST | E57: 5 | F57: Associate | G57: No | H57: No | I57: No | J57: No | K57: No | L57: No | M57: No | N57: No | O57: Yes – Action plan in place | P57: No | Q57: No | R57: 2013-14 | S57: June
A58: 00W | B58: 2013-14_June_00W_PROV3 | C58: TAE | D58: MANCHESTER MENTAL HEALTH AND SOCIAL CARE TRUST | E58: 5 | F58: Associate | G58: No | H58: No | I58: No | J58: No | K58: No | L58: No | M58: No | N58: No | O58: Yes – Action plan in place | P58: No | Q58: Further development required | R58: 2013-14 | S58: June
A59: 00X | B59: 2013-14_June_00X_PROV1 | C59: RXN | D59: LANCASHIRE TEACHING HOSPITALS NHS FOUNDATION TRUST | E59: 23 | F59: Associate | G59: No | H59: Yes – Action plan in place | I59: No | J59: No | K59: No | L59: No | M59: Yes – Action plan in place | N59: No | O59: Yes – Action plan in place | P59: No | Q59: No | R59: 2013-14 | S59: June
A60: 00X | B60: 2013-14_June_00X_PROV2 | C60: RW5 | D60: LANCASHIRE CARE NHS FOUNDATION TRUST | E60: 10 | F60: Lead | G60: No | H60: No | I60: No | J60: No | K60: No | L60: No | M60: No | N60: No | O60: Yes – Action plan in place | P60: No | Q60: Further development required | R60: 2013-14 | S60: June
A61: 00Y | B61: 2013-14_June_00Y_PROV1 | C61: RW6 | D61: PENNINE ACUTE HOSPITALS NHS TRUST | E61: 23 | F61: Associate | G61: No | H61: No | I61: No | J61: No | K61: Yes – Action plan in place | L61: Yes – Action plan in place | M61: Yes – Action plan in place | N61: No | O61: Yes – Action plan in place | P61: No | Q61: Yes | R61: 2013-14 | S61: June
A62: 00Y | B62: 2013-14_June_00Y_PROV2 | C62: RMP | D62: TAMESIDE HOSPITAL NHS FOUNDATION TRUST | E62: 5 | F62: Associate | G62: Yes – Action plan in place | H62: Yes – Action plan in place | I62: No | J62: No | K62: Yes – Action plan in place | L62: Yes – Action plan in place | M62: Yes – Action plan in place | N62: No | O62: Yes – Action plan in place | P62: No | Q62: Yes | R62: 2013-14 | S62: June
A63: 00Y | B63: 2013-14_June_00Y_PROV3 | C63: RT2 | D63: PENNINE CARE NHS FOUNDATION TRUST | E63: 20 | F63: Lead | G63: No | H63: No | I63: No | J63: No | K63: No | L63: No | M63: No | N63: No | O63: Yes – Action plan in place | P63: No | Q63: No | R63: 2013-14 | S63: June
A64: 00Y | B64: 2013-14_June_00Y_PROV4 | C64: RT2 | D64: PENNINE CARE NHS FOUNDATION TRUST | E64: 14 | F64: Associate | G64: No | H64: No | I64: No | J64: No | K64: No | L64: No | M64: No | N64: No | O64: Yes – Action plan in place | P64: No | Q64: No | R64: 2013-14 | S64: June
A65: 01A | B65: 2013-14_June_01A_PROV1 | C65: RXR | D65: EAST LANCASHIRE HOSPITALS NHS TRUST | E65: 63 | F65: Lead | G65: No | H65: No | I65: Yes – Action plan in place | J65: Yes – Action plan in place | K65: Yes – Action plan in place | L65: Yes – Action plan in place | M65: No | N65: No | O65: Yes – Action plan in place | P65: No | Q65: Further development required | R65: 2013-14 | S65: June
A66: 01A | B66: 2013-14_June_01A_PROV2 | C66: RCF | D66: AIREDALE NHS FOUNDATION TRUST | E66: 10 | F66: Associate | G66: No | H66: No | I66: No | J66: No | K66: No | L66: No | M66: Yes – Action plan in place | N66: No | O66: Yes – Action plan in place | P66: No | Q66: Further development required | R66: 2013-14 | S66: June
A67: 01A | B67: 2013-14_June_01A_PROV3 | C67: RW5 | D67: LANCASHIRE CARE NHS FOUNDATION TRUST | E67: 16 | F67: Associate | G67: No | H67: No | I67: No | J67: No | K67: No | L67: No | M67: No | N67: No | O67: Yes – Action plan in place | P67: No | Q67: Yes | R67: 2013-14 | S67: June
A68: 01C | B68: 2013-14_June_01C_PROV1 | C68: RJN | D68: EAST CHESHIRE NHS TRUST | E68: 0 | F68: Lead | G68: No | H68: No | I68: No | J68: No | K68: No | L68: No | M68: No | N68: No | O68: Yes – Action plan in place | P68: No | Q68: No | R68: 2013-14 | S68: June
A69: 01C | B69: 2013-14_June_01C_PROV2 | C69: RWJ | D69: STOCKPORT NHS FOUNDATION TRUST | E69: 0 | F69: Associate | G69: No | H69: Yes – Action plan in place | I69: No | J69: No | K69: No | L69: No | M69: Yes – Action plan in place | N69: No | O69: Yes – Action plan in place | P69: Yes – Action plan in place | Q69: No | R69: 2013-14 | S69: June
A70: 01C | B70: 2013-14_June_01C_PROV3 | C70: RXA | D70: CHESHIRE AND WIRRAL PARTNERSHIP NHS FOUNDATION TRUST | E70: 0 | F70: Associate | G70: Yes – Action plan in place | H70: No | I70: No | J70: No | K70: No | L70: No | M70: No | N70: No | O70: Yes – Action plan in place | P70: No | Q70: No | R70: 2013-14 | S70: June
A71: 01D | B71: 2013-14_June_01D_PROV1 | C71: RW6 | D71: PENNINE ACUTE HOSPITALS NHS TRUST | E71: 23 | F71: Associate | G71: No | H71: No | I71: No | J71: No | K71: No | L71: Yes – Action plan in place | M71: Yes – Action plan in place | N71: No | O71: Yes – Action plan in place | P71: No | Q71: No | R71: 2013-14 | S71: June
A72: 01D | B72: 2013-14_June_01D_PROV2 | C72: RT2 | D72: PENNINE CARE NHS FOUNDATION TRUST | E72: 17 | F72: Lead | G72: No | H72: No | I72: No | J72: No | K72: No | L72: No | M72: No | N72: No | O72: Yes – Action plan in place | P72: No | Q72: Further development required | R72: 2013-14 | S72: June
A73: 01E | B73: 2013-14_June_01E_PROV1 | C73: RXN | D73: LANCASHIRE TEACHING HOSPITALS NHS FOUNDATION TRUST | E73: 26 | F73: Lead | G73: No | H73: Yes – Action plan in place | I73: No | J73: No | K73: No | L73: No | M73: Yes – Action plan in place | N73: No | O73: Yes – Action plan in place | P73: No | Q73: No | R73: 2013-14 | S73: June
A74: 01E | B74: 2013-14_June_01E_PROV2 | C74: RW5 | D74: LANCASHIRE CARE NHS FOUNDATION TRUST | E74: 12 | F74: Associate | G74: No | H74: No | I74: No | J74: No | K74: No | L74: No | M74: No | N74: No | O74: Yes – Action plan in place | P74: No | Q74: Further development required | R74: 2013-14 | S74: June
A75: 01F | B75: 2013-14_June_01F_PROV1 | C75: RWW | D75: WARRINGTON AND HALTON HOSPITALS NHS FOUNDATION TRUST | E75: 0 | F75: Associate | G75: No | H75: No | I75: No | J75: No | K75: No | L75: Yes – Action plan in place | M75: Yes – Action plan in place | N75: No | O75: Yes – Action plan in place | P75: No | Q75: Further development required | R75: 2013-14 | S75: June
A76: 01F | B76: 2013-14_June_01F_PROV2 | C76: RBN | D76: ST HELENS AND KNOWSLEY HOSPITALS NHS TRUST | E76: 0 | F76: Associate | G76: No | H76: No | I76: Yes – Action plan in place | J76: Yes – Action plan in place | K76: No | L76: Yes – Action plan in place | M76: No | N76: No | O76: Yes – Action plan in place | P76: Yes – Action plan in place | Q76: No | R76: 2013-14 | S76: June
A77: 01F | B77: 2013-14_June_01F_PROV3 | C77: RY2 | D77: BRIDGEWATER COMMUNITY HEALTHCARE NHS TRUST | E77: 0 | F77: Lead | G77: No | H77: No | I77: No | J77: No | K77: No | L77: No | M77: No | N77: No | O77: Yes – Action plan in place | P77: No | Q77: Further development required | R77: 2013-14 | S77: June
A78: 01F | B78: 2013-14_June_01F_PROV4 | C78: RTV | D78: 5 BOROUGHS PARTNERSHIP NHS FOUNDATION TRUST | E78: 0 | F78: Associate | G78: No | H78: No | I78: No | J78: No | K78: No | L78: No | M78: No | N78: No | O78: Yes – Action plan in place | P78: No | Q78: No | R78: 2013-14 | S78: June
A79: 01G | B79: 2013-14_June_01G_PROV1 | C79: RM3 | D79: SALFORD ROYAL NHS FOUNDATION TRUST | E79: 38 | F79: Lead | G79: No | H79: No | I79: No | J79: No | K79: No | L79: No | M79: No | N79: No | O79: Yes – Action plan in place | P79: Yes – Action plan in place | Q79: No | R79: 2013-14 | S79: June
A80: 01G | B80: 2013-14_June_01G_PROV2 | C80: RW3 | D80: CENTRAL MANCHESTER UNIVERSITY HOSPITALS NHS FOUNDATION TRUST | E80: 5 | F80: Associate | G80: No | H80: No | I80: No | J80: No | K80: Yes – Action plan in place | L80: Yes – Action plan in place | M80: No | N80: No | O80: Yes – Action plan in place | P80: Yes – Action plan in place | Q80: No | R80: 2013-14 | S80: June
A81: 01G | B81: 2013-14_June_01G_PROV3 | C81: RXV | D81: GREATER MANCHESTER WEST MENTAL HEALTH NHS FOUNDATION TRUST | E81: 9 | F81: Lead | G81: No | H81: No | I81: No | J81: No | K81: No | L81: No | M81: No | N81: No | O81: Yes – Action plan in place | P81: No | Q81: Further development required | R81: 2013-14 | S81: June
A82: 01H | B82: 2013-14_June_01H_PROV1 | C82: RNL | D82: NORTH CUMBRIA UNIVERSITY HOSPITALS NHS TRUST | E82: 0 | F82: Lead | G82: Yes – Action plan in place | H82: No | I82: Yes – Action plan in place | J82: Yes – Action plan in place | K82: Yes – Action plan in place | L82: No | M82: No | N82: Yes – Action plan in place | O82: Yes – Action plan in place | P82: Yes – Action plan in place | Q82: No | R82: 2013-14 | S82: June
A83: 01H | B83: 2013-14_June_01H_PROV2 | C83: RTX | D83: UNIVERSITY HOSPITALS OF MORECAMBE BAY NHS FOUNDATION TRUST | E83: 0 | F83: Lead | G83: Yes – Action plan in place | H83: Yes – Action plan in place | I83: No | J83: Yes – Action plan in place | K83: No | L83: No | M83: Yes – Action plan in place | N83: No | O83: Yes – Action plan in place | P83: No | Q83: No | R83: 2013-14 | S83: June
A84: 01H | B84: 2013-14_June_01H_PROV3 | C84: RNN | D84: CUMBRIA PARTNERSHIP NHS FOUNDATION TRUST | E84: 0 | F84: Lead | G84: No | H84: No | I84: No | J84: No | K84: No | L84: No | M84: No | N84: No | O84: Yes – Action plan in place | P84: No | Q84: No | R84: 2013-14 | S84: June
A85: 01J | B85: 2013-14_June_01J_PROV1 | C85: RBN | D85: ST HELENS AND KNOWSLEY HOSPITALS NHS TRUST | E85: 25 | F85: Associate | G85: No | H85: No | I85: Yes – Action plan in place | J85: Yes – Action plan in place | K85: No | L85: Yes – Action plan in place | M85: No | N85: No | O85: Yes – Action plan in place | P85: Yes – Action plan in place | Q85: No | R85: 2013-14 | S85: June
A86: 01J | B86: 2013-14_June_01J_PROV2 | C86: REM | D86: AINTREE UNIVERSITY HOSPITAL NHS FOUNDATION TRUST | E86: 13 | F86: Associate | G86: No | H86: Yes – Action plan in place | I86: No | J86: No | K86: Yes – Action plan in place | L86: Yes – Action plan in place | M86: Yes – Action plan in place | N86: Yes – Action plan in place | O86: Yes – Action plan in place | P86: No | Q86: No | R86: 2013-14 | S86: June
A87: 01J | B87: 2013-14_June_01J_PROV3 | C87: REP | D87: LIVERPOOL WOMEN'S NHS FOUNDATION TRUST | E87: 11 | F87: Associate | G87: No | H87: No | I87: No | J87: No | K87: No | L87: No | M87: No | N87: No | O87: No | P87: Yes – Action plan in place | Q87: No | R87: 2013-14 | S87: June
A88: 01J | B88: 2013-14_June_01J_PROV4 | C88: RTV | D88: 5 BOROUGHS PARTNERSHIP NHS FOUNDATION TRUST | E88: 22 | F88: Lead | G88: No | H88: No | I88: No | J88: No | K88: No | L88: No | M88: No | N88: No | O88: Yes – Action plan in place | P88: No | Q88: Yes | R88: 2013-14 | S88: June
A89: 01K | B89: 2013-14_June_01K_PROV1 | C89: RTX | D89: UNIVERSITY HOSPITALS OF MORECAMBE BAY NHS FOUNDATION TRUST | E89: 40 | F89: Lead | G89: No | H89: Yes – Action plan in place | I89: No | J89: Yes – Action plan in place | K89: No | L89: No | M89: Yes – Action plan in place | N89: No | O89: Yes – Action plan in place | P89: No | Q89: No | R89: 2013-14 | S89: June
A90: 01K | B90: 2013-14_June_01K_PROV2 | C90: RXL | D90: BLACKPOOL TEACHING HOSPITALS NHS FOUNDATION TRUST | E90: 6 | F90: Associate | G90: No | H90: No | I90: No | J90: No | K90: Yes – Action plan in place | L90: No | M90: No | N90: No | O90: Yes – Action plan in place | P90: No | Q90: No | R90: 2013-14 | S90: June
A91: 01K | B91: 2013-14_June_01K_PROV3 | C91: RW5 | D91: LANCASHIRE CARE NHS FOUNDATION TRUST | E91: 8 | F91: Associate | G91: No | H91: No | I91: No | J91: No | K91: No | L91: No | M91: No | N91: No | O91: Yes – Action plan in place | P91: No | Q91: Yes | R91: 2013-14 | S91: June
A92: 01M | B92: 2013-14_June_01M_PROV1 | C92: RW6 | D92: PENNINE ACUTE HOSPITALS NHS TRUST | E92: 15 | F92: Associate | G92: No | H92: No | I92: No | J92: No | K92: No | L92: Yes – Action plan in place | M92: Yes – Action plan in place | N92: No | O92: Yes – Action plan in place | P92: No | Q92: No | R92: 2013-14 | S92: June
A93: 01M | B93: 2013-14_June_01M_PROV2 | C93: RW3 | D93: CENTRAL MANCHESTER UNIVERSITY HOSPITALS NHS FOUNDATION TRUST | E93: 5 | F93: Associate | G93: No | H93: No | I93: No | J93: No | K93: Yes – Action plan in place | L93: Yes – Action plan in place | M93: No | N93: No | O93: Yes – Action plan in place | P93: Yes – Action plan in place | Q93: No | R93: 2013-14 | S93: June
A94: 01M | B94: 2013-14_June_01M_PROV3 | C94: TAE | D94: MANCHESTER MENTAL HEALTH AND SOCIAL CARE TRUST | E94: 30 | F94: Lead | G94: No | H94: No | I94: No | J94: No | K94: No | L94: No | M94: No | N94: No | O94: Yes – Action plan in place | P94: No | Q94: Further development required | R94: 2013-14 | S94: June
A95: 01N | B95: 2013-14_June_01N_PROV1 | C95: RM2 | D95: UNIVERSITY HOSPITAL OF SOUTH MANCHESTER NHS FOUNDATION TRUST | E95: 25 | F95: Lead | G95: No | H95: No | I95: No | J95: No | K95: No | L95: No | M95: No | N95: No | O95: Yes – Action plan in place | P95: No | Q95: No | R95: 2013-14 | S95: June
A96: 01N | B96: 2013-14_June_01N_PROV2 | C96: RW3 | D96: CENTRAL MANCHESTER UNIVERSITY HOSPITALS NHS FOUNDATION TRUST | E96: 5 | F96: Associate | G96: No | H96: No | I96: No | J96: No | K96: Yes – Action plan in place | L96: Yes – Action plan in place | M96: No | N96: No | O96: Yes – Action plan in place | P96: Yes – Action plan in place | Q96: No | R96: 2013-14 | S96: June
A97: 01N | B97: 2013-14_June_01N_PROV3 | C97: TAE | D97: MANCHESTER MENTAL HEALTH AND SOCIAL CARE TRUST | E97: 5 | F97: Associate | G97: No | H97: No | I97: No | J97: No | K97: No | L97: No | M97: No | N97: No | O97: Yes – Action plan in place | P97: No | Q97: Further development required | R97: 2013-14 | S97: June
A98: 01R | B98: 2013-14_June_01R_PROV1 | C98: RBT | D98: MID CHESHIRE HOSPITALS NHS FOUNDATION TRUST | E98: 57 | F98: Lead | G98: Yes – Action plan in place | H98: No | I98: No | J98: No | K98: Yes – Action plan in place | L98: No | M98: No | N98: Yes – Action plan in place | O98: Yes – Action plan in place | P98: Yes – Action plan in place | Q98: No | R98: 2013-14 | S98: June
A99: 01R | B99: 2013-14_June_01R_PROV2 | C99: RJN | D99: EAST CHESHIRE NHS TRUST | E99: 9 | F99: Associate | G99: No | H99: No | I99: No | J99: No | K99: No | L99: No | M99: No | N99: No | O99: Yes – Action plan in place | P99: Yes – Action plan in place | Q99: No | R99: 2013-14 | S99: June
A100: 01R | B100: 2013-14_June_01R_PROV3 | C100: RXA | D100: CHESHIRE AND WIRRAL PARTNERSHIP NHS FOUNDATION TRUST | E100: 8 | F100: Associate | G100: Yes – Action plan in place | H100: No | I100: No | J100: No | K100: No | L100: No | M100: No | N100: No | O100: Yes – Action plan in place | P100: No | Q100: No | R100: 2013-14 | S100: June
A101: 01T | B101: 2013-14_June_01T_PROV1 | C101: REM | D101: AINTREE UNIVERSITY HOSPITAL NHS FOUNDATION TRUST | E101: 32 | F101: Lead | G101: No | H101: Yes – Action plan in place | I101: No | J101: No | K101: Yes – Action plan in place | L101: Yes – Action plan in place | M101: Yes – Action plan in place | N101: Yes – Action plan in place | O101: Yes – Action plan in place | P101: No | Q101: No | R101: 2013-14 | S101: June
A102: 01T | B102: 2013-14_June_01T_PROV2 | C102: RBS | D102: ALDER HEY CHILDREN'S NHS FOUNDATION TRUST | E102: 6 | F102: Associate | G102: No | H102: No | I102: No | J102: No | K102: No | L102: No | M102: No | N102: No | O102: No | P102: No | Q102: Further development required | R102: 2013-14 | S102: June
A103: 01T | B103: 2013-14_June_01T_PROV3 | C103: REP | D103: LIVERPOOL WOMEN'S NHS FOUNDATION TRUST | E103: 16 | F103: Associate | G103: No | H103: No | I103: No | J103: No | K103: No | L103: No | M103: No | N103: No | O103: No | P103: Yes – Action plan in place | Q103: No | R103: 2013-14 | S103: June
A104: 01T | B104: 2013-14_June_01T_PROV4 | C104: RW4 | D104: MERSEY CARE NHS TRUST | E104: 8 | F104: Associate | G104: No | H104: No | I104: No | J104: No | K104: No | L104: No | M104: No | N104: No | O104: Yes – Action plan in place | P104: No | Q104: Further development required | R104: 2013-14 | S104: June
A105: 01T | B105: 2013-14_June_01T_PROV5 | C105: RY1 | D105: LIVERPOOL COMMUNITY HEALTH NHS TRUST | E105: 11 | F105: Associate | G105: No | H105: No | I105: No | J105: No | K105: No | L105: No | M105: No | N105: No | O105: Yes – Action plan in place | P105: No | Q105: Further development required | R105: 2013-14 | S105: June
A106: 01V | B106: 2013-14_June_01V_PROV1 | C106: RVY | D106: SOUTHPORT AND ORMSKIRK HOSPITAL NHS TRUST | E106: 44 | F106: Lead | G106: No | H106: No | I106: No | J106: Yes – Action plan in place | K106: No | L106: No | M106: No | N106: No | O106: No | P106: No | Q106: No | R106: 2013-14 | S106: June
A107: 01V | B107: 2013-14_June_01V_PROV2 | C107: RW4 | D107: MERSEY CARE NHS TRUST | E107: 6 | F107: Associate | G107: No | H107: No | I107: No | J107: No | K107: No | L107: No | M107: No | N107: No | O107: Yes – Action plan in place | P107: No | Q107: No | R107: 2013-14 | S107: June
A108: 01V | B108: 2013-14_June_01V_PROV3 | C108: RY1 | D108: LIVERPOOL COMMUNITY HEALTH NHS TRUST | E108: 8 | F108: Associate | G108: No | H108: No | I108: No | J108: No | K108: No | L108: No | M108: No | N108: No | O108: Yes – Action plan in place | P108: No | Q108: No | R108: 2013-14 | S108: June
A109: 01W | B109: 2013-14_June_01W_PROV1 | C109: RWJ | D109: STOCKPORT NHS FOUNDATION TRUST | E109: 75 | F109: Lead | G109: No | H109: Yes – Action plan in place | I109: No | J109: Yes – Action plan in place | K109: No | L109: No | M109: Yes – Action plan in place | N109: No | O109: Yes – Action plan in place | P109: Yes – Action plan in place | Q109: No | R109: 2013-14 | S109: June
A110: 01W | B110: 2013-14_June_01W_PROV2 | C110: RM2 | D110: UNIVERSITY HOSPITAL OF SOUTH MANCHESTER NHS FOUNDATION TRUST | E110: 9 | F110: Associate | G110: No | H110: No | I110: No | J110: No | K110: No | L110: No | M110: No | N110: No | O110: Yes – Action plan in place | P110: No | Q110: No | R110: 2013-14 | S110: June
A111: 01W | B111: 2013-14_June_01W_PROV3 | C111: RW3 | D111: CENTRAL MANCHESTER UNIVERSITY HOSPITALS NHS FOUNDATION TRUST | E111: 6 | F111: Associate | G111: No | H111: No | I111: No | J111: No | K111: Yes – Action plan in place | L111: Yes – Action plan in place | M111: No | N111: No | O111: Yes – Action plan in place | P111: Yes – Action plan in place | Q111: No | R111: 2013-14 | S111: June
A112: 01W | B112: 2013-14_June_01W_PROV4 | C112: RT2 | D112: PENNINE CARE NHS FOUNDATION TRUST | E112: 25 | F112: Associate | G112: No | H112: No | I112: No | J112: No | K112: No | L112: No | M112: No | N112: No | O112: Yes – Action plan in place | P112: No | Q112: Further development required | R112: 2013-14 | S112: June
A113: 01X | B113: 2013-14_June_01X_PROV1 | C113: RBN | D113: ST HELENS AND KNOWSLEY HOSPITALS NHS TRUST | E113: 0 | F113: Lead | G113: No | H113: No | I113: Yes – Action plan in place | J113: Yes – Action plan in place | K113: No | L113: Yes – Action plan in place | M113: No | N113: No | O113: Yes – Action plan in place | P113: Yes – Action plan in place | Q113: No | R113: 2013-14 | S113: June
A114: 01X | B114: 2013-14_June_01X_PROV2 | C114: RWW | D114: WARRINGTON AND HALTON HOSPITALS NHS FOUNDATION TRUST | E114: 0 | F114: Associate | G114: no | H114: no | I114: no | J114: no | K114: no | L114: Yes – Action plan in place | M114: no | N114: no | O114: Yes – Action plan in place | P114: No | Q114: No | R114: 2013-14 | S114: June
A115: 01X | B115: 2013-14_June_01X_PROV3 | C115: RY2 | D115: BRIDGEWATER COMMUNITY HEALTHCARE NHS TRUST | E115: 0 | F115: Associate | G115: no | H115: no | I115: no | J115: no | K115: no | L115: no | M115: no | N115: no | O115: Yes – Action plan in place | P115: no | Q115: No | R115: 2013-14 | S115: June
A116: 01X | B116: 2013-14_June_01X_PROV4 | C116: RTV | D116: 5 BOROUGHS PARTNERSHIP NHS FOUNDATION TRUST | E116: 0 | F116: Associate | G116: no | H116: no | I116: no | J116: no | K116: no | L116: no | M116: no | N116: no | O116: Yes – Action plan in place | P116: no | Q116: No | R116: 2013-14 | S116: June
A117: 01Y | B117: 2013-14_June_01Y_PROV1 | C117: RMP | D117: TAMESIDE HOSPITAL NHS FOUNDATION TRUST | E117: 88 | F117: Lead | G117: Yes – Action plan in place | H117: Yes – Action plan in place | I117: No | J117: No | K117: Yes – Action plan in place | L117: Yes – Action plan in place | M117: Yes – Action plan in place | N117: No | O117: Yes – Action plan in place | P117: No | Q117: No | R117: 2013-14 | S117: June
A118: 01Y | B118: 2013-14_June_01Y_PROV2 | C118: RWJ | D118: STOCKPORT NHS FOUNDATION TRUST | E118: 12 | F118: Associate | G118: No | H118: Yes – Action plan in place | I118: No | J118: Yes – Action plan in place | K118: No | L118: No | M118: Yes – Action plan in place | N118: No | O118: Yes – Action plan in place | P118: Yes – Action plan in place | Q118: No | R118: 2013-14 | S118: June
A119: 01Y | B119: 2013-14_June_01Y_PROV3 | C119: RT2 | D119: PENNINE CARE NHS FOUNDATION TRUST | E119: 21 | F119: Associate | G119: No | H119: No | I119: No | J119: No | K119: No | L119: No | M119: No | N119: No | O119: Yes – Action plan in place | P119: No | Q119: Further development required | R119: 2013-14 | S119: June
A120: 02A | B120: 2013-14_June_02A_PROV1 | C120: RW3 | D120: CENTRAL MANCHESTER UNIVERSITY HOSPITALS NHS FOUNDATION TRUST | E120: 11 | F120: Associate | G120: No | H120: No | I120: No | J120: No | K120: Yes – Action plan in place | L120: Yes – Action plan in place | M120: No | N120: No | O120: Yes – Action plan in place | P120: Yes – Action plan in place | Q120: No | R120: 2013-14 | S120: June
A121: 02A | B121: 2013-14_June_02A_PROV2 | C121: RM2 | D121: UNIVERSITY HOSPITAL OF SOUTH MANCHESTER NHS FOUNDATION TRUST | E121: 17 | F121: Associate | G121: No | H121: No | I121: No | J121: No | K121: No | L121: No | M121: No | N121: No | O121: Yes – Action plan in place | P121: No | Q121: No | R121: 2013-14 | S121: June
A122: 02D | B122: 2013-14_June_02D_PROV1 | C122: RBT | D122: MID CHESHIRE HOSPITALS NHS FOUNDATION TRUST | E122: 30 | F122: Associate | G122: Yes – Action plan in place | H122: No | I122: No | J122: No | K122: Yes – Action plan in place | L122: No | M122: No | N122: Yes – Action plan in place | O122: Yes – Action plan in place | P122: Yes – Action plan in place | Q122: No | R122: 2013-14 | S122: June
A123: 02D | B123: 2013-14_June_02D_PROV2 | C123: RJN | D123: EAST CHESHIRE NHS TRUST | E123: 5 | F123: Associate | G123: No | H123: No | I123: No | J123: No | K123: No | L123: No | M123: No | N123: No | O123: Yes – Action plan in place | P123: Yes – Action plan in place | Q123: No | R123: 2013-14 | S123: June
A124: 02D | B124: 2013-14_June_02D_PROV3 | C124: RXA | D124: CHESHIRE AND WIRRAL PARTNERSHIP NHS FOUNDATION TRUST | E124: 5 | F124: Lead | G124: Yes – Action plan in place | H124: No | I124: No | J124: No | K124: No | L124: No | M124: No | N124: No | O124: Yes – Action plan in place | P124: No | Q124: No | R124: 2013-14 | S124: June
A125: 02E | B125: 2013-14_June_02E_PROV1 | C125: RWW | D125: WARRINGTON AND HALTON HOSPITALS NHS FOUNDATION TRUST | E125: 57 | F125: Lead | G125: No | H125: No | I125: No | J125: No | K125: No | L125: Yes – Action plan in place | M125: Yes – Action plan in place | N125: No | O125: Yes – Action plan in place | P125: No | Q125: No | R125: 2013-14 | S125: June
A126: 02E | B126: 2013-14_June_02E_PROV2 | C126: RY2 | D126: BRIDGEWATER COMMUNITY HEALTHCARE NHS TRUST | E126: 11 | F126: Lead | G126: No | H126: No | I126: No | J126: No | K126: No | L126: No | M126: No | N126: No | O126: Yes – Action plan in place | P126: No | Q126: Further development required | R126: 2013-14 | S126: June
A127: 02E | B127: 2013-14_June_02E_PROV3 | C127: RTV | D127: 5 BOROUGHS PARTNERSHIP NHS FOUNDATION TRUST | E127: 11 | F127: Associate | G127: No | H127: No | I127: No | J127: No | K127: No | L127: No | M127: No | N127: No | O127: Yes – Action plan in place | P127: No | Q127: Further development required | R127: 2013-14 | S127: June
A128: 02F | B128: 2013-14_June_02F_PROV1 | C128: RJR | D128: COUNTESS OF CHESTER HOSPITAL NHS FOUNDATION TRUST | E128: 68 | F128: Lead | G128: No | H128: No | I128: No | J128: No | K128: No | L128: No | M128: Yes – Action plan in place | N128: No | O128: Yes – Action plan in place | P128: No | Q128: No | R128: 2013-14 | S128: June
A129: 02F | B129: 2013-14_June_02F_PROV2 | C129: RBL | D129: WIRRAL UNIVERSITY TEACHING HOSPITAL NHS FOUNDATION TRUST | E129: 7 | F129: Associate | G129: No | H129: No | I129: No | J129: No | K129: No | L129: No | M129: Yes – Action plan in place | N129: No | O129: Yes – Action plan in place | P129: Yes – Action plan in place | Q129: No | R129: 2013-14 | S129: June
A130: 02F | B130: 2013-14_June_02F_PROV3 | C130: RXA | D130: CHESHIRE AND WIRRAL PARTNERSHIP NHS FOUNDATION TRUST | E130: 25 | F130: Associate | G130: No | H130: No | I130: No | J130: No | K130: No | L130: Yes – Action plan in place | M130: Yes – Action plan in place | N130: No | O130: Yes – Action plan in place | P130: Yes – Action plan in place | Q130: No | R130: 2013-14 | S130: June
A131: 02G | B131: 2013-14_June_02G_PROV1 | C131: RVY | D131: SOUTHPORT AND ORMSKIRK HOSPITAL NHS TRUST | E131: 32 | F131: Associate | G131: No | H131: No | I131: No | J131: Yes – Action plan in place | K131: No | L131: No | M131: No | N131: No | O131: Yes – Action plan in place | P131: No | Q131: Further development required | R131: 2013-14 | S131: June
A132: 02H | B132: 2013-14_June_02H_PROV1 | C132: RRF | D132: WRIGHTINGTON, WIGAN AND LEIGH NHS FOUNDATION TRUST | E132: 74 | F132: Lead | G132: Yes – Action plan in place | H132: No | I132: No | J132: No | K132: No | L132: Yes – Action plan in place | M132: Yes – Action plan in place | N132: No | O132: Yes – Action plan in place | P132: No | Q132: No | R132: 2013-14 | S132: June
A133: 02H | B133: 2013-14_June_02H_PROV2 | C133: RMC | D133: BOLTON NHS FOUNDATION TRUST | E133: 7 | F133: Associate | G133: No | H133: Yes – Action plan in place | I133: No | J133: No | K133: No | L133: No | M133: Yes – Action plan in place | N133: Yes – Action plan in place | O133: Yes – Action plan in place | P133: No | Q133: No | R133: 2013-14 | S133: June
A134: 02H | B134: 2013-14_June_02H_PROV3 | C134: RM3 | D134: SALFORD ROYAL NHS FOUNDATION TRUST | E134: 5 | F134: Associate | G134: No | H134: No | I134: No | J134: No | K134: No | L134: No | M134: No | N134: No | O134: Yes – Action plan in place | P134: Yes – Action plan in place | Q134: Further development required | R134: 2013-14 | S134: June
A135: 02M | B135: 2013-14_June_02M_PROV1 | C135: RXL | D135: BLACKPOOL TEACHING HOSPITALS NHS FOUNDATION TRUST | E135: 27 | F135: Associate | G135: No | H135: No | I135: No | J135: No | K135: Yes – Action plan in place | L135: No | M135: No | N135: No | O135: Yes – Action plan in place | P135: No | Q135: No | R135: 2013-14 | S135: June
A136: 02M | B136: 2013-14_June_02M_PROV2 | C136: RW5 | D136: LANCASHIRE CARE NHS FOUNDATION TRUST | E136: 5 | F136: Associate | G136: No | H136: No | I136: No | J136: No | K136: No | L136: No | M136: No | N136: No | O136: Yes – Action plan in place | P136: No | Q136: Further development required | R136: 2013-14 | S136: June
A137: 02N | B137: 2013-14_June_02N_PROV1 | C137: RCF | D137: AIREDALE NHS FOUNDATION TRUST | E137: 65 | F137: Lead | G137: No | H137: No | I137: No | J137: No | K137: No | L137: No | M137: Yes – Action plan in place | N137: No | O137: Yes – Action plan in place | P137: No | Q137: Yes | R137: 2013-14 | S137: June
A138: 02N | B138: 2013-14_June_02N_PROV2 | C138: TAD | D138: BRADFORD DISTRICT CARE TRUST | E138: 22 | F138: Associate | G138: No | H138: No | I138: No | J138: No | K138: No | L138: No | M138: No | N138: No | O138: Yes – Action plan in place | P138: No | Q138: No | R138: 2013-14 | S138: June
A139: 02P | B139: 2013-14_June_02P_PROV1 | C139: RFF | D139: BARNSLEY HOSPITAL NHS FOUNDATION TRUST | E139: 75 | F139: Lead | G139: No | H139: No | I139: No | J139: No | K139: Yes – Action plan in place | L139: No | M139: No | N139: No | O139: Yes – Action plan in place | P139: No | Q139: Yes | R139: 2013-14 | S139: June
A140: 02P | B140: 2013-14_June_02P_PROV2 | C140: RXG | D140: SOUTH WEST YORKSHIRE PARTNERSHIP NHS FOUNDATION TRUST | E140: 40 | F140: Lead | G140: No | H140: No | I140: No | J140: No | K140: No | L140: No | M140: No | N140: No | O140: Yes – Action plan in place | P140: No | Q140: No | R140: 2013-14 | S140: June
A141: 02Q | B141: 2013-14_June_02Q_PROV1 | C141: RP5 | D141: DONCASTER AND BASSETLAW HOSPITALS NHS FOUNDATION TRUST | E141: 18 | F141: Associate | G141: No | H141: Yes – Action plan in place | I141: No | J141: No | K141: No | L141: No | M141: No | N141: No | O141: Yes – Action plan in place | P141: No | Q141: Further development required | R141: 2013-14 | S141: June
A142: 02Q | B142: 2013-14_June_02Q_PROV2 | C142: RHA | D142: NOTTINGHAMSHIRE HEALTHCARE NHS TRUST | E142: 5 | F142: Associate | G142: No | H142: No | I142: No | J142: No | K142: No | L142: No | M142: No | N142: No | O142: No | P142: No | Q142: Further development required | R142: 2013-14 | S142: June
A143: 02R | B143: 2013-14_June_02R_PROV1 | C143: RAE | D143: BRADFORD TEACHING HOSPITALS NHS FOUNDATION TRUST | E143: 56 | F143: Lead | G143: No | H143: No | I143: No | J143: No | K143: No | L143: Yes – Action plan in place | M143: No | N143: No | O143: Yes – Action plan in place | P143: Yes – Action plan in place | Q143: No | R143: 2013-14 | S143: June
A144: 02R | B144: 2013-14_June_02R_PROV2 | C144: TAD | D144: BRADFORD DISTRICT CARE TRUST | E144: 53 | F144: Lead | G144: No | H144: No | I144: No | J144: No | K144: No | L144: No | M144: No | N144: No | O144: Yes – Action plan in place | P144: No | Q144: No | R144: 2013-14 | S144: June
A145: 02R | B145: 2013-14_June_02R_PROV3 | C145: RCF | D145: AIREDALE NHS FOUNDATION TRUST | E145: 13 | F145: Associate | G145: No | H145: No | I145: No | J145: No | K145: No | L145: No | M145: Yes – Action plan in place | N145: No | O145: Yes – Action plan in place | P145: No | Q145: Yes | R145: 2013-14 | S145: June
A146: 02R | B146: 2013-14_June_02R_PROV4 | C146: RX8 | D146: YORKSHIRE AMBULANCE SERVICE NHS TRUST | E146: 7 | F146: Associate | G146: No | H146: No | I146: No | J146: No | K146: No | L146: No | M146: No | N146: No | O146: Yes – Action plan in place | P146: No | Q146: No | R146: 2013-14 | S146: June
A147: 02T | B147: 2013-14_June_02T_PROV1 | C147: RWY | D147: CALDERDALE AND HUDDERSFIELD NHS FOUNDATION TRUST | E147: 37 | F147: Associate | G147: Yes – Action plan in place | H147: Yes – Action plan in place | I147: No | J147: No | K147: No | L147: Yes – Action plan in place | M147: No | N147: Yes – Action plan in place | O147: Yes – Action plan in place | P147: No | Q147: Yes | R147: 2013-14 | S147: June
A148: 02T | B148: 2013-14_June_02T_PROV2 | C148: RXG | D148: SOUTH WEST YORKSHIRE PARTNERSHIP NHS FOUNDATION TRUST | E148: 8 | F148: Lead | G148: No | H148: No | I148: No | J148: No | K148: No | L148: No | M148: No | N148: No | O148: Yes – Action plan in place | P148: No | Q148: No | R148: 2013-14 | S148: June
A149: 02V | B149: 2013-14_June_02V_PROV1 | C149: RR8 | D149: LEEDS TEACHING HOSPITALS NHS TRUST | E149: 10 | F149: Associate | G149: No | H149: No | I149: No | J149: No | K149: No | L149: Yes – Action plan in place | M149: Yes – Action plan in place | N149: No | O149: Yes – Action plan in place | P149: Yes – Action plan in place | Q149: Yes | R149: 2013-14 | S149: June
A150: 02V | B150: 2013-14_June_02V_PROV2 | C150: RCD | D150: HARROGATE AND DISTRICT NHS FOUNDATION TRUST | E150: 8 | F150: Associate | G150: No | H150: No | I150: No | J150: No | K150: No | L150: No | M150: No | N150: No | O150: Yes – Action plan in place | P150: Yes – Action plan in place | Q150: Further development required | R150: 2013-14 | S150: June
A151: 02V | B151: 2013-14_June_02V_PROV3 | C151: RGD | D151: LEEDS AND YORK PARTNERSHIP NHS FOUNDATION TRUST | E151: 13 | F151: Lead | G151: No | H151: No | I151: No | J151: No | K151: No | L151: No | M151: No | N151: No | O151: Yes – Action plan in place | P151: No | Q151: No | R151: 2013-14 | S151: June
A152: 02V | B152: 2013-14_June_02V_PROV4 | C152: RY6 | D152: LEEDS COMMUNITY HEALTHCARE NHS TRUST | E152: 24 | F152: Associate | G152: No | H152: No | I152: No | J152: No | K152: No | L152: No | M152: No | N152: No | O152: Yes – Action plan in place | P152: No | Q152: No | R152: 2013-14 | S152: June
A153: 02W | B153: 2013-14_June_02W_PROV1 | C153: RAE | D153: BRADFORD TEACHING HOSPITALS NHS FOUNDATION TRUST | E153: 18 | F153: Associate | G153: No | H153: No | I153: No | J153: No | K153: No | L153: Yes – Action plan in place | M153: No | N153: No | O153: Yes – Action plan in place | P153: Yes – Action plan in place | Q153: No | R153: 2013-14 | S153: June
A154: 02W | B154: 2013-14_June_02W_PROV2 | C154: TAD | D154: BRADFORD DISTRICT CARE TRUST | E154: 16 | F154: Associate | G154: No | H154: No | I154: No | J154: No | K154: No | L154: No | M154: No | N154: No | O154: Yes – Action plan in place | P154: No | Q154: No | R154: 2013-14 | S154: June
A155: 02X | B155: 2013-14_June_02X_PROV1 | C155: RP5 | D155: DONCASTER AND BASSETLAW HOSPITALS NHS FOUNDATION TRUST | E155: 0 | F155: Lead | G155: No | H155: Yes – Action plan in place | I155: No | J155: No | K155: Yes – Action plan in place | L155: Yes – Action plan in place | M155: No | N155: No | O155: Yes – Action plan in place | P155: No | Q155: No | R155: 2013-14 | S155: June
A156: 02X | B156: 2013-14_June_02X_PROV2 | C156: RHQ | D156: SHEFFIELD TEACHING HOSPITALS NHS FOUNDATION TRUST | E156: 0 | F156: Associate | G156: 0 | H156: 0 | I156: 0 | J156: 0 | K156: 0 | L156: 0 | M156: 0 | N156: 0 | O156: 0 | P156: 0 | Q156: 0 | R156: 2013-14 | S156: June
A157: 02X | B157: 2013-14_June_02X_PROV3 | C157: RFR | D157: THE ROTHERHAM NHS FOUNDATION TRUST | E157: 0 | F157: Associate | G157: 0 | H157: 0 | I157: 0 | J157: 0 | K157: 0 | L157: 0 | M157: 0 | N157: 0 | O157: 0 | P157: 0 | Q157: 0 | R157: 2013-14 | S157: June
A158: 02X | B158: 2013-14_June_02X_PROV4 | C158: RCU | D158: SHEFFIELD CHILDREN'S NHS FOUNDATION TRUST | E158: 0 | F158: Associate | G158: 0 | H158: 0 | I158: 0 | J158: 0 | K158: 0 | L158: 0 | M158: 0 | N158: 0 | O158: 0 | P158: 0 | Q158: 0 | R158: 2013-14 | S158: June
A159: 02X | B159: 2013-14_June_02X_PROV5 | C159: RXE | D159: ROTHERHAM, DONCASTER AND SOUTH HUMBER NHS FOUNDATION TRUST | E159: 0 | F159: Lead | G159: No | H159: No | I159: No | J159: No | K159: No | L159: No | M159: No | N159: No | O159: Yes – No action plan in place | P159: No | Q159: 0 | R159: 2013-14 | S159: June
A160: 02Y | B160: 2013-14_June_02Y_PROV1 | C160: RWA | D160: HULL AND EAST YORKSHIRE HOSPITALS NHS TRUST | E160: 27 | F160: Associate | G160: No | H160: No | I160: No | J160: Yes – Action plan in place | K160: No | L160: Yes – Action plan in place | M160: Yes – Action plan in place | N160: No | O160: No | P160: No | Q160: No | R160: 2013-14 | S160: June
A161: 02Y | B161: 2013-14_June_02Y_PROV2 | C161: RJL | D161: NORTHERN LINCOLNSHIRE AND GOOLE HOSPITALS NHS FOUNDATION TRUST | E161: 7 | F161: Associate | G161: No | H161: Yes – Action plan in place | I161: No | J161: Yes – Action plan in place | K161: Yes – Action plan in place | L161: Yes – Action plan in place | M161: No | N161: No | O161: Yes – Action plan in place | P161: Yes – Action plan in place | Q161: No | R161: 2013-14 | S161: June
A162: 02Y | B162: 2013-14_June_02Y_PROV3 | C162: RCB | D162: YORK TEACHING HOSPITAL NHS FOUNDATION TRUST | E162: 9 | F162: Lead | G162: No | H162: No | I162: No | J162: No | K162: No | L162: No | M162: No | N162: No | O162: No | P162: No | Q162: No | R162: 2013-14 | S162: June
A163: 02Y | B163: 2013-14_June_02Y_PROV4 | C163: RV9 | D163: HUMBER NHS FOUNDATION TRUST | E163: 56 | F163: Lead | G163: No | H163: No | I163: No | J163: No | K163: No | L163: No | M163: No | N163: No | O163: No | P163: No | Q163: No | R163: 2013-14 | S163: June
A164: 02Y | B164: 2013-14_June_02Y_PROV5 | C164: RX8 | D164: YORKSHIRE AMBULANCE SERVICE NHS TRUST | E164: 7 | F164: Lead | G164: No | H164: No | I164: No | J164: No | K164: No | L164: No | M164: No | N164: No | O164: No | P164: No | Q164: No | R164: 2013-14 | S164: June
A165: 03A | B165: 2013-14_June_03A_PROV1 | C165: RWY | D165: CALDERDALE AND HUDDERSFIELD NHS FOUNDATION TRUST | E165: 41 | F165: Lead | G165: Yes – Action plan in place | H165: Yes – Action plan in place | I165: No | J165: No | K165: No | L165: Yes – Action plan in place | M165: No | N165: Yes – Action plan in place | O165: Yes – Action plan in place | P165: No | Q165: Yes | R165: 2013-14 | S165: June
A166: 03A | B166: 2013-14_June_03A_PROV2 | C166: RXG | D166: SOUTH WEST YORKSHIRE PARTNERSHIP NHS FOUNDATION TRUST | E166: 10 | F166: Associate | G166: No | H166: No | I166: No | J166: No | K166: No | L166: No | M166: No | N166: No | O166: Yes – Action plan in place | P166: No | Q166: No | R166: 2013-14 | S166: June
A167: 03C | B167: 2013-14_June_03C_PROV1 | C167: RR8 | D167: LEEDS TEACHING HOSPITALS NHS TRUST | E167: 17 | F167: Lead | G167: No | H167: No | I167: No | J167: No | K167: No | L167: Yes – Action plan in place | M167: Yes – Action plan in place | N167: No | O167: Yes – Action plan in place | P167: Yes – Action plan in place | Q167: Yes | R167: 2013-14 | S167: June
A168: 03C | B168: 2013-14_June_03C_PROV2 | C168: RGD | D168: LEEDS AND YORK PARTNERSHIP NHS FOUNDATION TRUST | E168: 21 | F168: Associate | G168: No | H168: No | I168: No | J168: No | K168: No | L168: No | M168: No | N168: No | O168: Yes – Action plan in place | P168: No | Q168: No | R168: 2013-14 | S168: June
A169: 03C | B169: 2013-14_June_03C_PROV3 | C169: RY6 | D169: LEEDS COMMUNITY HEALTHCARE NHS TRUST | E169: 40 | F169: Associate | G169: No | H169: No | I169: No | J169: No | K169: No | L169: No | M169: No | N169: No | O169: Yes – Action plan in place | P169: No | Q169: No | R169: 2013-14 | S169: June
A170: 03C | B170: 2013-14_June_03C_PROV4 | C170: RX8 | D170: YORKSHIRE AMBULANCE SERVICE NHS TRUST | E170: 6 | F170: Associate | G170: No | H170: No | I170: No | J170: No | K170: No | L170: No | M170: No | N170: No | O170: Yes – Action plan in place | P170: No | Q170: No | R170: 2013-14 | S170: June
A171: 03D | B171: 2013-14_June_03D_PROV1 | C171: RTR | D171: SOUTH TEES HOSPITALS NHS FOUNDATION TRUST | E171: 13 | F171: Lead | G171: No | H171: No | I171: No | J171: No | K171: No | L171: Yes – Action plan in place | M171: Yes – Action plan in place | N171: No | O171: Yes – Action plan in place | P171: No | Q171: No | R171: 2013-14 | S171: June
A172: 03E | B172: 2013-14_June_03E_PROV1 | C172: RCD | D172: HARROGATE AND DISTRICT NHS FOUNDATION TRUST | E172: 61 | F172: Lead | G172: No | H172: No | I172: No | J172: No | K172: No | L172: No | M172: No | N172: No | O172: Yes – Action plan in place | P172: Yes – Action plan in place | Q172: Yes | R172: 2013-14 | S172: June
A173: 03F | B173: 2013-14_June_03F_PROV1 | C173: RWA | D173: HULL AND EAST YORKSHIRE HOSPITALS NHS TRUST | E173: 51 | F173: Lead | G173: No | H173: No | I173: No | J173: Yes – Action plan in place | K173: No | L173: Yes – Action plan in place | M173: Yes – Action plan in place | N173: No | O173: No | P173: No | Q173: No | R173: 2013-14 | S173: June
A174: 03F | B174: 2013-14_June_03F_PROV2 | C174: RV9 | D174: HUMBER NHS FOUNDATION TRUST | E174: 37 | F174: Associate | G174: No | H174: No | I174: No | J174: No | K174: No | L174: No | M174: No | N174: No | O174: No | P174: No | Q174: No | R174: 2013-14 | S174: June
A175: 03F | B175: 2013-14_June_03F_PROV3 | C175: RX8 | D175: YORKSHIRE AMBULANCE SERVICE NHS TRUST | E175: 0 | F175: Associate | G175: No | H175: No | I175: No | J175: No | K175: No | L175: No | M175: No | N175: No | O175: No | P175: No | Q175: No | R175: 2013-14 | S175: June
A176: 03G | B176: 2013-14_June_03G_PROV1 | C176: RR8 | D176: LEEDS TEACHING HOSPITALS NHS TRUST | E176: 15 | F176: Associate | G176: No | H176: No | I176: No | J176: No | K176: No | L176: Yes – Action plan in place | M176: Yes – Action plan in place | N176: No | O176: Yes – Action plan in place | P176: Yes – Action plan in place | Q176: Yes | R176: 2013-14 | S176: June
A177: 03G | B177: 2013-14_June_03G_PROV2 | C177: RY6 | D177: LEEDS COMMUNITY HEALTHCARE NHS TRUST | E177: 24 | F177: Lead | G177: No | H177: No | I177: No | J177: No | K177: No | L177: No | M177: No | N177: No | O177: Yes – Action plan in place | P177: No | Q177: No | R177: 2013-14 | S177: June
A178: 03G | B178: 2013-14_June_03G_PROV3 | C178: RGD | D178: LEEDS AND YORK PARTNERSHIP NHS FOUNDATION TRUST | E178: 20 | F178: Associate | G178: No | H178: No | I178: No | J178: No | K178: No | L178: No | M178: No | N178: No | O178: Yes – Action plan in place | P178: No | Q178: No | R178: 2013-14 | S178: June
A179: 03G | B179: 2013-14_June_03G_PROV4 | C179: RX8 | D179: YORKSHIRE AMBULANCE SERVICE NHS TRUST | E179: 6 | F179: Associate | G179: No | H179: No | I179: No | J179: No | K179: No | L179: No | M179: No | N179: No | O179: Yes – Action plan in place | P179: No | Q179: No | R179: 2013-14 | S179: June
A180: 03H | B180: 2013-14_June_03H_PROV1 | C180: RJL | D180: NORTHERN LINCOLNSHIRE AND GOOLE HOSPITALS NHS FOUNDATION TRUST | E180: 32 | F180: Lead | G180: No | H180: Yes – Action plan in place | I180: No | J180: Yes – Action plan in place | K180: Yes – Action plan in place | L180: Yes – Action plan in place | M180: No | N180: No | O180: Yes – Action plan in place | P180: Yes – Action plan in place | Q180: No | R180: 2013-14 | S180: June
A181: 03J | B181: 2013-14_June_03J_PROV1 | C181: RXF | D181: MID YORKSHIRE HOSPITALS NHS TRUST | E181: 21 | F181: Associate | G181: Yes – Action plan in place | H181: No | I181: No | J181: Yes – Action plan in place | K181: No | L181: Yes – Action plan in place | M181: No | N181: No | O181: Yes – Action plan in place | P181: No | Q181: Yes | R181: 2013-14 | S181: June
A182: 03J | B182: 2013-14_June_03J_PROV2 | C182: RXG | D182: SOUTH WEST YORKSHIRE PARTNERSHIP NHS FOUNDATION TRUST | E182: 8 | F182: Associate | G182: No | H182: No | I182: No | J182: No | K182: No | L182: No | M182: No | N182: No | O182: Yes – Action plan in place | P182: No | Q182: No | R182: 2013-14 | S182: June
A183: 03K | B183: 2013-14_June_03K_PROV1 | C183: RJL | D183: NORTHERN LINCOLNSHIRE AND GOOLE HOSPITALS NHS FOUNDATION TRUST | E183: 35 | F183: Associate | G183: No | H183: Yes – No action plan in place | I183: No | J183: Yes – Action plan in place | K183: Yes – Action plan in place | L183: Yes – Action plan in place | M183: No | N183: No | O183: Yes – Action plan in place | P183: Yes – Action plan in place | Q183: No | R183: 2013-14 | S183: June
A184: 03K | B184: 2013-14_June_03K_PROV2 | C184: RXE | D184: ROTHERHAM, DONCASTER AND SOUTH HUMBER NHS FOUNDATION TRUST | E184: 9 | F184: Lead | G184: No | H184: No | I184: No | J184: No | K184: No | L184: No | M184: No | N184: No | O184: Yes – Action plan in place | P184: No | Q184: Yes | R184: 2013-14 | S184: June
A185: 03L | B185: 2013-14_June_03L_PROV1 | C185: RFR | D185: THE ROTHERHAM NHS FOUNDATION TRUST | E185: 67 | F185: Lead | G185: No | H185: Yes – Action plan in place | I185: No | J185: Yes – Action plan in place | K185: No | L185: No | M185: No | N185: No | O185: Yes – Action plan in place | P185: No | Q185: No | R185: 2013-14 | S185: June
A186: 03L | B186: 2013-14_June_03L_PROV2 | C186: RXE | D186: ROTHERHAM, DONCASTER AND SOUTH HUMBER NHS FOUNDATION TRUST | E186: 17 | F186: Lead | G186: No | H186: No | I186: No | J186: No | K186: No | L186: No | M186: No | N186: No | O186: Yes – Action plan in place | P186: No | Q186: No | R186: 2013-14 | S186: June
A187: 03M | B187: 2013-14_June_03M_PROV1 | C187: RCB | D187: YORK TEACHING HOSPITAL NHS FOUNDATION TRUST | E187: 19 | F187: Associate | G187: No | H187: No | I187: No | J187: Yes – Action plan in place | K187: Yes – Action plan in place | L187: No | M187: Yes – Action plan in place | N187: No | O187: Yes – No action plan in place | P187: No | Q187: No | R187: 2013-14 | S187: June
A188: 03M | B188: 2013-14_June_03M_PROV2 | C188: RX3 | D188: TEES, ESK AND WEAR VALLEYS NHS FOUNDATION TRUST | E188: 5 | F188: Lead | G188: No | H188: No | I188: No | J188: No | K188: No | L188: No | M188: No | N188: No | O188: Yes – No action plan in place | P188: No | Q188: No | R188: 2013-14 | S188: June
A189: 03N | B189: 2013-14_June_03N_PROV1 | C189: RHQ | D189: SHEFFIELD TEACHING HOSPITALS NHS FOUNDATION TRUST | E189: 39 | F189: Lead | G189: No | H189: No | I189: No | J189: No | K189: No | L189: Yes – Action plan in place | M189: Yes – Action plan in place | N189: No | O189: Yes – Action plan in place | P189: Yes – Action plan in place | Q189: Further development required | R189: 2013-14 | S189: June
A190: 03N | B190: 2013-14_June_03N_PROV2 | C190: TAH | D190: SHEFFIELD HEALTH AND SOCIAL CARE NHS FOUNDATION TRUST | E190: 57 | F190: Lead | G190: No | H190: No | I190: No | J190: No | K190: No | L190: No | M190: No | N190: No | O190: Yes – Action plan in place | P190: No | Q190: No | R190: 2013-14 | S190: June
A191: 03N | B191: 2013-14_June_03N_PROV3 | C191: RCU | D191: SHEFFIELD CHILDREN'S NHS FOUNDATION TRUST | E191: 22 | F191: Lead | G191: No | H191: No | I191: No | J191: No | K191: No | L191: No | M191: No | N191: No | O191: Yes – Action plan in place | P191: No | Q191: No | R191: 2013-14 | S191: June
A192: 03N | B192: 2013-14_June_03N_PROV4 | C192: RX8 | D192: YORKSHIRE AMBULANCE SERVICE NHS TRUST | E192: 10 | F192: Associate | G192: No | H192: No | I192: No | J192: No | K192: No | L192: No | M192: No | N192: No | O192: Yes – No action plan in place | P192: No | Q192: No | R192: 2013-14 | S192: June
A193: 03Q | B193: 2013-14_June_03Q_PROV1 | C193: RCB | D193: YORK TEACHING HOSPITAL NHS FOUNDATION TRUST | E193: 49 | F193: Lead | G193: No | H193: No | I193: No | J193: No | K193: No | L193: No | M193: Yes – Action plan in place | N193: No | O193: Yes – Action plan in place | P193: No | Q193: No | R193: 2013-14 | S193: June
A194: 03Q | B194: 2013-14_June_03Q_PROV2 | C194: RGD | D194: LEEDS AND YORK PARTNERSHIP NHS FOUNDATION TRUST | E194: 18 | F194: Lead | G194: No | H194: No | I194: No | J194: No | K194: No | L194: No | M194: No | N194: No | O194: No | P194: No | Q194: No | R194: 2013-14 | S194: June
A195: 03Q | B195: 2013-14_June_03Q_PROV3 | C195: RX8 | D195: YORKSHIRE AMBULANCE SERVICE NHS TRUST | E195: 8 | F195: Associate | G195: No | H195: No | I195: No | J195: No | K195: No | L195: No | M195: No | N195: No | O195: Yes – No action plan in place | P195: No | Q195: No | R195: 2013-14 | S195: June
A196: 03R | B196: 2013-14_June_03R_PROV1 | C196: RXF | D196: MID YORKSHIRE HOSPITALS NHS TRUST | E196: 51 | F196: Lead | G196: Yes – Action plan in place | H196: No | I196: No | J196: Yes – Action plan in place | K196: No | L196: Yes – Action plan in place | M196: No | N196: No | O196: Yes – Action plan in place | P196: No | Q196: Yes | R196: 2013-14 | S196: June
A197: 03R | B197: 2013-14_June_03R_PROV2 | C197: RXG | D197: SOUTH WEST YORKSHIRE PARTNERSHIP NHS FOUNDATION TRUST | E197: 16 | F197: Associate | G197: No | H197: No | I197: No | J197: No | K197: No | L197: No | M197: No | N197: No | O197: Yes – Action plan in place | P197: No | Q197: No | R197: 2013-14 | S197: June
A198: 03R | B198: 2013-14_June_03R_PROV3 | C198: RX8 | D198: YORKSHIRE AMBULANCE SERVICE NHS TRUST | E198: 7 | F198: Associate | G198: No | H198: No | I198: No | J198: No | K198: No | L198: No | M198: No | N198: No | O198: Yes – Action plan in place | P198: No | Q198: No | R198: 2013-14 | S198: June
A199: 03T | B199: 2013-14_June_03T_PROV1 | C199: RWD | D199: UNITED LINCOLNSHIRE HOSPITALS NHS TRUST | E199: 34 | F199: Associate | G199: No | H199: No | I199: Yes – Action plan in place | J199: Yes – Action plan in place | K199: Yes – Action plan in place | L199: No | M199: Yes – Action plan in place | N199: No | O199: No | P199: No | Q199: No | R199: 2013-14 | S199: June
A200: 03T | B200: 2013-14_June_03T_PROV2 | C200: RY5 | D200: LINCOLNSHIRE COMMUNITY HEALTH SERVICES NHS TRUST | E200: 36 | F200: Lead | G200: No | H200: No | I200: No | J200: No | K200: No | L200: No | M200: No | N200: No | O200: No | P200: No | Q200: Further development required | R200: 2013-14 | S200: June
... 1989 more rows

Sheet ACUTE_CCG_PROV_SELFCERT_DOMAIN1 (hidden)
A1: Column1 | B1: ID | C1: F&F rate | D1: Rate Response | E1: Rate | F1: Provider code | G1: Scq Prov Name | H1: Year | I1: Period
A2: 00C_June | B2: 00C_PROV1 | C2: No | D2: No | E2: 1 | F2: RXP | G2: COUNTY DURHAM AND DARLINGTON NHS FOUNDATION TRUST | H2: 2013-14 | I2: June
A3: 00C_June | B3: 00C_PROV2 | C3: No | D3: No | E3: 1 | F3: RTR | G3: SOUTH TEES HOSPITALS NHS FOUNDATION TRUST | H3: 2013-14 | I3: June
A4: 00D_June | B4: 00D_PROV1 | C4: No | D4: No | E4: 1 | F4: RXP | G4: COUNTY DURHAM AND DARLINGTON NHS FOUNDATION TRUST | H4: 2013-14 | I4: June
A5: 00D_June | B5: 00D_PROV2 | C5: No | D5: No | E5: 1 | F5: RVW | G5: NORTH TEES AND HARTLEPOOL NHS FOUNDATION TRUST | H5: 2013-14 | I5: June
A6: 00D_June | B6: 00D_PROV3 | C6: No | D6: No | E6: 1 | F6: RLN | G6: CITY HOSPITALS SUNDERLAND NHS FOUNDATION TRUST | H6: 2013-14 | I6: June
A7: 00F_June | B7: 00F_PROV1 | C7: No | D7: No | E7: 1 | F7: RR7 | G7: GATESHEAD HEALTH NHS FOUNDATION TRUST | H7: 2013-14 | I7: June
A8: 00F_June | B8: 00F_PROV2 | C8: No | D8: No | E8: 1 | F8: RTD | G8: THE NEWCASTLE UPON TYNE HOSPITALS NHS FOUNDATION TRUST | H8: 2013-14 | I8: June
A9: 00F_June | B9: 00F_PROV3 | C9: No | D9: No | E9: 1 | F9: RE9 | G9: SOUTH TYNESIDE NHS FOUNDATION TRUST | H9: 2013-14 | I9: June
A10: 00G_June | B10: 00G_PROV1 | C10: No | D10: No | E10: 1 | F10: RTD | G10: THE NEWCASTLE UPON TYNE HOSPITALS NHS FOUNDATION TRUST | H10: 2013-14 | I10: June
A11: 00G_June | B11: 00G_PROV2 | C11: Further development required | D11: No | E11: 1 | F11: RTF | G11: NORTHUMBRIA HEALTHCARE NHS FOUNDATION TRUST | H11: 2013-14 | I11: June
A12: 00H_June | B12: 00H_PROV1 | C12: No | D12: No | E12: 1 | F12: RTD | G12: THE NEWCASTLE UPON TYNE HOSPITALS NHS FOUNDATION TRUST | H12: 2013-14 | I12: June
A13: 00H_June | B13: 00H_PROV2 | C13: No | D13: No | E13: 1 | F13: RTF | G13: NORTHUMBRIA HEALTHCARE NHS FOUNDATION TRUST | H13: 2013-14 | I13: June
A14: 00J_June | B14: 00J_PROV1 | C14: No | D14: No | E14: 1 | F14: RXP | G14: COUNTY DURHAM AND DARLINGTON NHS FOUNDATION TRUST | H14: 2013-14 | I14: June
A15: 00J_June | B15: 00J_PROV2 | C15: No | D15: No | E15: 1 | F15: RLN | G15: CITY HOSPITALS SUNDERLAND NHS FOUNDATION TRUST | H15: 2013-14 | I15: June
A16: 00K_June | B16: 00K_PROV1 | C16: No | D16: No | E16: 1 | F16: RVW | G16: NORTH TEES AND HARTLEPOOL NHS FOUNDATION TRUST | H16: 2013-14 | I16: June
A17: 00K_June | B17: 00K_PROV2 | C17: No | D17: No | E17: 1 | F17: RTR | G17: SOUTH TEES HOSPITALS NHS FOUNDATION TRUST | H17: 2013-14 | I17: June
A18: 00L_June | B18: 00L_PROV1 | C18: No | D18: No | E18: 1 | F18: RR7 | G18: GATESHEAD HEALTH NHS FOUNDATION TRUST | H18: 2013-14 | I18: June
A19: 00L_June | B19: 00L_PROV2 | C19: No | D19: No | E19: 1 | F19: RTF | G19: NORTHUMBRIA HEALTHCARE NHS FOUNDATION TRUST | H19: 2013-14 | I19: June
A20: 00L_June | B20: 00L_PROV3 | C20: No | D20: No | E20: 1 | F20: RTD | G20: THE NEWCASTLE UPON TYNE HOSPITALS NHS FOUNDATION TRUST | H20: 2013-14 | I20: June
A21: 00M_June | B21: 00M_PROV1 | C21: No | D21: No | E21: 1 | F21: RTR | G21: SOUTH TEES HOSPITALS NHS FOUNDATION TRUST | H21: 2013-14 | I21: June
A22: 00M_June | B22: 00M_PROV2 | C22: No | D22: No | E22: 1 | F22: RVW | G22: NORTH TEES AND HARTLEPOOL NHS FOUNDATION TRUST | H22: 2013-14 | I22: June
A23: 00N_June | B23: 00N_PROV1 | C23: No | D23: No | E23: 1 | F23: RE9 | G23: SOUTH TYNESIDE NHS FOUNDATION TRUST | H23: 2013-14 | I23: June
A24: 00N_June | B24: 00N_PROV2 | C24: No | D24: No | E24: 1 | F24: RLN | G24: CITY HOSPITALS SUNDERLAND NHS FOUNDATION TRUST | H24: 2013-14 | I24: June
A25: 00P_June | B25: 00P_PROV1 | C25: No | D25: No | E25: 1 | F25: RLN | G25: CITY HOSPITALS SUNDERLAND NHS FOUNDATION TRUST | H25: 2013-14 | I25: June
A26: 00P_June | B26: 00P_PROV2 | C26: No | D26: No | E26: 1 | F26: RE9 | G26: SOUTH TYNESIDE NHS FOUNDATION TRUST | H26: 2013-14 | I26: June
A27: 00P_June | B27: 00P_PROV3 | C27: No | D27: No | E27: 1 | F27: RR7 | G27: GATESHEAD HEALTH NHS FOUNDATION TRUST | H27: 2013-14 | I27: June
A28: 00Q_June | B28: 00Q_PROV1 | C28: Yes | D28: Yes | E28: 2 | F28: RXR | G28: EAST LANCASHIRE HOSPITALS NHS TRUST | H28: 2013-14 | I28: June
A29: 00R_June | B29: 00R_PROV1 | C29: No | D29: No | E29: 1 | F29: RXL | G29: BLACKPOOL TEACHING HOSPITALS NHS FOUNDATION TRUST | H29: 2013-14 | I29: June
A30: 00T_June | B30: 00T_PROV1 | C30: No | D30: No | E30: 1 | F30: RMC | G30: BOLTON NHS FOUNDATION TRUST | H30: 2013-14 | I30: June
A31: 00V_June | B31: 00V_PROV1 | C31: No | D31: No | E31: 1 | F31: RW6 | G31: PENNINE ACUTE HOSPITALS NHS TRUST | H31: 2013-14 | I31: June
A32: 00W_June | B32: 00W_PROV1 | C32: No | D32: No | E32: 1 | F32: RW3 | G32: CENTRAL MANCHESTER UNIVERSITY HOSPITALS NHS FOUNDATION TRUST | H32: 2013-14 | I32: June
A33: 00W_June | B33: 00W_PROV2 | C33: No | D33: No | E33: 1 | F33: RM2 | G33: UNIVERSITY HOSPITAL OF SOUTH MANCHESTER NHS FOUNDATION TRUST | H33: 2013-14 | I33: June
A34: 00X_June | B34: 00X_PROV1 | C34: No | D34: No | E34: 1 | F34: RXN | G34: LANCASHIRE TEACHING HOSPITALS NHS FOUNDATION TRUST | H34: 2013-14 | I34: June
A35: 00Y_June | B35: 00Y_PROV1 | C35: Yes | D35: Yes | E35: 2 | F35: RW6 | G35: PENNINE ACUTE HOSPITALS NHS TRUST | H35: 2013-14 | I35: June
A36: 00Y_June | B36: 00Y_PROV2 | C36: Yes | D36: Yes | E36: 2 | F36: RMP | G36: TAMESIDE HOSPITAL NHS FOUNDATION TRUST | H36: 2013-14 | I36: June
A37: 01A_June | B37: 01A_PROV1 | C37: Further development required | D37: No | E37: 1 | F37: RXR | G37: EAST LANCASHIRE HOSPITALS NHS TRUST | H37: 2013-14 | I37: June
A38: 01A_June | B38: 01A_PROV2 | C38: Further development required | D38: No | E38: 1 | F38: RCF | G38: AIREDALE NHS FOUNDATION TRUST | H38: 2013-14 | I38: June
A39: 01C_June | B39: 01C_PROV1 | C39: No | D39: No | E39: 1 | F39: RJN | G39: EAST CHESHIRE NHS TRUST | H39: 2013-14 | I39: June
A40: 01C_June | B40: 01C_PROV2 | C40: No | D40: No | E40: 1 | F40: RWJ | G40: STOCKPORT NHS FOUNDATION TRUST | H40: 2013-14 | I40: June
A41: 01D_June | B41: 01D_PROV1 | C41: No | D41: No | E41: 1 | F41: RW6 | G41: PENNINE ACUTE HOSPITALS NHS TRUST | H41: 2013-14 | I41: June
A42: 01E_June | B42: 01E_PROV1 | C42: No | D42: No | E42: 1 | F42: RXN | G42: LANCASHIRE TEACHING HOSPITALS NHS FOUNDATION TRUST | H42: 2013-14 | I42: June
A43: 01F_June | B43: 01F_PROV1 | C43: Further development required | D43: No | E43: 1 | F43: RWW | G43: WARRINGTON AND HALTON HOSPITALS NHS FOUNDATION TRUST | H43: 2013-14 | I43: June
A44: 01F_June | B44: 01F_PROV2 | C44: No | D44: No | E44: 1 | F44: RBN | G44: ST HELENS AND KNOWSLEY HOSPITALS NHS TRUST | H44: 2013-14 | I44: June
A45: 01G_June | B45: 01G_PROV1 | C45: No | D45: No | E45: 1 | F45: RM3 | G45: SALFORD ROYAL NHS FOUNDATION TRUST | H45: 2013-14 | I45: June
A46: 01G_June | B46: 01G_PROV2 | C46: No | D46: No | E46: 1 | F46: RW3 | G46: CENTRAL MANCHESTER UNIVERSITY HOSPITALS NHS FOUNDATION TRUST | H46: 2013-14 | I46: June
A47: 01H_June | B47: 01H_PROV1 | C47: No | D47: No | E47: 1 | F47: RNL | G47: NORTH CUMBRIA UNIVERSITY HOSPITALS NHS TRUST | H47: 2013-14 | I47: June
A48: 01H_June | B48: 01H_PROV2 | C48: No | D48: No | E48: 1 | F48: RTX | G48: UNIVERSITY HOSPITALS OF MORECAMBE BAY NHS FOUNDATION TRUST | H48: 2013-14 | I48: June
A49: 01J_June | B49: 01J_PROV1 | C49: No | D49: No | E49: 1 | F49: RBN | G49: ST HELENS AND KNOWSLEY HOSPITALS NHS TRUST | H49: 2013-14 | I49: June
A50: 01J_June | B50: 01J_PROV2 | C50: No | D50: No | E50: 1 | F50: REM | G50: AINTREE UNIVERSITY HOSPITAL NHS FOUNDATION TRUST | H50: 2013-14 | I50: June
A51: 01J_June | B51: 01J_PROV3 | C51: No | D51: No | E51: 1 | F51: REP | G51: LIVERPOOL WOMEN'S NHS FOUNDATION TRUST | H51: 2013-14 | I51: June
A52: 01K_June | B52: 01K_PROV1 | C52: No | D52: No | E52: 1 | F52: RTX | G52: UNIVERSITY HOSPITALS OF MORECAMBE BAY NHS FOUNDATION TRUST | H52: 2013-14 | I52: June
A53: 01K_June | B53: 01K_PROV2 | C53: No | D53: No | E53: 1 | F53: RXL | G53: BLACKPOOL TEACHING HOSPITALS NHS FOUNDATION TRUST | H53: 2013-14 | I53: June
A54: 01M_June | B54: 01M_PROV1 | C54: No | D54: No | E54: 1 | F54: RW6 | G54: PENNINE ACUTE HOSPITALS NHS TRUST | H54: 2013-14 | I54: June
A55: 01M_June | B55: 01M_PROV2 | C55: No | D55: No | E55: 1 | F55: RW3 | G55: CENTRAL MANCHESTER UNIVERSITY HOSPITALS NHS FOUNDATION TRUST | H55: 2013-14 | I55: June
A56: 01N_June | B56: 01N_PROV1 | C56: No | D56: No | E56: 1 | F56: RM2 | G56: UNIVERSITY HOSPITAL OF SOUTH MANCHESTER NHS FOUNDATION TRUST | H56: 2013-14 | I56: June
A57: 01N_June | B57: 01N_PROV2 | C57: No | D57: No | E57: 1 | F57: RW3 | G57: CENTRAL MANCHESTER UNIVERSITY HOSPITALS NHS FOUNDATION TRUST | H57: 2013-14 | I57: June
A58: 01R_June | B58: 01R_PROV1 | C58: No | D58: No | E58: 1 | F58: RBT | G58: MID CHESHIRE HOSPITALS NHS FOUNDATION TRUST | H58: 2013-14 | I58: June
A59: 01R_June | B59: 01R_PROV2 | C59: No | D59: No | E59: 1 | F59: RJN | G59: EAST CHESHIRE NHS TRUST | H59: 2013-14 | I59: June
A60: 01T_June | B60: 01T_PROV1 | C60: No | D60: No | E60: 1 | F60: REM | G60: AINTREE UNIVERSITY HOSPITAL NHS FOUNDATION TRUST | H60: 2013-14 | I60: June
A61: 01T_June | B61: 01T_PROV2 | C61: Further development required | D61: No | E61: 1 | F61: RBS | G61: ALDER HEY CHILDREN'S NHS FOUNDATION TRUST | H61: 2013-14 | I61: June
A62: 01T_June | B62: 01T_PROV3 | C62: No | D62: No | E62: 1 | F62: REP | G62: LIVERPOOL WOMEN'S NHS FOUNDATION TRUST | H62: 2013-14 | I62: June
A63: 01V_June | B63: 01V_PROV1 | C63: No | D63: No | E63: 1 | F63: RVY | G63: SOUTHPORT AND ORMSKIRK HOSPITAL NHS TRUST | H63: 2013-14 | I63: June
A64: 01W_June | B64: 01W_PROV1 | C64: No | D64: No | E64: 1 | F64: RWJ | G64: STOCKPORT NHS FOUNDATION TRUST | H64: 2013-14 | I64: June
A65: 01W_June | B65: 01W_PROV2 | C65: No | D65: No | E65: 1 | F65: RM2 | G65: UNIVERSITY HOSPITAL OF SOUTH MANCHESTER NHS FOUNDATION TRUST | H65: 2013-14 | I65: June
A66: 01W_June | B66: 01W_PROV3 | C66: No | D66: No | E66: 1 | F66: RW3 | G66: CENTRAL MANCHESTER UNIVERSITY HOSPITALS NHS FOUNDATION TRUST | H66: 2013-14 | I66: June
A67: 01X_June | B67: 01X_PROV1 | C67: No | D67: No | E67: 1 | F67: RBN | G67: ST HELENS AND KNOWSLEY HOSPITALS NHS TRUST | H67: 2013-14 | I67: June
A68: 01X_June | B68: 01X_PROV2 | C68: No | D68: No | E68: 1 | F68: RWW | G68: WARRINGTON AND HALTON HOSPITALS NHS FOUNDATION TRUST | H68: 2013-14 | I68: June
A69: 01Y_June | B69: 01Y_PROV1 | C69: No | D69: No | E69: 1 | F69: RMP | G69: TAMESIDE HOSPITAL NHS FOUNDATION TRUST | H69: 2013-14 | I69: June
A70: 01Y_June | B70: 01Y_PROV2 | C70: No | D70: No | E70: 1 | F70: RWJ | G70: STOCKPORT NHS FOUNDATION TRUST | H70: 2013-14 | I70: June
A71: 02A_June | B71: 02A_PROV1 | C71: No | D71: No | E71: 1 | F71: RW3 | G71: CENTRAL MANCHESTER UNIVERSITY HOSPITALS NHS FOUNDATION TRUST | H71: 2013-14 | I71: June
A72: 02A_June | B72: 02A_PROV2 | C72: No | D72: No | E72: 1 | F72: RM2 | G72: UNIVERSITY HOSPITAL OF SOUTH MANCHESTER NHS FOUNDATION TRUST | H72: 2013-14 | I72: June
A73: 02D_June | B73: 02D_PROV1 | C73: No | D73: No | E73: 1 | F73: RBT | G73: MID CHESHIRE HOSPITALS NHS FOUNDATION TRUST | H73: 2013-14 | I73: June
A74: 02D_June | B74: 02D_PROV2 | C74: No | D74: No | E74: 1 | F74: RJN | G74: EAST CHESHIRE NHS TRUST | H74: 2013-14 | I74: June
A75: 02E_June | B75: 02E_PROV1 | C75: No | D75: No | E75: 1 | F75: RWW | G75: WARRINGTON AND HALTON HOSPITALS NHS FOUNDATION TRUST | H75: 2013-14 | I75: June
A76: 02F_June | B76: 02F_PROV1 | C76: No | D76: No | E76: 1 | F76: RJR | G76: COUNTESS OF CHESTER HOSPITAL NHS FOUNDATION TRUST | H76: 2013-14 | I76: June
A77: 02F_June | B77: 02F_PROV2 | C77: No | D77: No | E77: 1 | F77: RBL | G77: WIRRAL UNIVERSITY TEACHING HOSPITAL NHS FOUNDATION TRUST | H77: 2013-14 | I77: June
A78: 02G_June | B78: 02G_PROV1 | C78: Further development required | D78: No | E78: 1 | F78: RVY | G78: SOUTHPORT AND ORMSKIRK HOSPITAL NHS TRUST | H78: 2013-14 | I78: June
A79: 02H_June | B79: 02H_PROV1 | C79: No | D79: No | E79: 1 | F79: RRF | G79: WRIGHTINGTON, WIGAN AND LEIGH NHS FOUNDATION TRUST | H79: 2013-14 | I79: June
A80: 02H_June | B80: 02H_PROV2 | C80: No | D80: No | E80: 1 | F80: RMC | G80: BOLTON NHS FOUNDATION TRUST | H80: 2013-14 | I80: June
A81: 02H_June | B81: 02H_PROV3 | C81: Further development required | D81: No | E81: 1 | F81: RM3 | G81: SALFORD ROYAL NHS FOUNDATION TRUST | H81: 2013-14 | I81: June
A82: 02M_June | B82: 02M_PROV1 | C82: No | D82: No | E82: 1 | F82: RXL | G82: BLACKPOOL TEACHING HOSPITALS NHS FOUNDATION TRUST | H82: 2013-14 | I82: June
A83: 02N_June | B83: 02N_PROV1 | C83: Yes | D83: Yes | E83: 2 | F83: RCF | G83: AIREDALE NHS FOUNDATION TRUST | H83: 2013-14 | I83: June
A84: 02P_June | B84: 02P_PROV1 | C84: Yes | D84: Yes | E84: 2 | F84: RFF | G84: BARNSLEY HOSPITAL NHS FOUNDATION TRUST | H84: 2013-14 | I84: June
A85: 02Q_June | B85: 02Q_PROV1 | C85: Further development required | D85: No | E85: 1 | F85: RP5 | G85: DONCASTER AND BASSETLAW HOSPITALS NHS FOUNDATION TRUST | H85: 2013-14 | I85: June
A86: 02R_June | B86: 02R_PROV1 | C86: No | D86: No | E86: 1 | F86: RAE | G86: BRADFORD TEACHING HOSPITALS NHS FOUNDATION TRUST | H86: 2013-14 | I86: June
A87: 02R_June | B87: 02R_PROV3 | C87: Yes | D87: Yes | E87: 2 | F87: RCF | G87: AIREDALE NHS FOUNDATION TRUST | H87: 2013-14 | I87: June
A88: 02T_June | B88: 02T_PROV1 | C88: Yes | D88: Yes | E88: 2 | F88: RWY | G88: CALDERDALE AND HUDDERSFIELD NHS FOUNDATION TRUST | H88: 2013-14 | I88: June
A89: 02V_June | B89: 02V_PROV1 | C89: Yes | D89: Yes | E89: 2 | F89: RR8 | G89: LEEDS TEACHING HOSPITALS NHS TRUST | H89: 2013-14 | I89: June
A90: 02V_June | B90: 02V_PROV2 | C90: Further development required | D90: No | E90: 1 | F90: RCD | G90: HARROGATE AND DISTRICT NHS FOUNDATION TRUST | H90: 2013-14 | I90: June
A91: 02W_June | B91: 02W_PROV1 | C91: No | D91: No | E91: 1 | F91: RAE | G91: BRADFORD TEACHING HOSPITALS NHS FOUNDATION TRUST | H91: 2013-14 | I91: June
A92: 02X_June | B92: 02X_PROV1 | C92: No | D92: No | E92: 1 | F92: RP5 | G92: DONCASTER AND BASSETLAW HOSPITALS NHS FOUNDATION TRUST | H92: 2013-14 | I92: June
A93: 02X_June | B93: 02X_PROV2 | C93: 0 | D93: 0 | E93: 0 | F93: RHQ | G93: SHEFFIELD TEACHING HOSPITALS NHS FOUNDATION TRUST | H93: 2013-14 | I93: June
A94: 02X_June | B94: 02X_PROV3 | C94: 0 | D94: 0 | E94: 0 | F94: RFR | G94: THE ROTHERHAM NHS FOUNDATION TRUST | H94: 2013-14 | I94: June
A95: 02X_June | B95: 02X_PROV4 | C95: 0 | D95: 0 | E95: 0 | F95: RCU | G95: SHEFFIELD CHILDREN'S NHS FOUNDATION TRUST | H95: 2013-14 | I95: June
A96: 02Y_June | B96: 02Y_PROV1 | C96: No | D96: No | E96: 1 | F96: RWA | G96: HULL AND EAST YORKSHIRE HOSPITALS NHS TRUST | H96: 2013-14 | I96: June
A97: 02Y_June | B97: 02Y_PROV2 | C97: No | D97: No | E97: 1 | F97: RJL | G97: NORTHERN LINCOLNSHIRE AND GOOLE HOSPITALS NHS FOUNDATION TRUST | H97: 2013-14 | I97: June
A98: 02Y_June | B98: 02Y_PROV3 | C98: No | D98: No | E98: 1 | F98: RCB | G98: YORK TEACHING HOSPITAL NHS FOUNDATION TRUST | H98: 2013-14 | I98: June
A99: 03A_June | B99: 03A_PROV1 | C99: Yes | D99: Yes | E99: 2 | F99: RWY | G99: CALDERDALE AND HUDDERSFIELD NHS FOUNDATION TRUST | H99: 2013-14 | I99: June
A100: 03C_June | B100: 03C_PROV1 | C100: Yes | D100: Yes | E100: 2 | F100: RR8 | G100: LEEDS TEACHING HOSPITALS NHS TRUST | H100: 2013-14 | I100: June
A101: 03D_June | B101: 03D_PROV1 | C101: No | D101: No | E101: 1 | F101: RTR | G101: SOUTH TEES HOSPITALS NHS FOUNDATION TRUST | H101: 2013-14 | I101: June
A102: 03E_June | B102: 03E_PROV1 | C102: Yes | D102: Yes | E102: 2 | F102: RCD | G102: HARROGATE AND DISTRICT NHS FOUNDATION TRUST | H102: 2013-14 | I102: June
A103: 03F_June | B103: 03F_PROV1 | C103: No | D103: No | E103: 1 | F103: RWA | G103: HULL AND EAST YORKSHIRE HOSPITALS NHS TRUST | H103: 2013-14 | I103: June
A104: 03G_June | B104: 03G_PROV1 | C104: Yes | D104: Yes | E104: 2 | F104: RR8 | G104: LEEDS TEACHING HOSPITALS NHS TRUST | H104: 2013-14 | I104: June
A105: 03H_June | B105: 03H_PROV1 | C105: No | D105: No | E105: 1 | F105: RJL | G105: NORTHERN LINCOLNSHIRE AND GOOLE HOSPITALS NHS FOUNDATION TRUST | H105: 2013-14 | I105: June
A106: 03J_June | B106: 03J_PROV1 | C106: Yes | D106: Yes | E106: 2 | F106: RXF | G106: MID YORKSHIRE HOSPITALS NHS TRUST | H106: 2013-14 | I106: June
A107: 03K_June | B107: 03K_PROV1 | C107: No | D107: No | E107: 1 | F107: RJL | G107: NORTHERN LINCOLNSHIRE AND GOOLE HOSPITALS NHS FOUNDATION TRUST | H107: 2013-14 | I107: June
A108: 03L_June | B108: 03L_PROV1 | C108: No | D108: No | E108: 1 | F108: RFR | G108: THE ROTHERHAM NHS FOUNDATION TRUST | H108: 2013-14 | I108: June
A109: 03M_June | B109: 03M_PROV1 | C109: No | D109: No | E109: 1 | F109: RCB | G109: YORK TEACHING HOSPITAL NHS FOUNDATION TRUST | H109: 2013-14 | I109: June
A110: 03N_June | B110: 03N_PROV1 | C110: Further development required | D110: No | E110: 1 | F110: RHQ | G110: SHEFFIELD TEACHING HOSPITALS NHS FOUNDATION TRUST | H110: 2013-14 | I110: June
A111: 03N_June | B111: 03N_PROV3 | C111: No | D111: No | E111: 1 | F111: RCU | G111: SHEFFIELD CHILDREN'S NHS FOUNDATION TRUST | H111: 2013-14 | I111: June
A112: 03Q_June | B112: 03Q_PROV1 | C112: No | D112: No | E112: 1 | F112: RCB | G112: YORK TEACHING HOSPITAL NHS FOUNDATION TRUST | H112: 2013-14 | I112: June
A113: 03R_June | B113: 03R_PROV1 | C113: Yes | D113: Yes | E113: 2 | F113: RXF | G113: MID YORKSHIRE HOSPITALS NHS TRUST | H113: 2013-14 | I113: June
A114: 03T_June | B114: 03T_PROV1 | C114: No | D114: No | E114: 1 | F114: RWD | G114: UNITED LINCOLNSHIRE HOSPITALS NHS TRUST | H114: 2013-14 | I114: June
A115: 03T_June | B115: 03T_PROV3 | C115: No | D115: No | E115: 1 | F115: RJL | G115: NORTHERN LINCOLNSHIRE AND GOOLE HOSPITALS NHS FOUNDATION TRUST | H115: 2013-14 | I115: June
A116: 03V_June | B116: 03V_PROV1 | C116: Yes | D116: Yes | E116: 2 | F116: RNQ | G116: KETTERING GENERAL HOSPITAL NHS FOUNDATION TRUST | H116: 2013-14 | I116: June
A117: 03W_June | B117: 03W_PROV1 | C117: Yes | D117: Yes | E117: 2 | F117: RWE | G117: UNIVERSITY HOSPITALS OF LEICESTER NHS TRUST | H117: 2013-14 | I117: June
A118: 03X_June | B118: 03X_PROV1 | C118: Yes | D118: Yes | E118: 2 | F118: RTG | G118: DERBY HOSPITALS NHS FOUNDATION TRUST | H118: 2013-14 | I118: June
A119: 03Y_June | B119: 03Y_PROV1 | C119: No | D119: No | E119: 1 | F119: RFS | G119: CHESTERFIELD ROYAL HOSPITAL NHS FOUNDATION TRUST | H119: 2013-14 | I119: June
A120: 03Y_June | B120: 03Y_PROV2 | C120: No | D120: No | E120: 1 | F120: RK5 | G120: SHERWOOD FOREST HOSPITALS NHS FOUNDATION TRUST | H120: 2013-14 | I120: June
A121: 04C_June | B121: 04C_PROV1 | C121: Yes | D121: Yes | E121: 2 | F121: RWE | G121: UNIVERSITY HOSPITALS OF LEICESTER NHS TRUST | H121: 2013-14 | I121: June
A122: 04D_June | B122: 04D_PROV1 | C122: No | D122: No | E122: 1 | F122: RWD | G122: UNITED LINCOLNSHIRE HOSPITALS NHS TRUST | H122: 2013-14 | I122: June
A123: 04E_June | B123: 04E_PROV1 | C123: Yes | D123: Yes | E123: 2 | F123: RK5 | G123: SHERWOOD FOREST HOSPITALS NHS FOUNDATION TRUST | H123: 2013-14 | I123: June
A124: 04F_June | B124: 04F_PROV1 | C124: No | D124: No | E124: 1 | F124: RD8 | G124: MILTON KEYNES HOSPITAL NHS FOUNDATION TRUST | H124: 2013-14 | I124: June
A125: 04G_June | B125: 04G_PROV1 | C125: yes | D125: yes | E125: 2 | F125: RNS | G125: NORTHAMPTON GENERAL HOSPITAL NHS TRUST | H125: 2013-14 | I125: June
A126: 04G_June | B126: 04G_PROV2 | C126: yes | D126: yes | E126: 2 | F126: RNQ | G126: KETTERING GENERAL HOSPITAL NHS FOUNDATION TRUST | H126: 2013-14 | I126: June
A127: 04H_June | B127: 04H_PROV1 | C127: Yes | D127: Yes | E127: 2 | F127: RK5 | G127: SHERWOOD FOREST HOSPITALS NHS FOUNDATION TRUST | H127: 2013-14 | I127: June
A128: 04J_June | B128: 04J_PROV1 | C128: No | D128: No | E128: 1 | F128: RFS | G128: CHESTERFIELD ROYAL HOSPITAL NHS FOUNDATION TRUST | H128: 2013-14 | I128: June
A129: 04J_June | B129: 04J_PROV2 | C129: No | D129: No | E129: 1 | F129: RWJ | G129: STOCKPORT NHS FOUNDATION TRUST | H129: 2013-14 | I129: June
A130: 04K_June | B130: 04K_PROV1 | C130: Yes | D130: Yes | E130: 2 | F130: RX1 | G130: NOTTINGHAM UNIVERSITY HOSPITALS NHS TRUST | H130: 2013-14 | I130: June
A131: 04L_June | B131: 04L_PROV1 | C131: Yes | D131: Yes | E131: 2 | F131: RX1 | G131: NOTTINGHAM UNIVERSITY HOSPITALS NHS TRUST | H131: 2013-14 | I131: June
A132: 04M_June | B132: 04M_PROV1 | C132: Yes | D132: Yes | E132: 2 | F132: RX1 | G132: NOTTINGHAM UNIVERSITY HOSPITALS NHS TRUST | H132: 2013-14 | I132: June
A133: 04N_June | B133: 04N_PROV1 | C133: Yes | D133: Yes | E133: 2 | F133: RX1 | G133: NOTTINGHAM UNIVERSITY HOSPITALS NHS TRUST | H133: 2013-14 | I133: June
A134: 04Q_June | B134: 04Q_PROV1 | C134: No | D134: No | E134: 1 | F134: RWD | G134: UNITED LINCOLNSHIRE HOSPITALS NHS TRUST | H134: 2013-14 | I134: June
A135: 04R_June | B135: 04R_PROV1 | C135: Yes | D135: Yes | E135: 2 | F135: RTG | G135: DERBY HOSPITALS NHS FOUNDATION TRUST | H135: 2013-14 | I135: June
A136: 04R_June | B136: 04R_PROV2 | C136: Yes | D136: Yes | E136: 2 | F136: RJF | G136: BURTON HOSPITALS NHS FOUNDATION TRUST | H136: 2013-14 | I136: June
A137: 04V_June | B137: 04V_PROV1 | C137: No | D137: No | E137: 1 | F137: RWE | G137: UNIVERSITY HOSPITALS OF LEICESTER NHS TRUST | H137: 2013-14 | I137: June
A138: 04V_June | B138: 04V_PROV2 | C138: Further development required | D138: No | E138: 1 | F138: RLT | G138: GEORGE ELIOT HOSPITAL NHS TRUST | H138: 2013-14 | I138: June
A139: 04V_June | B139: 04V_PROV3 | C139: No | D139: No | E139: 1 | F139: RJF | G139: BURTON HOSPITALS NHS FOUNDATION TRUST | H139: 2013-14 | I139: June
